Workbook

Sheet Intro & Unit Options
T5: Metric
T6: Imperial
B11: Unit Options
B12: Imperial

Sheet EULA
A1: THIS END-USER LICENCE AGREEMENT (EULA) IS A LEGAL AGREEMENT BETWEEN YOU, THE END-USER, IN YOUR CAPACITY AS AN INDIVIDUAL AND/OR AS AN AGENT FOR YOUR COMPANY, INSTITUTION OR OTHER ENTITY
A2: (hereinafter referred to as the "Licensee"), AND HER MAJESTY THE QUEEN IN RIGHT OF CANADA AS REPRESENTED BY THE MINISTER OF NATURAL RESOURCES (hereinafter referred to as "NRCan")
A4: WHEREAS NRCAN HAS THE RIGHT TO GRANT A LICENSE FOR THE AIR SOURCE HEAT PUMP SIZING AND SELECTION TOOL V2.0, AN EXCEL SOFTWARE TOOL THAT INTERACTIVELY GUIDES USERS IN APPLYING THE STEP-BY-STEP PROCESS DESCRIBED IN NRCAN’S AIR SOURCE HEAT PUMP SIZING AND SELECTION GUIDE, WHILE PROVIDING ADDITIONAL CHARTING AND PERFORMANCE ANALYSIS FEATURES (hereinafter referred to as the “Software”)
A7: BY DOWNLOADING, INSTALLING, USING OR COPYING THE SOFTWARE THE LICENSEE HEREBY AGREES TO ADHERE TO THE TERMS AND CONDITIONS BELOW:
A9: 1 GRANT OF LICENSE
A11: 1.1 Upon the terms and conditions hereinafter set forth, NRCan hereby grants to you, the Licensee, a non- exclusive license to use the Software.
A13: 1.2 The Licensee shall not disclose, modify, sell, sublicense, loan, transfer, reverse-engineer the Software, or otherwise assign any rights under this EULA to any third party.
A15: 1.3 Subject to Article 8.2, the Licensee shall not make more than one (1) backup copy of the Software. The backup copy shall be held confidential and shall be used only for the purpose of backup.
A17: 2 TERM
A19: 2.1 This EULA shall come into force upon the first instance that the Software is used by the Licensee or comes into the possession of the Licensee, and shall remain in force until the Licensee destroys all copies of the Software
A21: 3 | B21: OBLIGATIONS OF THE LICENSEE
A23: 3.1 | B23: The Licensee shall not make any statement or representation indicating that NRCan or the Government of Canada endorses or approves any recommendation, study, report, product, service or course of action as a result of the Licensee's use of the Software.
A25: 3.2 | B25: The Licensee’s publications referring to the Software must state the origin of the Software using the following text: "The Air Source Heat Pump Sizing and Selection Tool is owned by Her Majesty the Queen in Right of Canada as represented by the Minister of Natural Resources © 2022". The Licensee shall seek prior written approval for any other statements concerning NRCan beyond the origin of the Software.
A27: 4 | B27: MAINTENANCE AND SUPPORT
A29: 4.1 | B29: The parties understand and agree that while the Licensee may report any bugs or technical malfunctions in the Software to NRCan, NRCan is under no obligation to provide technical support, maintenance services, update services, notices of latent defects, or correction of defects for the Software.
A31: 5 | B31: TITLE
A33: 5.1 | B33: The Licensee agrees that the Software is and shall at all times remain the property of NRCan. The Licensee shall have no right, title and interest therein or thereto, except as expressly set forth in this EULA.
A35: 5.2 | B35: The Licensee acknowledges that the Software is protected under the Copyright Act.
A37: 6 | B37: WARRANTY AND INDEMNITY
A39: 6.1 | B39: The Software is licensed on an "AS IS" basis. NRCan makes no guarantees, representations, or warranties respecting the Software, either express or implied, arising by law or otherwise, including but not limited to effectiveness, completeness, accuracy, or fitness for a particular purpose.
A41: 6.2 | B41: NRCan shall not be liable in respect of any claim, demand or action, irrespective of the nature of the cause of the claim, demand or action alleging any loss, injury or damages, direct or indirect, which may result from the Licensee’s use or possession of the Software. NRCan shall not be liable in any way for loss of revenue or contracts, or any other consequential loss of any kind resulting from the Licensee’s use or possession of the Software.
A43: 6.3 | B43: The Licensee shall indemnify and defend NRCan, its employees, contractors, agents and suppliers, from and against all claims, demands, losses, damages, costs (including legal fees and costs on a substantial indemnity basis), actions, suits or proceedings brought by any third party, that are in any manner based upon, arising out of, or attributable to the use, possession, or performance of the Software by the Licensee, or it’s employees or agents.
A46: 7 | B46: TERMINATION
A48: 7.1 | B48: Subject to Article 8.2, if the Licensee breaches any obligation under this EULA and fails to remedy the breach within thirty (30) calendar days, the present EULA is deemed to be terminated immediately without any notice.
A50: 7.2 | B50: Notwithstanding any other provisions in this agreement, Articles 3.1 and 3.2 shall survive termination of this EULA.
A52: 8 | B52: DESTRUCTION
A54: 8.1 | B54: Prior to assigning, selling or otherwise disposing of any media, the Licensee shall completely erase or otherwise destroy any Software contained on such media.
A56: 8.2 | B56: Upon termination or expiration of the Agreement, the Licensee agrees to either:
A58: (1) | B58: Return to NRCan immediately all copies of the Software and any related documentation and completely erase or otherwise destroy the backup copy of the Software provided for under Article 1.3 on the Licensee’s media, or
A60: (2) | B60: Completely erase or otherwise destroy all copies of the Software, including but not limited to the backup copy provided for under Article 1.3, as well as any related documentation on the Licensee’s media.
A62: 9 | B62: APPLICABLE LAW
A64: 9.1 | B64: This EULA shall be interpreted in accordance with the provincial or territorial laws in force in Ontario, Canada.
A66: 10 | B66: NOTICES
A68: 10.1 | B68: All notices, inquiries and other communications hereunder shall be in writing and shall be deemed to have been duly given once confirmation is received after sending to NRCan:
B71: Natural Resources Canada Intellectual Property Division
B72: NRCan.ipd-dpi.rncan@canada.ca

Sheet Step 1 ASHP Configuration
A1: DESIGN STEP 1: Define ASHP Configuration | S1: DO NOT TOUCH THESE CELLS
T2: Option A: Centrally Ducted ASHP
A3: Design Step 1 Inputs | F3: Reference | T3: Option B: Ductless Mini-split, Single Zone ASHP
F4: This tab is used to define the ASHP configuration in the house or area that is considered for installation. | T4: Option C: Ductless Mini-split, Multi-Zone ASHP
F5: This includes the installation type and the number of units required. | T5: Option D: Ducted Mini-split ASHP
A6: ASHP Configuration | B6: Option A: Centrally Ducted ASHP | F6: This section refers to pages 5 to 7 of the ASHP Sizing Guide.
A7: =IF(OR(B6=T3,B6=T5),"# of Units Required",IF(B6=T4,"# of Indoor units","")) ->  | B7: 1
A8: =IF(B6=T4,"# of Outdoor Units","") ->  | B8: 1 | F8: Upon completing Step 1, you will have: | T8: New HVAC System
A9: Installation Type | B9: Full System Replacement | F9: Selected the type of ASHP most suited for the application | T9: Full System Replacement
F10: For ductless ASHP applications, estimated the number of units required. | T10: Add-on ASHP
F11: Recorded the type of installation: New home / Full HVAC replacement / Add-on ASHP.
T12: 1
T13: 2
T14: 3
T15: 4
T16: 5
A18: LEGEND
A20: Input | B20: In these cells the user should input a value
A22: Drop-down list | B22: In these cells a drop-down list will provide the user with specific values from which to choose
A24: Internal Calculation / Output | B24: These cells provide the values from internal calculations of the tool - they do not need any input from the user

Sheet Step 2 Choose Indoor Unit Type
A1: DESIGN STEP 2: Choose Indoor Unit Type(s) for use with Ductless ASHP | S1: DO NOT TOUCH THESE CELLS
T2: =IF(OR('Step 1 ASHP Configuration'!B6='Step 1 ASHP Configuration'!T2,'Step 1 ASHP Configuration'!B6='Step 1 ASHP Configuration'!T5),"NO", "YES") -> NO
A3: Design Step 2 Inputs | F3: Reference
F4: Pages 8 to 10 of the ASHP Sizing Guide | T4: Option 2A: Wall mounted
A5: =IF(OR('Step 1 ASHP Configuration'!B6='Step 1 ASHP Configuration'!T3,'Step 1 ASHP Configuration'!B6='Step 1 ASHP Configuration'!T4),"","• No indoor units to select for this ASHP configuration") -> • No indoor units to select for this ASHP configuration | T5: Option 2B: Floor mounted
A6: Indoor Unit #1 | B6: Option 2C: Ceiling mounted | F6: Upon completing Step 2, you will have: | T6: Option 2C: Ceiling mounted
A7: =IF('Step 1 ASHP Configuration'!$B$7<2,"","Indoor Unit #2") ->  | B7: Option 2A: Wall mounted | F7: Estimated the number of indoor unites required for the ductless ASHP application | T7: Option 2D: Horizontally ducted (concealed)
A8: =IF('Step 1 ASHP Configuration'!$B$7<3,"","Indoor Unit #3") ->  | B8: Option 2C: Ceiling mounted | F8: Selected the type of indoor unit(s) most suited for the application.
A9: =IF('Step 1 ASHP Configuration'!$B$7<4,"","Indoor Unit #4") ->  | B9: Option 2B: Floor mounted
A10: =IF('Step 1 ASHP Configuration'!$B$7<5,"","Indoor Unit #5") ->  | B10: Option 2C: Ceiling mounted

Sheet Step 3 Design Loads
A1: DESIGN STEP 3: Determine Design Heating and Cooling Load Estimates
E2: Design Step 3 Reference
A3: Design Step 3 Inputs | E3: Climate Inputs | S3: DO NOT TOUCH THESE CELLS | Y3: Reference
A4: Climate Inputs | Y4: Pages 11 to 18 in the ASHP Sizing Guide
A5: Country | B5: CAN | T5: Option A: CSA F280 Load Analysis
A6: Province | B6: ON | T6: Option B: Post-Retrofit Load Estimate | Y6: Upon completing Step 3, you will have:
A7: City | B7: Toronto (city hall) | C7: (Wait 5s before selecting) | T7: Option C: HOT2000 Simulation | Y7: Estimated the design heating and cooling loads for the overall house or targeted space.
A8: Climate Type | B8: =VLOOKUP($B$7,'Climate Zones'!$D$2:$F$1686,3,FALSE) -> Cold-Humid | T8: Option D: Loads Estimate from Existing Equipment Capacities | Y8: For centrally-ducted retrofit applications, estimated the maximum airflow capacity of the existing ductwork in the house.
A9: HDD (Metric) | B9: =VLOOKUP($B$7,'Climate Zones'!$D$2:$F$1686,2,FALSE) -> 3520 | Y9: Created a heating load curve for the overall house or targeted space to assist with ASHP equipment selection.
A10: Load Inputs
A11: Load Determination Method | B11: Option A: CSA F280 Load Analysis | T11: =IF(NOT(A17=""),"Yes","") -> 
A12: =IF(OR($B$11=$T$5,$B$11=$T$7),"Heating Design Load",IF($B$11=$T$6,"Heating Load if all building envolpe retrofits were implemented",IF(B11=T8,"Heating Equipment Rated Heating Output",""))) -> Heating Design Load | B12: 50000 | C12: =IF('Intro & Unit Options'!$B$12="Metric","kW","BTU/h") -> BTU/h | T12: =IF(NOT(A17=""),"No","") -> 
A13: =IF(OR($B$11=$T$5,$B$11=$T$7),"Heating Design Temperature",IF(OR($B$11=$T$6,$B$11=$T$8),"Heating Design Temperature","")) -> Heating Design Temperature | B13: =IF('Intro & Unit Options'!$B$12="Imperial",ROUND(VLOOKUP($B$7,'Climate Zones'!$D$2:$G$1686,4,FALSE)*(9/5)+32,0),VLOOKUP($B$7,'Climate Zones'!$D$2:$G$1686,4,FALSE)) -> 0 | C13: =IF('Intro & Unit Options'!$B$12="Metric","C","F") -> F
A14: =IF(OR($B$11=$T$5,$B$11=$T$7),"Cooling Design Load",IF($B$11=$T$6,"Cooling Load if all building envolpe retrofits were implemented",IF(B11=T8,"Cooling Equipment Rated Heating Output",""))) -> Cooling Design Load | B14: 30000 | C14: =IF('Intro & Unit Options'!$B$12="Metric","kW","BTU/h") -> BTU/h
A15: =IF(OR($B$11=$T$5,$B$11=$T$7),"Cooling Design Temperature",IF(OR($B$11=$T$6,$B$11=$T$8),"Cooling Design Temperature","")) -> Cooling Design Temperature | B15: =IF('Intro & Unit Options'!$B$12="Imperial",ROUND(VLOOKUP($B$7,'Climate Zones'!$D$2:$H$1686,5,FALSE)*(9/5)+32,0),VLOOKUP($B$7,'Climate Zones'!$D$2:$H$1686,5,FALSE)) -> 88 | C15: =IF('Intro & Unit Options'!$B$12="Metric","C","F") -> F
A16: =IF(B11=T6,"% savings possible by performing all recommended non-space heating upgrades","") ->  | B16: 12 | C16: =IF(B11=T6,"%","") ->  | T16: Max | U16: ='Design Load Calcs'!O12 -> 110 | V16: =IF(NOT('Intro & Unit Options'!B12="Metric"),CEILING('Step 3 Design Loads'!B12,10000),CEILING('Step 3 Design Loads'!B12,10)) -> 50000
A17: =IF(B11=T8,"Existing Comfort Issues/Recent Home Upgrades?","") ->  | B17: Yes | T17: Min | U17: ='Design Load Calcs'!O6 -> -10 | V17: 0
A18: =+IF(B11=T8,"Assumed over-capacity sizing of existing equipment", "") ->  | B18: 140 | T18: Major Unit | U18: 10 | V18: =IF(NOT('Intro & Unit Options'!B12="Metric"),10000,2) -> 10000
A20: Design Step 3 Outputs | E20: Unit Conversion | T20: Oversizing | U20: 0
A21: =IFERROR(IF(B11=T8,IF(B18=140,"Heating assuming 140% over-capacity sizing: "&ROUND('Design Load Calcs'!B23,IF('Intro & Unit Options'!B12="Metric",1,-2))&" "&C12&" at design temperature of "&B13&C13,IF(B18=125,"Heating assuming 125% over-capacity sizing: "&ROUND('Design Load Calcs'!B23,IF('Intro & Unit Options'!B12="Metric",1,-2))&" "&C12&" at design temperature of "&B13&C13,IF(B18=0,"Heating assuming no over-capacity sizing: "&ROUND('Design Load Calcs'!C23,IF('Intro & Unit Options'!B12="Metric",1,-2))&" "&C12&" at design temperature of "&B13&C13))),"Heating assuming no over-capacity sizing: "&ROUND('Design Load Calcs'!B23,IF('Intro & Unit Options'!B12="Metric",1,-2))&" "&C12&" at design temperature of "&B13&C13 ),"") -> Heating assuming no over-capacity sizing: 50000 BTU/h at design temperature of 0F | U21: 125
A22: =IFERROR(IF(B11=T8,IF(B18=140,"Cooling assuming 140% over-capacity sizing: "&ROUND('Design Load Calcs'!B25,IF('Intro & Unit Options'!B12="Metric",1,-2))&" "&C14&" at design temperature of "&B15&C15,IF(B18=125,"Cooling assuming 125% over-capacity sizing: "&ROUND('Design Load Calcs'!B25,IF('Intro & Unit Options'!B12="Metric",1,-2))&" "&C14&" at design temperature of "&B15&C15,IF(B18=0,"Cooling assuming no over-capacity sizing: "&ROUND('Design Load Calcs'!C25,IF('Intro & Unit Options'!B12="Metric",1,-2))&" "&C14&" at design temperature of "&B15&C15))),"Cooling assuming no over-capacity sizing: "&ROUND('Design Load Calcs'!B25,IF('Intro & Unit Options'!B12="Metric",1,-2))&" "&C14&" at design temperature of "&B15&C15 ),"") -> Cooling assuming no over-capacity sizing: 30000 BTU/h at design temperature of 88F | I22: Unit Conversion | U22: 140
F23: °F | H23: °C | J23: BTU/h | L23: kW
F24: 0 | H24: =ROUND((F24-32)*(5/9),0) -> -18 | J24: 1 | L24: =ROUND(J24/3212.142,0) -> 0 | U24: Max Flow Capacity
A25: Notes: | F25: °C | H25: °F | J25: kW | L25: BTU/h | T25: Rectangular | U25: =(W28*V28+W29*V29+W30*V30+W31*V31+W32*V32+W33*V33)*6.25 -> 1475 | V25: Rectangular&Round | W25: =ROUND(U25+U26,-1) -> 1480
A26: =IF(B11=T8,"• An energy audit and/or new heating/cooling load calculation should be conducted prior to sizing and selection of the heat pumps","") ->  | F26: 0 | H26: =ROUND((F26*9/5)+32,0) -> 32 | J26: 1 | L26: =ROUND(J26*3412.142,0) -> 3412 | T26: Round | U26: =((U28^2)+(U29^2)+(U30^2)+(U31^2)+(U32^2)+(U33^2))*4.91 -> 0
A27: =IF(AND($B$11=$T$8,B17="Yes"),"• Comfort issues may be a result of items other than undersized equipment, such as defects in the thermal boundary, in the mechanical system or both.","") ->  | T27: Rectangular&Round | U27: =IF(Q27=AI26, "Depth [inches]",IF(Q27=AI27,"Diameter [inches]","")) -> Depth [inches] | V27: =IF(Q27=AI26, "Width [inches]",IF(Q27=AI27,"","")) -> Width [inches] | W27: Depth (in)
T28: 1 | U28: =IF(E32="",0,F32)*IF(OR($B$31=$T$26,AND($B$31=$T$27,J32="ROUND")),1,0) -> 0 | V28: =IF(E32="",0,IF(OR($B$31=$T$25,AND($B$31=$T$27,$J$32=$T$25)),H32,0)) -> 22 | W28: =IF(E32="",0,IF(OR($B$31=$T$25,AND($B$31=$T$27,$J$32=$T$25)),F32,0)) -> 8
T29: 2 | U29: 0 | V29: =IF(E33="",0,IF(OR($B$31=$T$25,AND($B$31=$T$27,$J$33=$T$25)),H33,0)) -> 10 | W29: =IF(E33="",0,IF(OR($B$31=$T$25,AND($B$31=$T$27,$J$33=$T$25)),F33,0)) -> 6
A30: Additional Inputs: Estimating Maximum Airflow Capacity of Existing Supply Ducts | T30: 3 | U30: 0 | V30: =IF(E34="",0,IF(OR($B$31=$T$25,AND($B$31=$T$27,$J$34=$T$25)),H34,0)) -> 0 | W30: =IF(E34="",0,IF(OR($B$31=$T$25,AND($B$31=$T$27,$J$34=$T$25)),F34,0)) -> 0
A31: Geometry of the Trunk Ducts? | B31: Rectangular | F31: =IF(B31=T25, "Depth [inches]",IF(B31=T26,"Diameter [inches]",IF(B31=T27,"Diameter/Depth[inches]",""))) -> Depth [inches] | H31: =IF(OR(B31=T25,B31=T27), "Width [inches]",IF(B31=T26,"","")) -> Width [inches] | J31: Type | T31: 4 | U31: 0 | V31: =IF(E35="",0,IF(OR($B$31=$T$25,AND($B$31=$T$27,$J$35=$T$25)),H35,0)) -> 0 | W31: =IF(E35="",0,IF(OR($B$31=$T$25,AND($B$31=$T$27,$J$35=$T$25)),F35,0)) -> 0
A32: How Many Trunk Ducts? | B32: 2 | E32: =IF(B32>0,"Trunk 1","") -> Trunk 1 | F32: 8 | H32: 22 | J32: Rectangular | T32: 5 | U32: 0 | V32: =IF(E36="",0,IF(OR($B$31=$T$25,AND($B$31=$T$27,$J$36=$T$25)),H36,0)) -> 0 | W32: =IF(E36="",0,IF(OR($B$31=$T$25,AND($B$31=$T$27,$J$36=$T$25)),F36,0)) -> 0
A33: Maximum Airflow Capacity According to HRAI RASD | B33: =IF(B31=T25,U25,IF(B31=T26,U26,IF(B31=T27,W25,""))) -> 1475 | C33: CFM | E33: =IF(B32>1,"Trunk 2","") -> Trunk 2 | F33: 6 | H33: 10 | J33: Round | T33: 6 | U33: 0 | V33: =IF(E37="",0,IF(OR($B$31=$T$25,AND($B$31=$T$27,$J$37=$T$25)),H37,0)) -> 0 | W33: =IF(E37="",0,IF(OR($B$31=$T$25,AND($B$31=$T$27,$J$37=$T$25)),F37,0)) -> 0
E34: =IF(B32>2,"Trunk 3","") ->  | F34: 6 | H34: 10 | J34: Round
E35: =IF(B32>3,"Trunk 4","") ->  | F35: 5 | H35: 4 | J35: Round
E36: =IF(B32>4,"Trunk 5","") ->  | F36: 5 | H36: 5 | J36: Rectangular
E37: =IF(B32>5,"Trunk 6","") ->  | F37: 6 | H37: 6 | J37: Rectangular
E38: Additional Comments
E39: Note: Max airflow capacity as stated by the Heating, Refrigeration and Air Conditioning Institute’s Residential Air Systems Design course materials in order to avoid noise and unacceptable friction loss. The course material recommends a maximum supply trunk rigid duct velocity of 900 FPM. The course design targets a total system external static pressure of 0.5"

Sheet Step 4 Sizing Approach
A1: DESIGN STEP 4: Determine Sizing Approach and Capacity Requirements of ASHP | S1: DO NOT TOUCH THESE CELLS
T2: Option A: Emphasis on Cooling
A3: Design Step 4 Inputs | I3: Design Step Reference | T3: Option B: Emphasis on Balanced Heating/Cooling
T4: Option C: Emphasis on Heating
I5: Pages 20-24 | T5: Option D: ASHP as Sole Heating Source
A6: Sizing Approach | B6: Option C: Emphasis on Heating
I7: Upon completing Step 4, you will have:
A8: =IF(OR('Step 1 ASHP Configuration'!B9='Step 1 ASHP Configuration'!T9,'Step 1 ASHP Configuration'!B9='Step 1 ASHP Configuration'!T10),"Full System Replacement?","") -> Full System Replacement? | B8: =IF('Step 1 ASHP Configuration'!B9="Full System Replacement","Yes","No") -> Yes | I8: Defined a Target Capacity for heating or cooling at specific outdoor conditions for the application under consideration | T8: =IF($A$8="","","Yes") -> Yes
I9: Defined criteria for selecting the most sutiably sized ASHP models from commercially available equipment to match basic client objectives. | T9: =IF($A$8="","","No") -> No
A10: =IF('Step 1 ASHP Configuration'!$B$6='Step 1 ASHP Configuration'!$T$2,"Calculated Airflow Capacity","") -> Calculated Airflow Capacity | B10: ='Step 3 Design Loads'!B33 -> 1475 | C10: CFM | D10: @ | E10: 0.5 | F10: =IF('Intro & Unit Options'!$B$12="Metric","mmWG","inches Water Gauge") -> inches Water Gauge
T11: =IF($A$9="","","Yes") -> 
A12: Design Step 3 Outputs | T12: =IF($A$9="","","No") -> 
A15: =IF('Step 3 Design Loads'!B11='Step 3 Design Loads'!T8,IF(OR(B6=T2,B6=T3),"Target Cooling Capacity Range",IF(OR(B6=T4,B6=T5),"Target Heating Capacity","")),IF(OR(B6=T2,B6=T3),"Target Cooling Capacity Range",IF(OR(B6=T4,B6=T5),"Target Heating Capacity",""))) -> Target Heating Capacity | B15: =IFERROR(ROUND(IF(A15="Target Cooling Capacity Range",'Design Load Calcs'!C20*0.8,IF(A15="Target Cooling Capacity Range LOW",'Design Load Calcs'!C20*0.8,IF(A15="Target Heating Capacity",IF(B6=T4,'Design Load Calcs'!H15,'Design Load Calcs'!B23),IF(A15="Target Heating Capacity LOW",IF(B6=T4,'Design Load Calcs'!H15,'Design Load Calcs'!C13),"")))),IF('Intro & Unit Options'!B12="Metric",1,-2)),"") -> 35800 | C15: =IF(OR(A15="Target Cooling Capacity Range",A15="Target Cooling Capacity Range LOW"),"to",IF(OR(A15="Target Heating Capacity",A15="Target Heating Capacity LOW"),IF('Intro & Unit Options'!$B$12="Metric","kW","BTU/h"),"")) -> BTU/h | D15: =IFERROR(ROUND(IF(A15="Target Cooling Capacity Range",'Design Load Calcs'!C20*1.25,IF(A15="Target Cooling Capacity Range LOW",'Design Load Calcs'!C20*1.25,"")),IF('Intro & Unit Options'!B12="Metric",1,-2)),"") ->  | E15: =IF(D15="","",IF(OR(A15="Target Heating Capacity",A15="Target Heating Capacity LOW"),"",IF('Intro & Unit Options'!$B$12="Metric","kW","BTU/h"))) ->  | U15: X-axis | V15: Y-axis
A16: =IF('Step 3 Design Loads'!B11='Step 3 Design Loads'!T8,IF(OR(B6=T2,B6=T3),"",IF(OR(B6=T4,B6=T5),"","")),"") ->  | B16: =IF(A16="Target Cooling Capacity Range HIGH",'Design Load Calcs'!C16*0.8,IF(A16="Target Heating Capacity HIGH",IF(B6=T4,'Design Load Calcs'!J25,'Design Load Calcs'!C14),"")) ->  | C16: =IF(A16="Target Cooling Capacity Range HIGH","to",IF(A16="Target Heating Capacity HIGH",IF('Intro & Unit Options'!$B$12="Metric","kW","BTU/h"),"")) ->  | D16: =IF(A16="Target Cooling Capacity Range HIGH",'Design Load Calcs'!C16*1.25,"") ->  | E16: =IF(OR(A16="Target Heating Capacity HIGH",A16=""),"",IF('Intro & Unit Options'!$B$12="Metric","kW","BTU/h")) ->  | T16: Max | U16: ='Design Load Calcs'!O12 -> 110 | V16: =IF(NOT('Intro & Unit Options'!B12="Metric"),CEILING('Step 3 Design Loads'!B12,10000),CEILING('Step 3 Design Loads'!B12,10)) -> 50000
A17: ="Building Heating at "&IF('Intro & Unit Options'!B12="Metric","-8.3C","17F") -> Building Heating at 17F | T17: Min | U17: ='Design Load Calcs'!O6 -> -10 | V17: 0
A18: Building Heating Load at Heating Design Temperature | T18: Major Unit | U18: 10 | V18: =IF(NOT('Intro & Unit Options'!B12="Metric"),10000,2) -> 10000
A19: Additional Notes
A20: • Cooling Capacities at 95 oF (35 oC) outdoor temperature may be used for initial screening purposes as this information is commonly available from manufacturer data. If extended performance data is available, use capacity ratings at an outdoor temperature close to the design temperature for the site.
A22: =IF(B6=T2,"• For Two-Stage and Variable Capacity Units, ASHP capacity should be selected at the HIGH stage",IF(B6=T3,"• For Two-Stage and Variable Capacity Units, ASHP capacity should be selected at the LOW stage",IF(AND(NOT('Step 1 ASHP Configuration'!B9="New HVAC System"),B9="Yes",'Design Load Calcs'!B30>('Step 4 Sizing Approach'!B10+200),B10<>"",B8="No"),"Notes: ",""))) -> 
A23: =IF(AND(NOT('Step 1 ASHP Configuration'!B9="New HVAC System"),B9="Yes",'Design Load Calcs'!B30>'Design Load Calcs'!B31,B10<>"",B8="No"),"• Existing ductwork may not be adequately sized for HP system. User should confirm suitability of existing ductwork before system installation.","") -> 
A28: Graphs

Sheet Step 5 Identify & Select ASHPs
A1: DESIGN STEP 5: Identify & Select ASHP Matching Key Requirements
A2: Climate Inputs
A3: Analysis Parameters | K3: Notes:
B5: Climate Summary (Selected in Step 3) | K5: All data entry points must be completed in order of descending outdoor temperature
B6: Location | D6: ='Step 3 Design Loads'!B7 -> Toronto (city hall) | F6: ='Step 3 Design Loads'!B6 -> ON | H6: ='Step 3 Design Loads'!B5 -> CAN | K6: Attention: Be sure to select the HP type before starting to fill the Data Entry Type and the Performance Data sections.
B7: Climate Zone | D7: ='Step 3 Design Loads'!B8 -> Cold-Humid | K7: Attention: Reset buttons will zero all inputs in the performance data points section.
B8: HDD (metric) | D8: ='Step 3 Design Loads'!B9 -> 3520 | K8: Use reset only if changing heat pump type, inputting data for different HP model, changing of data entry type or switching between entering Power or COP/EER
B10: Selection: HPs to Examine
B11: # of HP to examine | D11: 4
K12: Reference to Guide
B13: Indoor Conditions for Heat Pump Selection:
B14: Heating: | D14: =IF('Intro & Unit Options'!B12="Metric",21.1,70)&'Step 3 Design Loads'!C13&" dry bulb temperature" -> 70F dry bulb temperature | K14: Pages 25-33
B15: Cooling: | D15: =IF('Intro & Unit Options'!B12="Metric",24,75)&'Step 3 Design Loads'!C13&" dry bulb temperature" -> 75F dry bulb temperature
D16: =IF('Intro & Unit Options'!B12="Metric",17,63)&'Step 3 Design Loads'!C13&" wet bulb temperature" -> 63F wet bulb temperature | K16: Upon completing Step 5, you will have:
K17: Selected a specific model and size of ASHP(s) that ''Best Fits'' the application requirements and client expectations as defined by the options selected in Steps 1 through 4.
A19: Heat Pump Inputs
B21: Heat Pump #1 | C21: Global Information | G21: Data Entry Type | L21: High Stage
L22: HEAT | M22: ="Temperature"&IF('Intro & Unit Options'!$B$12=Dropdown_Menus!F1," [°C]"," [°F]") -> Temperature [°F] | N22: 47 | O22: 17
M23: ="Heating Cap."&IF('Intro & Unit Options'!$B$12=Dropdown_Menus!F1," [kW]"," [BTU/h]") -> Heating Cap. [BTU/h]
I24: TRUE | M24: Heating Power [kW]
I25: FALSE | M25: Heating COP [-] | N25: =IF($N$24="","",IF('Intro & Unit Options'!B12="METRIC",$N$23/$N$24,$N$23*0.00029307103866/$N$24)) ->  | O25: =IF($O$24="","",IF('Intro & Unit Options'!B12="METRIC",$O$23/$O$24,$O$23*0.00029307103866/$O$24)) ->  | AH25: =IF($AH$24="","",IF('Intro & Unit Options'!B12="METRIC",$AH$23/$AH$24,$AH$23*0.00029307103866/$AH$24)) ->  | AI25: =IF($AI$24="","",IF('Intro & Unit Options'!B12="METRIC",$AI$23/$AI$24,$AI$23*0.00029307103866/$AI$24)) -> 
D26: Reference Name | I26: FALSE | L26: COOL | M26: ="Temperature"&IF('Intro & Unit Options'!$B$12=Dropdown_Menus!F1," [°C]"," [°F]") -> Temperature [°F] | N26: 95
D27: Indoor Unit Model Name | I27: FALSE | M27: ="Cooling Cap."&IF('Intro & Unit Options'!$B$12=Dropdown_Menus!F1," [W]"," [BTU/h]") -> Cooling Cap. [BTU/h]
D28: Outdoor Unit Model Name | M28: Cooling Power [kW]
D29: Noise Rating [dB(A)] | M29: Cooling EER [-] | N29: =IF($N$28="","",IF('Intro & Unit Options'!B12="METRIC",$N$27/0.00029307103866/(1000*$N$28),$N$27/($N$28*1000))) ->  | AH29: =IF($AH$28="","",IF('Intro & Unit Options'!B12="METRIC",$AH$27/0.00029307103866/(1000*$AH$28),$AH$27/($AH$28*1000))) ->  | AI29: =IF($AI$28="","",IF('Intro & Unit Options'!B12="METRIC",$AI$27/0.00029307103866/(1000*$AI$28),$AI$27/($AI$28*1000))) -> 
D30: Rated Airflow [CFM] | G30: Performance Data | L30: Low Stage
D31: Cut-Off Temperature [°F] | L31: HEAT | M31: ="Temperature"&IF('Intro & Unit Options'!$B$12=Dropdown_Menus!F1," [°C]"," [°F]") -> Temperature [°F] | N31: 47 | O31: 17 | AH31: =IF($AH$22="","",$AH$22) ->  | AI31: =IF($AI$22="","",$AI$22) -> 
D32: HP Integration | E32: =IF('Step 1 ASHP Configuration'!B6='Step 1 ASHP Configuration'!T2,"Centrally Ducted",IF('Step 1 ASHP Configuration'!B6='Step 1 ASHP Configuration'!T3,"Single Split Ductless",IF('Step 1 ASHP Configuration'!B6='Step 1 ASHP Configuration'!T4,"Multi-split Ductless",IF('Step 1 ASHP Configuration'!B6='Step 1 ASHP Configuration'!T5,"Ducted Mini-split","")))) -> Centrally Ducted | M32: ="Heating Cap."&IF('Intro & Unit Options'!$B$12=Dropdown_Menus!F1," [kW]"," [BTU/h]") -> Heating Cap. [BTU/h]
D33: HP Type | E33: Variable | M33: Heating Power [kW]
M34: Heating COP [-] | N34: =IF($N$33="","",IF('Intro & Unit Options'!B12="METRIC",$N$32/$N$33,$N$32*0.00029307103866/$N$33)) ->  | O34: =IF($O$33="","",IF('Intro & Unit Options'!B12="METRIC",$O$32/$O$33,$O$32*0.00029307103866/$O$33)) ->  | AH34: =IF($AH$33="","",IF('Intro & Unit Options'!B12="METRIC",$AH$32/$AH$33,$AH$32*0.00029307103866/$AH$33)) ->  | AI34: =IF($AI$33="","",IF('Intro & Unit Options'!B12="METRIC",$AI$32/$AI$33,$AI$32*0.00029307103866/$AI$33)) -> 
H35: Heating Power/COP | I35: Power | L35: COOL | M35: ="Temperature"&IF('Intro & Unit Options'!$B$12=Dropdown_Menus!F1," [°C]"," [°F]") -> Temperature [°F] | N35: 95 | AH35: =IF($AH$26="","",$AH$26) ->  | AI35: =IF($AI$26="","",$AI$26) -> 
H36: Cooling Power/EER | I36: Power | M36: ="Cooling Cap."&IF('Intro & Unit Options'!$B$12=Dropdown_Menus!F1," [kW]"," [BTU/h]") -> Cooling Cap. [BTU/h]
M37: Cooling Power [kW]
M38: Cooling EER [-] | N38: =IF($N$37="","",IF('Intro & Unit Options'!B12="METRIC",$N$36/0.00029307103866/(1000*$N$37),$N$36/($N$37*1000))) ->  | AH38: =IF($AH$37="","",IF('Intro & Unit Options'!B12="METRIC",$AH$36/0.00029307103866/(1000*$AH$37),$AH$36/($AH$37*1000))) ->  | AI38: =IF($AI$37="","",IF('Intro & Unit Options'!B12="METRIC",$AI$36/0.00029307103866/(1000*$AI$37),$AI$36/($AI$37*1000))) -> 
B40: Heat Pump #2 | C40: Global Information | G40: Data Entry Type | L40: High Stage
L41: HEAT | M41: ="Temperature"&IF('Intro & Unit Options'!$B$12=Dropdown_Menus!F1," [°C]"," [°F]") -> Temperature [°F] | N41: 47 | O41: 17
M42: ="Heating Cap."&IF('Intro & Unit Options'!$B$12=Dropdown_Menus!F1," [kW]"," [BTU/h]") -> Heating Cap. [BTU/h]
I43: TRUE | M43: Heating Power [kW]
I44: FALSE | M44: Heating COP [-] | N44: =IF($N$43="","",IF('Intro & Unit Options'!B12="METRIC",$N$42/$N$43,$N$42*0.00029307103866/$N$43)) ->  | O44: =IF($O$43="","",IF('Intro & Unit Options'!B12="METRIC",$O$42/$O$43,$O$42*0.00029307103866/$O$43)) -> 
D45: Reference Name | I45: FALSE | L45: COOL | M45: ="Temperature"&IF('Intro & Unit Options'!$B$12=Dropdown_Menus!F1," [°C]"," [°F]") -> Temperature [°F] | N45: 95
D46: Indoor Unit Model Name | I46: FALSE | M46: ="Cooling Cap."&IF('Intro & Unit Options'!$B$12=Dropdown_Menus!F1," [kW]"," [BTU/h]") -> Cooling Cap. [BTU/h]
D47: Outdoor Unit Model Name | M47: Cooling Power [kW]
D48: Noise Rating [dB(A)] | M48: Cooling EER [-] | N48: =IF($N$47="","",IF('Intro & Unit Options'!B12="METRIC",$N$46/0.00029307103866/(1000*$N$47),$N$46/($N$47*1000))) -> 
D49: Rated Airflow [CFM] | G49: Performance Data | L49: Low Stage
D50: Cut-Off Temperature [°F] | L50: HEAT | M50: ="Temperature"&IF('Intro & Unit Options'!$B$12=Dropdown_Menus!F1," [°C]"," [°F]") -> Temperature [°F] | N50: 47 | O50: 17
D51: HP Integration | E51: =IF('Step 1 ASHP Configuration'!B6='Step 1 ASHP Configuration'!T2,"Centrally Ducted",IF('Step 1 ASHP Configuration'!B6='Step 1 ASHP Configuration'!T3,"Single Split Ductless",IF('Step 1 ASHP Configuration'!B6='Step 1 ASHP Configuration'!T4,"Multi-split Ductless",IF('Step 1 ASHP Configuration'!B6='Step 1 ASHP Configuration'!T5,"Ducted Mini-split","")))) -> Centrally Ducted | M51: ="Heating Cap."&IF('Intro & Unit Options'!$B$12=Dropdown_Menus!F1," [kW]"," [BTU/h]") -> Heating Cap. [BTU/h]
D52: HP Type | E52: Variable | M52: Heating Power [kW]
M53: Heating COP [-] | N53: =IF($N$52="","",IF('Intro & Unit Options'!B12="METRIC",$N$51/$N$52,$N$51*0.00029307103866/$N$52)) ->  | O53: =IF($O$52="","",IF('Intro & Unit Options'!B12="METRIC",$O$51/$O$52,$O$51*0.00029307103866/$O$52)) -> 
H54: Heating Power/COP | I54: Power | L54: COOL | M54: ="Temperature"&IF('Intro & Unit Options'!$B$12=Dropdown_Menus!F1," [°C]"," [°F]") -> Temperature [°F] | N54: 95
H55: Cooling Power/EER | I55: Power | M55: ="Cooling Cap."&IF('Intro & Unit Options'!$B$12=Dropdown_Menus!F1," [kW]"," [BTU/h]") -> Cooling Cap. [BTU/h]
M56: Cooling Power [kW]
M57: Cooling EER [-] | N57: =IF($N$56="","",IF('Intro & Unit Options'!B12="METRIC",$N$55/0.00029307103866/(1000*$N$56),$N$55/($N$56*1000))) -> 
B59: Heat Pump #3 | C59: Global Information | G59: Data Entry Type | L59: High Stage
L60: HEAT | M60: ="Temperature"&IF('Intro & Unit Options'!$B$12=Dropdown_Menus!F1," [°C]"," [°F]") -> Temperature [°F] | N60: 47 | O60: 17
M61: ="Heating Cap."&IF('Intro & Unit Options'!$B$12=Dropdown_Menus!F1," [kW]"," [BTU/h]") -> Heating Cap. [BTU/h]
I62: TRUE | M62: Heating Power [kW]
I63: FALSE | M63: Heating COP [-] | N63: =IF($N$62="","",IF('Intro & Unit Options'!B12="METRIC",$N$61/$N$62,$N$61*0.00029307103866/$N$62)) ->  | O63: =IF($O$62="","",IF('Intro & Unit Options'!B12="METRIC",$O$61/$O$62,$O$61*0.00029307103866/$O$62)) -> 
D64: Reference Name | I64: FALSE | L64: COOL | M64: ="Temperature"&IF('Intro & Unit Options'!$B$12=Dropdown_Menus!F1," [°C]"," [°F]") -> Temperature [°F] | N64: 95
D65: Indoor Unit Model Name | I65: FALSE | M65: ="Cooling Cap."&IF('Intro & Unit Options'!$B$12=Dropdown_Menus!F1," [kW]"," [BTU/h]") -> Cooling Cap. [BTU/h]
D66: Outdoor Unit Model Name | M66: Cooling Power [kW]
D67: Noise Rating [dB(A)] | M67: Cooling EER [-] | N67: =IF($N$66="","",IF('Intro & Unit Options'!B12="METRIC",$N$65/0.00029307103866/(1000*$N$66),$N$65/($N$66*1000))) -> 
D68: Rated Airflow [CFM] | G68: Performance Data | L68: Low Stage
D69: Cut-Off Temperature [°F] | L69: HEAT | M69: ="Temperature"&IF('Intro & Unit Options'!$B$12=Dropdown_Menus!F1," [°C]"," [°F]") -> Temperature [°F] | N69: 47 | O69: 17
D70: HP Integration | E70: =IF('Step 1 ASHP Configuration'!B6='Step 1 ASHP Configuration'!T2,"Centrally Ducted",IF('Step 1 ASHP Configuration'!B6='Step 1 ASHP Configuration'!T3,"Single Split Ductless",IF('Step 1 ASHP Configuration'!B6='Step 1 ASHP Configuration'!T4,"Multi-split Ductless",IF('Step 1 ASHP Configuration'!B6='Step 1 ASHP Configuration'!T5,"Ducted Mini-split","")))) -> Centrally Ducted | M70: ="Heating Cap."&IF('Intro & Unit Options'!$B$12=Dropdown_Menus!F1," [kW]"," [BTU/h]") -> Heating Cap. [BTU/h]
D71: HP Type | E71: Two-Stage | M71: Heating Power [kW]
M72: Heating COP [-] | N72: =IF($N$71="","",IF('Intro & Unit Options'!B12="METRIC",$N$70/$N$71,$N$70*0.00029307103866/$N$71)) ->  | O72: =IF($O$71="","",IF('Intro & Unit Options'!B12="METRIC",$O$70/$O$71,$O$70*0.00029307103866/$O$71)) -> 
H73: Heating Power/COP | I73: Power | L73: COOL | M73: ="Temperature"&IF('Intro & Unit Options'!$B$12=Dropdown_Menus!F1," [°C]"," [°F]") -> Temperature [°F] | N73: 95
H74: Cooling Power/EER | I74: Power | M74: ="Cooling Cap."&IF('Intro & Unit Options'!$B$12=Dropdown_Menus!F1," [kW]"," [BTU/h]") -> Cooling Cap. [BTU/h]
M75: Cooling Power [kW]
M76: Cooling EER [-] | N76: =IF($N$75="","",IF('Intro & Unit Options'!B12="METRIC",$N$74/0.00029307103866/(1000*$N$75),$N$74/($N$75*1000))) -> 
B78: Heat Pump #4 | C78: Global Information | G78: Data Entry Type | L78: High Stage
L79: HEAT | M79: ="Temperature"&IF('Intro & Unit Options'!$B$12=Dropdown_Menus!$F$1," [°C]"," [°F]") -> Temperature [°F] | N79: 47 | O79: 17
M80: ="Heating Cap."&IF('Intro & Unit Options'!$B$12=Dropdown_Menus!$F$1," [kW]"," [BTU/h]") -> Heating Cap. [BTU/h]
I81: TRUE | M81: Heating Power [kW]
I82: FALSE | M82: Heating COP [-] | N82: =IF($N$81="","",IF('Intro & Unit Options'!B12="METRIC",$N$80/$N$81,$N$80*0.00029307103866/$N$81)) ->  | O82: =IF($O$81="","",IF('Intro & Unit Options'!B12="METRIC",$O$80/$O$81,$O$80*0.00029307103866/$O$81)) -> 
D83: Reference Name | I83: FALSE | L83: COOL | M83: ="Temperature"&IF('Intro & Unit Options'!$B$12=Dropdown_Menus!$F$1," [°C]"," [°F]") -> Temperature [°F] | N83: 95
D84: Indoor Unit Model Name | I84: FALSE | M84: ="Cooling Cap."&IF('Intro & Unit Options'!$B$12=Dropdown_Menus!$F$1," [kW]"," [BTU/h]") -> Cooling Cap. [BTU/h]
D85: Outdoor Unit Model Name | M85: Cooling Power [kW]
D86: Noise Rating [dB(A)] | M86: Cooling EER [-] | N86: =IF($N$85="","",IF('Intro & Unit Options'!B12="METRIC",$N$84/0.00029307103866/(1000*$N$85),$N$84/($N$85*1000))) -> 
D87: Rated Airflow [CFM] | G87: Performance Data | L87: Low Stage
D88: Cut-Off Temperature [°F] | L88: HEAT | M88: ="Temperature"&IF('Intro & Unit Options'!$B$12=Dropdown_Menus!$F$1," [°C]"," [°F]") -> Temperature [°F] | N88: 47 | O88: 17
D89: HP Integration | E89: =IF('Step 1 ASHP Configuration'!B6='Step 1 ASHP Configuration'!T2,"Centrally Ducted",IF('Step 1 ASHP Configuration'!B6='Step 1 ASHP Configuration'!T3,"Single Split Ductless",IF('Step 1 ASHP Configuration'!B6='Step 1 ASHP Configuration'!T4,"Multi-split Ductless",IF('Step 1 ASHP Configuration'!B6='Step 1 ASHP Configuration'!T5,"Ducted Mini-split","")))) -> Centrally Ducted | M89: ="Heating Cap."&IF('Intro & Unit Options'!$B$12=Dropdown_Menus!$F$1," [kW]"," [BTU/h]") -> Heating Cap. [BTU/h]
D90: HP Type | E90: Variable | M90: Heating Power [kW]
M91: Heating COP [-] | N91: =IF($N$90="","",IF('Intro & Unit Options'!B12="METRIC",$N$89/$N$90,$N$89*0.00029307103866/$N$90)) ->  | O91: =IF($O$90="","",IF('Intro & Unit Options'!B12="METRIC",$O$89/$O$90,$O$89*0.00029307103866/$O$90)) -> 
H92: Heating Power/COP | I92: Power | L92: COOL | M92: ="Temperature"&IF('Intro & Unit Options'!$B$12=Dropdown_Menus!$F$1," [°C]"," [°F]") -> Temperature [°F] | N92: 95
H93: Cooling Power/EER | I93: Power | M93: ="Cooling Cap."&IF('Intro & Unit Options'!$B$12=Dropdown_Menus!$F$1," [kW]"," [BTU/h]") -> Cooling Cap. [BTU/h]
M94: Cooling Power [kW]
M95: Cooling EER [-] | N95: =IF($N$94="","",IF('Intro & Unit Options'!B12="METRIC",$N$93/0.00029307103866/(1000*$N$94),$N$93/($N$94*1000))) -> 
A97: Outputs
F99: Heat Pump #1 | J99: Heat Pump #2 | O99: Heat Pump #3 | S99: Heat Pump #4
B100: Design Loads (Step 3) | F100: =IF('Step 3 Design Loads'!B11='Step 3 Design Loads'!T8, "Heating: "&ROUND('Design Load Calcs'!B23,IF('Intro & Unit Options'!B12="Metric",1,-2))&" "&'Step 3 Design Loads'!C12&" at "&'Step 3 Design Loads'!B13&'Step 3 Design Loads'!C13&" Cooling: "&ROUND('Design Load Calcs'!B25,IF('Intro & Unit Options'!B12="Metric",1,-2))&" "&'Step 3 Design Loads'!C14&" at "&'Step 3 Design Loads'!B15&'Step 3 Design Loads'!C15, "Heating: "&ROUND('Design Load Calcs'!B23,IF('Intro & Unit Options'!B12="Metric",1,-2))&" "&'Step 3 Design Loads'!C12&" at "&'Step 3 Design Loads'!B13&'Step 3 Design Loads'!C13&" Cooling: "&ROUND('Design Load Calcs'!B25,IF('Intro & Unit Options'!B12="Metric",1,-2))&" "&'Step 3 Design Loads'!C14&" at "&'Step 3 Design Loads'!B15&'Step 3 Design Loads'!C15) -> Heating: 50000 BTU/h at 0F Cooling: 30000 BTU/h at 88F | J100: =IF('Step 3 Design Loads'!B11='Step 3 Design Loads'!T8, "Heating: "&ROUND('Design Load Calcs'!B23,IF('Intro & Unit Options'!B12="Metric",1,-2))&" "&'Step 3 Design Loads'!C12&" at "&'Step 3 Design Loads'!B13&'Step 3 Design Loads'!C13&" Cooling: "&ROUND('Design Load Calcs'!B25,IF('Intro & Unit Options'!B12="Metric",1,-2))&" "&'Step 3 Design Loads'!C14&" at "&'Step 3 Design Loads'!B15&'Step 3 Design Loads'!C15, "Heating: "&ROUND('Design Load Calcs'!B23,IF('Intro & Unit Options'!B12="Metric",1,-2))&" "&'Step 3 Design Loads'!C12&" at "&'Step 3 Design Loads'!B13&'Step 3 Design Loads'!C13&" Cooling: "&ROUND('Design Load Calcs'!B25,IF('Intro & Unit Options'!B12="Metric",1,-2))&" "&'Step 3 Design Loads'!C14&" at "&'Step 3 Design Loads'!B15&'Step 3 Design Loads'!C15) -> Heating: 50000 BTU/h at 0F Cooling: 30000 BTU/h at 88F | O100: =IF('Step 3 Design Loads'!B11='Step 3 Design Loads'!T8, "Heating: "&ROUND('Design Load Calcs'!B23,IF('Intro & Unit Options'!B12="Metric",1,-2))&" "&'Step 3 Design Loads'!C12&" at "&'Step 3 Design Loads'!B13&'Step 3 Design Loads'!C13&" Cooling: "&ROUND('Design Load Calcs'!B25,IF('Intro & Unit Options'!B12="Metric",1,-2))&" "&'Step 3 Design Loads'!C14&" at "&'Step 3 Design Loads'!B15&'Step 3 Design Loads'!C15, "Heating: "&ROUND('Design Load Calcs'!B23,IF('Intro & Unit Options'!B12="Metric",1,-2))&" "&'Step 3 Design Loads'!C12&" at "&'Step 3 Design Loads'!B13&'Step 3 Design Loads'!C13&" Cooling: "&ROUND('Design Load Calcs'!B25,IF('Intro & Unit Options'!B12="Metric",1,-2))&" "&'Step 3 Design Loads'!C14&" at "&'Step 3 Design Loads'!B15&'Step 3 Design Loads'!C15) -> Heating: 50000 BTU/h at 0F Cooling: 30000 BTU/h at 88F | S100: =IF('Step 3 Design Loads'!B11='Step 3 Design Loads'!T8, "Heating: "&ROUND('Design Load Calcs'!B23,IF('Intro & Unit Options'!B12="Metric",1,-2))&" "&'Step 3 Design Loads'!C12&" at "&'Step 3 Design Loads'!B13&'Step 3 Design Loads'!C13&" Cooling: "&ROUND('Design Load Calcs'!B25,IF('Intro & Unit Options'!B12="Metric",1,-2))&" "&'Step 3 Design Loads'!C14&" at "&'Step 3 Design Loads'!B15&'Step 3 Design Loads'!C15, "Heating: "&ROUND('Design Load Calcs'!B23,IF('Intro & Unit Options'!B12="Metric",1,-2))&" "&'Step 3 Design Loads'!C12&" at "&'Step 3 Design Loads'!B13&'Step 3 Design Loads'!C13&" Cooling: "&ROUND('Design Load Calcs'!B25,IF('Intro & Unit Options'!B12="Metric",1,-2))&" "&'Step 3 Design Loads'!C14&" at "&'Step 3 Design Loads'!B15&'Step 3 Design Loads'!C15) -> Heating: 50000 BTU/h at 0F Cooling: 30000 BTU/h at 88F
B101: Sizing Option (Step 4) | F101: ='Step 4 Sizing Approach'!B6 -> Option C: Emphasis on Heating | J101: ='Step 4 Sizing Approach'!B6 -> Option C: Emphasis on Heating | O101: ='Step 4 Sizing Approach'!B6 -> Option C: Emphasis on Heating | S101: ='Step 4 Sizing Approach'!B6 -> Option C: Emphasis on Heating
B102: Selected HP Staging; Heat Capacity; Cool Capacity (Step 5) | F102: =IFERROR(E33&"; "&ROUND(IF(I27,'HP1 Calcs'!N20,'HP1'!J12),-2)&" "&Dropdown_Menus!F2&"; "&ROUND(IF(I27,'HP1 - Forecast calculations'!F30,'HP1'!J52),-2)&" "&Dropdown_Menus!F2,"") -> Variable; 0 BTU/h; 0 BTU/h | J102: =IFERROR(E52&"; "&ROUND(IF(I46,'HP2 Calcs'!N20,'HP2'!J12),-2)&" "&Dropdown_Menus!F2&"; "&ROUND(IF(I46,'HP2 Calcs'!N55,'HP2'!J52),-2)&" "&Dropdown_Menus!F2,"") -> Variable; 0 BTU/h; 0 BTU/h | O102: =IFERROR(E71&"; "&ROUND(IF(I65,'HP3 Calcs'!N20,'HP3'!J12),-2)&" "&Dropdown_Menus!F2&"; "&ROUND(IF(I65,'HP3 Calcs'!N55,'HP3'!J52),-2)&" "&Dropdown_Menus!F2,"") -> Two-Stage; 0 BTU/h; 0 BTU/h | S102: =IFERROR(E90&"; "&ROUND(IF(I84,'HP4 Calcs'!N20,'HP4'!J12),-2)&" "&Dropdown_Menus!F2&"; "&ROUND(IF(I84,'HP4 Calcs'!N55,'HP4'!J52),-2)&" "&Dropdown_Menus!F2,"") -> Variable; 0 BTU/h; 0 BTU/h
B103: Heat Pump Cut-Off Temperature | F103: =IF(E31="","",E31&" "&Dropdown_Menus!F3) ->  | J103: =IF(E50="","",E50&" "&Dropdown_Menus!F3) ->  | O103: =IF(E69="","",E69&" "&Dropdown_Menus!F3) ->  | S103: =IF(E88="","",E88&" "&Dropdown_Menus!F3) -> 
A104: High Stage | B104: Cooling Output at Tdesign,Cool (% of Design) | F104: =IF(SUMPRODUCT(--(N27:AH27<>""))=0,"",ROUND(IF(I27,'HP1 Calcs'!N53,'HP1'!J50),-2)&" "&Dropdown_Menus!F2&" ("&ROUND(IF(I27,'HP1 Calcs'!N54,'HP1'!J51),2)*100&"%)") ->  | J104: =IF(SUMPRODUCT(--(N46:AH46<>""))=0,"",ROUND(IF(I46,'HP2 Calcs'!N53,'HP2'!J50),-2)&" "&Dropdown_Menus!F2&" ("&ROUND(IF(I46,'HP2 Calcs'!N54,'HP2'!J51),2)*100&"%)") ->  | O104: =IF(SUMPRODUCT(--(N65:AH65<>""))=0,"",ROUND(IF(I65,'HP3 Calcs'!N53,'HP3'!J50),-2)&" "&Dropdown_Menus!F2&" ("&ROUND(IF(I65,'HP3 Calcs'!N54,'HP3'!J51),2)*100&"%)") ->  | S104: =IF(SUMPRODUCT(--(N84:AH84<>""))=0,"",ROUND(IF(I84,'HP4 Calcs'!N53,'HP4'!J50),-2)&" "&Dropdown_Menus!F2&" ("&ROUND(IF(I84,'HP4 Calcs'!N54,'HP4'!J51),2)*100&"%)") -> 
B105: Thermal Balance Point Temperature (t-BPT) | F105: =IF(SUMPRODUCT(--(N23:AH23<>""))=0,"",IFERROR(ROUND(IF(I27,'HP1 Calcs'!N15,'HP1'!J9),0)&Dropdown_Menus!F3,"None")) ->  | J105: =IF(SUMPRODUCT(--(N42:AH42<>""))=0,"",IFERROR(ROUND(IF(I46,'HP2 Calcs'!N15,'HP2'!J9),0)&Dropdown_Menus!F3,"None")) ->  | O105: =IF(SUMPRODUCT(--(N61:AH61<>""))=0,"",IFERROR(ROUND(IF(I65,'HP3 Calcs'!N15,'HP3'!J9),0)&Dropdown_Menus!F3,"None")) ->  | S105: =IF(SUMPRODUCT(--(N80:AH80<>""))=0,"",IFERROR(ROUND(IF(I84,'HP4 Calcs'!N15,'HP4'!J9),0)&Dropdown_Menus!F3,"None")) -> 
B106: Fraction of Heating above t-BPT | F106: =IF(SUMPRODUCT(--(N23:AH23<>""))=0,"",IFERROR(ROUND(IF(I27,'HP1 Calcs'!N17,'HP1'!J10),2)*100&"%","N/A")) ->  | J106: =IF(SUMPRODUCT(--(N42:AH42<>""))=0,"",IFERROR(ROUND(IF(I46,'HP2 Calcs'!N17,'HP2'!J10),2)*100&"%","N/A")) ->  | O106: =IF(SUMPRODUCT(--(N61:AH61<>""))=0,"",IFERROR(ROUND(IF(I65,'HP3 Calcs'!N17,'HP3'!J10),2)*100&"%","N/A")) ->  | S106: =IF(SUMPRODUCT(--(N80:AH80<>""))=0,"",IFERROR(ROUND(IF(I84,'HP4 Calcs'!N17,'HP4'!J10),2)*100&"%","N/A")) -> 
A108: Low Stage | B108: Cooling Output at Tdesign,Cool (% of Design) | F108: =IF(E33="Single Speed","N/A",IF(I27,IF(SUMPRODUCT(--(N27:AH27<>""))=0,"",ROUND('HP1 Calcs'!AC53,-2)&" "&Dropdown_Menus!F5&" ("&ROUND('HP1 Calcs'!AC54,2)*100&"%)"),IF(SUMPRODUCT(--(N36:AH36<>""))=0,"",ROUND('HP1'!U50,-2)&" "&Dropdown_Menus!F5&" ("&ROUND('HP1'!U51,2)*100&"%)"))) ->  | J108: =IF(E52="Single Speed","N/A",IF(I46,IF(SUMPRODUCT(--(N46:AH46<>""))=0,"",ROUND('HP2 Calcs'!AC53,-2)&" "&Dropdown_Menus!F5&" ("&ROUND('HP2 Calcs'!AC54,2)*100&"%)"),IF(SUMPRODUCT(--(N55:AH55<>""))=0,"",ROUND('HP2'!U50,-2)&" "&Dropdown_Menus!F5&" ("&ROUND('HP2'!U51,2)*100&"%)"))) ->  | O108: =IF(E71="Single Speed","N/A",IF(I65,IF(SUMPRODUCT(--(N65:AH65<>""))=0,"",ROUND('HP3 Calcs'!AC53,-2)&" "&Dropdown_Menus!F5&" ("&ROUND('HP3 Calcs'!AC54,2)*100&"%)"),IF(SUMPRODUCT(--(N74:AH74<>""))=0,"",ROUND('HP3'!U50,-2)&" "&Dropdown_Menus!F5&" ("&ROUND('HP3'!U51,2)*100&"%)"))) ->  | S108: =IF(E90="Single Speed","N/A",IF(I84,IF(SUMPRODUCT(--(N84:AH84<>""))=0,"",ROUND('HP4 Calcs'!AC53,-2)&" "&Dropdown_Menus!F5&" ("&ROUND('HP4 Calcs'!AC54,2)*100&"%)"),IF(SUMPRODUCT(--(N93:AH93<>""))=0,"",ROUND('HP4'!U50,-2)&" "&Dropdown_Menus!F5&" ("&ROUND('HP4'!U51,2)*100&"%)"))) -> 
B109: Thermal Balance Point Temperature (t-BPT) | F109: =IFERROR(IF(E33="Single Speed","N/A",IF(I27,IF(SUMPRODUCT(--(N23:AH23<>""))=0,"",ROUND('HP1 Calcs'!AC15,0)&Dropdown_Menus!F3),IF(SUMPRODUCT(--(N32:AH32<>""))=0,"",ROUND('HP1'!U9,0)&Dropdown_Menus!F3))),"N/A") ->  | J109: =IFERROR(IF(E52="Single Speed","N/A",IF(I46,IF(SUMPRODUCT(--(N42:AH42<>""))=0,"",ROUND('HP2 Calcs'!AC15,0)&Dropdown_Menus!F3),IF(SUMPRODUCT(--(N51:AH51<>""))=0,"",ROUND('HP2'!U9,0)&Dropdown_Menus!F3))),"N/A") ->  | O109: =IFERROR(IF(E71="Single Speed","N/A",IF(I65,IF(SUMPRODUCT(--(N61:AH61<>""))=0,"",ROUND('HP3 Calcs'!AC15,0)&Dropdown_Menus!F3),IF(SUMPRODUCT(--(N70:AH70<>""))=0,"",ROUND('HP3'!U9,0)&Dropdown_Menus!F3))),"N/A") ->  | S109: =IFERROR(IF(E90="Single Speed","N/A",IF(I84,IF(SUMPRODUCT(--(N80:AH80<>""))=0,"",ROUND('HP4 Calcs'!AC15,0)&Dropdown_Menus!F3),IF(SUMPRODUCT(--(N89:AH89<>""))=0,"",ROUND('HP4'!U9,0)&Dropdown_Menus!F3))),"N/A") -> 
A111: Graphs

Sheet Step 6 Control Strategy
A1: DESIGN STEP 6: Define the ASHP Control Strategy
A3: Heat Pump Inputs | H3: Reference
H4: Pages 34-40
A6: Heat Pump Inputs | H6: Upon completing Step 6, you will have:
H7: Defined heat pump system control requirements and set-point values for the application.
A8: HP Selected | B8: HP#1
A9: Control Strategy | B9: Option B1: ASHP Cut-Off Temperature | D9: (Reselect for Each Design Eval.)
A10: HP Type | B10: =IF(B8=Dropdown_Menus!T20,'Step 5 Identify & Select ASHPs'!$E$33,IF(B8=Dropdown_Menus!T21,'Step 5 Identify & Select ASHPs'!$E$52,IF(B8=Dropdown_Menus!T22,'Step 5 Identify & Select ASHPs'!$E$71,'Step 5 Identify & Select ASHPs'!$E$90))) -> Variable
B11: =IFERROR(ROUND('Control Strategy Calcs'!T14,0),"") ->  | C11: ='Step 3 Design Loads'!C13 -> F
A13: Economic Inputs (Used in Cost & Energy Calculations)
A15: Backup Heating Type | B15: Natural Gas
A16: Backup System Efficiency | B16: 95 | C16: %
A18: Utility Rates: Fuel
A19: Fuel Type | B19: =B15 -> Natural Gas
A20: Fuel Price | B20: 28 | C20: cents/m3
A22: Utility Rates: Electricity
A23: Type of Structure | B23: Time of Use
A24: =IF(OR(B23="Time of Use",B23="Tiered"),"# of Time Periods with Different Rates","") -> # of Time Periods with Different Rates | B24: 3 | C24: =IF(AND($B$9=Dropdown_Menus!$T$7,OR(B23=Dropdown_Menus!T14,B23=Dropdown_Menus!T13)),"2 to 5 time periods","") -> 
A25: =IF(B23=Dropdown_Menus!T12,"Electricity Rate",IF(B23=Dropdown_Menus!T13,"Highest Rate Step/Tier", IF(B23=Dropdown_Menus!T14,"On-Peak",""))) -> On-Peak | B25: 15 | C25: cents/kWh
A26: =IF(OR(B23=Dropdown_Menus!T14,B23=Dropdown_Menus!T13),IF(B24=2,"Off-Peak","Mid-Peak/Tier"),"") -> Mid-Peak/Tier | B26: 10 | C26: =IF(OR(B23=Dropdown_Menus!T14,B23=Dropdown_Menus!T13),"cents/kWh","") -> cents/kWh
A27: =IF(OR(B23=Dropdown_Menus!T14,B23=Dropdown_Menus!T13),IF(B24=2,"",IF(B24=3,"Off-Peak/Low Tier","Mid-Peak/Tier")),"") -> Off-Peak/Low Tier | B27: 8 | C27: =IF(AND(OR(B23=Dropdown_Menus!T14,B23=Dropdown_Menus!T13),A27<>""),"cents/kWh","") -> cents/kWh
A28: =IF(OR(B23=Dropdown_Menus!T14,B23=Dropdown_Menus!T13),IF(B24=2,"",IF(B24=3,"",IF(B24=4,"Off-Peak/Low Tier","Mid-Peak/Tier"))),"") ->  | B28: 11 | C28: =IF(AND(OR(B23=Dropdown_Menus!T14,B23=Dropdown_Menus!T13),A28<>""),"cents/kWh","") -> 
A29: =IF(OR(B23=Dropdown_Menus!T14,B23=Dropdown_Menus!T13),IF(OR(B24=2,B24=3,B24=4,),"","Off-Peak/Low Tier"),"") ->  | B29: 7 | C29: =IF(AND(OR(B23=Dropdown_Menus!T14,B23=Dropdown_Menus!T13),A29<>""),"cents/kWh","") -> 
A31: Notes
A32: • The price of electricity and fuel includes energy and delivery costs and taxes, but it excludes fixed monthly costs that do not vary with the amount of NG, Propane, Oil, or Electricity consumed.
A35: =IF(B23="Time of Use","• The time of use calculation uses the winter time prices","") -> • The time of use calculation uses the winter time prices
A36: =IF(B23="Time of Use","Example of Time of Use hours","") -> Example of Time of Use hours
A37: =IF(B23="Time of use","• On-Peak: Weekdays, 11:00AM-5:00PM","") -> • On-Peak: Weekdays, 11:00AM-5:00PM
A38: =IF(B23="Time of use","• Mid-Peak: Weekdays, 7:00AM-11:00AM, 5:00PM-7:00PM","") -> • Mid-Peak: Weekdays, 7:00AM-11:00AM, 5:00PM-7:00PM
A39: =IF(B23="Time of use","• Off-Peak: Weekdays, 7:00PM-7:00AM, all weekends and holidays","") -> • Off-Peak: Weekdays, 7:00PM-7:00AM, all weekends and holidays
A40: Outputs
A41: =IF(OR(B9="Option A2: Economic Cut-Off Temperature", B9="Option B2: Economic Cut-Off Temperature"), "Output","") -> 
A42: =IF(OR(B9="Option A2: Economic Cut-Off Temperature", B9="Option B2: Economic Cut-Off Temperature"),IF(B23="Time of Use","Economic Cut-Off Temperature (On-Peak)",IF(B23="Tiered","Economic Cut-Off Temperature (Highest Tier)","Economic Cut-Off Temperature")),"") ->  | B42: =IFERROR(ROUND('Control Strategy Calcs'!F25,0)&C11,"") ->  | C42: =IF(OR(B9="Option B1: ASHP Cut-Off Temperature",B9="Option A1: ASHP Cut-Off Temperature",B9="Option C: No Backup Heating Required"),"",IF(AND(MIN('Control Strategy Calcs'!E2:E18)>IF(B23="Time of Use",'Control Strategy Calcs'!F18,B43),'Step 6 Control Strategy'!B42="",OR(B9="Option B2: Economic Cut-Off Temperature",B9="Option A2: Economic Cut-Off Temperature")),"Economic cut-off is unnecessary",IF(AND('Step 6 Control Strategy'!B42="",OR(B9="Option B2: Economic Cut-Off Temperature",B9="Option A2: Economic Cut-Off Temperature")),"Heat pump does not meet COP requirements",""))) -> 
A43: =IF(AND(OR(B23="Time of Use",B23="Tiered"),OR(B9="Option A2: Economic Cut-Off Temperature",B9="Option B2: Economic Cut-Off Temperature")),IF(B24=2,IF(B23="Time of Use","Economic Cut-Off Temperature (Off-Peak)","Economic Cut-Off Temperature (Low-Tier)"),IF(B23="Time of Use","Economic Cut-Off Temperature (Mid-Peak)","Economic Cut-Off Temperature (Mid-Tier)")),IF(OR(B9="Option A1: ASHP Cut-Off Temperature",B9="Option B1: ASHP Cut-Off Temperature",B9="Option C: No Backup Heating Required"),"","COPmin")) ->  | B43: =IFERROR(IF(AND(OR(B23="Time of Use",B23="Tiered"),OR(B9="Option A2: Economic Cut-Off Temperature",B9="Option B2: Economic Cut-Off Temperature")),IFERROR(ROUND('Control Strategy Calcs'!F26,0),NA())&C11,IF(OR(B9="Option A1: ASHP Cut-Off Temperature",B9="Option B1: ASHP Cut-Off Temperature",B9="Option C: No Backup Heating Required"),"",ROUND('Control Strategy Calcs'!F18,1))),"") ->  | C43: =IF(OR(B9="Option B1: ASHP Cut-Off Temperature",B9="Option A1: ASHP Cut-Off Temperature",B9="Option C: No Backup Heating Required"),"",IF(AND(B43="",$B$23="Time of Use",MIN('Control Strategy Calcs'!E2:E18)>'Control Strategy Calcs'!F19),"Economic cut-off is unnecessary",IF(AND(B43="",$B$23="Time of Use"),IF(OR(B9="Option A1: ASHP Cut-Off Temperature",B9="Option B1: ASHP Cut-Off Temperature",B9="Option C: No Backup Heating Required"),"","Heat pump does not meet COP requirements"),""))) -> 
A44: =IF(AND(OR(B23="Time of Use",B23="Tiered"),OR(B9="Option A2: Economic Cut-Off Temperature",B9="Option B2: Economic Cut-Off Temperature")),IF(B24=2,IF(B23="Time of Use","COP (On-Peak)","COP(High Tier)"),IF(B24=3,IF(B23="Time of Use","Economic Cut-Off Temperature (Low-Peak)","Economic Cut-Off Temperature (Low-Tier)"),IF(B23="Time of Use","Economic Cut-Off Temperature (Mid-Peak)","Economic Cut-Off Temperature (Mid-Tier)"))),"") ->  | B44: =IF(AND(OR(B23="Time of Use",B23="Tiered"),OR(B9="Option A2: Economic Cut-Off Temperature",B9="Option B2: Economic Cut-Off Temperature")),IF(B24=2,IFERROR(ROUND('Control Strategy Calcs'!F18,1),""),IFERROR(ROUND('Control Strategy Calcs'!F27,0)&C11,"")),"") ->  | C44: =IF(OR(B9="Option B1: ASHP Cut-Off Temperature",B9="Option A1: ASHP Cut-Off Temperature",B9="Option C: No Backup Heating Required"),"",IF(B24=2,"",IF(AND(B44="",MIN('Control Strategy Calcs'!E2:E18)>'Control Strategy Calcs'!F20,AND(B23="Time of Use",OR(B9="Option A2: Economic Cut-Off Temperature",B9="Option B2: Economic Cut-Off Temperature"))),"Economic cut-off is unnecessary",IF(AND(B44="",AND(B23="Time of Use",OR(B9="Option A2: Economic Cut-Off Temperature",B9="Option B2: Economic Cut-Off Temperature"))),"Heat pump does not meet COP requirements","")))) -> 
A45: =IF(AND(OR(B23="Time of Use",B23="Tiered"),OR(B9="Option A2: Economic Cut-Off Temperature",B9="Option B2: Economic Cut-Off Temperature")),IF(B24=2,IF(B23="Time of Use","COP (Off-Peak)","COP(Low Tier)"),IF(B24=3,IF(B23="Time of Use","COP (On-Peak)","COP(High Tier)"),IF(B24=4,IF(B23="Time of Use","Economic Cut-Off Temperature (Off-Peak)","Economic Cut-Off Temperature (Low-Tier)"),IF(B23="Time of Use","Economic Cut-Off Temperature (Mid-Peak)","Economic Cut-Off Temperature (Mid-Tier)")))),"") ->  | B45: =IF(AND(OR(B23="Time of Use",B23="Tiered"),OR(B9="Option A2: Economic Cut-Off Temperature",B9="Option B2: Economic Cut-Off Temperature")),IF(B24=2,ROUND('Control Strategy Calcs'!F19,1),IF(B24=3,ROUND('Control Strategy Calcs'!F18,1),IFERROR(ROUND('Control Strategy Calcs'!F28,0)&C11,""))),"") ->  | C45: =IF(OR(B9="Option B1: ASHP Cut-Off Temperature",B9="Option A1: ASHP Cut-Off Temperature",B9="Option C: No Backup Heating Required"),"",IF(OR(B24=2,B24=3),"",IF(AND(B45="",MIN('Control Strategy Calcs'!E2:E18)>'Control Strategy Calcs'!F21,AND(B23="Time of Use",OR(B9="Option A2: Economic Cut-Off Temperature",B9="Option B2: Economic Cut-Off Temperature"))),"Economic cut-off is unnecessary",IF(AND(B45="",AND(B23="Time of Use",OR(B9="Option A2: Economic Cut-Off Temperature",B9="Option B2: Economic Cut-Off Temperature"))),"Heat pump does not meet COP requirements","")))) -> 
A46: =IF(AND(OR(B23="Time of Use",B23="Tiered"),OR(B9="Option A2: Economic Cut-Off Temperature",B9="Option B2: Economic Cut-Off Temperature")),IF(B24=2,"",IF(B24=3,IF(B23="Time of Use","COP (Mid-Peak)","COP(Mid Tier)"),IF(B24=4,IF(B23="Time of Use","COP (On-Peak)","COP(High Tier)"),IF(B24=5,IF(B23="Time of Use","Economic Cut-Off Temperature (Off-Peak)","Economic Cut-Off Temperature (Low-Tier)"))))),"") ->  | B46: =IF(AND(OR(B23="Time of Use",B23="Tiered"),OR(B9="Option A2: Economic Cut-Off Temperature",B9="Option B2: Economic Cut-Off Temperature")),IF(B24=2,"",IF(B24=3,ROUND('Control Strategy Calcs'!F19,1),IF(B24=4,ROUND('Control Strategy Calcs'!F18,1),IFERROR(ROUND('Control Strategy Calcs'!F29,0)&C11,"")))),"") ->  | C46: =IF(OR(B9="Option B1: ASHP Cut-Off Temperature",B9="Option A1: ASHP Cut-Off Temperature",B9="Option C: No Backup Heating Required"),"",IF(OR(B24=2,B24=3,B24=4),"",IF(AND(B46="",MIN('Control Strategy Calcs'!E2:E18)>'Control Strategy Calcs'!F22,AND(B23="Time of Use",OR(B9="Option A2: Economic Cut-Off Temperature",B9="Option B2: Economic Cut-Off Temperature"))),"Economic cut-off is unnecessary",IF(AND(B46="",AND(B23="Time of Use",OR(B9="Option A2: Economic Cut-Off Temperature",B9="Option B2: Economic Cut-Off Temperature"))),"Heat pump does not meet COP requirements","")))) -> 
A47: =IF(AND(OR(B23="Time of Use",B23="Tiered"),OR(B9="Option A2: Economic Cut-Off Temperature",B9="Option B2: Economic Cut-Off Temperature")),IF(B24=2,"",IF(B24=3,IF(B23="Time of Use","COP (Off-Peak)","COP(Low Tier)"),IF(B24=4,IF(B23="Time of Use","COP (Mid-Peak)","COP(Mid Tier)"),IF(B24=5,IF(B23="Time of Use","COP (On-Peak)","COP(High Tier)"))))),"") ->  | B47: =IF(AND(OR(B23="Time of Use",B23="Tiered"),OR(B9="Option A2: Economic Cut-Off Temperature",B9="Option B2: Economic Cut-Off Temperature")),IF(B24=2,"",IF(B24=3,ROUND('Control Strategy Calcs'!F20,1),IF(B24=4,ROUND('Control Strategy Calcs'!F19,1),ROUND('Control Strategy Calcs'!F18,1)))),"") -> 
A48: =IF(AND(OR(B23="Time of Use",B23="Tiered"),OR(B9="Option A2: Economic Cut-Off Temperature",B9="Option B2: Economic Cut-Off Temperature")),IF(B24=2,"",IF(B24=3,"",IF(B24=4,IF(B23="Time of Use","COP (Mid-Peak)","COP(Mid Tier)"),IF(B24=5,IF(B23="Time of Use","COP (Mid-Peak)","COP(Mid Tier)"))))),"") ->  | B48: =IF(AND(OR(B23="Time of Use",B23="Tiered"),OR(B9="Option A2: Economic Cut-Off Temperature",B9="Option B2: Economic Cut-Off Temperature")),IF(OR(B24=2,B24=3),"",IF(B24=4,ROUND('Control Strategy Calcs'!F20,1),ROUND('Control Strategy Calcs'!F19,1))),"") -> 
A49: =IF(AND(OR(B23="Time of Use",B23="Tiered"),OR(B9="Option A2: Economic Cut-Off Temperature",B9="Option B2: Economic Cut-Off Temperature")),IF(B24=2,"",IF(B24=3,"",IF(B24=4,IF(B23="Time of Use","COP (Off-Peak)","COP(Low Tier)"),IF(B24=5,IF(B23="Time of Use","COP (Mid-Peak)","COP(Mid Tier)"))))),"") ->  | B49: =IF(AND(OR(B23="Time of Use",B23="Tiered"),OR(B9="Option A2: Economic Cut-Off Temperature",B9="Option B2: Economic Cut-Off Temperature")),IF(OR(B24=2,B24=3),"",IF(B24=4,ROUND('Control Strategy Calcs'!F21,1),ROUND('Control Strategy Calcs'!F20,1))),"") -> 
A50: =IF(AND(OR(B23="Time of Use",B23="Tiered"),OR(B9="Option A2: Economic Cut-Off Temperature",B9="Option B2: Economic Cut-Off Temperature")),IF(B24=2,"",IF(B24=3,"",IF(B24=4,"",IF(B24=5,IF(B23="Time of Use","COP (Mid-Peak)","COP(Mid Tier"))))),"") ->  | B50: =IF(AND(OR(B23="Time of Use",B23="Tiered"),OR(B9="Option A2: Economic Cut-Off Temperature",B9="Option B2: Economic Cut-Off Temperature")),IF(OR(B24=2,B24=3,B24=4),"",ROUND('Control Strategy Calcs'!F21,1)),"") -> 
A51: =IF(AND(OR(B23="Time of Use",B23="Tiered"),OR(B9="Option A2: Economic Cut-Off Temperature",B9="Option B2: Economic Cut-Off Temperature")),IF(B24=2,"",IF(B24=3,"",IF(B24=4,"",IF(B24=5,IF(B23="Time of Use","COP (Off-Peak)","COP(Low Tier)"))))),"") ->  | B51: =IF(AND(OR(B23="Time of Use",B23="Tiered"),OR(B9="Option A2: Economic Cut-Off Temperature",B9="Option B2: Economic Cut-Off Temperature")),IF(OR(B24=2,B24=3,B24=4),"",ROUND('Control Strategy Calcs'!F22,1)),"") -> 
A53: Output Plots

Sheet Step 7 Back-up Heating
A1: DESIGN STEP 7: Define Back-up Heating Requirements
S2: =IF(NOT('Step 6 Control Strategy'!B15="Electricity"),"No","Yes") -> No
A5: Design Step 7: Inputs | L5: Reference
A7: Oversize Factor | B7: 1.15 | L7: Pages 41 to 43 in the ASHP Sizing Guide
A8: Simultaneous ASHP & Backup? | B8: No | E8: (Note: Unavailable when NG or Oil furnace used as backup/auxiliary) | L8: Upon completing Step 7, you will have:
L9: Defined the backup heating capacity needed to supplement the ASHP equipment in order to satisfy the design heating load of the house or targeted area.
A11: Outputs
A13: Sizing Option (Step 3) | C13: Control Strategy (Step 5) | E13: Simultaneous ASHP & Backup? | H13: New Installation/Full System Replacement? | J13: Backup Option | N13: Backup Size
A14: ='Step 4 Sizing Approach'!B6 -> Option C: Emphasis on Heating | C14: ='Step 6 Control Strategy'!B9 -> Option B1: ASHP Cut-Off Temperature | E14: =B8 -> No | H14: =IF(OR('Step 1 ASHP Configuration'!B9='Step 1 ASHP Configuration'!T8,'Step 1 ASHP Configuration'!B9='Step 1 ASHP Configuration'!T9),"Yes","No") -> Yes | J14: =IF(A14='Step 4 Sizing Approach'!T5,"Option D: No New Backup Required",IF('Step 1 ASHP Configuration'!B9='Step 1 ASHP Configuration'!T10,"Option C: Existing system will remain",IF(AND('Step 6 Control Strategy'!B9="Option B1: ASHP Cut-Off Temperature",E14="Yes"),"Option B: New HVAC system sized for partial loads","Option A: New HVAC system sized for full loads"))) -> Option A: New HVAC system sized for full loads | N14: =IF(J14="Option A: New HVAC system sized for full loads",ROUND('Design Load Calcs'!B23*'Step 7 Back-up Heating'!B7,IF('Intro & Unit Options'!B12="Metric",1,-2))&" "&'Step 3 Design Loads'!C12&IF('Step 3 Design Loads'!B11='Step 3 Design Loads'!T8," LOW "&ROUND('Design Load Calcs'!C23*B7,IF('Intro & Unit Options'!B12="Metric",1,-2))&" "&'Step 3 Design Loads'!C12&" HIGH",""),IF(J14="Option B: New HVAC system sized for partial loads",ROUND(('Design Load Calcs'!B23-'Control Strategy Calcs'!T19)*'Step 7 Back-up Heating'!B7,IF('Intro & Unit Options'!B12="Metric",1,-2))&" "&'Step 3 Design Loads'!C12&IF('Step 3 Design Loads'!B11='Step 3 Design Loads'!T8," LOW "&ROUND(('Design Load Calcs'!C23-'Control Strategy Calcs'!T19)*'Step 7 Back-up Heating'!B7,IF('Intro & Unit Options'!B12="Metric",1,-2))&" "&'Step 3 Design Loads'!C12&" HIGH",""),IF(J14="Option C: Existing system will remain","Existing system will remain",IF(J14="Option D: No New Backup Required","No backup required","")))) -> 57500 BTU/h

Sheet Checks and Reminders
A1: CHECKS AND REMINDERS
A2: Summary Output: Existing Heating System Airflow
A3: Maximum Airflow Capacity | B3: ='Step 4 Sizing Approach'!$B$10 -> 1475 | C3: CFM | D3: @ | E3: 0.5 | F3: =IF('Intro & Unit Options'!$B$12="Metric","mmWG total external static pressure according to HRAI RASD ","inches Water Gauge total external static pressure according to HRAI RASD ") -> inches Water Gauge total external static pressure according to HRAI RASD | X3: DO NOT TOUCH THESE CELLS
A4: Summary Output: Candidate Heat Pump Airflow
A5: Maximum Airflow Capacity | B5: =INDIRECT(CONCATENATE("'Step 5 Identify & Select ASHPs'!$E$",30+(VALUE(RIGHT('Step 6 Control Strategy'!$B$8,1))-1)*19)) -> 0 | C5: CFM | D5: @ | E5: 0.5 | F5: =IF('Intro & Unit Options'!$B$12="Metric","mmWG","inches Water Gauge") -> inches Water Gauge | Y5: Yes
Y6: No
A8: =IF(AND(AND(NOT('Step 1 ASHP Configuration'!B9="New HVAC System")),AND(B3<B5,B3<>"")),"• Existing ductwork may not be adequately sized for HP system. User should confirm suitability of existing ductwork before system installation.","") -> 
A10: Additional Input
A11: Existing Central Cooling System Or Heat Pump Being Replaced?
A12: No
A13: Additional Notes
A14: =IF(A12="Yes", "•If the heat pump being selected exceeds the nominal capacity of the existing air conditioner or heat pump, the user should ensure that the existing electrical panel has a sufficient amperage rating available for the heat pump","•Please assess the existing electrical panel to ensure that a breaker space is available") -> •Please assess the existing electrical panel to ensure that a breaker space is available
A15: •An upgraded electrical service to the home may be needed
A16: =Summary!D21 -> 
A18: =IF(AND('Step 5 Identify & Select ASHPs'!$I$27,'Step 5 Identify & Select ASHPs'!$E$31="",VALUE(RIGHT('Step 6 Control Strategy'!$B$8,1))=1),"Heat Pump #1: Please consult the heat pump manual or the manufacturer for the heat pump that the low temp cut-off was not specified to determine whether a low temp cut-off is stipulated and if it is, note it in the Identify and Select ASHPs tab","") -> 
A19: =IF(AND('Step 5 Identify & Select ASHPs'!$I$46,'Step 5 Identify & Select ASHPs'!$E$50="",VALUE(RIGHT('Step 6 Control Strategy'!$B$8,1))=2),"Heat Pump #2: Please consult the heat pump manual or the manufacturer for the heat pump that the low temp cut-off was not specified to determine whether a low temp cut-off is stipulated and if it is, note it in the Identify and Select ASHPs tab","") -> 
A20: =IF(AND('Step 5 Identify & Select ASHPs'!$I$65,'Step 5 Identify & Select ASHPs'!$E$69="",VALUE(RIGHT('Step 6 Control Strategy'!$B$8,1))=3),"Heat Pump #3: Please consult the heat pump manual or the manufacturer for the heat pump that the low temp cut-off was not specified to determine whether a low temp cut-off is stipulated and if it is, note it in the Identify and Select ASHPs tab","") -> 
A21: =IF(AND('Step 5 Identify & Select ASHPs'!$I$84,'Step 5 Identify & Select ASHPs'!$E$88="",VALUE(RIGHT('Step 6 Control Strategy'!$B$8,1))=4),"Heat Pump #4: Please consult the heat pump manual or the manufacturer for the heat pump that the low temp cut-off was not specified to determine whether a low temp cut-off is stipulated and if it is, note it in the Identify and Select ASHPs tab","") -> 
A23: =IF(AND('Step 5 Identify & Select ASHPs'!$I$27,VALUE(RIGHT('Step 6 Control Strategy'!$B$8,1))=1),"Heat Pump # 1: For most accurate results, obtain performance data from manufacturer for the heat pump number in question","") -> 
A24: =IF(AND('Step 5 Identify & Select ASHPs'!$I$46,VALUE(RIGHT('Step 6 Control Strategy'!$B$8,1))=2),"Heat Pump # 2:For most accurate results, obtain performance data from manufacturer for the heat pump number in question","") -> 
A25: =IF(AND('Step 5 Identify & Select ASHPs'!$I$65,VALUE(RIGHT('Step 6 Control Strategy'!$B$8,1))= 3),"Heat Pump # 3: For most accurate results, obtain performance data from manufacturer for the heat pump number in question","") -> 
A26: =IF(AND('Step 5 Identify & Select ASHPs'!$I$84,VALUE(RIGHT('Step 6 Control Strategy'!$B$8,1))=4),"Heat Pump # 4: For most accurate results, obtain performance data from manufacturer for the heat pump number in question","") -> 
A28: =IF(AND(OR('Step 5 Identify & Select ASHPs'!$I$24,'Step 5 Identify & Select ASHPs'!$I$25,'Step 5 Identify & Select ASHPs'!$I$26),'Step 5 Identify & Select ASHPs'!E31<>"",'HP1'!J19<>1,VALUE(RIGHT('Step 6 Control Strategy'!$B$8,1))=1),"Heat Pump #1: Capacity at cut-off is estimated. For best results, please input the capacity at the cut-off temperature","") -> 
A29: =IF(AND(OR('Step 5 Identify & Select ASHPs'!$I$43,'Step 5 Identify & Select ASHPs'!$I$44,'Step 5 Identify & Select ASHPs'!$I$45),'Step 5 Identify & Select ASHPs'!E50<>"",'HP2'!J19<>1,VALUE(RIGHT('Step 6 Control Strategy'!$B$8,1))=2),"Heat Pump #2: Capacity at cut-off is estimated. For best results, please input the capacity at the cut-off temperature","") -> 
A30: =IF(AND(OR('Step 5 Identify & Select ASHPs'!$I$62,'Step 5 Identify & Select ASHPs'!$I$63,'Step 5 Identify & Select ASHPs'!$I$64),'Step 5 Identify & Select ASHPs'!E69<>"",'HP3'!J19<>1,VALUE(RIGHT('Step 6 Control Strategy'!$B$8,1))=3),"Heat Pump #3: Capacity at cut-off is estimated. For best results, please input the capacity at the cut-off temperature","") -> 
A31: =IF(AND(OR('Step 5 Identify & Select ASHPs'!$I$81,'Step 5 Identify & Select ASHPs'!$I$82,'Step 5 Identify & Select ASHPs'!$I$83),'Step 5 Identify & Select ASHPs'!E88<>"",'HP4'!J19<>1,VALUE(RIGHT('Step 6 Control Strategy'!$B$8,1))=4),"Heat Pump #4: Capacity at cut-off is estimated. For best results, please input the capacity at the cut-off temperature","") -> 

Sheet GHG, Cost, Energy Use
A1: GHG, Cost, Energy Summary
A3: Summary Output: GHG Emissions | H3: Summary Output: Heating Season Cost | O3: Summary Output: Heating Season Energy Consumption
A4: Heating Season GHG Emissions (tonneCO2e) | B4: HP1 + Backup | C4: HP2 + backup | D4: HP3 + backup | E4: HP4 + backup | F4: Back-up only | H4: Heating Season Cost ($) | I4: HP1 + backup | J4: HP2 + backup | K4: HP3 + backup | L4: HP4 + backup | M4: Back-up only | O4: =IF('Intro & Unit Options'!B12="Metric","Heating Season Energy Consumption (GJ)","Heating Season Energy Consumption (MBTU)") -> Heating Season Energy Consumption (MBTU) | P4: HP1 + backup | Q4: HP2 + backup | R4: HP3 + backup | S4: HP4 + backup | T4: Back-up only
B5: ='HP1 - Forecast calculations'!L53/1000000 ->  | C5: =IF('Step 5 Identify & Select ASHPs'!$D$11>=2,'HP2 - Forecast calculations'!L53/1000000,NA()) ->  | D5: =IF('Step 5 Identify & Select ASHPs'!$D$11>=3,'HP3 - Forecast calculations'!L53/1000000,NA()) ->  | E5: =IF('Step 5 Identify & Select ASHPs'!$D$11>=4,'HP4 - Forecast calculations'!L53/1000000,NA()) ->  | F5: ='HP1 - Forecast calculations'!L54/1000000 -> 3.152812443 | I5: ='HP1 - Forecast calculations'!J43 ->  | J5: =IF('Step 5 Identify & Select ASHPs'!$D$11>=2,'HP2 - Forecast calculations'!J43,NA()) ->  | K5: =IF('Step 5 Identify & Select ASHPs'!$D$11>=3,'HP3 - Forecast calculations'!J43,NA()) ->  | L5: =IF('Step 5 Identify & Select ASHPs'!$D$11>=4,'HP4 - Forecast calculations'!J43,NA()) ->  | M5: ='HP1 - Forecast calculations'!J44 -> 440.6979033 | P5: =IF('Intro & Unit Options'!B12="Imperial",CONVERT('HP1 - Forecast calculations'!L35*1000,"Wh","BTU")/1000000,'HP1 - Forecast calculations'!L35*0.0036) ->  | Q5: =IF('Step 5 Identify & Select ASHPs'!$D$11>=2,IF('Intro & Unit Options'!B12="Imperial",CONVERT('HP2 - Forecast calculations'!L35*1000,"Wh","BTU")/1000000,'HP2 - Forecast calculations'!L35*0.0036),NA()) ->  | R5: =IF('Step 5 Identify & Select ASHPs'!$D$11>=3,IF('Intro & Unit Options'!B12="Imperial",CONVERT('HP3 - Forecast calculations'!L35*1000,"Wh","BTU")/1000000,'HP3 - Forecast calculations'!L35*0.0036),NA()) ->  | S5: =IF('Step 5 Identify & Select ASHPs'!$D$11>=3,IF('Intro & Unit Options'!B12="Imperial",CONVERT('HP4 - Forecast calculations'!L35*1000,"Wh","BTU")/1000000,'HP4 - Forecast calculations'!L35*0.0036),NA()) ->  | T5: =IF('Intro & Unit Options'!B12="Imperial",CONVERT('HP1 - Forecast calculations'!N35*1000,"Wh","BTU")/1000000,'HP1 - Forecast calculations'!N35*0.0036) -> 55.63777555
A23: Calculation of heating season GHG emissions assumes: | H23: Calculation of heating season cost assumes: | O23: Calculation of heating season energy consumption assumes:
A24: Heat pump operates at temperatures > cut-off temperature or COP <1, whichever is occurs at the warmer temperature | H24: Average cost of electricity (does not consider time of use or tiered rates) | O24: Heat pump operates until cut-off temperature or COP <1
A25: Heat Pump capacity and COP are based on a linear extrapolation / interpolation of the 47F and 17F data | H25: Heat pump operates until cut-off temperature or COP <1 | O25: Heat Pump capacity and COP are based on a linear extrapolation / interpolation of the 47F and 17F data
A26: Heating load is based on heating degree days for the Climate Zone (loads are not specific to cities within climate zones) | H26: Heating load is based on heating degree days for the Climate Zone (loads are not specific to cities within climate zones) | O26: Heating load is based on heating degree days for the Climate Zone (loads are not specific to cities within climate zones)
A27: GHG emissions are based on 2015 average GHG intensity of electricity generation for the respective province/territory (gCO2e) | H27: Heat Pump capacity and COP are based on a linear extrapolation / interpolation of the 47F and 17F data | O27: Backup heating is computed based on heating load - available heat pump capacity
A28: Combustion based emissions factors are as follows: | H28: Backup heating is computed based on heating load - available heat pump capacity
A29: Fuel type | B29: gCO2e/kWh
A30: Natural Gas | B30: 193.3550091
A31: Oil | B31: 276.7994444
A32: Propane | B32: 231.1896384

Sheet Summary
A1: SUMMARY
A2: Location and Design Loads
A3: Location | B3: ='Step 5 Identify & Select ASHPs'!D6 -> Toronto (city hall) | C3: ='Step 5 Identify & Select ASHPs'!F6 -> ON | D3: ='Step 5 Identify & Select ASHPs'!H6 -> CAN
A4: Design Heating Load | B4: ='Step 3 Design Loads'!B12 -> 50000 | C4: ='Step 3 Design Loads'!C12 -> BTU/h | D4: at | E4: ='Step 3 Design Loads'!B13 -> 0 | F4: ='Step 3 Design Loads'!C13 -> F
A5: Design Cooling Load | B5: ='Step 3 Design Loads'!B14 -> 30000 | C5: ='Step 3 Design Loads'!C14 -> BTU/h | D5: at | E5: ='Step 3 Design Loads'!B15 -> 88 | F5: ='Step 3 Design Loads'!C15 -> F
A6: Sizing Approach and Target Capacities
A7: Sizing Approach | B7: ='Step 4 Sizing Approach'!B6 -> Option C: Emphasis on Heating
A8: Target Capacity
A9: =IF(OR(B7="Option A: Emphasis on Cooling",B7="Option B: Emphasis on Balanced Heating/Cooling"),"Target Cooling Capacity Range",IF(B7="Option C: Emphasis on Heating","Heating Load at 17F (-8.3C)","Heating Load at Design Conditions")) -> Heating Load at 17F (-8.3C) | B9: ='Step 4 Sizing Approach'!B15 -> 35800 | C9: =C4 -> BTU/h | D9: =IF(OR(B7="Option A: Emphasis on Cooling", B7="Option B: Emphasis on Balanced Heating/Cooling"),"to","") ->  | E9: =IF(OR(B7="Option A: Emphasis on Cooling", B7="Option B: Emphasis on Balanced Heating/Cooling"),'Step 4 Sizing Approach'!D15,"") ->  | F9: =IF(OR(B7="Option A: Emphasis on Cooling", B7="Option B: Emphasis on Balanced Heating/Cooling"),C5,"") -> 
A10: ASHP Selection
A11: Selected ASHP | B11: ='Step 6 Control Strategy'!B8 -> HP#1
A12: ASHP Maker & Model | B12: =INDIRECT(CONCATENATE("'Step 5 Identify & Select ASHPs'!$E$",26+(RIGHT($B$11,1)-1)*19)) -> 0
A13: ASHP Airflow | B13: ='Checks and Reminders'!B5 -> 0 | C13: ='Checks and Reminders'!C5 -> CFM
A14: Noise Rating | B14: =INDIRECT(CONCATENATE("'Step 5 Identify & Select ASHPs'!$E$",29+(RIGHT($B$11,1)-1)*19)) -> 0 | C14: dBa
A16: Heating Mode
A17: ASHP Heating Capacity | B17: =ROUND(IF(INDIRECT(CONCATENATE("'Step 5 Identify & Select ASHPs'!$I$",27+(RIGHT($B$11,1)-1)*19)),INDIRECT(CONCATENATE("'HP",(RIGHT($B$11,1))," Calcs'!G31")),INDIRECT(CONCATENATE("'HP",(RIGHT($B$11,1)),"'!J12"))),-1) -> 0 | C17: =C4 -> BTU/h | D17: =IF('Intro & Unit Options'!$B$12=Dropdown_Menus!$F$1,"@ 8.3C","@ 47F") -> @ 47F
A18: ASHP Heating COP | B18: =ROUND(IF(INDIRECT(CONCATENATE("'Step 5 Identify & Select ASHPs'!$I$",27+(RIGHT($B$11,1)-1)*19)),INDIRECT(CONCATENATE("'HP",(RIGHT($B$11,1))," Calcs'!I31")),IF('Intro & Unit Options'!$B$12=Dropdown_Menus!F1,INDIRECT(CONCATENATE("'HP",(RIGHT($B$11,1)),"'!J12"))/INDIRECT(CONCATENATE("'HP",(RIGHT($B$11,1)),"'!J15")),INDIRECT(CONCATENATE("'HP",(RIGHT($B$11,1)),"'!J12"))*0.00029307/INDIRECT(CONCATENATE("'HP",(RIGHT($B$11,1)),"'!J15")))),1) ->  | D18: =D17 -> @ 47F
A19: ASHP Heating Capacity | B19: =ROUND(IF(INDIRECT(CONCATENATE("'Step 5 Identify & Select ASHPs'!$I$",27+(RIGHT($B$11,1)-1)*19)),INDIRECT(CONCATENATE("'HP",(RIGHT($B$11,1))," Calcs'!G25")),INDIRECT(CONCATENATE("'HP",(RIGHT($B$11,1)),"'!J13"))),-1) -> 0 | C19: =C17 -> BTU/h | D19: =IF('Intro & Unit Options'!$B$12=Dropdown_Menus!$F$1,"@ -8.3C","@ 17F") -> @ 17F
A20: ASHP Heating COP | B20: =ROUND(IF(INDIRECT(CONCATENATE("'Step 5 Identify & Select ASHPs'!$I$",27+(RIGHT($B$11,1)-1)*19)),INDIRECT(CONCATENATE("'HP",(RIGHT($B$11,1))," Calcs'!I25")),IF('Intro & Unit Options'!$B$12=Dropdown_Menus!F3,INDIRECT(CONCATENATE("'HP",(RIGHT($B$11,1)),"'!J13"))/INDIRECT(CONCATENATE("'HP",(RIGHT($B$11,1)),"'!J16")),INDIRECT(CONCATENATE("'HP",(RIGHT($B$11,1)),"'!J13"))*0.00029307/INDIRECT(CONCATENATE("'HP",(RIGHT($B$11,1)),"'!J16")))),1) ->  | D20: =D19 -> @ 17F
A21: HP Cut Off Temperature | B21: =INDIRECT(CONCATENATE("'Step 5 Identify & Select ASHPs'!$E$",31+(RIGHT($B$11,1)-1)*19)) -> 0 | C21: =F4 -> F | D21: =IF(AND(B7="Option D: ASHP as Sole Heating Source",E4<B21),"•Note: ASHP Cut-Off> Heating Design Temperature. Auxiliary Heating Required","") -> 
A23: Cooling Mode
A24: ASHP Cooling Capacity | B24: =ROUND(IF(INDIRECT(CONCATENATE("'Step 5 Identify & Select ASHPs'!$I$",27+(RIGHT($B$11,1)-1)*19)),INDIRECT(CONCATENATE("'HP",(RIGHT($B$11,1))," Calcs'!N55")),INDIRECT(CONCATENATE("'HP",(RIGHT($B$11,1)),"'!J52"))),-1) -> 0 | C24: =C17 -> BTU/h | D24: =IF('Intro & Unit Options'!$B$12=Dropdown_Menus!$F$1,"@ 35C","@ 95F") -> @ 95F
A25: ASHP Cooling COP | B25: =ROUND(IF(INDIRECT(CONCATENATE("'Step 5 Identify & Select ASHPs'!$I$",27+(RIGHT($B$11,1)-1)*19)),INDIRECT(CONCATENATE("'HP",(RIGHT($B$11,1))," Calcs'!N57")),INDIRECT(CONCATENATE("'HP",(RIGHT($B$11,1)),"'!J53"))),1) ->  | D25: =D24 -> @ 95F
A26: ASHP Performance Metrics
A27: Thermal Balance Point Temperature | B27: =ROUND(IF(INDIRECT(CONCATENATE("'Step 5 Identify & Select ASHPs'!$I$",27+(RIGHT($B$11,1)-1)*19)),INDIRECT(CONCATENATE("'HP",(RIGHT($B$11,1))," Calcs'!N15")),INDIRECT(CONCATENATE("'HP",(RIGHT($B$11,1)),"'!J9"))),1) ->  | C27: =F4 -> F
A28: % of Heating Above Thermal Balance Point | B28: =ROUND(IF(INDIRECT(CONCATENATE("'Step 5 Identify & Select ASHPs'!$I$",27+(RIGHT($B$11,1)-1)*19)),INDIRECT(CONCATENATE("'HP",(RIGHT($B$11,1))," Calcs'!N17")),INDIRECT(CONCATENATE("'HP",(RIGHT($B$11,1)),"'!J10"))),2) -> 
A29: % of Cooling at TDesign,Cool | B29: =ROUND(IF(INDIRECT(CONCATENATE("'Step 5 Identify & Select ASHPs'!$I$",27+(RIGHT($B$11,1)-1)*19)),INDIRECT(CONCATENATE("'HP",(RIGHT($B$11,1))," Calcs'!N54")),INDIRECT(CONCATENATE("'HP",(RIGHT($B$11,1)),"'!J51"))),2) -> 0
A30: Control Strategy
A31: Control Strategy | B31: ='Step 6 Control Strategy'!B9 -> Option B1: ASHP Cut-Off Temperature | D31: =IF('Step 6 Control Strategy'!B8<>Summary!B11,"Error: HP in Control Strategy Analysis different than HP Selected in Summary","") -> 
A32: Backup Fuel | B32: ='Step 6 Control Strategy'!B19 -> Natural Gas
A34: =IF(OR('Step 6 Control Strategy'!B9="Option A1: ASHP Cut-Off Temperature",'Step 6 Control Strategy'!B9="Option B1: ASHP Cut-Off Temperature"),"Temperature for Controls to Switch to Backup",'Step 6 Control Strategy'!A42) -> Temperature for Controls to Switch to Backup | B34: =IF(OR('Step 6 Control Strategy'!B9="Option A1: ASHP Cut-Off Temperature",'Step 6 Control Strategy'!B9="Option B1: ASHP Cut-Off Temperature"),B21,IF('Step 6 Control Strategy'!B42="",'Step 6 Control Strategy'!C42,'Step 6 Control Strategy'!B42)) -> 0 | C34: =IF('Intro & Unit Options'!B12="Metric","C","F") -> F
A35: =IF('Step 6 Control Strategy'!A26="","",IF('Step 6 Control Strategy'!B24>1,'Step 6 Control Strategy'!A43,"")) ->  | B35: =IF(A35="","",IF('Step 6 Control Strategy'!B43="",'Step 6 Control Strategy'!C43,'Step 6 Control Strategy'!B43)) ->  | C35: =C34 -> F
A36: =IF('Step 6 Control Strategy'!A27="","",IF('Step 6 Control Strategy'!B24>2,'Step 6 Control Strategy'!A44,"")) ->  | B36: =IF(A36="","",IF('Step 6 Control Strategy'!B44="",'Step 6 Control Strategy'!C44,'Step 6 Control Strategy'!B44)) ->  | C36: =C34 -> F
A37: =IF('Step 6 Control Strategy'!A28="","",IF('Step 6 Control Strategy'!B24>3,'Step 6 Control Strategy'!A45,"")) ->  | B37: =IF(A37="","",IF('Step 6 Control Strategy'!B45="",'Step 6 Control Strategy'!C45,'Step 6 Control Strategy'!B45)) ->  | C37: =C35 -> F
A38: =IF('Step 6 Control Strategy'!A29="","",IF('Step 6 Control Strategy'!B24>4,'Step 6 Control Strategy'!A46,"")) ->  | B38: =IF(A38="","",IF('Step 6 Control Strategy'!B46="",'Step 6 Control Strategy'!C46,'Step 6 Control Strategy'!B46)) ->  | C38: F
A39: GHG, Cost, Energy Use
A40: Heating Season Energy Use | B40: =IF(B11="HP#1",'GHG, Cost, Energy Use'!P5,1)*IF(B11="HP#2",'GHG, Cost, Energy Use'!Q5,1)*IF(B11="HP#3",'GHG, Cost, Energy Use'!R5,1)*IF(B11="HP#4",'GHG, Cost, Energy Use'!S5,1) ->  | C40: =IF('Intro & Unit Options'!B12="Metric","GJ","MBTU") -> MBTU | E40: =IF(OR(B31="Option B2: Economic Cut-Off Temperature",B31="Option A2: Economic Cut-Off Temperature"),"Note: GHG and Cost calculations do not take into account economic cut-off","") -> 
A41: Heating Season Utility Cost | B41: =IF(B11="HP#1",'GHG, Cost, Energy Use'!I5,1)*IF(B11="HP#2",'GHG, Cost, Energy Use'!J5,1)*IF(B11="HP#3",'GHG, Cost, Energy Use'!K5,1)*IF(B11="HP#4",'GHG, Cost, Energy Use'!L5,1) -> 
A42: Heating Season GHG Emissions | B42: =IF(B11="HP#1",'GHG, Cost, Energy Use'!B5,1)*IF(B11="HP#2",'GHG, Cost, Energy Use'!C5,1)*IF(B11="HP#3",'GHG, Cost, Energy Use'!D5,1)*IF(B11="HP#4",'GHG, Cost, Energy Use'!E5,1) ->  | C42: tonne CO2e
A43: Airflow
A44: ='Checks and Reminders'!A3 -> Maximum Airflow Capacity | B44: ='Checks and Reminders'!B3 -> 1475 | C44: ='Checks and Reminders'!C3 -> CFM | D44: @ | E44: ='Checks and Reminders'!E3 -> 0.5 | F44: ='Checks and Reminders'!F3 -> inches Water Gauge total external static pressure according to HRAI RASD
A45: =IF(AND(AND(NOT('Step 1 ASHP Configuration'!B9="New HVAC System")),AND(B44<B13,B44<>"")),"• Existing ductwork may not be adequately sized for HP system. User should confirm suitability of existing ductwork before system installation.","") -> 
A46: Additional Notes
A47: Existing Central Cooling System Or Heat Pump Being Replaced? | B47: ='Checks and Reminders'!A12 -> No
A48: =IF(B47="Yes", "•If the heat pump being selected exceeds the nominal capacity of the existing air conditioner or heat pump, the user should ensure that the existing electrical panel has a sufficient amperage rating available for the heat pump","•Please assess the existing electrical panel to ensure that a breaker space is available") -> •Please assess the existing electrical panel to ensure that a breaker space is available
A49: •An upgraded electrical service to the home may be needed

Sheet Climate Zones (hidden)
A1: Seq | B1: Country | C1: Region | D1: City | E1: DegDay | F1: Climate Zone | G1: DHDBT | H1: DCDBT | K1: DO NOT TOUCH THESE CELLS | N1: User Choice | O1: Country | P1: Province | Q1: City | S1: A--->Z | U1: =INDEX($T$2:$T$231,MATCH(FALSE,ISNONTEXT($T$2:$T$231),0)) -> Ailsa Craig | V1: =U1 -> Ailsa Craig | X1: Source: Data for Canadian locations adapted from the Canadian Standards Association, CSA F280-12, "Determining the required capacity of residential space heating and cooling appliances".
A2: 1 | B2: CAN | C2: AB | D2: Athabasca | E2: 6000 | F2: Very-Cold | G2: -35 | H2: 27 | K2: 13 | L2: 50 | N2: ='Step 3 Design Loads'!B5 -> CAN | O2: CAN | P2: =_xlfn.IFNA(LOOKUP(2, 1/((COUNTIF($P$1:P1, $C$2:$C$1686)=0)*($N$2=$B$2:$B$1686)), $C$2:$C$1686),"") -> YT | Q2: =_xlfn.IFNA(LOOKUP(2, 1/((COUNTIF($Q$1:Q1, $D$2:$D$1686)=0)*($N$3=$C$2:$C$1686)), $D$2:$D$1686),"") -> Wyoming | R2: =IF($N$2=$O$2,K2,IF($N$2=$O$3,L2)) -> 13 | S2: =INDEX($P$2:$P$51,R2) -> AB | T2: =IFERROR(INDEX($Q$2:$Q$231,MATCH(ROWS($Q$2:Q2),COUNTIF($Q$2:$Q$231,"<="&$Q$2:$Q$231),0)),0) -> Ailsa Craig | U2: =MATCH(U1,T1:T231,0) -> 2 | V2: =IFERROR(INDEX($T$2:$T$231,U2,1),"") -> Ajax | X2: Source: Data for locations in the United States of America adapted from the Canadian Standards Association, CSA EXP-07, "Energy performance of split-system and single-package air conditioners and heat pumps".
A3: 2 | B3: CAN | C3: AB | D3: Banff | E3: 5500 | F3: Very-Cold | G3: -31 | H3: 27 | K3: =K2-1 -> 12 | L3: =L2-1 -> 49 | N3: ='Step 3 Design Loads'!B6 -> ON | O3: US | P3: =_xlfn.IFNA(LOOKUP(2, 1/((COUNTIF($P$1:P2, $C$2:$C$1686)=0)*($N$2=$B$2:$B$1686)), $C$2:$C$1686),"") -> SK | Q3: =_xlfn.IFNA(LOOKUP(2, 1/((COUNTIF($Q$1:Q2, $D$2:$D$1686)=0)*($N$3=$C$2:$C$1686)), $D$2:$D$1686),"") -> Woodstock | R3: =IF($N$2=$O$2,K3,IF($N$2=$O$3,L3)) -> 12 | S3: =INDEX($P$2:$P$51,R3) -> BC | T3: =IFERROR(INDEX($Q$2:$Q$231,MATCH(ROWS($Q$2:Q3),COUNTIF($Q$2:$Q$231,"<="&$Q$2:$Q$231),0)),0) -> Ajax | U3: =U2+1 -> 3 | V3: =IFERROR(INDEX($T$2:$T$231,U3,1),"") -> Alexandria | X3: F280 weather data for Spreadsheet project (Interpreted from CSA_F280_Table 5_Final_2012-01-03.xls by Philip Jarrett Environment Canada)
A4: 3 | B4: CAN | C4: AB | D4: Barrhead | E4: 5740 | F4: Very-Cold | G4: -33 | H4: 27 | K4: =K3-1 -> 11 | L4: 48 | P4: =_xlfn.IFNA(LOOKUP(2, 1/((COUNTIF($P$1:P3, $C$2:$C$1686)=0)*($N$2=$B$2:$B$1686)), $C$2:$C$1686),"") -> QC | Q4: =_xlfn.IFNA(LOOKUP(2, 1/((COUNTIF($Q$1:Q3, $D$2:$D$1686)=0)*($N$3=$C$2:$C$1686)), $D$2:$D$1686),"") -> Wingham | R4: 11 | S4: MB | T4: =IFERROR(INDEX($Q$2:$Q$231,MATCH(ROWS($Q$2:Q4),COUNTIF($Q$2:$Q$231,"<="&$Q$2:$Q$231),0)),0) -> Alexandria | U4: =U3+1 -> 4 | V4: Alliston
A5: 4 | B5: CAN | C5: AB | D5: Beaverlodge | E5: 5700 | F5: Very-Cold | G5: -36 | H5: 28 | K5: 10 | L5: 47 | P5: =_xlfn.IFNA(LOOKUP(2, 1/((COUNTIF($P$1:P4, $C$2:$C$1686)=0)*($N$2=$B$2:$B$1686)), $C$2:$C$1686),"") -> PE | Q5: =_xlfn.IFNA(LOOKUP(2, 1/((COUNTIF($Q$1:Q4, $D$2:$D$1686)=0)*($N$3=$C$2:$C$1686)), $D$2:$D$1686),"") -> Windsor | R5: 10 | S5: NB | T5: =IFERROR(INDEX($Q$2:$Q$231,MATCH(ROWS($Q$2:Q5),COUNTIF($Q$2:$Q$231,"<="&$Q$2:$Q$231),0)),0) -> Alliston | U5: 5 | V5: Almonte
A6: 5 | B6: CAN | C6: AB | D6: Brooks | E6: 4880 | F6: Very-Cold | G6: -32 | H6: 32 | K6: 9 | L6: 46 | P6: =_xlfn.IFNA(LOOKUP(2, 1/((COUNTIF($P$1:P5, $C$2:$C$1686)=0)*($N$2=$B$2:$B$1686)), $C$2:$C$1686),"") -> ON | Q6: =_xlfn.IFNA(LOOKUP(2, 1/((COUNTIF($Q$1:Q5, $D$2:$D$1686)=0)*($N$3=$C$2:$C$1686)), $D$2:$D$1686),"") -> Wiarton | R6: 9 | S6: NL | T6: =IFERROR(INDEX($Q$2:$Q$231,MATCH(ROWS($Q$2:Q6),COUNTIF($Q$2:$Q$231,"<="&$Q$2:$Q$231),0)),0) -> Almonte | U6: 6 | V6: Armstrong
A7: 6 | B7: CAN | C7: AB | D7: Calgary | E7: 5000 | F7: Very-Cold | G7: -30 | H7: 28 | K7: 8 | L7: 45 | P7: =_xlfn.IFNA(LOOKUP(2, 1/((COUNTIF($P$1:P6, $C$2:$C$1686)=0)*($N$2=$B$2:$B$1686)), $C$2:$C$1686),"") -> NU | Q7: =_xlfn.IFNA(LOOKUP(2, 1/((COUNTIF($Q$1:Q6, $D$2:$D$1686)=0)*($N$3=$C$2:$C$1686)), $D$2:$D$1686),"") -> White River | R7: 8 | S7: NS | T7: =IFERROR(INDEX($Q$2:$Q$231,MATCH(ROWS($Q$2:Q7),COUNTIF($Q$2:$Q$231,"<="&$Q$2:$Q$231),0)),0) -> Armstrong | U7: 7 | V7: Arnprior
A8: 7 | B8: CAN | C8: AB | D8: Campsie | E8: 5750 | F8: Very-Cold | G8: -33 | H8: 27 | K8: 7 | L8: 44 | P8: =_xlfn.IFNA(LOOKUP(2, 1/((COUNTIF($P$1:P7, $C$2:$C$1686)=0)*($N$2=$B$2:$B$1686)), $C$2:$C$1686),"") -> NT | Q8: =_xlfn.IFNA(LOOKUP(2, 1/((COUNTIF($Q$1:Q7, $D$2:$D$1686)=0)*($N$3=$C$2:$C$1686)), $D$2:$D$1686),"") -> Whitby (Brooklin) | R8: 7 | S8: NT | T8: =IFERROR(INDEX($Q$2:$Q$231,MATCH(ROWS($Q$2:Q8),COUNTIF($Q$2:$Q$231,"<="&$Q$2:$Q$231),0)),0) -> Arnprior | U8: 8 | V8: Atikokan
A9: 8 | B9: CAN | C9: AB | D9: Camrose | E9: 5500 | F9: Very-Cold | G9: -33 | H9: 29 | K9: 6 | L9: 43 | P9: =_xlfn.IFNA(LOOKUP(2, 1/((COUNTIF($P$1:P8, $C$2:$C$1686)=0)*($N$2=$B$2:$B$1686)), $C$2:$C$1686),"") -> NS | Q9: =_xlfn.IFNA(LOOKUP(2, 1/((COUNTIF($Q$1:Q8, $D$2:$D$1686)=0)*($N$3=$C$2:$C$1686)), $D$2:$D$1686),"") -> Whitby | R9: 6 | S9: NU | T9: =IFERROR(INDEX($Q$2:$Q$231,MATCH(ROWS($Q$2:Q9),COUNTIF($Q$2:$Q$231,"<="&$Q$2:$Q$231),0)),0) -> Atikokan | U9: 9 | V9: Attawapiskat
A10: 9 | B10: CAN | C10: AB | D10: Canmore | E10: 5400 | F10: Very-Cold | G10: -31 | H10: 28 | K10: 5 | L10: 42 | P10: =_xlfn.IFNA(LOOKUP(2, 1/((COUNTIF($P$1:P9, $C$2:$C$1686)=0)*($N$2=$B$2:$B$1686)), $C$2:$C$1686),"") -> NL | Q10: =_xlfn.IFNA(LOOKUP(2, 1/((COUNTIF($Q$1:Q9, $D$2:$D$1686)=0)*($N$3=$C$2:$C$1686)), $D$2:$D$1686),"") -> West Lorne | R10: 5 | S10: ON | T10: =IFERROR(INDEX($Q$2:$Q$231,MATCH(ROWS($Q$2:Q10),COUNTIF($Q$2:$Q$231,"<="&$Q$2:$Q$231),0)),0) -> Attawapiskat | U10: 10 | V10: Aurora
A11: 10 | B11: CAN | C11: AB | D11: Cardston | E11: 4700 | F11: Very-Cold | G11: -29 | H11: 30 | K11: 4 | L11: 41 | P11: =_xlfn.IFNA(LOOKUP(2, 1/((COUNTIF($P$1:P10, $C$2:$C$1686)=0)*($N$2=$B$2:$B$1686)), $C$2:$C$1686),"") -> NB | Q11: =_xlfn.IFNA(LOOKUP(2, 1/((COUNTIF($Q$1:Q10, $D$2:$D$1686)=0)*($N$3=$C$2:$C$1686)), $D$2:$D$1686),"") -> Welland | R11: 4 | S11: PE | T11: =IFERROR(INDEX($Q$2:$Q$231,MATCH(ROWS($Q$2:Q11),COUNTIF($Q$2:$Q$231,"<="&$Q$2:$Q$231),0)),0) -> Aurora | U11: 11 | V11: Bancroft
A12: 11 | B12: CAN | C12: AB | D12: Claresholm | E12: 4680 | F12: Very-Cold | G12: -30 | H12: 30 | K12: 3 | L12: 40 | P12: =_xlfn.IFNA(LOOKUP(2, 1/((COUNTIF($P$1:P11, $C$2:$C$1686)=0)*($N$2=$B$2:$B$1686)), $C$2:$C$1686),"") -> MB | Q12: =_xlfn.IFNA(LOOKUP(2, 1/((COUNTIF($Q$1:Q11, $D$2:$D$1686)=0)*($N$3=$C$2:$C$1686)), $D$2:$D$1686),"") -> Wawa | R12: 3 | S12: QC | T12: =IFERROR(INDEX($Q$2:$Q$231,MATCH(ROWS($Q$2:Q12),COUNTIF($Q$2:$Q$231,"<="&$Q$2:$Q$231),0)),0) -> Bancroft | U12: 12 | V12: Barrie
A13: 12 | B13: CAN | C13: AB | D13: Cold Lake | E13: 5860 | F13: Very-Cold | G13: -35 | H13: 28 | K13: 2 | L13: 39 | P13: =_xlfn.IFNA(LOOKUP(2, 1/((COUNTIF($P$1:P12, $C$2:$C$1686)=0)*($N$2=$B$2:$B$1686)), $C$2:$C$1686),"") -> BC | Q13: =_xlfn.IFNA(LOOKUP(2, 1/((COUNTIF($Q$1:Q12, $D$2:$D$1686)=0)*($N$3=$C$2:$C$1686)), $D$2:$D$1686),"") -> Watford | R13: 2 | S13: SK | T13: =IFERROR(INDEX($Q$2:$Q$231,MATCH(ROWS($Q$2:Q13),COUNTIF($Q$2:$Q$231,"<="&$Q$2:$Q$231),0)),0) -> Barrie | U13: 13 | V13: Barriefield
A14: 13 | B14: CAN | C14: AB | D14: Coleman | E14: 5210 | F14: Very-Cold | G14: -31 | H14: 29 | K14: 1 | L14: 38 | P14: =_xlfn.IFNA(LOOKUP(2, 1/((COUNTIF($P$1:P13, $C$2:$C$1686)=0)*($N$2=$B$2:$B$1686)), $C$2:$C$1686),"") -> AB | Q14: =_xlfn.IFNA(LOOKUP(2, 1/((COUNTIF($Q$1:Q13, $D$2:$D$1686)=0)*($N$3=$C$2:$C$1686)), $D$2:$D$1686),"") -> Waterloo | R14: 1 | S14: YT | T14: =IFERROR(INDEX($Q$2:$Q$231,MATCH(ROWS($Q$2:Q14),COUNTIF($Q$2:$Q$231,"<="&$Q$2:$Q$231),0)),0) -> Barriefield | U14: 14 | V14: Beaverton
A15: 14 | B15: CAN | C15: AB | D15: Coronation | E15: 5640 | F15: Very-Cold | G15: -32 | H15: 30 | K15: 0 | L15: 37 | P15: =_xlfn.IFNA(LOOKUP(2, 1/((COUNTIF($P$1:P14, $C$2:$C$1686)=0)*($N$2=$B$2:$B$1686)), $C$2:$C$1686),"") ->  | Q15: =_xlfn.IFNA(LOOKUP(2, 1/((COUNTIF($Q$1:Q14, $D$2:$D$1686)=0)*($N$3=$C$2:$C$1686)), $D$2:$D$1686),"") -> Wallaceburg | R15: 0 | T15: =IFERROR(INDEX($Q$2:$Q$231,MATCH(ROWS($Q$2:Q15),COUNTIF($Q$2:$Q$231,"<="&$Q$2:$Q$231),0)),0) -> Beaverton | U15: 15 | V15: Belleville
A16: 15 | B16: CAN | C16: AB | D16: Cowley | E16: 4810 | F16: Very-Cold | G16: -29 | H16: 29 | K16: 0 | L16: 36 | P16: =_xlfn.IFNA(LOOKUP(2, 1/((COUNTIF($P$1:P15, $C$2:$C$1686)=0)*($N$2=$B$2:$B$1686)), $C$2:$C$1686),"") ->  | Q16: =_xlfn.IFNA(LOOKUP(2, 1/((COUNTIF($Q$1:Q15, $D$2:$D$1686)=0)*($N$3=$C$2:$C$1686)), $D$2:$D$1686),"") -> Walkerton | R16: 0 | T16: =IFERROR(INDEX($Q$2:$Q$231,MATCH(ROWS($Q$2:Q16),COUNTIF($Q$2:$Q$231,"<="&$Q$2:$Q$231),0)),0) -> Belleville | U16: 16 | V16: Belmont
A17: 16 | B17: CAN | C17: AB | D17: Drumheller | E17: 5050 | F17: Very-Cold | G17: -32 | H17: 30 | K17: 0 | L17: 35 | P17: =_xlfn.IFNA(LOOKUP(2, 1/((COUNTIF($P$1:P16, $C$2:$C$1686)=0)*($N$2=$B$2:$B$1686)), $C$2:$C$1686),"") ->  | Q17: =_xlfn.IFNA(LOOKUP(2, 1/((COUNTIF($Q$1:Q16, $D$2:$D$1686)=0)*($N$3=$C$2:$C$1686)), $D$2:$D$1686),"") -> Vittoria | R17: 0 | T17: =IFERROR(INDEX($Q$2:$Q$231,MATCH(ROWS($Q$2:Q17),COUNTIF($Q$2:$Q$231,"<="&$Q$2:$Q$231),0)),0) -> Belmont | U17: 17 | V17: Bracebridge
A18: 17 | B18: CAN | C18: AB | D18: Edmonton | E18: 5120 | F18: Very-Cold | G18: -30 | H18: 28 | K18: 0 | L18: 34 | P18: =_xlfn.IFNA(LOOKUP(2, 1/((COUNTIF($P$1:P17, $C$2:$C$1686)=0)*($N$2=$B$2:$B$1686)), $C$2:$C$1686),"") ->  | Q18: =_xlfn.IFNA(LOOKUP(2, 1/((COUNTIF($Q$1:Q17, $D$2:$D$1686)=0)*($N$3=$C$2:$C$1686)), $D$2:$D$1686),"") -> Vaughan (Woodbridge) | R18: 0 | T18: =IFERROR(INDEX($Q$2:$Q$231,MATCH(ROWS($Q$2:Q18),COUNTIF($Q$2:$Q$231,"<="&$Q$2:$Q$231),0)),0) -> Bracebridge | U18: 18 | V18: Bradford
A19: 18 | B19: CAN | C19: AB | D19: Edson | E19: 5750 | F19: Very-Cold | G19: -34 | H19: 27 | K19: 0 | L19: 33 | P19: =_xlfn.IFNA(LOOKUP(2, 1/((COUNTIF($P$1:P18, $C$2:$C$1686)=0)*($N$2=$B$2:$B$1686)), $C$2:$C$1686),"") ->  | Q19: =_xlfn.IFNA(LOOKUP(2, 1/((COUNTIF($Q$1:Q18, $D$2:$D$1686)=0)*($N$3=$C$2:$C$1686)), $D$2:$D$1686),"") -> Uxbridge | R19: 0 | T19: =IFERROR(INDEX($Q$2:$Q$231,MATCH(ROWS($Q$2:Q19),COUNTIF($Q$2:$Q$231,"<="&$Q$2:$Q$231),0)),0) -> Bradford | U19: 19 | V19: Brampton
A20: 19 | B20: CAN | C20: AB | D20: Embarras Portage | E20: 7100 | F20: Subarctic | G20: -41 | H20: 28 | K20: 0 | L20: =L19-1 -> 32 | P20: =_xlfn.IFNA(LOOKUP(2, 1/((COUNTIF($P$1:P19, $C$2:$C$1686)=0)*($N$2=$B$2:$B$1686)), $C$2:$C$1686),"") ->  | Q20: =_xlfn.IFNA(LOOKUP(2, 1/((COUNTIF($Q$1:Q19, $D$2:$D$1686)=0)*($N$3=$C$2:$C$1686)), $D$2:$D$1686),"") -> Trout Creek | R20: 0 | T20: =IFERROR(INDEX($Q$2:$Q$231,MATCH(ROWS($Q$2:Q20),COUNTIF($Q$2:$Q$231,"<="&$Q$2:$Q$231),0)),0) -> Brampton | U20: 20 | V20: Brantford
A21: 20 | B21: CAN | C21: AB | D21: Fairview | E21: 5840 | F21: Very-Cold | G21: -37 | H21: 27 | K21: 0 | L21: 31 | P21: =_xlfn.IFNA(LOOKUP(2, 1/((COUNTIF($P$1:P20, $C$2:$C$1686)=0)*($N$2=$B$2:$B$1686)), $C$2:$C$1686),"") ->  | Q21: =_xlfn.IFNA(LOOKUP(2, 1/((COUNTIF($Q$1:Q20, $D$2:$D$1686)=0)*($N$3=$C$2:$C$1686)), $D$2:$D$1686),"") -> Trenton | R21: 0 | T21: =IFERROR(INDEX($Q$2:$Q$231,MATCH(ROWS($Q$2:Q21),COUNTIF($Q$2:$Q$231,"<="&$Q$2:$Q$231),0)),0) -> Brantford | U21: 21 | V21: Brighton
A22: 21 | B22: CAN | C22: AB | D22: Fort MacLeod | E22: 4600 | F22: Very-Cold | G22: -30 | H22: 31 | K22: 0 | L22: 30 | P22: =_xlfn.IFNA(LOOKUP(2, 1/((COUNTIF($P$1:P21, $C$2:$C$1686)=0)*($N$2=$B$2:$B$1686)), $C$2:$C$1686),"") ->  | Q22: =_xlfn.IFNA(LOOKUP(2, 1/((COUNTIF($Q$1:Q21, $D$2:$D$1686)=0)*($N$3=$C$2:$C$1686)), $D$2:$D$1686),"") -> Toronto (city hall) | R22: 0 | T22: =IFERROR(INDEX($Q$2:$Q$231,MATCH(ROWS($Q$2:Q22),COUNTIF($Q$2:$Q$231,"<="&$Q$2:$Q$231),0)),0) -> Brighton | U22: 22 | V22: Brockville
A23: 22 | B23: CAN | C23: AB | D23: Fort McMurray | E23: 6250 | F23: Very-Cold | G23: -38 | H23: 28 | K23: 0 | L23: 29 | P23: =_xlfn.IFNA(LOOKUP(2, 1/((COUNTIF($P$1:P22, $C$2:$C$1686)=0)*($N$2=$B$2:$B$1686)), $C$2:$C$1686),"") ->  | Q23: =_xlfn.IFNA(LOOKUP(2, 1/((COUNTIF($Q$1:Q22, $D$2:$D$1686)=0)*($N$3=$C$2:$C$1686)), $D$2:$D$1686),"") -> Timmins (Porcupine) | R23: 0 | T23: =IFERROR(INDEX($Q$2:$Q$231,MATCH(ROWS($Q$2:Q23),COUNTIF($Q$2:$Q$231,"<="&$Q$2:$Q$231),0)),0) -> Brockville | U23: 23 | V23: Burk's Falls
A24: 23 | B24: CAN | C24: AB | D24: Fort Saskatchewan | E24: 5420 | F24: Very-Cold | G24: -32 | H24: 28 | K24: 0 | L24: 28 | P24: =_xlfn.IFNA(LOOKUP(2, 1/((COUNTIF($P$1:P23, $C$2:$C$1686)=0)*($N$2=$B$2:$B$1686)), $C$2:$C$1686),"") ->  | Q24: =_xlfn.IFNA(LOOKUP(2, 1/((COUNTIF($Q$1:Q23, $D$2:$D$1686)=0)*($N$3=$C$2:$C$1686)), $D$2:$D$1686),"") -> Timmins | R24: 0 | T24: =IFERROR(INDEX($Q$2:$Q$231,MATCH(ROWS($Q$2:Q24),COUNTIF($Q$2:$Q$231,"<="&$Q$2:$Q$231),0)),0) -> Burk's Falls | U24: 24 | V24: Burlington
A25: 24 | B25: CAN | C25: AB | D25: Fort Vermilion | E25: 6700 | F25: Subarctic | G25: -41 | H25: 28 | K25: 0 | L25: 27 | P25: =_xlfn.IFNA(LOOKUP(2, 1/((COUNTIF($P$1:P24, $C$2:$C$1686)=0)*($N$2=$B$2:$B$1686)), $C$2:$C$1686),"") ->  | Q25: =_xlfn.IFNA(LOOKUP(2, 1/((COUNTIF($Q$1:Q24, $D$2:$D$1686)=0)*($N$3=$C$2:$C$1686)), $D$2:$D$1686),"") -> Tillsonburg | R25: 0 | T25: =IFERROR(INDEX($Q$2:$Q$231,MATCH(ROWS($Q$2:Q25),COUNTIF($Q$2:$Q$231,"<="&$Q$2:$Q$231),0)),0) -> Burlington | U25: 25 | V25: Cambridge
A26: 25 | B26: CAN | C26: AB | D26: Grande Prairie | E26: 5790 | F26: Very-Cold | G26: -36 | H26: 27 | K26: 0 | L26: 26 | P26: =_xlfn.IFNA(LOOKUP(2, 1/((COUNTIF($P$1:P25, $C$2:$C$1686)=0)*($N$2=$B$2:$B$1686)), $C$2:$C$1686),"") ->  | Q26: =_xlfn.IFNA(LOOKUP(2, 1/((COUNTIF($Q$1:Q25, $D$2:$D$1686)=0)*($N$3=$C$2:$C$1686)), $D$2:$D$1686),"") -> Thunder Bay | R26: 0 | T26: =IFERROR(INDEX($Q$2:$Q$231,MATCH(ROWS($Q$2:Q26),COUNTIF($Q$2:$Q$231,"<="&$Q$2:$Q$231),0)),0) -> Cambridge | U26: 26 | V26: Campbellford
A27: 26 | B27: CAN | C27: AB | D27: Habay | E27: 6750 | F27: Subarctic | G27: -41 | H27: 28 | K27: 0 | L27: 25 | P27: =_xlfn.IFNA(LOOKUP(2, 1/((COUNTIF($P$1:P26, $C$2:$C$1686)=0)*($N$2=$B$2:$B$1686)), $C$2:$C$1686),"") ->  | Q27: =_xlfn.IFNA(LOOKUP(2, 1/((COUNTIF($Q$1:Q26, $D$2:$D$1686)=0)*($N$3=$C$2:$C$1686)), $D$2:$D$1686),"") -> Thedford | R27: 0 | T27: =IFERROR(INDEX($Q$2:$Q$231,MATCH(ROWS($Q$2:Q27),COUNTIF($Q$2:$Q$231,"<="&$Q$2:$Q$231),0)),0) -> Campbellford | U27: 27 | V27: Cannington
A28: 27 | B28: CAN | C28: AB | D28: Hardisty | E28: 5640 | F28: Very-Cold | G28: -33 | H28: 30 | K28: 0 | L28: 24 | P28: =_xlfn.IFNA(LOOKUP(2, 1/((COUNTIF($P$1:P27, $C$2:$C$1686)=0)*($N$2=$B$2:$B$1686)), $C$2:$C$1686),"") ->  | Q28: =_xlfn.IFNA(LOOKUP(2, 1/((COUNTIF($Q$1:Q27, $D$2:$D$1686)=0)*($N$3=$C$2:$C$1686)), $D$2:$D$1686),"") -> Thamesford | R28: 0 | T28: =IFERROR(INDEX($Q$2:$Q$231,MATCH(ROWS($Q$2:Q28),COUNTIF($Q$2:$Q$231,"<="&$Q$2:$Q$231),0)),0) -> Cannington | U28: 28 | V28: Carleton Place
A29: 28 | B29: CAN | C29: AB | D29: High River | E29: 4900 | F29: Very-Cold | G29: -31 | H29: 28 | K29: 0 | L29: 23 | P29: =_xlfn.IFNA(LOOKUP(2, 1/((COUNTIF($P$1:P28, $C$2:$C$1686)=0)*($N$2=$B$2:$B$1686)), $C$2:$C$1686),"") ->  | Q29: =_xlfn.IFNA(LOOKUP(2, 1/((COUNTIF($Q$1:Q28, $D$2:$D$1686)=0)*($N$3=$C$2:$C$1686)), $D$2:$D$1686),"") -> Temagami | R29: 0 | T29: =IFERROR(INDEX($Q$2:$Q$231,MATCH(ROWS($Q$2:Q29),COUNTIF($Q$2:$Q$231,"<="&$Q$2:$Q$231),0)),0) -> Carleton Place | U29: 29 | V29: Cavan
A30: 29 | B30: CAN | C30: AB | D30: Hinton | E30: 5500 | F30: Very-Cold | G30: -34 | H30: 27 | K30: 0 | L30: 22 | P30: =_xlfn.IFNA(LOOKUP(2, 1/((COUNTIF($P$1:P29, $C$2:$C$1686)=0)*($N$2=$B$2:$B$1686)), $C$2:$C$1686),"") ->  | Q30: =_xlfn.IFNA(LOOKUP(2, 1/((COUNTIF($Q$1:Q29, $D$2:$D$1686)=0)*($N$3=$C$2:$C$1686)), $D$2:$D$1686),"") -> Tavistock | R30: 0 | T30: =IFERROR(INDEX($Q$2:$Q$231,MATCH(ROWS($Q$2:Q30),COUNTIF($Q$2:$Q$231,"<="&$Q$2:$Q$231),0)),0) -> Cavan | U30: 30 | V30: Centralia
A31: 30 | B31: CAN | C31: AB | D31: Jasper | E31: 5300 | F31: Very-Cold | G31: -31 | H31: 28 | K31: 0 | L31: 21 | P31: =_xlfn.IFNA(LOOKUP(2, 1/((COUNTIF($P$1:P30, $C$2:$C$1686)=0)*($N$2=$B$2:$B$1686)), $C$2:$C$1686),"") ->  | Q31: =_xlfn.IFNA(LOOKUP(2, 1/((COUNTIF($Q$1:Q30, $D$2:$D$1686)=0)*($N$3=$C$2:$C$1686)), $D$2:$D$1686),"") -> Sundridge | R31: 0 | T31: =IFERROR(INDEX($Q$2:$Q$231,MATCH(ROWS($Q$2:Q31),COUNTIF($Q$2:$Q$231,"<="&$Q$2:$Q$231),0)),0) -> Centralia | U31: 31 | V31: CFB Borden
A32: 31 | B32: CAN | C32: AB | D32: Keg River | E32: 6520 | F32: Subarctic | G32: -40 | H32: 28 | K32: 0 | L32: 20 | P32: =_xlfn.IFNA(LOOKUP(2, 1/((COUNTIF($P$1:P31, $C$2:$C$1686)=0)*($N$2=$B$2:$B$1686)), $C$2:$C$1686),"") ->  | Q32: =_xlfn.IFNA(LOOKUP(2, 1/((COUNTIF($Q$1:Q31, $D$2:$D$1686)=0)*($N$3=$C$2:$C$1686)), $D$2:$D$1686),"") -> Sudbury | R32: 0 | T32: =IFERROR(INDEX($Q$2:$Q$231,MATCH(ROWS($Q$2:Q32),COUNTIF($Q$2:$Q$231,"<="&$Q$2:$Q$231),0)),0) -> CFB Borden | U32: 32 | V32: Chapleau
A33: 32 | B33: CAN | C33: AB | D33: Lac la Biche | E33: 6100 | F33: Very-Cold | G33: -35 | H33: 28 | K33: 0 | L33: 19 | P33: =_xlfn.IFNA(LOOKUP(2, 1/((COUNTIF($P$1:P32, $C$2:$C$1686)=0)*($N$2=$B$2:$B$1686)), $C$2:$C$1686),"") ->  | Q33: =_xlfn.IFNA(LOOKUP(2, 1/((COUNTIF($Q$1:Q32, $D$2:$D$1686)=0)*($N$3=$C$2:$C$1686)), $D$2:$D$1686),"") -> Sturgeon Falls | R33: 0 | T33: =IFERROR(INDEX($Q$2:$Q$231,MATCH(ROWS($Q$2:Q33),COUNTIF($Q$2:$Q$231,"<="&$Q$2:$Q$231),0)),0) -> Chapleau | U33: 33 | V33: Chatham
A34: 33 | B34: CAN | C34: AB | D34: Lacombe | E34: 5500 | F34: Very-Cold | G34: -33 | H34: 28 | K34: 0 | L34: 18 | P34: =_xlfn.IFNA(LOOKUP(2, 1/((COUNTIF($P$1:P33, $C$2:$C$1686)=0)*($N$2=$B$2:$B$1686)), $C$2:$C$1686),"") ->  | Q34: =_xlfn.IFNA(LOOKUP(2, 1/((COUNTIF($Q$1:Q33, $D$2:$D$1686)=0)*($N$3=$C$2:$C$1686)), $D$2:$D$1686),"") -> Strathroy | R34: 0 | T34: =IFERROR(INDEX($Q$2:$Q$231,MATCH(ROWS($Q$2:Q34),COUNTIF($Q$2:$Q$231,"<="&$Q$2:$Q$231),0)),0) -> Chatham | U34: 34 | V34: Chesley
A35: 34 | B35: CAN | C35: AB | D35: Lethbridge | E35: 4500 | F35: Very-Cold | G35: -30 | H35: 31 | K35: 0 | L35: 17 | P35: =_xlfn.IFNA(LOOKUP(2, 1/((COUNTIF($P$1:P34, $C$2:$C$1686)=0)*($N$2=$B$2:$B$1686)), $C$2:$C$1686),"") ->  | Q35: =_xlfn.IFNA(LOOKUP(2, 1/((COUNTIF($Q$1:Q34, $D$2:$D$1686)=0)*($N$3=$C$2:$C$1686)), $D$2:$D$1686),"") -> Stratford | R35: 0 | T35: =IFERROR(INDEX($Q$2:$Q$231,MATCH(ROWS($Q$2:Q35),COUNTIF($Q$2:$Q$231,"<="&$Q$2:$Q$231),0)),0) -> Chesley | U35: 35 | V35: Clinton
A36: 35 | B36: CAN | C36: AB | D36: Manning | E36: 6300 | F36: Very-Cold | G36: -39 | H36: 27 | K36: 0 | L36: 16 | P36: =_xlfn.IFNA(LOOKUP(2, 1/((COUNTIF($P$1:P35, $C$2:$C$1686)=0)*($N$2=$B$2:$B$1686)), $C$2:$C$1686),"") ->  | Q36: =_xlfn.IFNA(LOOKUP(2, 1/((COUNTIF($Q$1:Q35, $D$2:$D$1686)=0)*($N$3=$C$2:$C$1686)), $D$2:$D$1686),"") -> Stirling | R36: 0 | T36: =IFERROR(INDEX($Q$2:$Q$231,MATCH(ROWS($Q$2:Q36),COUNTIF($Q$2:$Q$231,"<="&$Q$2:$Q$231),0)),0) -> Clinton | U36: 36 | V36: Coboconk
A37: 36 | B37: CAN | C37: AB | D37: Medicine Hat | E37: 4540 | F37: Very-Cold | G37: -31 | H37: 32 | K37: 0 | L37: 15 | P37: =_xlfn.IFNA(LOOKUP(2, 1/((COUNTIF($P$1:P36, $C$2:$C$1686)=0)*($N$2=$B$2:$B$1686)), $C$2:$C$1686),"") ->  | Q37: =_xlfn.IFNA(LOOKUP(2, 1/((COUNTIF($Q$1:Q36, $D$2:$D$1686)=0)*($N$3=$C$2:$C$1686)), $D$2:$D$1686),"") -> St. Thomas | R37: 0 | T37: =IFERROR(INDEX($Q$2:$Q$231,MATCH(ROWS($Q$2:Q37),COUNTIF($Q$2:$Q$231,"<="&$Q$2:$Q$231),0)),0) -> Coboconk | U37: 37 | V37: Cobourg
A38: 37 | B38: CAN | C38: AB | D38: Peace River | E38: 6050 | F38: Very-Cold | G38: -37 | H38: 27 | K38: 0 | L38: 14 | P38: =_xlfn.IFNA(LOOKUP(2, 1/((COUNTIF($P$1:P37, $C$2:$C$1686)=0)*($N$2=$B$2:$B$1686)), $C$2:$C$1686),"") ->  | Q38: =_xlfn.IFNA(LOOKUP(2, 1/((COUNTIF($Q$1:Q37, $D$2:$D$1686)=0)*($N$3=$C$2:$C$1686)), $D$2:$D$1686),"") -> St. Mary's | R38: 0 | T38: =IFERROR(INDEX($Q$2:$Q$231,MATCH(ROWS($Q$2:Q38),COUNTIF($Q$2:$Q$231,"<="&$Q$2:$Q$231),0)),0) -> Cobourg | U38: 38 | V38: Cochrane
A39: 38 | B39: CAN | C39: AB | D39: Pincher Creek | E39: 4740 | F39: Very-Cold | G39: -29 | H39: 29 | K39: 0 | L39: 13 | P39: =_xlfn.IFNA(LOOKUP(2, 1/((COUNTIF($P$1:P38, $C$2:$C$1686)=0)*($N$2=$B$2:$B$1686)), $C$2:$C$1686),"") ->  | Q39: =_xlfn.IFNA(LOOKUP(2, 1/((COUNTIF($Q$1:Q38, $D$2:$D$1686)=0)*($N$3=$C$2:$C$1686)), $D$2:$D$1686),"") -> St. Catharines | R39: 0 | T39: =IFERROR(INDEX($Q$2:$Q$231,MATCH(ROWS($Q$2:Q39),COUNTIF($Q$2:$Q$231,"<="&$Q$2:$Q$231),0)),0) -> Cochrane | U39: 39 | V39: Colborne
A40: 39 | B40: CAN | C40: AB | D40: Ranfurly | E40: 5700 | F40: Very-Cold | G40: -34 | H40: 29 | K40: 0 | L40: 12 | P40: =_xlfn.IFNA(LOOKUP(2, 1/((COUNTIF($P$1:P39, $C$2:$C$1686)=0)*($N$2=$B$2:$B$1686)), $C$2:$C$1686),"") ->  | Q40: =_xlfn.IFNA(LOOKUP(2, 1/((COUNTIF($Q$1:Q39, $D$2:$D$1686)=0)*($N$3=$C$2:$C$1686)), $D$2:$D$1686),"") -> Southampton | R40: 0 | T40: =IFERROR(INDEX($Q$2:$Q$231,MATCH(ROWS($Q$2:Q40),COUNTIF($Q$2:$Q$231,"<="&$Q$2:$Q$231),0)),0) -> Colborne | U40: 40 | V40: Collingwood
A41: 40 | B41: CAN | C41: AB | D41: Red Deer | E41: 5550 | F41: Very-Cold | G41: -32 | H41: 28 | K41: 0 | L41: 11 | P41: =_xlfn.IFNA(LOOKUP(2, 1/((COUNTIF($P$1:P40, $C$2:$C$1686)=0)*($N$2=$B$2:$B$1686)), $C$2:$C$1686),"") ->  | Q41: =_xlfn.IFNA(LOOKUP(2, 1/((COUNTIF($Q$1:Q40, $D$2:$D$1686)=0)*($N$3=$C$2:$C$1686)), $D$2:$D$1686),"") -> South River | R41: 0 | T41: =IFERROR(INDEX($Q$2:$Q$231,MATCH(ROWS($Q$2:Q41),COUNTIF($Q$2:$Q$231,"<="&$Q$2:$Q$231),0)),0) -> Collingwood | U41: 41 | V41: Cornwall
A42: 41 | B42: CAN | C42: AB | D42: Rocky Mountain House | E42: 5640 | F42: Very-Cold | G42: -32 | H42: 27 | K42: 0 | L42: 10 | P42: =_xlfn.IFNA(LOOKUP(2, 1/((COUNTIF($P$1:P41, $C$2:$C$1686)=0)*($N$2=$B$2:$B$1686)), $C$2:$C$1686),"") ->  | Q42: =_xlfn.IFNA(LOOKUP(2, 1/((COUNTIF($Q$1:Q41, $D$2:$D$1686)=0)*($N$3=$C$2:$C$1686)), $D$2:$D$1686),"") -> Smooth Rock Falls | R42: 0 | T42: =IFERROR(INDEX($Q$2:$Q$231,MATCH(ROWS($Q$2:Q42),COUNTIF($Q$2:$Q$231,"<="&$Q$2:$Q$231),0)),0) -> Cornwall | U42: 42 | V42: Corunna
A43: 42 | B43: CAN | C43: AB | D43: Slave Lake | E43: 5850 | F43: Very-Cold | G43: -35 | H43: 26 | K43: 0 | L43: 9 | P43: =_xlfn.IFNA(LOOKUP(2, 1/((COUNTIF($P$1:P42, $C$2:$C$1686)=0)*($N$2=$B$2:$B$1686)), $C$2:$C$1686),"") ->  | Q43: =_xlfn.IFNA(LOOKUP(2, 1/((COUNTIF($Q$1:Q42, $D$2:$D$1686)=0)*($N$3=$C$2:$C$1686)), $D$2:$D$1686),"") -> Smithville | R43: 0 | T43: =IFERROR(INDEX($Q$2:$Q$231,MATCH(ROWS($Q$2:Q43),COUNTIF($Q$2:$Q$231,"<="&$Q$2:$Q$231),0)),0) -> Corunna | U43: 43 | V43: Deep River
A44: 43 | B44: CAN | C44: AB | D44: Stettler | E44: 5300 | F44: Very-Cold | G44: -32 | H44: 30 | K44: 0 | L44: 8 | P44: =_xlfn.IFNA(LOOKUP(2, 1/((COUNTIF($P$1:P43, $C$2:$C$1686)=0)*($N$2=$B$2:$B$1686)), $C$2:$C$1686),"") ->  | Q44: =_xlfn.IFNA(LOOKUP(2, 1/((COUNTIF($Q$1:Q43, $D$2:$D$1686)=0)*($N$3=$C$2:$C$1686)), $D$2:$D$1686),"") -> Smiths Falls | R44: 0 | T44: =IFERROR(INDEX($Q$2:$Q$231,MATCH(ROWS($Q$2:Q44),COUNTIF($Q$2:$Q$231,"<="&$Q$2:$Q$231),0)),0) -> Deep River | U44: 44 | V44: Deseronto
A45: 44 | B45: CAN | C45: AB | D45: Stony Plain | E45: 5300 | F45: Very-Cold | G45: -32 | H45: 28 | K45: 0 | L45: 7 | P45: =_xlfn.IFNA(LOOKUP(2, 1/((COUNTIF($P$1:P44, $C$2:$C$1686)=0)*($N$2=$B$2:$B$1686)), $C$2:$C$1686),"") ->  | Q45: =_xlfn.IFNA(LOOKUP(2, 1/((COUNTIF($Q$1:Q44, $D$2:$D$1686)=0)*($N$3=$C$2:$C$1686)), $D$2:$D$1686),"") -> Sioux Lookout | R45: 0 | T45: =IFERROR(INDEX($Q$2:$Q$231,MATCH(ROWS($Q$2:Q45),COUNTIF($Q$2:$Q$231,"<="&$Q$2:$Q$231),0)),0) -> Deseronto | U45: 45 | V45: Dorchester
A46: 45 | B46: CAN | C46: AB | D46: Suffield | E46: 4770 | F46: Very-Cold | G46: -31 | H46: 32 | K46: 0 | L46: 6 | P46: =_xlfn.IFNA(LOOKUP(2, 1/((COUNTIF($P$1:P45, $C$2:$C$1686)=0)*($N$2=$B$2:$B$1686)), $C$2:$C$1686),"") ->  | Q46: =_xlfn.IFNA(LOOKUP(2, 1/((COUNTIF($Q$1:Q45, $D$2:$D$1686)=0)*($N$3=$C$2:$C$1686)), $D$2:$D$1686),"") -> Simcoe | R46: 0 | T46: =IFERROR(INDEX($Q$2:$Q$231,MATCH(ROWS($Q$2:Q46),COUNTIF($Q$2:$Q$231,"<="&$Q$2:$Q$231),0)),0) -> Dorchester | U46: 46 | V46: Dorion
A47: 46 | B47: CAN | C47: AB | D47: Taber | E47: 4580 | F47: Very-Cold | G47: -31 | H47: 31 | K47: 0 | L47: 5 | P47: =_xlfn.IFNA(LOOKUP(2, 1/((COUNTIF($P$1:P46, $C$2:$C$1686)=0)*($N$2=$B$2:$B$1686)), $C$2:$C$1686),"") ->  | Q47: =_xlfn.IFNA(LOOKUP(2, 1/((COUNTIF($Q$1:Q46, $D$2:$D$1686)=0)*($N$3=$C$2:$C$1686)), $D$2:$D$1686),"") -> Shelburne | R47: 0 | T47: =IFERROR(INDEX($Q$2:$Q$231,MATCH(ROWS($Q$2:Q47),COUNTIF($Q$2:$Q$231,"<="&$Q$2:$Q$231),0)),0) -> Dorion | U47: 47 | V47: Dresden
A48: 47 | B48: CAN | C48: AB | D48: Turner Valley | E48: 5220 | F48: Very-Cold | G48: -31 | H48: 28 | K48: 0 | L48: 4 | P48: =_xlfn.IFNA(LOOKUP(2, 1/((COUNTIF($P$1:P47, $C$2:$C$1686)=0)*($N$2=$B$2:$B$1686)), $C$2:$C$1686),"") ->  | Q48: =_xlfn.IFNA(LOOKUP(2, 1/((COUNTIF($Q$1:Q47, $D$2:$D$1686)=0)*($N$3=$C$2:$C$1686)), $D$2:$D$1686),"") -> Seaforth | R48: 0 | T48: =IFERROR(INDEX($Q$2:$Q$231,MATCH(ROWS($Q$2:Q48),COUNTIF($Q$2:$Q$231,"<="&$Q$2:$Q$231),0)),0) -> Dresden | U48: 48 | V48: Dryden
A49: 48 | B49: CAN | C49: AB | D49: Valleyview | E49: 5600 | F49: Very-Cold | G49: -37 | H49: 27 | K49: 0 | L49: 3 | P49: =_xlfn.IFNA(LOOKUP(2, 1/((COUNTIF($P$1:P48, $C$2:$C$1686)=0)*($N$2=$B$2:$B$1686)), $C$2:$C$1686),"") ->  | Q49: =_xlfn.IFNA(LOOKUP(2, 1/((COUNTIF($Q$1:Q48, $D$2:$D$1686)=0)*($N$3=$C$2:$C$1686)), $D$2:$D$1686),"") -> Schreiber | R49: 0 | T49: =IFERROR(INDEX($Q$2:$Q$231,MATCH(ROWS($Q$2:Q49),COUNTIF($Q$2:$Q$231,"<="&$Q$2:$Q$231),0)),0) -> Dryden | U49: 49 | V49: Dundalk
A50: 49 | B50: CAN | C50: AB | D50: Vegreville | E50: 5780 | F50: Very-Cold | G50: -34 | H50: 29 | K50: 0 | L50: 2 | P50: =_xlfn.IFNA(LOOKUP(2, 1/((COUNTIF($P$1:P49, $C$2:$C$1686)=0)*($N$2=$B$2:$B$1686)), $C$2:$C$1686),"") ->  | Q50: =_xlfn.IFNA(LOOKUP(2, 1/((COUNTIF($Q$1:Q49, $D$2:$D$1686)=0)*($N$3=$C$2:$C$1686)), $D$2:$D$1686),"") -> Scarborough | R50: 0 | T50: =IFERROR(INDEX($Q$2:$Q$231,MATCH(ROWS($Q$2:Q50),COUNTIF($Q$2:$Q$231,"<="&$Q$2:$Q$231),0)),0) -> Dundalk | U50: 50 | V50: Dunnville
A51: 50 | B51: CAN | C51: AB | D51: Vermilion | E51: 5740 | F51: Very-Cold | G51: -35 | H51: 29 | K51: 0 | L51: =L50-1 -> 1 | P51: =_xlfn.IFNA(LOOKUP(2, 1/((COUNTIF($P$1:P50, $C$2:$C$1686)=0)*($N$2=$B$2:$B$1686)), $C$2:$C$1686),"") ->  | Q51: =_xlfn.IFNA(LOOKUP(2, 1/((COUNTIF($Q$1:Q50, $D$2:$D$1686)=0)*($N$3=$C$2:$C$1686)), $D$2:$D$1686),"") -> Sault Ste. Marie | R51: 0 | T51: =IFERROR(INDEX($Q$2:$Q$231,MATCH(ROWS($Q$2:Q51),COUNTIF($Q$2:$Q$231,"<="&$Q$2:$Q$231),0)),0) -> Dunnville | U51: 51 | V51: Durham
A52: 51 | B52: CAN | C52: AB | D52: Wagner | E52: 5850 | F52: Very-Cold | G52: -35 | H52: 26 | P52: =_xlfn.IFNA(LOOKUP(2, 1/((COUNTIF($P$1:P51, $C$2:$C$1686)=0)*($N$2=$B$2:$B$1686)), $C$2:$C$1686),"") ->  | Q52: =_xlfn.IFNA(LOOKUP(2, 1/((COUNTIF($Q$1:Q51, $D$2:$D$1686)=0)*($N$3=$C$2:$C$1686)), $D$2:$D$1686),"") -> Sarnia | T52: =IFERROR(INDEX($Q$2:$Q$231,MATCH(ROWS($Q$2:Q52),COUNTIF($Q$2:$Q$231,"<="&$Q$2:$Q$231),0)),0) -> Durham | U52: 52 | V52: Dutton
A53: 52 | B53: CAN | C53: AB | D53: Wainwright | E53: 5700 | F53: Very-Cold | G53: -33 | H53: 29 | P53: =_xlfn.IFNA(LOOKUP(2, 1/((COUNTIF($P$1:P52, $C$2:$C$1686)=0)*($N$2=$B$2:$B$1686)), $C$2:$C$1686),"") ->  | Q53: =_xlfn.IFNA(LOOKUP(2, 1/((COUNTIF($Q$1:Q52, $D$2:$D$1686)=0)*($N$3=$C$2:$C$1686)), $D$2:$D$1686),"") -> Rockland | T53: =IFERROR(INDEX($Q$2:$Q$231,MATCH(ROWS($Q$2:Q53),COUNTIF($Q$2:$Q$231,"<="&$Q$2:$Q$231),0)),0) -> Dutton | U53: 53 | V53: Earlton
A54: 53 | B54: CAN | C54: AB | D54: Wetaskiwin | E54: 5500 | F54: Very-Cold | G54: -33 | H54: 29 | P54: =_xlfn.IFNA(LOOKUP(2, 1/((COUNTIF($P$1:P53, $C$2:$C$1686)=0)*($N$2=$B$2:$B$1686)), $C$2:$C$1686),"") ->  | Q54: =_xlfn.IFNA(LOOKUP(2, 1/((COUNTIF($Q$1:Q53, $D$2:$D$1686)=0)*($N$3=$C$2:$C$1686)), $D$2:$D$1686),"") -> Richmond Hill | T54: =IFERROR(INDEX($Q$2:$Q$231,MATCH(ROWS($Q$2:Q54),COUNTIF($Q$2:$Q$231,"<="&$Q$2:$Q$231),0)),0) -> Earlton | U54: 54 | V54: Edison
A55: 54 | B55: CAN | C55: AB | D55: Whitecourt | E55: 5650 | F55: Very-Cold | G55: -33 | H55: 27 | P55: =_xlfn.IFNA(LOOKUP(2, 1/((COUNTIF($P$1:P54, $C$2:$C$1686)=0)*($N$2=$B$2:$B$1686)), $C$2:$C$1686),"") ->  | Q55: =_xlfn.IFNA(LOOKUP(2, 1/((COUNTIF($Q$1:Q54, $D$2:$D$1686)=0)*($N$3=$C$2:$C$1686)), $D$2:$D$1686),"") -> Renfrew | T55: =IFERROR(INDEX($Q$2:$Q$231,MATCH(ROWS($Q$2:Q55),COUNTIF($Q$2:$Q$231,"<="&$Q$2:$Q$231),0)),0) -> Edison | U55: 55 | V55: Elliot Lake
A56: 55 | B56: CAN | C56: AB | D56: Wimborne | E56: 5310 | F56: Very-Cold | G56: -31 | H56: 29 | P56: =_xlfn.IFNA(LOOKUP(2, 1/((COUNTIF($P$1:P55, $C$2:$C$1686)=0)*($N$2=$B$2:$B$1686)), $C$2:$C$1686),"") ->  | Q56: =_xlfn.IFNA(LOOKUP(2, 1/((COUNTIF($Q$1:Q55, $D$2:$D$1686)=0)*($N$3=$C$2:$C$1686)), $D$2:$D$1686),"") -> Red Lake | T56: =IFERROR(INDEX($Q$2:$Q$231,MATCH(ROWS($Q$2:Q56),COUNTIF($Q$2:$Q$231,"<="&$Q$2:$Q$231),0)),0) -> Elliot Lake | U56: 56 | V56: Elmvale
A57: 56 | B57: CAN | C57: BC | D57: 100 Mile House | E57: 5030 | F57: Very-Cold | G57: -30 | H57: 29 | P57: =_xlfn.IFNA(LOOKUP(2, 1/((COUNTIF($P$1:P56, $C$2:$C$1686)=0)*($N$2=$B$2:$B$1686)), $C$2:$C$1686),"") ->  | Q57: =_xlfn.IFNA(LOOKUP(2, 1/((COUNTIF($Q$1:Q56, $D$2:$D$1686)=0)*($N$3=$C$2:$C$1686)), $D$2:$D$1686),"") -> Rayside-Balfour (Chelmsford) | T57: =IFERROR(INDEX($Q$2:$Q$231,MATCH(ROWS($Q$2:Q57),COUNTIF($Q$2:$Q$231,"<="&$Q$2:$Q$231),0)),0) -> Elmvale | U57: 57 | V57: Embro
A58: 57 | B58: CAN | C58: BC | D58: Abbotsford | E58: 2860 | F58: Marine | G58: -8 | H58: 29 | P58: =_xlfn.IFNA(LOOKUP(2, 1/((COUNTIF($P$1:P57, $C$2:$C$1686)=0)*($N$2=$B$2:$B$1686)), $C$2:$C$1686),"") ->  | Q58: =_xlfn.IFNA(LOOKUP(2, 1/((COUNTIF($Q$1:Q57, $D$2:$D$1686)=0)*($N$3=$C$2:$C$1686)), $D$2:$D$1686),"") -> Raith | T58: =IFERROR(INDEX($Q$2:$Q$231,MATCH(ROWS($Q$2:Q58),COUNTIF($Q$2:$Q$231,"<="&$Q$2:$Q$231),0)),0) -> Embro | U58: 58 | V58: Englehart
A59: 58 | B59: CAN | C59: BC | D59: Agassiz | E59: 2750 | F59: Cold-Humid | G59: -9 | H59: 31 | P59: =_xlfn.IFNA(LOOKUP(2, 1/((COUNTIF($P$1:P58, $C$2:$C$1686)=0)*($N$2=$B$2:$B$1686)), $C$2:$C$1686),"") ->  | Q59: =_xlfn.IFNA(LOOKUP(2, 1/((COUNTIF($Q$1:Q58, $D$2:$D$1686)=0)*($N$3=$C$2:$C$1686)), $D$2:$D$1686),"") -> Princeton | T59: =IFERROR(INDEX($Q$2:$Q$231,MATCH(ROWS($Q$2:Q59),COUNTIF($Q$2:$Q$231,"<="&$Q$2:$Q$231),0)),0) -> Englehart | U59: 59 | V59: Espanola
A60: 59 | B60: CAN | C60: BC | D60: Alberni | E60: 3100 | F60: Marine | G60: -5 | H60: 31 | P60: =_xlfn.IFNA(LOOKUP(2, 1/((COUNTIF($P$1:P59, $C$2:$C$1686)=0)*($N$2=$B$2:$B$1686)), $C$2:$C$1686),"") ->  | Q60: =_xlfn.IFNA(LOOKUP(2, 1/((COUNTIF($Q$1:Q59, $D$2:$D$1686)=0)*($N$3=$C$2:$C$1686)), $D$2:$D$1686),"") -> Prescott | T60: =IFERROR(INDEX($Q$2:$Q$231,MATCH(ROWS($Q$2:Q60),COUNTIF($Q$2:$Q$231,"<="&$Q$2:$Q$231),0)),0) -> Espanola | U60: 60 | V60: Etobicoke
A61: 60 | B61: CAN | C61: BC | D61: Ashcroft | E61: 3700 | F61: Cold-Dry | G61: -24 | H61: 34 | P61: =_xlfn.IFNA(LOOKUP(2, 1/((COUNTIF($P$1:P60, $C$2:$C$1686)=0)*($N$2=$B$2:$B$1686)), $C$2:$C$1686),"") ->  | Q61: =_xlfn.IFNA(LOOKUP(2, 1/((COUNTIF($Q$1:Q60, $D$2:$D$1686)=0)*($N$3=$C$2:$C$1686)), $D$2:$D$1686),"") -> Port Stanley | T61: =IFERROR(INDEX($Q$2:$Q$231,MATCH(ROWS($Q$2:Q61),COUNTIF($Q$2:$Q$231,"<="&$Q$2:$Q$231),0)),0) -> Etobicoke | U61: 61 | V61: Exeter
A62: 61 | B62: CAN | C62: BC | D62: Bamfield | E62: 3080 | F62: Marine | G62: -2 | H62: 23 | P62: =_xlfn.IFNA(LOOKUP(2, 1/((COUNTIF($P$1:P61, $C$2:$C$1686)=0)*($N$2=$B$2:$B$1686)), $C$2:$C$1686),"") ->  | Q62: =_xlfn.IFNA(LOOKUP(2, 1/((COUNTIF($Q$1:Q61, $D$2:$D$1686)=0)*($N$3=$C$2:$C$1686)), $D$2:$D$1686),"") -> Port Perry | T62: =IFERROR(INDEX($Q$2:$Q$231,MATCH(ROWS($Q$2:Q62),COUNTIF($Q$2:$Q$231,"<="&$Q$2:$Q$231),0)),0) -> Exeter | U62: 62 | V62: Fenelon Falls
A63: 62 | B63: CAN | C63: BC | D63: Beatton River | E63: 6300 | F63: Very-Cold | G63: -37 | H63: 26 | P63: =_xlfn.IFNA(LOOKUP(2, 1/((COUNTIF($P$1:P62, $C$2:$C$1686)=0)*($N$2=$B$2:$B$1686)), $C$2:$C$1686),"") ->  | Q63: =_xlfn.IFNA(LOOKUP(2, 1/((COUNTIF($Q$1:Q62, $D$2:$D$1686)=0)*($N$3=$C$2:$C$1686)), $D$2:$D$1686),"") -> Port Hope | T63: =IFERROR(INDEX($Q$2:$Q$231,MATCH(ROWS($Q$2:Q63),COUNTIF($Q$2:$Q$231,"<="&$Q$2:$Q$231),0)),0) -> Fenelon Falls | U63: 63 | V63: Fergus
A64: 63 | B64: CAN | C64: BC | D64: Bella Bella | E64: 3180 | F64: Marine | G64: -5 | H64: 23 | P64: =_xlfn.IFNA(LOOKUP(2, 1/((COUNTIF($P$1:P63, $C$2:$C$1686)=0)*($N$2=$B$2:$B$1686)), $C$2:$C$1686),"") ->  | Q64: =_xlfn.IFNA(LOOKUP(2, 1/((COUNTIF($Q$1:Q63, $D$2:$D$1686)=0)*($N$3=$C$2:$C$1686)), $D$2:$D$1686),"") -> Port Elgin | T64: =IFERROR(INDEX($Q$2:$Q$231,MATCH(ROWS($Q$2:Q64),COUNTIF($Q$2:$Q$231,"<="&$Q$2:$Q$231),0)),0) -> Fergus | U64: 64 | V64: Forest
A65: 64 | B65: CAN | C65: BC | D65: Bella Coola | E65: 3560 | F65: Cold-Humid | G65: -14 | H65: 27 | P65: =_xlfn.IFNA(LOOKUP(2, 1/((COUNTIF($P$1:P64, $C$2:$C$1686)=0)*($N$2=$B$2:$B$1686)), $C$2:$C$1686),"") ->  | Q65: =_xlfn.IFNA(LOOKUP(2, 1/((COUNTIF($Q$1:Q64, $D$2:$D$1686)=0)*($N$3=$C$2:$C$1686)), $D$2:$D$1686),"") -> Port Colborne | T65: =IFERROR(INDEX($Q$2:$Q$231,MATCH(ROWS($Q$2:Q65),COUNTIF($Q$2:$Q$231,"<="&$Q$2:$Q$231),0)),0) -> Forest | U65: 65 | V65: Fort Erie
A66: 65 | B66: CAN | C66: BC | D66: Burnaby (Simon Fraser Univ.) | E66: 3100 | F66: Marine | G66: -7 | H66: 25 | Q66: =_xlfn.IFNA(LOOKUP(2, 1/((COUNTIF($Q$1:Q65, $D$2:$D$1686)=0)*($N$3=$C$2:$C$1686)), $D$2:$D$1686),"") -> Port Burwell | T66: =IFERROR(INDEX($Q$2:$Q$231,MATCH(ROWS($Q$2:Q66),COUNTIF($Q$2:$Q$231,"<="&$Q$2:$Q$231),0)),0) -> Fort Erie | U66: 66 | V66: Fort Erie (Ridgeway)
A67: 66 | B67: CAN | C67: BC | D67: Burns Lake | E67: 5450 | F67: Very-Cold | G67: -31 | H67: 26 | Q67: =_xlfn.IFNA(LOOKUP(2, 1/((COUNTIF($Q$1:Q66, $D$2:$D$1686)=0)*($N$3=$C$2:$C$1686)), $D$2:$D$1686),"") -> Point Alexander | T67: =IFERROR(INDEX($Q$2:$Q$231,MATCH(ROWS($Q$2:Q67),COUNTIF($Q$2:$Q$231,"<="&$Q$2:$Q$231),0)),0) -> Fort Erie (Ridgeway) | U67: 67 | V67: =IFERROR(INDEX($T$2:$T$231,U67,1),"") -> Fort Frances
A68: 67 | B68: CAN | C68: BC | D68: Cache Creek | E68: 3700 | F68: Cold-Dry | G68: -24 | H68: 34 | Q68: =_xlfn.IFNA(LOOKUP(2, 1/((COUNTIF($Q$1:Q67, $D$2:$D$1686)=0)*($N$3=$C$2:$C$1686)), $D$2:$D$1686),"") -> Plattsville | T68: =IFERROR(INDEX($Q$2:$Q$231,MATCH(ROWS($Q$2:Q68),COUNTIF($Q$2:$Q$231,"<="&$Q$2:$Q$231),0)),0) -> Fort Frances | U68: =U67+1 -> 68 | V68: Gananoque
A69: 68 | B69: CAN | C69: BC | D69: Campbell River | E69: 3000 | F69: Marine | G69: -5 | H69: 26 | Q69: =_xlfn.IFNA(LOOKUP(2, 1/((COUNTIF($Q$1:Q68, $D$2:$D$1686)=0)*($N$3=$C$2:$C$1686)), $D$2:$D$1686),"") -> Picton | T69: =IFERROR(INDEX($Q$2:$Q$231,MATCH(ROWS($Q$2:Q69),COUNTIF($Q$2:$Q$231,"<="&$Q$2:$Q$231),0)),0) -> Gananoque | U69: 69 | V69: Geraldton
A70: 69 | B70: CAN | C70: BC | D70: Carmi | E70: 4750 | F70: Very-Cold | G70: -24 | H70: 31 | Q70: =_xlfn.IFNA(LOOKUP(2, 1/((COUNTIF($Q$1:Q69, $D$2:$D$1686)=0)*($N$3=$C$2:$C$1686)), $D$2:$D$1686),"") -> Pickering (Dunbarton) | T70: =IFERROR(INDEX($Q$2:$Q$231,MATCH(ROWS($Q$2:Q70),COUNTIF($Q$2:$Q$231,"<="&$Q$2:$Q$231),0)),0) -> Geraldton | U70: 70 | V70: Glencoe
A71: 70 | B71: CAN | C71: BC | D71: Castlegar | E71: 3580 | F71: Cold-Humid | G71: -18 | H71: 32 | Q71: =_xlfn.IFNA(LOOKUP(2, 1/((COUNTIF($Q$1:Q70, $D$2:$D$1686)=0)*($N$3=$C$2:$C$1686)), $D$2:$D$1686),"") -> Petrolia | T71: =IFERROR(INDEX($Q$2:$Q$231,MATCH(ROWS($Q$2:Q71),COUNTIF($Q$2:$Q$231,"<="&$Q$2:$Q$231),0)),0) -> Glencoe | U71: 71 | V71: Goderich
A72: 71 | B72: CAN | C72: BC | D72: Chetwynd | E72: 5500 | F72: Very-Cold | G72: -35 | H72: 27 | Q72: =_xlfn.IFNA(LOOKUP(2, 1/((COUNTIF($Q$1:Q71, $D$2:$D$1686)=0)*($N$3=$C$2:$C$1686)), $D$2:$D$1686),"") -> Peterborough | T72: =IFERROR(INDEX($Q$2:$Q$231,MATCH(ROWS($Q$2:Q72),COUNTIF($Q$2:$Q$231,"<="&$Q$2:$Q$231),0)),0) -> Goderich | U72: 72 | V72: Gore Bay
A73: 72 | B73: CAN | C73: BC | D73: Chilliwack | E73: 2780 | F73: Cold-Humid | G73: -9 | H73: 30 | Q73: =_xlfn.IFNA(LOOKUP(2, 1/((COUNTIF($Q$1:Q72, $D$2:$D$1686)=0)*($N$3=$C$2:$C$1686)), $D$2:$D$1686),"") -> Petawawa | T73: =IFERROR(INDEX($Q$2:$Q$231,MATCH(ROWS($Q$2:Q73),COUNTIF($Q$2:$Q$231,"<="&$Q$2:$Q$231),0)),0) -> Gore Bay | U73: 73 | V73: Graham
A74: 73 | B74: CAN | C74: BC | D74: Cloverdale | E74: 2700 | F74: Marine | G74: -8 | H74: 29 | Q74: =_xlfn.IFNA(LOOKUP(2, 1/((COUNTIF($Q$1:Q73, $D$2:$D$1686)=0)*($N$3=$C$2:$C$1686)), $D$2:$D$1686),"") -> Perth | T74: =IFERROR(INDEX($Q$2:$Q$231,MATCH(ROWS($Q$2:Q74),COUNTIF($Q$2:$Q$231,"<="&$Q$2:$Q$231),0)),0) -> Graham | U74: 74 | V74: Gravenhurst (Muskoka Airport)
A75: 74 | B75: CAN | C75: BC | D75: Comox | E75: 3100 | F75: Marine | G75: -7 | H75: 27 | Q75: =_xlfn.IFNA(LOOKUP(2, 1/((COUNTIF($Q$1:Q74, $D$2:$D$1686)=0)*($N$3=$C$2:$C$1686)), $D$2:$D$1686),"") -> Penetanguishene | T75: =IFERROR(INDEX($Q$2:$Q$231,MATCH(ROWS($Q$2:Q75),COUNTIF($Q$2:$Q$231,"<="&$Q$2:$Q$231),0)),0) -> Gravenhurst (Muskoka Airport) | U75: 75 | V75: Grimsby
A76: 75 | B76: CAN | C76: BC | D76: Courtenay | E76: 3100 | F76: Marine | G76: -7 | H76: 28 | Q76: =_xlfn.IFNA(LOOKUP(2, 1/((COUNTIF($Q$1:Q75, $D$2:$D$1686)=0)*($N$3=$C$2:$C$1686)), $D$2:$D$1686),"") -> Pembroke | T76: =IFERROR(INDEX($Q$2:$Q$231,MATCH(ROWS($Q$2:Q76),COUNTIF($Q$2:$Q$231,"<="&$Q$2:$Q$231),0)),0) -> Grimsby | U76: 76 | V76: Guelph
A77: 76 | B77: CAN | C77: BC | D77: Cranbrook | E77: 4400 | F77: Cold-Dry | G77: -26 | H77: 32 | Q77: =_xlfn.IFNA(LOOKUP(2, 1/((COUNTIF($Q$1:Q76, $D$2:$D$1686)=0)*($N$3=$C$2:$C$1686)), $D$2:$D$1686),"") -> Pelham (Fonthill) | T77: =IFERROR(INDEX($Q$2:$Q$231,MATCH(ROWS($Q$2:Q77),COUNTIF($Q$2:$Q$231,"<="&$Q$2:$Q$231),0)),0) -> Guelph | U77: 77 | V77: Guthrie
A78: 77 | B78: CAN | C78: BC | D78: Crescent Valley | E78: 3650 | F78: Cold-Humid | G78: -18 | H78: 31 | Q78: =_xlfn.IFNA(LOOKUP(2, 1/((COUNTIF($Q$1:Q77, $D$2:$D$1686)=0)*($N$3=$C$2:$C$1686)), $D$2:$D$1686),"") -> Parry Sound | T78: =IFERROR(INDEX($Q$2:$Q$231,MATCH(ROWS($Q$2:Q78),COUNTIF($Q$2:$Q$231,"<="&$Q$2:$Q$231),0)),0) -> Guthrie | U78: 78 | V78: Haileybury
A79: 78 | B79: CAN | C79: BC | D79: Crofton | E79: 2880 | F79: Marine | G79: -4 | H79: 28 | Q79: =_xlfn.IFNA(LOOKUP(2, 1/((COUNTIF($Q$1:Q78, $D$2:$D$1686)=0)*($N$3=$C$2:$C$1686)), $D$2:$D$1686),"") -> Parkhill | T79: =IFERROR(INDEX($Q$2:$Q$231,MATCH(ROWS($Q$2:Q79),COUNTIF($Q$2:$Q$231,"<="&$Q$2:$Q$231),0)),0) -> Haileybury | U79: 79 | V79: Haldimand (Caledonia)
A80: 79 | B80: CAN | C80: BC | D80: Dawson Creek | E80: 5900 | F80: Very-Cold | G80: -38 | H80: 27 | Q80: =_xlfn.IFNA(LOOKUP(2, 1/((COUNTIF($Q$1:Q79, $D$2:$D$1686)=0)*($N$3=$C$2:$C$1686)), $D$2:$D$1686),"") -> Paris | T80: =IFERROR(INDEX($Q$2:$Q$231,MATCH(ROWS($Q$2:Q80),COUNTIF($Q$2:$Q$231,"<="&$Q$2:$Q$231),0)),0) -> Haldimand (Caledonia) | U80: 80 | V80: Haldimand (Hagersville)
A81: 80 | B81: CAN | C81: BC | D81: Dease Lake | E81: 6730 | F81: Subarctic | G81: -37 | H81: 24 | Q81: =_xlfn.IFNA(LOOKUP(2, 1/((COUNTIF($Q$1:Q80, $D$2:$D$1686)=0)*($N$3=$C$2:$C$1686)), $D$2:$D$1686),"") -> Pagwa River | T81: =IFERROR(INDEX($Q$2:$Q$231,MATCH(ROWS($Q$2:Q81),COUNTIF($Q$2:$Q$231,"<="&$Q$2:$Q$231),0)),0) -> Haldimand (Hagersville) | U81: 81 | V81: Haliburton
A82: 81 | B82: CAN | C82: BC | D82: Dog Creek | E82: 4800 | F82: Very-Cold | G82: -28 | H82: 29 | Q82: =_xlfn.IFNA(LOOKUP(2, 1/((COUNTIF($Q$1:Q81, $D$2:$D$1686)=0)*($N$3=$C$2:$C$1686)), $D$2:$D$1686),"") -> Owen Sound | T82: =IFERROR(INDEX($Q$2:$Q$231,MATCH(ROWS($Q$2:Q82),COUNTIF($Q$2:$Q$231,"<="&$Q$2:$Q$231),0)),0) -> Haliburton | U82: 82 | V82: Halton Hills (Georgetown)
A83: 82 | B83: CAN | C83: BC | D83: Duncan | E83: 2980 | F83: Marine | G83: -6 | H83: 28 | Q83: =_xlfn.IFNA(LOOKUP(2, 1/((COUNTIF($Q$1:Q82, $D$2:$D$1686)=0)*($N$3=$C$2:$C$1686)), $D$2:$D$1686),"") -> Ottawa (Orleans) | T83: =IFERROR(INDEX($Q$2:$Q$231,MATCH(ROWS($Q$2:Q83),COUNTIF($Q$2:$Q$231,"<="&$Q$2:$Q$231),0)),0) -> Halton Hills (Georgetown) | U83: 83 | V83: Hamilton
A84: 83 | B84: CAN | C84: BC | D84: Elko | E84: 4600 | F84: Very-Cold | G84: -28 | H84: 30 | Q84: =_xlfn.IFNA(LOOKUP(2, 1/((COUNTIF($Q$1:Q83, $D$2:$D$1686)=0)*($N$3=$C$2:$C$1686)), $D$2:$D$1686),"") -> Ottawa (M-C Int'l Airport) | T84: =IFERROR(INDEX($Q$2:$Q$231,MATCH(ROWS($Q$2:Q84),COUNTIF($Q$2:$Q$231,"<="&$Q$2:$Q$231),0)),0) -> Hamilton | U84: 84 | V84: Hanover
A85: 84 | B85: CAN | C85: BC | D85: Fernie | E85: 4750 | F85: Very-Cold | G85: -27 | H85: 30 | Q85: =_xlfn.IFNA(LOOKUP(2, 1/((COUNTIF($Q$1:Q84, $D$2:$D$1686)=0)*($N$3=$C$2:$C$1686)), $D$2:$D$1686),"") -> Ottawa (Kanata) | T85: =IFERROR(INDEX($Q$2:$Q$231,MATCH(ROWS($Q$2:Q85),COUNTIF($Q$2:$Q$231,"<="&$Q$2:$Q$231),0)),0) -> Hanover | U85: 85 | V85: Hastings
A86: 85 | B86: CAN | C86: BC | D86: Fort Nelson | E86: 6710 | F86: Subarctic | G86: -39 | H86: 28 | Q86: =_xlfn.IFNA(LOOKUP(2, 1/((COUNTIF($Q$1:Q85, $D$2:$D$1686)=0)*($N$3=$C$2:$C$1686)), $D$2:$D$1686),"") -> Ottawa (city hall) | T86: =IFERROR(INDEX($Q$2:$Q$231,MATCH(ROWS($Q$2:Q86),COUNTIF($Q$2:$Q$231,"<="&$Q$2:$Q$231),0)),0) -> Hastings | U86: 86 | V86: Hawkesbury
A87: 86 | B87: CAN | C87: BC | D87: Fort St. John | E87: 5750 | F87: Very-Cold | G87: -35 | H87: 26 | Q87: =_xlfn.IFNA(LOOKUP(2, 1/((COUNTIF($Q$1:Q86, $D$2:$D$1686)=0)*($N$3=$C$2:$C$1686)), $D$2:$D$1686),"") -> Ottawa (Barrhaven) | T87: =IFERROR(INDEX($Q$2:$Q$231,MATCH(ROWS($Q$2:Q87),COUNTIF($Q$2:$Q$231,"<="&$Q$2:$Q$231),0)),0) -> Hawkesbury | U87: 87 | V87: Hearst
A88: 87 | B88: CAN | C88: BC | D88: Glacier | E88: 5800 | F88: Very-Cold | G88: -27 | H88: 27 | Q88: =_xlfn.IFNA(LOOKUP(2, 1/((COUNTIF($Q$1:Q87, $D$2:$D$1686)=0)*($N$3=$C$2:$C$1686)), $D$2:$D$1686),"") -> Oshawa | T88: =IFERROR(INDEX($Q$2:$Q$231,MATCH(ROWS($Q$2:Q88),COUNTIF($Q$2:$Q$231,"<="&$Q$2:$Q$231),0)),0) -> Hearst | U88: 88 | V88: Honey Harbour
A89: 88 | B89: CAN | C89: BC | D89: Gold River | E89: 3230 | F89: Marine | G89: -8 | H89: 31 | Q89: =_xlfn.IFNA(LOOKUP(2, 1/((COUNTIF($Q$1:Q88, $D$2:$D$1686)=0)*($N$3=$C$2:$C$1686)), $D$2:$D$1686),"") -> Orillia | T89: =IFERROR(INDEX($Q$2:$Q$231,MATCH(ROWS($Q$2:Q89),COUNTIF($Q$2:$Q$231,"<="&$Q$2:$Q$231),0)),0) -> Honey Harbour | U89: 89 | V89: Hornepayne
A90: 89 | B90: CAN | C90: BC | D90: Golden | E90: 4750 | F90: Very-Cold | G90: -27 | H90: 30 | Q90: =_xlfn.IFNA(LOOKUP(2, 1/((COUNTIF($Q$1:Q89, $D$2:$D$1686)=0)*($N$3=$C$2:$C$1686)), $D$2:$D$1686),"") -> Orangeville | T90: =IFERROR(INDEX($Q$2:$Q$231,MATCH(ROWS($Q$2:Q90),COUNTIF($Q$2:$Q$231,"<="&$Q$2:$Q$231),0)),0) -> Hornepayne | U90: 90 | V90: Huntsville
A91: 90 | B91: CAN | C91: BC | D91: Grand Forks | E91: 3820 | F91: Cold-Dry | G91: -19 | H91: 34 | Q91: =_xlfn.IFNA(LOOKUP(2, 1/((COUNTIF($Q$1:Q90, $D$2:$D$1686)=0)*($N$3=$C$2:$C$1686)), $D$2:$D$1686),"") -> Oakville | T91: =IFERROR(INDEX($Q$2:$Q$231,MATCH(ROWS($Q$2:Q91),COUNTIF($Q$2:$Q$231,"<="&$Q$2:$Q$231),0)),0) -> Huntsville | U91: 91 | V91: Ingersoll
A92: 91 | B92: CAN | C92: BC | D92: Greenwood | E92: 4100 | F92: Cold-Dry | G92: -20 | H92: 34 | Q92: =_xlfn.IFNA(LOOKUP(2, 1/((COUNTIF($Q$1:Q91, $D$2:$D$1686)=0)*($N$3=$C$2:$C$1686)), $D$2:$D$1686),"") -> Norwood | T92: =IFERROR(INDEX($Q$2:$Q$231,MATCH(ROWS($Q$2:Q92),COUNTIF($Q$2:$Q$231,"<="&$Q$2:$Q$231),0)),0) -> Ingersoll | U92: 92 | V92: Iroquois Falls
A93: 92 | B93: CAN | C93: BC | D93: Haney | E93: 2840 | F93: Cold-Humid | G93: -9 | H93: 30 | Q93: =_xlfn.IFNA(LOOKUP(2, 1/((COUNTIF($Q$1:Q92, $D$2:$D$1686)=0)*($N$3=$C$2:$C$1686)), $D$2:$D$1686),"") -> North York | T93: =IFERROR(INDEX($Q$2:$Q$231,MATCH(ROWS($Q$2:Q93),COUNTIF($Q$2:$Q$231,"<="&$Q$2:$Q$231),0)),0) -> Iroquois Falls | U93: 93 | V93: Jellicoe
A94: 93 | B94: CAN | C94: BC | D94: Hope | E94: 3000 | F94: Cold-Humid | G94: -13 | H94: 31 | Q94: =_xlfn.IFNA(LOOKUP(2, 1/((COUNTIF($Q$1:Q93, $D$2:$D$1686)=0)*($N$3=$C$2:$C$1686)), $D$2:$D$1686),"") -> North Bay | T94: =IFERROR(INDEX($Q$2:$Q$231,MATCH(ROWS($Q$2:Q94),COUNTIF($Q$2:$Q$231,"<="&$Q$2:$Q$231),0)),0) -> Jellicoe | U94: 94 | V94: Kapuskasing
A95: 94 | B95: CAN | C95: BC | D95: Jordan River | E95: 2900 | F95: Marine | G95: -1 | H95: 22 | Q95: =_xlfn.IFNA(LOOKUP(2, 1/((COUNTIF($Q$1:Q94, $D$2:$D$1686)=0)*($N$3=$C$2:$C$1686)), $D$2:$D$1686),"") -> Niagara Falls | T95: =IFERROR(INDEX($Q$2:$Q$231,MATCH(ROWS($Q$2:Q95),COUNTIF($Q$2:$Q$231,"<="&$Q$2:$Q$231),0)),0) -> Kapuskasing | U95: 95 | V95: Kemptville
A96: 95 | B96: CAN | C96: BC | D96: Kamloops | E96: 3450 | F96: Cold-Dry | G96: -23 | H96: 34 | Q96: =_xlfn.IFNA(LOOKUP(2, 1/((COUNTIF($Q$1:Q95, $D$2:$D$1686)=0)*($N$3=$C$2:$C$1686)), $D$2:$D$1686),"") -> Newmarket | T96: =IFERROR(INDEX($Q$2:$Q$231,MATCH(ROWS($Q$2:Q96),COUNTIF($Q$2:$Q$231,"<="&$Q$2:$Q$231),0)),0) -> Kemptville | U96: 96 | V96: Kenora
A97: 96 | B97: CAN | C97: BC | D97: Kaslo | E97: 3830 | F97: Cold-Dry | G97: -17 | H97: 30 | Q97: =_xlfn.IFNA(LOOKUP(2, 1/((COUNTIF($Q$1:Q96, $D$2:$D$1686)=0)*($N$3=$C$2:$C$1686)), $D$2:$D$1686),"") -> Newcastle (Bowmanville) | T97: =IFERROR(INDEX($Q$2:$Q$231,MATCH(ROWS($Q$2:Q97),COUNTIF($Q$2:$Q$231,"<="&$Q$2:$Q$231),0)),0) -> Kenora | U97: 97 | V97: Killaloe
A98: 97 | B98: CAN | C98: BC | D98: Kelowna | E98: 3400 | F98: Cold-Dry | G98: -17 | H98: 33 | Q98: =_xlfn.IFNA(LOOKUP(2, 1/((COUNTIF($Q$1:Q97, $D$2:$D$1686)=0)*($N$3=$C$2:$C$1686)), $D$2:$D$1686),"") -> Newcastle | T98: =IFERROR(INDEX($Q$2:$Q$231,MATCH(ROWS($Q$2:Q98),COUNTIF($Q$2:$Q$231,"<="&$Q$2:$Q$231),0)),0) -> Killaloe | U98: 98 | V98: Kincardine
A99: 98 | B99: CAN | C99: BC | D99: Kimberley | E99: 4650 | F99: Very-Cold | G99: -25 | H99: 31 | Q99: =_xlfn.IFNA(LOOKUP(2, 1/((COUNTIF($Q$1:Q98, $D$2:$D$1686)=0)*($N$3=$C$2:$C$1686)), $D$2:$D$1686),"") -> New Liskeard | T99: =IFERROR(INDEX($Q$2:$Q$231,MATCH(ROWS($Q$2:Q99),COUNTIF($Q$2:$Q$231,"<="&$Q$2:$Q$231),0)),0) -> Kincardine | U99: 99 | V99: Kingston
A100: 99 | B100: CAN | C100: BC | D100: Kitimat Plant | E100: 3750 | F100: Cold-Dry | G100: -16 | H100: 25 | Q100: =_xlfn.IFNA(LOOKUP(2, 1/((COUNTIF($Q$1:Q99, $D$2:$D$1686)=0)*($N$3=$C$2:$C$1686)), $D$2:$D$1686),"") -> Napanee | T100: =IFERROR(INDEX($Q$2:$Q$231,MATCH(ROWS($Q$2:Q100),COUNTIF($Q$2:$Q$231,"<="&$Q$2:$Q$231),0)),0) -> Kingston | U100: 100 | V100: Kinmount
A101: 100 | B101: CAN | C101: BC | D101: Kitimat Townsite | E101: 3900 | F101: Cold-Dry | G101: -16 | H101: 24 | Q101: =_xlfn.IFNA(LOOKUP(2, 1/((COUNTIF($Q$1:Q100, $D$2:$D$1686)=0)*($N$3=$C$2:$C$1686)), $D$2:$D$1686),"") -> Nanticoke (Port Dover) | T101: =IFERROR(INDEX($Q$2:$Q$231,MATCH(ROWS($Q$2:Q101),COUNTIF($Q$2:$Q$231,"<="&$Q$2:$Q$231),0)),0) -> Kinmount | U101: 101 | V101: Kirkland Lake
A102: 101 | B102: CAN | C102: BC | D102: Ladner | E102: 2600 | F102: Marine | G102: -6 | H102: 27 | Q102: =_xlfn.IFNA(LOOKUP(2, 1/((COUNTIF($Q$1:Q101, $D$2:$D$1686)=0)*($N$3=$C$2:$C$1686)), $D$2:$D$1686),"") -> Nanticoke (Jarvis) | T102: =IFERROR(INDEX($Q$2:$Q$231,MATCH(ROWS($Q$2:Q102),COUNTIF($Q$2:$Q$231,"<="&$Q$2:$Q$231),0)),0) -> Kirkland Lake | U102: 102 | V102: Kitchener
A103: 102 | B103: CAN | C103: BC | D103: Ladysmith | E103: 3000 | F103: Marine | G103: -7 | H103: 27 | Q103: =_xlfn.IFNA(LOOKUP(2, 1/((COUNTIF($Q$1:Q102, $D$2:$D$1686)=0)*($N$3=$C$2:$C$1686)), $D$2:$D$1686),"") -> Nakina | T103: =IFERROR(INDEX($Q$2:$Q$231,MATCH(ROWS($Q$2:Q103),COUNTIF($Q$2:$Q$231,"<="&$Q$2:$Q$231),0)),0) -> Kitchener | U103: 103 | V103: Kitchenuhmaykoosib
A104: 103 | B104: CAN | C104: BC | D104: Langford | E104: 2750 | F104: Marine | G104: -4 | H104: 27 | Q104: =_xlfn.IFNA(LOOKUP(2, 1/((COUNTIF($Q$1:Q103, $D$2:$D$1686)=0)*($N$3=$C$2:$C$1686)), $D$2:$D$1686),"") -> Mount Forest | T104: =IFERROR(INDEX($Q$2:$Q$231,MATCH(ROWS($Q$2:Q104),COUNTIF($Q$2:$Q$231,"<="&$Q$2:$Q$231),0)),0) -> Kitchenuhmaykoosib | U104: 104 | V104: Lakefield
A105: 104 | B105: CAN | C105: BC | D105: Langley | E105: 2700 | F105: Marine | G105: -8 | H105: 29 | Q105: =_xlfn.IFNA(LOOKUP(2, 1/((COUNTIF($Q$1:Q104, $D$2:$D$1686)=0)*($N$3=$C$2:$C$1686)), $D$2:$D$1686),"") -> Morrisburg | T105: =IFERROR(INDEX($Q$2:$Q$231,MATCH(ROWS($Q$2:Q105),COUNTIF($Q$2:$Q$231,"<="&$Q$2:$Q$231),0)),0) -> Lakefield | U105: 105 | V105: Lansdowne House
A106: 105 | B106: CAN | C106: BC | D106: Lillooet | E106: 3400 | F106: Cold-Dry | G106: -21 | H106: 34 | Q106: =_xlfn.IFNA(LOOKUP(2, 1/((COUNTIF($Q$1:Q105, $D$2:$D$1686)=0)*($N$3=$C$2:$C$1686)), $D$2:$D$1686),"") -> Moosonee | T106: =IFERROR(INDEX($Q$2:$Q$231,MATCH(ROWS($Q$2:Q106),COUNTIF($Q$2:$Q$231,"<="&$Q$2:$Q$231),0)),0) -> Lansdowne House | U106: 106 | V106: Leamington
A107: 106 | B107: CAN | C107: BC | D107: Lytton | E107: 3300 | F107: Cold-Dry | G107: -17 | H107: 35 | Q107: =_xlfn.IFNA(LOOKUP(2, 1/((COUNTIF($Q$1:Q106, $D$2:$D$1686)=0)*($N$3=$C$2:$C$1686)), $D$2:$D$1686),"") -> Mitchell | T107: =IFERROR(INDEX($Q$2:$Q$231,MATCH(ROWS($Q$2:Q107),COUNTIF($Q$2:$Q$231,"<="&$Q$2:$Q$231),0)),0) -> Leamington | U107: 107 | V107: Lindsay
A108: 107 | B108: CAN | C108: BC | D108: Mackenzie | E108: 5550 | F108: Very-Cold | G108: -34 | H108: 27 | Q108: =_xlfn.IFNA(LOOKUP(2, 1/((COUNTIF($Q$1:Q107, $D$2:$D$1686)=0)*($N$3=$C$2:$C$1686)), $D$2:$D$1686),"") -> Mississauga (Port Credit) | T108: =IFERROR(INDEX($Q$2:$Q$231,MATCH(ROWS($Q$2:Q108),COUNTIF($Q$2:$Q$231,"<="&$Q$2:$Q$231),0)),0) -> Lindsay | U108: 108 | V108: Lion's Head
A109: 108 | B109: CAN | C109: BC | D109: Masset | E109: 3700 | F109: Marine | G109: -5 | H109: 17 | Q109: =_xlfn.IFNA(LOOKUP(2, 1/((COUNTIF($Q$1:Q108, $D$2:$D$1686)=0)*($N$3=$C$2:$C$1686)), $D$2:$D$1686),"") -> Mississauga (LBP Int'l Airport) | T109: =IFERROR(INDEX($Q$2:$Q$231,MATCH(ROWS($Q$2:Q109),COUNTIF($Q$2:$Q$231,"<="&$Q$2:$Q$231),0)),0) -> Lion's Head | U109: 109 | V109: Listowel
A110: 109 | B110: CAN | C110: BC | D110: McBride | E110: 4980 | F110: Very-Cold | G110: -29 | H110: 29 | Q110: =_xlfn.IFNA(LOOKUP(2, 1/((COUNTIF($Q$1:Q109, $D$2:$D$1686)=0)*($N$3=$C$2:$C$1686)), $D$2:$D$1686),"") -> Mississauga | T110: =IFERROR(INDEX($Q$2:$Q$231,MATCH(ROWS($Q$2:Q110),COUNTIF($Q$2:$Q$231,"<="&$Q$2:$Q$231),0)),0) -> Listowel | U110: 110 | V110: London
A111: 110 | B111: CAN | C111: BC | D111: McLeod Lake | E111: 5450 | F111: Very-Cold | G111: -35 | H111: 27 | Q111: =_xlfn.IFNA(LOOKUP(2, 1/((COUNTIF($Q$1:Q110, $D$2:$D$1686)=0)*($N$3=$C$2:$C$1686)), $D$2:$D$1686),"") -> Minden | T111: =IFERROR(INDEX($Q$2:$Q$231,MATCH(ROWS($Q$2:Q111),COUNTIF($Q$2:$Q$231,"<="&$Q$2:$Q$231),0)),0) -> London | U111: 111 | V111: Lucan
A112: 111 | B112: CAN | C112: BC | D112: Merritt | E112: 3900 | F112: Cold-Dry | G112: -24 | H112: 34 | Q112: =_xlfn.IFNA(LOOKUP(2, 1/((COUNTIF($Q$1:Q111, $D$2:$D$1686)=0)*($N$3=$C$2:$C$1686)), $D$2:$D$1686),"") -> Milverton | T112: =IFERROR(INDEX($Q$2:$Q$231,MATCH(ROWS($Q$2:Q112),COUNTIF($Q$2:$Q$231,"<="&$Q$2:$Q$231),0)),0) -> Lucan | U112: 112 | V112: Maitland
A113: 112 | B113: CAN | C113: BC | D113: Mission City | E113: 2850 | F113: Cold-Humid | G113: -9 | H113: 30 | Q113: =_xlfn.IFNA(LOOKUP(2, 1/((COUNTIF($Q$1:Q112, $D$2:$D$1686)=0)*($N$3=$C$2:$C$1686)), $D$2:$D$1686),"") -> Milton | T113: =IFERROR(INDEX($Q$2:$Q$231,MATCH(ROWS($Q$2:Q113),COUNTIF($Q$2:$Q$231,"<="&$Q$2:$Q$231),0)),0) -> Maitland | U113: 113 | V113: Markdale
A114: 113 | B114: CAN | C114: BC | D114: Montrose | E114: 3600 | F114: Cold-Humid | G114: -16 | H114: 32 | Q114: =_xlfn.IFNA(LOOKUP(2, 1/((COUNTIF($Q$1:Q113, $D$2:$D$1686)=0)*($N$3=$C$2:$C$1686)), $D$2:$D$1686),"") -> Midland | T114: =IFERROR(INDEX($Q$2:$Q$231,MATCH(ROWS($Q$2:Q114),COUNTIF($Q$2:$Q$231,"<="&$Q$2:$Q$231),0)),0) -> Markdale | U114: 114 | V114: Markham
A115: 114 | B115: CAN | C115: BC | D115: Nakusp | E115: 3560 | F115: Cold-Humid | G115: -20 | H115: 31 | Q115: =_xlfn.IFNA(LOOKUP(2, 1/((COUNTIF($Q$1:Q114, $D$2:$D$1686)=0)*($N$3=$C$2:$C$1686)), $D$2:$D$1686),"") -> Mattawa | T115: =IFERROR(INDEX($Q$2:$Q$231,MATCH(ROWS($Q$2:Q115),COUNTIF($Q$2:$Q$231,"<="&$Q$2:$Q$231),0)),0) -> Markham | U115: 115 | V115: Martin
A116: 115 | B116: CAN | C116: BC | D116: Nanaimo | E116: 3000 | F116: Marine | G116: -6 | H116: 27 | Q116: =_xlfn.IFNA(LOOKUP(2, 1/((COUNTIF($Q$1:Q115, $D$2:$D$1686)=0)*($N$3=$C$2:$C$1686)), $D$2:$D$1686),"") -> Matheson | T116: =IFERROR(INDEX($Q$2:$Q$231,MATCH(ROWS($Q$2:Q116),COUNTIF($Q$2:$Q$231,"<="&$Q$2:$Q$231),0)),0) -> Martin | U116: 116 | V116: Matheson
A117: 116 | B117: CAN | C117: BC | D117: Nelson | E117: 3500 | F117: Cold-Humid | G117: -18 | H117: 31 | Q117: =_xlfn.IFNA(LOOKUP(2, 1/((COUNTIF($Q$1:Q116, $D$2:$D$1686)=0)*($N$3=$C$2:$C$1686)), $D$2:$D$1686),"") -> Martin | T117: =IFERROR(INDEX($Q$2:$Q$231,MATCH(ROWS($Q$2:Q117),COUNTIF($Q$2:$Q$231,"<="&$Q$2:$Q$231),0)),0) -> Matheson | U117: 117 | V117: Mattawa
A118: 117 | B118: CAN | C118: BC | D118: New Westminster | E118: 2800 | F118: Marine | G118: -8 | H118: 29 | Q118: =_xlfn.IFNA(LOOKUP(2, 1/((COUNTIF($Q$1:Q117, $D$2:$D$1686)=0)*($N$3=$C$2:$C$1686)), $D$2:$D$1686),"") -> Markham | T118: =IFERROR(INDEX($Q$2:$Q$231,MATCH(ROWS($Q$2:Q118),COUNTIF($Q$2:$Q$231,"<="&$Q$2:$Q$231),0)),0) -> Mattawa | U118: 118 | V118: Midland
A119: 118 | B119: CAN | C119: BC | D119: North Vancouver | E119: 2910 | F119: Marine | G119: -7 | H119: 26 | Q119: =_xlfn.IFNA(LOOKUP(2, 1/((COUNTIF($Q$1:Q118, $D$2:$D$1686)=0)*($N$3=$C$2:$C$1686)), $D$2:$D$1686),"") -> Markdale | T119: =IFERROR(INDEX($Q$2:$Q$231,MATCH(ROWS($Q$2:Q119),COUNTIF($Q$2:$Q$231,"<="&$Q$2:$Q$231),0)),0) -> Midland | U119: 119 | V119: Milton
A120: 119 | B120: CAN | C120: BC | D120: Ocean Falls | E120: 3400 | F120: Cold-Humid | G120: -10 | H120: 23 | Q120: =_xlfn.IFNA(LOOKUP(2, 1/((COUNTIF($Q$1:Q119, $D$2:$D$1686)=0)*($N$3=$C$2:$C$1686)), $D$2:$D$1686),"") -> Maitland | T120: =IFERROR(INDEX($Q$2:$Q$231,MATCH(ROWS($Q$2:Q120),COUNTIF($Q$2:$Q$231,"<="&$Q$2:$Q$231),0)),0) -> Milton | U120: 120 | V120: Milverton
A121: 120 | B121: CAN | C121: BC | D121: Osoyoos | E121: 3100 | F121: Cold-Humid | G121: -14 | H121: 35 | Q121: =_xlfn.IFNA(LOOKUP(2, 1/((COUNTIF($Q$1:Q120, $D$2:$D$1686)=0)*($N$3=$C$2:$C$1686)), $D$2:$D$1686),"") -> Lucan | T121: =IFERROR(INDEX($Q$2:$Q$231,MATCH(ROWS($Q$2:Q121),COUNTIF($Q$2:$Q$231,"<="&$Q$2:$Q$231),0)),0) -> Milverton | U121: 121 | V121: Minden
A122: 121 | B122: CAN | C122: BC | D122: Parksville | E122: 3200 | F122: Marine | G122: -6 | H122: 26 | Q122: =_xlfn.IFNA(LOOKUP(2, 1/((COUNTIF($Q$1:Q121, $D$2:$D$1686)=0)*($N$3=$C$2:$C$1686)), $D$2:$D$1686),"") -> London | T122: =IFERROR(INDEX($Q$2:$Q$231,MATCH(ROWS($Q$2:Q122),COUNTIF($Q$2:$Q$231,"<="&$Q$2:$Q$231),0)),0) -> Minden | U122: 122 | V122: Mississauga
A123: 122 | B123: CAN | C123: BC | D123: Penticton | E123: 3350 | F123: Cold-Dry | G123: -15 | H123: 33 | Q123: =_xlfn.IFNA(LOOKUP(2, 1/((COUNTIF($Q$1:Q122, $D$2:$D$1686)=0)*($N$3=$C$2:$C$1686)), $D$2:$D$1686),"") -> Listowel | T123: =IFERROR(INDEX($Q$2:$Q$231,MATCH(ROWS($Q$2:Q123),COUNTIF($Q$2:$Q$231,"<="&$Q$2:$Q$231),0)),0) -> Mississauga | U123: 123 | V123: Mississauga (LBP Int'l Airport)
A124: 123 | B124: CAN | C124: BC | D124: Port Alberni | E124: 3100 | F124: Marine | G124: -5 | H124: 31 | Q124: =_xlfn.IFNA(LOOKUP(2, 1/((COUNTIF($Q$1:Q123, $D$2:$D$1686)=0)*($N$3=$C$2:$C$1686)), $D$2:$D$1686),"") -> Lion's Head | T124: =IFERROR(INDEX($Q$2:$Q$231,MATCH(ROWS($Q$2:Q124),COUNTIF($Q$2:$Q$231,"<="&$Q$2:$Q$231),0)),0) -> Mississauga (LBP Int'l Airport) | U124: 124 | V124: Mississauga (Port Credit)
A125: 124 | B125: CAN | C125: BC | D125: Port Alice | E125: 3010 | F125: Marine | G125: -3 | H125: 26 | Q125: =_xlfn.IFNA(LOOKUP(2, 1/((COUNTIF($Q$1:Q124, $D$2:$D$1686)=0)*($N$3=$C$2:$C$1686)), $D$2:$D$1686),"") -> Lindsay | T125: =IFERROR(INDEX($Q$2:$Q$231,MATCH(ROWS($Q$2:Q125),COUNTIF($Q$2:$Q$231,"<="&$Q$2:$Q$231),0)),0) -> Mississauga (Port Credit) | U125: 125 | V125: Mitchell
A126: 125 | B126: CAN | C126: BC | D126: Port Hardy | E126: 3440 | F126: Marine | G126: -5 | H126: 20 | Q126: =_xlfn.IFNA(LOOKUP(2, 1/((COUNTIF($Q$1:Q125, $D$2:$D$1686)=0)*($N$3=$C$2:$C$1686)), $D$2:$D$1686),"") -> Leamington | T126: =IFERROR(INDEX($Q$2:$Q$231,MATCH(ROWS($Q$2:Q126),COUNTIF($Q$2:$Q$231,"<="&$Q$2:$Q$231),0)),0) -> Mitchell | U126: 126 | V126: Moosonee
A127: 126 | B127: CAN | C127: BC | D127: Port McNeill | E127: 3410 | F127: Marine | G127: -5 | H127: 22 | Q127: =_xlfn.IFNA(LOOKUP(2, 1/((COUNTIF($Q$1:Q126, $D$2:$D$1686)=0)*($N$3=$C$2:$C$1686)), $D$2:$D$1686),"") -> Lansdowne House | T127: =IFERROR(INDEX($Q$2:$Q$231,MATCH(ROWS($Q$2:Q127),COUNTIF($Q$2:$Q$231,"<="&$Q$2:$Q$231),0)),0) -> Moosonee | U127: 127 | V127: Morrisburg
A128: 127 | B128: CAN | C128: BC | D128: Port Renfrew | E128: 2900 | F128: Marine | G128: -3 | H128: 24 | Q128: =_xlfn.IFNA(LOOKUP(2, 1/((COUNTIF($Q$1:Q127, $D$2:$D$1686)=0)*($N$3=$C$2:$C$1686)), $D$2:$D$1686),"") -> Lakefield | T128: =IFERROR(INDEX($Q$2:$Q$231,MATCH(ROWS($Q$2:Q128),COUNTIF($Q$2:$Q$231,"<="&$Q$2:$Q$231),0)),0) -> Morrisburg | U128: 128 | V128: Mount Forest
A129: 128 | B129: CAN | C129: BC | D129: Powell River | E129: 3100 | F129: Marine | G129: -7 | H129: 26 | Q129: =_xlfn.IFNA(LOOKUP(2, 1/((COUNTIF($Q$1:Q128, $D$2:$D$1686)=0)*($N$3=$C$2:$C$1686)), $D$2:$D$1686),"") -> Kitchenuhmaykoosib | T129: =IFERROR(INDEX($Q$2:$Q$231,MATCH(ROWS($Q$2:Q129),COUNTIF($Q$2:$Q$231,"<="&$Q$2:$Q$231),0)),0) -> Mount Forest | U129: 129 | V129: Nakina
A130: 129 | B130: CAN | C130: BC | D130: Prince George | E130: 4720 | F130: Very-Cold | G130: -32 | H130: 28 | Q130: =_xlfn.IFNA(LOOKUP(2, 1/((COUNTIF($Q$1:Q129, $D$2:$D$1686)=0)*($N$3=$C$2:$C$1686)), $D$2:$D$1686),"") -> Kitchener | T130: =IFERROR(INDEX($Q$2:$Q$231,MATCH(ROWS($Q$2:Q130),COUNTIF($Q$2:$Q$231,"<="&$Q$2:$Q$231),0)),0) -> Nakina | U130: 130 | V130: Nanticoke (Jarvis)
A131: 130 | B131: CAN | C131: BC | D131: Prince Rupert | E131: 3900 | F131: Cold-Dry | G131: -13 | H131: 19 | Q131: =_xlfn.IFNA(LOOKUP(2, 1/((COUNTIF($Q$1:Q130, $D$2:$D$1686)=0)*($N$3=$C$2:$C$1686)), $D$2:$D$1686),"") -> Kirkland Lake | T131: =IFERROR(INDEX($Q$2:$Q$231,MATCH(ROWS($Q$2:Q131),COUNTIF($Q$2:$Q$231,"<="&$Q$2:$Q$231),0)),0) -> Nanticoke (Jarvis) | U131: 131 | V131: =IFERROR(INDEX($T$2:$T$231,U131,1),"") -> Nanticoke (Port Dover)
A132: 131 | B132: CAN | C132: BC | D132: Princeton | E132: 4250 | F132: Cold-Dry | G132: -24 | H132: 33 | Q132: =_xlfn.IFNA(LOOKUP(2, 1/((COUNTIF($Q$1:Q131, $D$2:$D$1686)=0)*($N$3=$C$2:$C$1686)), $D$2:$D$1686),"") -> Kinmount | T132: =IFERROR(INDEX($Q$2:$Q$231,MATCH(ROWS($Q$2:Q132),COUNTIF($Q$2:$Q$231,"<="&$Q$2:$Q$231),0)),0) -> Nanticoke (Port Dover) | U132: =U131+1 -> 132 | V132: Napanee
A133: 132 | B133: CAN | C133: BC | D133: Qualicum Beach | E133: 3200 | F133: Marine | G133: -7 | H133: 27 | Q133: =_xlfn.IFNA(LOOKUP(2, 1/((COUNTIF($Q$1:Q132, $D$2:$D$1686)=0)*($N$3=$C$2:$C$1686)), $D$2:$D$1686),"") -> Kingston | T133: =IFERROR(INDEX($Q$2:$Q$231,MATCH(ROWS($Q$2:Q133),COUNTIF($Q$2:$Q$231,"<="&$Q$2:$Q$231),0)),0) -> Napanee | U133: 133 | V133: New Liskeard
A134: 133 | B134: CAN | C134: BC | D134: Queen Charlotte City | E134: 3520 | F134: Marine | G134: -6 | H134: 21 | Q134: =_xlfn.IFNA(LOOKUP(2, 1/((COUNTIF($Q$1:Q133, $D$2:$D$1686)=0)*($N$3=$C$2:$C$1686)), $D$2:$D$1686),"") -> Kincardine | T134: =IFERROR(INDEX($Q$2:$Q$231,MATCH(ROWS($Q$2:Q134),COUNTIF($Q$2:$Q$231,"<="&$Q$2:$Q$231),0)),0) -> New Liskeard | U134: 134 | V134: Newcastle
A135: 134 | B135: CAN | C135: BC | D135: Quesnel | E135: 4650 | F135: Very-Cold | G135: -31 | H135: 30 | Q135: =_xlfn.IFNA(LOOKUP(2, 1/((COUNTIF($Q$1:Q134, $D$2:$D$1686)=0)*($N$3=$C$2:$C$1686)), $D$2:$D$1686),"") -> Killaloe | T135: =IFERROR(INDEX($Q$2:$Q$231,MATCH(ROWS($Q$2:Q135),COUNTIF($Q$2:$Q$231,"<="&$Q$2:$Q$231),0)),0) -> Newcastle | U135: 135 | V135: Newcastle (Bowmanville)
A136: 135 | B136: CAN | C136: BC | D136: Revelstoke | E136: 4000 | F136: Cold-Dry | G136: -20 | H136: 31 | Q136: =_xlfn.IFNA(LOOKUP(2, 1/((COUNTIF($Q$1:Q135, $D$2:$D$1686)=0)*($N$3=$C$2:$C$1686)), $D$2:$D$1686),"") -> Kenora | T136: =IFERROR(INDEX($Q$2:$Q$231,MATCH(ROWS($Q$2:Q136),COUNTIF($Q$2:$Q$231,"<="&$Q$2:$Q$231),0)),0) -> Newcastle (Bowmanville) | U136: 136 | V136: Newmarket
A137: 136 | B137: CAN | C137: BC | D137: Richmond | E137: 2800 | F137: Marine | G137: -7 | H137: 27 | Q137: =_xlfn.IFNA(LOOKUP(2, 1/((COUNTIF($Q$1:Q136, $D$2:$D$1686)=0)*($N$3=$C$2:$C$1686)), $D$2:$D$1686),"") -> Kemptville | T137: =IFERROR(INDEX($Q$2:$Q$231,MATCH(ROWS($Q$2:Q137),COUNTIF($Q$2:$Q$231,"<="&$Q$2:$Q$231),0)),0) -> Newmarket | U137: 137 | V137: Niagara Falls
A138: 137 | B138: CAN | C138: BC | D138: Salmon Arm | E138: 3650 | F138: Cold-Humid | G138: -19 | H138: 33 | Q138: =_xlfn.IFNA(LOOKUP(2, 1/((COUNTIF($Q$1:Q137, $D$2:$D$1686)=0)*($N$3=$C$2:$C$1686)), $D$2:$D$1686),"") -> Kapuskasing | T138: =IFERROR(INDEX($Q$2:$Q$231,MATCH(ROWS($Q$2:Q138),COUNTIF($Q$2:$Q$231,"<="&$Q$2:$Q$231),0)),0) -> Niagara Falls | U138: 138 | V138: North Bay
A139: 138 | B139: CAN | C139: BC | D139: Sandspit | E139: 3450 | F139: Marine | G139: -4 | H139: 18 | Q139: =_xlfn.IFNA(LOOKUP(2, 1/((COUNTIF($Q$1:Q138, $D$2:$D$1686)=0)*($N$3=$C$2:$C$1686)), $D$2:$D$1686),"") -> Jellicoe | T139: =IFERROR(INDEX($Q$2:$Q$231,MATCH(ROWS($Q$2:Q139),COUNTIF($Q$2:$Q$231,"<="&$Q$2:$Q$231),0)),0) -> North Bay | U139: 139 | V139: North York
A140: 139 | B140: CAN | C140: BC | D140: Sechelt | E140: 2680 | F140: Marine | G140: -6 | H140: 27 | Q140: =_xlfn.IFNA(LOOKUP(2, 1/((COUNTIF($Q$1:Q139, $D$2:$D$1686)=0)*($N$3=$C$2:$C$1686)), $D$2:$D$1686),"") -> Iroquois Falls | T140: =IFERROR(INDEX($Q$2:$Q$231,MATCH(ROWS($Q$2:Q140),COUNTIF($Q$2:$Q$231,"<="&$Q$2:$Q$231),0)),0) -> North York | U140: 140 | V140: Norwood
A141: 140 | B141: CAN | C141: BC | D141: Sidney | E141: 2850 | F141: Marine | G141: -4 | H141: 26 | Q141: =_xlfn.IFNA(LOOKUP(2, 1/((COUNTIF($Q$1:Q140, $D$2:$D$1686)=0)*($N$3=$C$2:$C$1686)), $D$2:$D$1686),"") -> Ingersoll | T141: =IFERROR(INDEX($Q$2:$Q$231,MATCH(ROWS($Q$2:Q141),COUNTIF($Q$2:$Q$231,"<="&$Q$2:$Q$231),0)),0) -> Norwood | U141: 141 | V141: Oakville
A142: 141 | B142: CAN | C142: BC | D142: Smith River | E142: 7100 | F142: Subarctic | G142: -45 | H142: 26 | Q142: =_xlfn.IFNA(LOOKUP(2, 1/((COUNTIF($Q$1:Q141, $D$2:$D$1686)=0)*($N$3=$C$2:$C$1686)), $D$2:$D$1686),"") -> Huntsville | T142: =IFERROR(INDEX($Q$2:$Q$231,MATCH(ROWS($Q$2:Q142),COUNTIF($Q$2:$Q$231,"<="&$Q$2:$Q$231),0)),0) -> Oakville | U142: 142 | V142: Orangeville
A143: 142 | B143: CAN | C143: BC | D143: Smithers | E143: 5040 | F143: Very-Cold | G143: -29 | H143: 26 | Q143: =_xlfn.IFNA(LOOKUP(2, 1/((COUNTIF($Q$1:Q142, $D$2:$D$1686)=0)*($N$3=$C$2:$C$1686)), $D$2:$D$1686),"") -> Hornepayne | T143: =IFERROR(INDEX($Q$2:$Q$231,MATCH(ROWS($Q$2:Q143),COUNTIF($Q$2:$Q$231,"<="&$Q$2:$Q$231),0)),0) -> Orangeville | U143: 143 | V143: Orillia
A144: 143 | B144: CAN | C144: BC | D144: Sooke | E144: 2900 | F144: Marine | G144: -1 | H144: 21 | Q144: =_xlfn.IFNA(LOOKUP(2, 1/((COUNTIF($Q$1:Q143, $D$2:$D$1686)=0)*($N$3=$C$2:$C$1686)), $D$2:$D$1686),"") -> Honey Harbour | T144: =IFERROR(INDEX($Q$2:$Q$231,MATCH(ROWS($Q$2:Q144),COUNTIF($Q$2:$Q$231,"<="&$Q$2:$Q$231),0)),0) -> Orillia | U144: 144 | V144: Oshawa
A145: 144 | B145: CAN | C145: BC | D145: Squamish | E145: 2950 | F145: Cold-Humid | G145: -9 | H145: 29 | Q145: =_xlfn.IFNA(LOOKUP(2, 1/((COUNTIF($Q$1:Q144, $D$2:$D$1686)=0)*($N$3=$C$2:$C$1686)), $D$2:$D$1686),"") -> Hearst | T145: =IFERROR(INDEX($Q$2:$Q$231,MATCH(ROWS($Q$2:Q145),COUNTIF($Q$2:$Q$231,"<="&$Q$2:$Q$231),0)),0) -> Oshawa | U145: 145 | V145: Ottawa (Barrhaven)
A146: 145 | B146: CAN | C146: BC | D146: Stewart | E146: 4350 | F146: Cold-Dry | G146: -17 | H146: 25 | Q146: =_xlfn.IFNA(LOOKUP(2, 1/((COUNTIF($Q$1:Q145, $D$2:$D$1686)=0)*($N$3=$C$2:$C$1686)), $D$2:$D$1686),"") -> Hawkesbury | T146: =IFERROR(INDEX($Q$2:$Q$231,MATCH(ROWS($Q$2:Q146),COUNTIF($Q$2:$Q$231,"<="&$Q$2:$Q$231),0)),0) -> Ottawa (Barrhaven) | U146: 146 | V146: Ottawa (city hall)
A147: 146 | B147: CAN | C147: BC | D147: Surrey (88 Ave & 156 St.) | E147: 2750 | F147: Marine | G147: -8 | H147: 29 | Q147: =_xlfn.IFNA(LOOKUP(2, 1/((COUNTIF($Q$1:Q146, $D$2:$D$1686)=0)*($N$3=$C$2:$C$1686)), $D$2:$D$1686),"") -> Hastings | T147: =IFERROR(INDEX($Q$2:$Q$231,MATCH(ROWS($Q$2:Q147),COUNTIF($Q$2:$Q$231,"<="&$Q$2:$Q$231),0)),0) -> Ottawa (city hall) | U147: 147 | V147: Ottawa (Kanata)
A148: 147 | B148: CAN | C148: BC | D148: Tahsis | E148: 3150 | F148: Marine | G148: -4 | H148: 26 | Q148: =_xlfn.IFNA(LOOKUP(2, 1/((COUNTIF($Q$1:Q147, $D$2:$D$1686)=0)*($N$3=$C$2:$C$1686)), $D$2:$D$1686),"") -> Hanover | T148: =IFERROR(INDEX($Q$2:$Q$231,MATCH(ROWS($Q$2:Q148),COUNTIF($Q$2:$Q$231,"<="&$Q$2:$Q$231),0)),0) -> Ottawa (Kanata) | U148: 148 | V148: Ottawa (M-C Int'l Airport)
A149: 148 | B149: CAN | C149: BC | D149: Taylor | E149: 5720 | F149: Very-Cold | G149: -35 | H149: 26 | Q149: =_xlfn.IFNA(LOOKUP(2, 1/((COUNTIF($Q$1:Q148, $D$2:$D$1686)=0)*($N$3=$C$2:$C$1686)), $D$2:$D$1686),"") -> Hamilton | T149: =IFERROR(INDEX($Q$2:$Q$231,MATCH(ROWS($Q$2:Q149),COUNTIF($Q$2:$Q$231,"<="&$Q$2:$Q$231),0)),0) -> Ottawa (M-C Int'l Airport) | U149: 149 | V149: Ottawa (Orleans)
A150: 149 | B150: CAN | C150: BC | D150: Terrace | E150: 4150 | F150: Cold-Dry | G150: -19 | H150: 27 | Q150: =_xlfn.IFNA(LOOKUP(2, 1/((COUNTIF($Q$1:Q149, $D$2:$D$1686)=0)*($N$3=$C$2:$C$1686)), $D$2:$D$1686),"") -> Halton Hills (Georgetown) | T150: =IFERROR(INDEX($Q$2:$Q$231,MATCH(ROWS($Q$2:Q150),COUNTIF($Q$2:$Q$231,"<="&$Q$2:$Q$231),0)),0) -> Ottawa (Orleans) | U150: 150 | V150: Owen Sound
A151: 150 | B151: CAN | C151: BC | D151: Tofino | E151: 3150 | F151: Marine | G151: -2 | H151: 20 | Q151: =_xlfn.IFNA(LOOKUP(2, 1/((COUNTIF($Q$1:Q150, $D$2:$D$1686)=0)*($N$3=$C$2:$C$1686)), $D$2:$D$1686),"") -> Haliburton | T151: =IFERROR(INDEX($Q$2:$Q$231,MATCH(ROWS($Q$2:Q151),COUNTIF($Q$2:$Q$231,"<="&$Q$2:$Q$231),0)),0) -> Owen Sound | U151: 151 | V151: Pagwa River
A152: 151 | B152: CAN | C152: BC | D152: Trail | E152: 3600 | F152: Cold-Dry | G152: -14 | H152: 33 | Q152: =_xlfn.IFNA(LOOKUP(2, 1/((COUNTIF($Q$1:Q151, $D$2:$D$1686)=0)*($N$3=$C$2:$C$1686)), $D$2:$D$1686),"") -> Haldimand (Hagersville) | T152: =IFERROR(INDEX($Q$2:$Q$231,MATCH(ROWS($Q$2:Q152),COUNTIF($Q$2:$Q$231,"<="&$Q$2:$Q$231),0)),0) -> Pagwa River | U152: 152 | V152: Paris
A153: 152 | B153: CAN | C153: BC | D153: Ucluelet | E153: 3120 | F153: Marine | G153: -2 | H153: 18 | Q153: =_xlfn.IFNA(LOOKUP(2, 1/((COUNTIF($Q$1:Q152, $D$2:$D$1686)=0)*($N$3=$C$2:$C$1686)), $D$2:$D$1686),"") -> Haldimand (Caledonia) | T153: =IFERROR(INDEX($Q$2:$Q$231,MATCH(ROWS($Q$2:Q153),COUNTIF($Q$2:$Q$231,"<="&$Q$2:$Q$231),0)),0) -> Paris | U153: 153 | V153: Parkhill
A154: 153 | B154: CAN | C154: BC | D154: Vancouver (city hall) | E154: 2825 | F154: Marine | G154: -7 | H154: 28 | Q154: =_xlfn.IFNA(LOOKUP(2, 1/((COUNTIF($Q$1:Q153, $D$2:$D$1686)=0)*($N$3=$C$2:$C$1686)), $D$2:$D$1686),"") -> Haileybury | T154: =IFERROR(INDEX($Q$2:$Q$231,MATCH(ROWS($Q$2:Q154),COUNTIF($Q$2:$Q$231,"<="&$Q$2:$Q$231),0)),0) -> Parkhill | U154: 154 | V154: Parry Sound
A155: 154 | B155: CAN | C155: BC | D155: Vancouver (Granville & 41 Ave) | E155: 2925 | F155: Marine | G155: -6 | H155: 28 | Q155: =_xlfn.IFNA(LOOKUP(2, 1/((COUNTIF($Q$1:Q154, $D$2:$D$1686)=0)*($N$3=$C$2:$C$1686)), $D$2:$D$1686),"") -> Guthrie | T155: =IFERROR(INDEX($Q$2:$Q$231,MATCH(ROWS($Q$2:Q155),COUNTIF($Q$2:$Q$231,"<="&$Q$2:$Q$231),0)),0) -> Parry Sound | U155: 155 | V155: Pelham (Fonthill)
A156: 155 | B156: CAN | C156: BC | D156: Vernon | E156: 3600 | F156: Cold-Dry | G156: -20 | H156: 33 | Q156: =_xlfn.IFNA(LOOKUP(2, 1/((COUNTIF($Q$1:Q155, $D$2:$D$1686)=0)*($N$3=$C$2:$C$1686)), $D$2:$D$1686),"") -> Guelph | T156: =IFERROR(INDEX($Q$2:$Q$231,MATCH(ROWS($Q$2:Q156),COUNTIF($Q$2:$Q$231,"<="&$Q$2:$Q$231),0)),0) -> Pelham (Fonthill) | U156: 156 | V156: Pembroke
A157: 156 | B157: CAN | C157: BC | D157: Victoria | E157: 2650 | F157: Marine | G157: -4 | H157: 24 | Q157: =_xlfn.IFNA(LOOKUP(2, 1/((COUNTIF($Q$1:Q156, $D$2:$D$1686)=0)*($N$3=$C$2:$C$1686)), $D$2:$D$1686),"") -> Grimsby | T157: =IFERROR(INDEX($Q$2:$Q$231,MATCH(ROWS($Q$2:Q157),COUNTIF($Q$2:$Q$231,"<="&$Q$2:$Q$231),0)),0) -> Pembroke | U157: 157 | V157: Penetanguishene
A158: 157 | B158: CAN | C158: BC | D158: Victoria Gonzales Height | E158: 2700 | F158: Marine | G158: -4 | H158: 24 | Q158: =_xlfn.IFNA(LOOKUP(2, 1/((COUNTIF($Q$1:Q157, $D$2:$D$1686)=0)*($N$3=$C$2:$C$1686)), $D$2:$D$1686),"") -> Gravenhurst (Muskoka Airport) | T158: =IFERROR(INDEX($Q$2:$Q$231,MATCH(ROWS($Q$2:Q158),COUNTIF($Q$2:$Q$231,"<="&$Q$2:$Q$231),0)),0) -> Penetanguishene | U158: 158 | V158: Perth
A159: 158 | B159: CAN | C159: BC | D159: Victoria Mt Tolmie | E159: 2700 | F159: Marine | G159: -6 | H159: 24 | Q159: =_xlfn.IFNA(LOOKUP(2, 1/((COUNTIF($Q$1:Q158, $D$2:$D$1686)=0)*($N$3=$C$2:$C$1686)), $D$2:$D$1686),"") -> Graham | T159: =IFERROR(INDEX($Q$2:$Q$231,MATCH(ROWS($Q$2:Q159),COUNTIF($Q$2:$Q$231,"<="&$Q$2:$Q$231),0)),0) -> Perth | U159: 159 | V159: Petawawa
A160: 159 | B160: CAN | C160: BC | D160: West Vancouver | E160: 2950 | F160: Marine | G160: -7 | H160: 28 | Q160: =_xlfn.IFNA(LOOKUP(2, 1/((COUNTIF($Q$1:Q159, $D$2:$D$1686)=0)*($N$3=$C$2:$C$1686)), $D$2:$D$1686),"") -> Gore Bay | T160: =IFERROR(INDEX($Q$2:$Q$231,MATCH(ROWS($Q$2:Q160),COUNTIF($Q$2:$Q$231,"<="&$Q$2:$Q$231),0)),0) -> Petawawa | U160: 160 | V160: Peterborough
A161: 160 | B161: CAN | C161: BC | D161: Whistler | E161: 4180 | F161: Cold-Humid | G161: -17 | H161: 30 | Q161: =_xlfn.IFNA(LOOKUP(2, 1/((COUNTIF($Q$1:Q160, $D$2:$D$1686)=0)*($N$3=$C$2:$C$1686)), $D$2:$D$1686),"") -> Goderich | T161: =IFERROR(INDEX($Q$2:$Q$231,MATCH(ROWS($Q$2:Q161),COUNTIF($Q$2:$Q$231,"<="&$Q$2:$Q$231),0)),0) -> Peterborough | U161: 161 | V161: Petrolia
A162: 161 | B162: CAN | C162: BC | D162: White Rock | E162: 2620 | F162: Marine | G162: -5 | H162: 25 | Q162: =_xlfn.IFNA(LOOKUP(2, 1/((COUNTIF($Q$1:Q161, $D$2:$D$1686)=0)*($N$3=$C$2:$C$1686)), $D$2:$D$1686),"") -> Glencoe | T162: =IFERROR(INDEX($Q$2:$Q$231,MATCH(ROWS($Q$2:Q162),COUNTIF($Q$2:$Q$231,"<="&$Q$2:$Q$231),0)),0) -> Petrolia | U162: 162 | V162: Pickering (Dunbarton)
A163: 162 | B163: CAN | C163: BC | D163: Williams Lake | E163: 4400 | F163: Cold-Dry | G163: -30 | H163: 29 | Q163: =_xlfn.IFNA(LOOKUP(2, 1/((COUNTIF($Q$1:Q162, $D$2:$D$1686)=0)*($N$3=$C$2:$C$1686)), $D$2:$D$1686),"") -> Geraldton | T163: =IFERROR(INDEX($Q$2:$Q$231,MATCH(ROWS($Q$2:Q163),COUNTIF($Q$2:$Q$231,"<="&$Q$2:$Q$231),0)),0) -> Pickering (Dunbarton) | U163: 163 | V163: Picton
A164: 163 | B164: CAN | C164: BC | D164: Youbou | E164: 3050 | F164: Marine | G164: -5 | H164: 31 | Q164: =_xlfn.IFNA(LOOKUP(2, 1/((COUNTIF($Q$1:Q163, $D$2:$D$1686)=0)*($N$3=$C$2:$C$1686)), $D$2:$D$1686),"") -> Gananoque | T164: =IFERROR(INDEX($Q$2:$Q$231,MATCH(ROWS($Q$2:Q164),COUNTIF($Q$2:$Q$231,"<="&$Q$2:$Q$231),0)),0) -> Picton | U164: 164 | V164: Plattsville
A165: 164 | B165: CAN | C165: MB | D165: Beausejour | E165: 5680 | F165: Very-Cold | G165: -33 | H165: 29 | Q165: =_xlfn.IFNA(LOOKUP(2, 1/((COUNTIF($Q$1:Q164, $D$2:$D$1686)=0)*($N$3=$C$2:$C$1686)), $D$2:$D$1686),"") -> Fort Frances | T165: =IFERROR(INDEX($Q$2:$Q$231,MATCH(ROWS($Q$2:Q165),COUNTIF($Q$2:$Q$231,"<="&$Q$2:$Q$231),0)),0) -> Plattsville | U165: 165 | V165: Point Alexander
A166: 165 | B166: CAN | C166: MB | D166: Boissevain | E166: 5500 | F166: Very-Cold | G166: -32 | H166: 30 | Q166: =_xlfn.IFNA(LOOKUP(2, 1/((COUNTIF($Q$1:Q165, $D$2:$D$1686)=0)*($N$3=$C$2:$C$1686)), $D$2:$D$1686),"") -> Fort Erie (Ridgeway) | T166: =IFERROR(INDEX($Q$2:$Q$231,MATCH(ROWS($Q$2:Q166),COUNTIF($Q$2:$Q$231,"<="&$Q$2:$Q$231),0)),0) -> Point Alexander | U166: 166 | V166: Port Burwell
A167: 166 | B167: CAN | C167: MB | D167: Brandon | E167: 5760 | F167: Very-Cold | G167: -33 | H167: 30 | Q167: =_xlfn.IFNA(LOOKUP(2, 1/((COUNTIF($Q$1:Q166, $D$2:$D$1686)=0)*($N$3=$C$2:$C$1686)), $D$2:$D$1686),"") -> Fort Erie | T167: =IFERROR(INDEX($Q$2:$Q$231,MATCH(ROWS($Q$2:Q167),COUNTIF($Q$2:$Q$231,"<="&$Q$2:$Q$231),0)),0) -> Port Burwell | U167: 167 | V167: Port Colborne
A168: 167 | B168: CAN | C168: MB | D168: Churchill | E168: 8950 | F168: Subarctic | G168: -38 | H168: 25 | Q168: =_xlfn.IFNA(LOOKUP(2, 1/((COUNTIF($Q$1:Q167, $D$2:$D$1686)=0)*($N$3=$C$2:$C$1686)), $D$2:$D$1686),"") -> Forest | T168: =IFERROR(INDEX($Q$2:$Q$231,MATCH(ROWS($Q$2:Q168),COUNTIF($Q$2:$Q$231,"<="&$Q$2:$Q$231),0)),0) -> Port Colborne | U168: 168 | V168: Port Elgin
A169: 168 | B169: CAN | C169: MB | D169: Dauphin | E169: 5900 | F169: Very-Cold | G169: -33 | H169: 30 | Q169: =_xlfn.IFNA(LOOKUP(2, 1/((COUNTIF($Q$1:Q168, $D$2:$D$1686)=0)*($N$3=$C$2:$C$1686)), $D$2:$D$1686),"") -> Fergus | T169: =IFERROR(INDEX($Q$2:$Q$231,MATCH(ROWS($Q$2:Q169),COUNTIF($Q$2:$Q$231,"<="&$Q$2:$Q$231),0)),0) -> Port Elgin | U169: 169 | V169: Port Hope
A170: 169 | B170: CAN | C170: MB | D170: Flin Flon | E170: 6440 | F170: Very-Cold | G170: -38 | H170: 27 | Q170: =_xlfn.IFNA(LOOKUP(2, 1/((COUNTIF($Q$1:Q169, $D$2:$D$1686)=0)*($N$3=$C$2:$C$1686)), $D$2:$D$1686),"") -> Fenelon Falls | T170: =IFERROR(INDEX($Q$2:$Q$231,MATCH(ROWS($Q$2:Q170),COUNTIF($Q$2:$Q$231,"<="&$Q$2:$Q$231),0)),0) -> Port Hope | U170: 170 | V170: Port Perry
A171: 170 | B171: CAN | C171: MB | D171: Gimli | E171: 5800 | F171: Very-Cold | G171: -34 | H171: 29 | Q171: =_xlfn.IFNA(LOOKUP(2, 1/((COUNTIF($Q$1:Q170, $D$2:$D$1686)=0)*($N$3=$C$2:$C$1686)), $D$2:$D$1686),"") -> Exeter | T171: =IFERROR(INDEX($Q$2:$Q$231,MATCH(ROWS($Q$2:Q171),COUNTIF($Q$2:$Q$231,"<="&$Q$2:$Q$231),0)),0) -> Port Perry | U171: 171 | V171: Port Stanley
A172: 171 | B172: CAN | C172: MB | D172: Island Lake | E172: 6900 | F172: Subarctic | G172: -36 | H172: 27 | Q172: =_xlfn.IFNA(LOOKUP(2, 1/((COUNTIF($Q$1:Q171, $D$2:$D$1686)=0)*($N$3=$C$2:$C$1686)), $D$2:$D$1686),"") -> Etobicoke | T172: =IFERROR(INDEX($Q$2:$Q$231,MATCH(ROWS($Q$2:Q172),COUNTIF($Q$2:$Q$231,"<="&$Q$2:$Q$231),0)),0) -> Port Stanley | U172: 172 | V172: Prescott
A173: 172 | B173: CAN | C173: MB | D173: Lac du Bonnet | E173: 5730 | F173: Very-Cold | G173: -34 | H173: 29 | Q173: =_xlfn.IFNA(LOOKUP(2, 1/((COUNTIF($Q$1:Q172, $D$2:$D$1686)=0)*($N$3=$C$2:$C$1686)), $D$2:$D$1686),"") -> Espanola | T173: =IFERROR(INDEX($Q$2:$Q$231,MATCH(ROWS($Q$2:Q173),COUNTIF($Q$2:$Q$231,"<="&$Q$2:$Q$231),0)),0) -> Prescott | U173: 173 | V173: Princeton
A174: 173 | B174: CAN | C174: MB | D174: Lynn Lake | E174: 7770 | F174: Subarctic | G174: -40 | H174: 27 | Q174: =_xlfn.IFNA(LOOKUP(2, 1/((COUNTIF($Q$1:Q173, $D$2:$D$1686)=0)*($N$3=$C$2:$C$1686)), $D$2:$D$1686),"") -> Englehart | T174: =IFERROR(INDEX($Q$2:$Q$231,MATCH(ROWS($Q$2:Q174),COUNTIF($Q$2:$Q$231,"<="&$Q$2:$Q$231),0)),0) -> Princeton | U174: 174 | V174: Raith
A175: 174 | B175: CAN | C175: MB | D175: Morden | E175: 5400 | F175: Very-Cold | G175: -31 | H175: 30 | Q175: =_xlfn.IFNA(LOOKUP(2, 1/((COUNTIF($Q$1:Q174, $D$2:$D$1686)=0)*($N$3=$C$2:$C$1686)), $D$2:$D$1686),"") -> Embro | T175: =IFERROR(INDEX($Q$2:$Q$231,MATCH(ROWS($Q$2:Q175),COUNTIF($Q$2:$Q$231,"<="&$Q$2:$Q$231),0)),0) -> Raith | U175: 175 | V175: Rayside-Balfour (Chelmsford)
A176: 175 | B176: CAN | C176: MB | D176: Neepawa | E176: 5760 | F176: Very-Cold | G176: -32 | H176: 29 | Q176: =_xlfn.IFNA(LOOKUP(2, 1/((COUNTIF($Q$1:Q175, $D$2:$D$1686)=0)*($N$3=$C$2:$C$1686)), $D$2:$D$1686),"") -> Elmvale | T176: =IFERROR(INDEX($Q$2:$Q$231,MATCH(ROWS($Q$2:Q176),COUNTIF($Q$2:$Q$231,"<="&$Q$2:$Q$231),0)),0) -> Rayside-Balfour (Chelmsford) | U176: 176 | V176: Red Lake
A177: 176 | B177: CAN | C177: MB | D177: Pine Falls | E177: 5900 | F177: Very-Cold | G177: -34 | H177: 28 | Q177: =_xlfn.IFNA(LOOKUP(2, 1/((COUNTIF($Q$1:Q176, $D$2:$D$1686)=0)*($N$3=$C$2:$C$1686)), $D$2:$D$1686),"") -> Elliot Lake | T177: =IFERROR(INDEX($Q$2:$Q$231,MATCH(ROWS($Q$2:Q177),COUNTIF($Q$2:$Q$231,"<="&$Q$2:$Q$231),0)),0) -> Red Lake | U177: 177 | V177: Renfrew
A178: 177 | B178: CAN | C178: MB | D178: Portage la Prairie | E178: 5600 | F178: Very-Cold | G178: -31 | H178: 30 | Q178: =_xlfn.IFNA(LOOKUP(2, 1/((COUNTIF($Q$1:Q177, $D$2:$D$1686)=0)*($N$3=$C$2:$C$1686)), $D$2:$D$1686),"") -> Edison | T178: =IFERROR(INDEX($Q$2:$Q$231,MATCH(ROWS($Q$2:Q178),COUNTIF($Q$2:$Q$231,"<="&$Q$2:$Q$231),0)),0) -> Renfrew | U178: 178 | V178: Richmond Hill
A179: 178 | B179: CAN | C179: MB | D179: Rivers | E179: 5840 | F179: Very-Cold | G179: -34 | H179: 29 | Q179: =_xlfn.IFNA(LOOKUP(2, 1/((COUNTIF($Q$1:Q178, $D$2:$D$1686)=0)*($N$3=$C$2:$C$1686)), $D$2:$D$1686),"") -> Earlton | T179: =IFERROR(INDEX($Q$2:$Q$231,MATCH(ROWS($Q$2:Q179),COUNTIF($Q$2:$Q$231,"<="&$Q$2:$Q$231),0)),0) -> Richmond Hill | U179: 179 | V179: Rockland
A180: 179 | B180: CAN | C180: MB | D180: Sandilands | E180: 5650 | F180: Very-Cold | G180: -32 | H180: 29 | Q180: =_xlfn.IFNA(LOOKUP(2, 1/((COUNTIF($Q$1:Q179, $D$2:$D$1686)=0)*($N$3=$C$2:$C$1686)), $D$2:$D$1686),"") -> Dutton | T180: =IFERROR(INDEX($Q$2:$Q$231,MATCH(ROWS($Q$2:Q180),COUNTIF($Q$2:$Q$231,"<="&$Q$2:$Q$231),0)),0) -> Rockland | U180: 180 | V180: Sarnia
A181: 180 | B181: CAN | C181: MB | D181: Selkirk | E181: 5700 | F181: Very-Cold | G181: -33 | H181: 29 | Q181: =_xlfn.IFNA(LOOKUP(2, 1/((COUNTIF($Q$1:Q180, $D$2:$D$1686)=0)*($N$3=$C$2:$C$1686)), $D$2:$D$1686),"") -> Durham | T181: =IFERROR(INDEX($Q$2:$Q$231,MATCH(ROWS($Q$2:Q181),COUNTIF($Q$2:$Q$231,"<="&$Q$2:$Q$231),0)),0) -> Sarnia | U181: 181 | V181: Sault Ste. Marie
A182: 181 | B182: CAN | C182: MB | D182: Split Lake | E182: 7900 | F182: Subarctic | G182: -38 | H182: 27 | Q182: =_xlfn.IFNA(LOOKUP(2, 1/((COUNTIF($Q$1:Q181, $D$2:$D$1686)=0)*($N$3=$C$2:$C$1686)), $D$2:$D$1686),"") -> Dunnville | T182: =IFERROR(INDEX($Q$2:$Q$231,MATCH(ROWS($Q$2:Q182),COUNTIF($Q$2:$Q$231,"<="&$Q$2:$Q$231),0)),0) -> Sault Ste. Marie | U182: 182 | V182: Scarborough
A183: 182 | B183: CAN | C183: MB | D183: Steinbach | E183: 5700 | F183: Very-Cold | G183: -33 | H183: 29 | Q183: =_xlfn.IFNA(LOOKUP(2, 1/((COUNTIF($Q$1:Q182, $D$2:$D$1686)=0)*($N$3=$C$2:$C$1686)), $D$2:$D$1686),"") -> Dundalk | T183: =IFERROR(INDEX($Q$2:$Q$231,MATCH(ROWS($Q$2:Q183),COUNTIF($Q$2:$Q$231,"<="&$Q$2:$Q$231),0)),0) -> Scarborough | U183: 183 | V183: Schreiber
A184: 183 | B184: CAN | C184: MB | D184: Swan River | E184: 6100 | F184: Very-Cold | G184: -34 | H184: 29 | Q184: =_xlfn.IFNA(LOOKUP(2, 1/((COUNTIF($Q$1:Q183, $D$2:$D$1686)=0)*($N$3=$C$2:$C$1686)), $D$2:$D$1686),"") -> Dryden | T184: =IFERROR(INDEX($Q$2:$Q$231,MATCH(ROWS($Q$2:Q184),COUNTIF($Q$2:$Q$231,"<="&$Q$2:$Q$231),0)),0) -> Schreiber | U184: 184 | V184: Seaforth
A185: 184 | B185: CAN | C185: MB | D185: The Pas | E185: 6480 | F185: Very-Cold | G185: -36 | H185: 28 | Q185: =_xlfn.IFNA(LOOKUP(2, 1/((COUNTIF($Q$1:Q184, $D$2:$D$1686)=0)*($N$3=$C$2:$C$1686)), $D$2:$D$1686),"") -> Dresden | T185: =IFERROR(INDEX($Q$2:$Q$231,MATCH(ROWS($Q$2:Q185),COUNTIF($Q$2:$Q$231,"<="&$Q$2:$Q$231),0)),0) -> Seaforth | U185: 185 | V185: Shelburne
A186: 185 | B186: CAN | C186: MB | D186: Thompson | E186: 7600 | F186: Subarctic | G186: -40 | H186: 27 | Q186: =_xlfn.IFNA(LOOKUP(2, 1/((COUNTIF($Q$1:Q185, $D$2:$D$1686)=0)*($N$3=$C$2:$C$1686)), $D$2:$D$1686),"") -> Dorion | T186: =IFERROR(INDEX($Q$2:$Q$231,MATCH(ROWS($Q$2:Q186),COUNTIF($Q$2:$Q$231,"<="&$Q$2:$Q$231),0)),0) -> Shelburne | U186: 186 | V186: Simcoe
A187: 186 | B187: CAN | C187: MB | D187: Virden | E187: 5620 | F187: Very-Cold | G187: -33 | H187: 30 | Q187: =_xlfn.IFNA(LOOKUP(2, 1/((COUNTIF($Q$1:Q186, $D$2:$D$1686)=0)*($N$3=$C$2:$C$1686)), $D$2:$D$1686),"") -> Dorchester | T187: =IFERROR(INDEX($Q$2:$Q$231,MATCH(ROWS($Q$2:Q187),COUNTIF($Q$2:$Q$231,"<="&$Q$2:$Q$231),0)),0) -> Simcoe | U187: 187 | V187: Sioux Lookout
A188: 187 | B188: CAN | C188: MB | D188: Winnipeg | E188: 5670 | F188: Very-Cold | G188: -33 | H188: 30 | Q188: =_xlfn.IFNA(LOOKUP(2, 1/((COUNTIF($Q$1:Q187, $D$2:$D$1686)=0)*($N$3=$C$2:$C$1686)), $D$2:$D$1686),"") -> Deseronto | T188: =IFERROR(INDEX($Q$2:$Q$231,MATCH(ROWS($Q$2:Q188),COUNTIF($Q$2:$Q$231,"<="&$Q$2:$Q$231),0)),0) -> Sioux Lookout | U188: 188 | V188: Smiths Falls
A189: 188 | B189: CAN | C189: NB | D189: Alma | E189: 4500 | F189: Very-Cold | G189: -21 | H189: 26 | Q189: =_xlfn.IFNA(LOOKUP(2, 1/((COUNTIF($Q$1:Q188, $D$2:$D$1686)=0)*($N$3=$C$2:$C$1686)), $D$2:$D$1686),"") -> Deep River | T189: =IFERROR(INDEX($Q$2:$Q$231,MATCH(ROWS($Q$2:Q189),COUNTIF($Q$2:$Q$231,"<="&$Q$2:$Q$231),0)),0) -> Smiths Falls | U189: 189 | V189: Smithville
A190: 189 | B190: CAN | C190: NB | D190: Bathurst | E190: 5020 | F190: Very-Cold | G190: -23 | H190: 30 | Q190: =_xlfn.IFNA(LOOKUP(2, 1/((COUNTIF($Q$1:Q189, $D$2:$D$1686)=0)*($N$3=$C$2:$C$1686)), $D$2:$D$1686),"") -> Corunna | T190: =IFERROR(INDEX($Q$2:$Q$231,MATCH(ROWS($Q$2:Q190),COUNTIF($Q$2:$Q$231,"<="&$Q$2:$Q$231),0)),0) -> Smithville | U190: 190 | V190: Smooth Rock Falls
A191: 190 | B191: CAN | C191: NB | D191: Campbellton | E191: 5500 | F191: Very-Cold | G191: -26 | H191: 29 | Q191: =_xlfn.IFNA(LOOKUP(2, 1/((COUNTIF($Q$1:Q190, $D$2:$D$1686)=0)*($N$3=$C$2:$C$1686)), $D$2:$D$1686),"") -> Cornwall | T191: =IFERROR(INDEX($Q$2:$Q$231,MATCH(ROWS($Q$2:Q191),COUNTIF($Q$2:$Q$231,"<="&$Q$2:$Q$231),0)),0) -> Smooth Rock Falls | U191: 191 | V191: South River
A192: 191 | B192: CAN | C192: NB | D192: Edmundston | E192: 5320 | F192: Very-Cold | G192: -27 | H192: 28 | Q192: =_xlfn.IFNA(LOOKUP(2, 1/((COUNTIF($Q$1:Q191, $D$2:$D$1686)=0)*($N$3=$C$2:$C$1686)), $D$2:$D$1686),"") -> Collingwood | T192: =IFERROR(INDEX($Q$2:$Q$231,MATCH(ROWS($Q$2:Q192),COUNTIF($Q$2:$Q$231,"<="&$Q$2:$Q$231),0)),0) -> South River | U192: 192 | V192: Southampton
A193: 192 | B193: CAN | C193: NB | D193: Fredericton | E193: 4670 | F193: Very-Cold | G193: -24 | H193: 29 | Q193: =_xlfn.IFNA(LOOKUP(2, 1/((COUNTIF($Q$1:Q192, $D$2:$D$1686)=0)*($N$3=$C$2:$C$1686)), $D$2:$D$1686),"") -> Colborne | T193: =IFERROR(INDEX($Q$2:$Q$231,MATCH(ROWS($Q$2:Q193),COUNTIF($Q$2:$Q$231,"<="&$Q$2:$Q$231),0)),0) -> Southampton | U193: 193 | V193: St. Catharines
A194: 193 | B194: CAN | C194: NB | D194: Gagetown | E194: 4460 | F194: Cold-Humid | G194: -24 | H194: 29 | Q194: =_xlfn.IFNA(LOOKUP(2, 1/((COUNTIF($Q$1:Q193, $D$2:$D$1686)=0)*($N$3=$C$2:$C$1686)), $D$2:$D$1686),"") -> Cochrane | T194: =IFERROR(INDEX($Q$2:$Q$231,MATCH(ROWS($Q$2:Q194),COUNTIF($Q$2:$Q$231,"<="&$Q$2:$Q$231),0)),0) -> St. Catharines | U194: 194 | V194: St. Mary's
A195: 194 | B195: CAN | C195: NB | D195: Grand Falls | E195: 5300 | F195: Very-Cold | G195: -27 | H195: 28 | Q195: =_xlfn.IFNA(LOOKUP(2, 1/((COUNTIF($Q$1:Q194, $D$2:$D$1686)=0)*($N$3=$C$2:$C$1686)), $D$2:$D$1686),"") -> Cobourg | T195: =IFERROR(INDEX($Q$2:$Q$231,MATCH(ROWS($Q$2:Q195),COUNTIF($Q$2:$Q$231,"<="&$Q$2:$Q$231),0)),0) -> St. Mary's | U195: 195 | V195: =IFERROR(INDEX($T$2:$T$231,U195,1),"") -> St. Thomas
A196: 195 | B196: CAN | C196: NB | D196: Miramichi | E196: 4950 | F196: Very-Cold | G196: -24 | H196: 30 | Q196: =_xlfn.IFNA(LOOKUP(2, 1/((COUNTIF($Q$1:Q195, $D$2:$D$1686)=0)*($N$3=$C$2:$C$1686)), $D$2:$D$1686),"") -> Coboconk | T196: =IFERROR(INDEX($Q$2:$Q$231,MATCH(ROWS($Q$2:Q196),COUNTIF($Q$2:$Q$231,"<="&$Q$2:$Q$231),0)),0) -> St. Thomas | U196: =U195+1 -> 196 | V196: Stirling
A197: 196 | B197: CAN | C197: NB | D197: Moncton | E197: 4680 | F197: Very-Cold | G197: -23 | H197: 28 | Q197: =_xlfn.IFNA(LOOKUP(2, 1/((COUNTIF($Q$1:Q196, $D$2:$D$1686)=0)*($N$3=$C$2:$C$1686)), $D$2:$D$1686),"") -> Clinton | T197: =IFERROR(INDEX($Q$2:$Q$231,MATCH(ROWS($Q$2:Q197),COUNTIF($Q$2:$Q$231,"<="&$Q$2:$Q$231),0)),0) -> Stirling | U197: 197 | V197: Stratford
A198: 197 | B198: CAN | C198: NB | D198: Oromocto | E198: 4650 | F198: Very-Cold | G198: -24 | H198: 29 | Q198: =_xlfn.IFNA(LOOKUP(2, 1/((COUNTIF($Q$1:Q197, $D$2:$D$1686)=0)*($N$3=$C$2:$C$1686)), $D$2:$D$1686),"") -> Chesley | T198: =IFERROR(INDEX($Q$2:$Q$231,MATCH(ROWS($Q$2:Q198),COUNTIF($Q$2:$Q$231,"<="&$Q$2:$Q$231),0)),0) -> Stratford | U198: 198 | V198: Strathroy
A199: 198 | B199: CAN | C199: NB | D199: Sackville | E199: 4590 | F199: Very-Cold | G199: -22 | H199: 27 | Q199: =_xlfn.IFNA(LOOKUP(2, 1/((COUNTIF($Q$1:Q198, $D$2:$D$1686)=0)*($N$3=$C$2:$C$1686)), $D$2:$D$1686),"") -> Chatham | T199: =IFERROR(INDEX($Q$2:$Q$231,MATCH(ROWS($Q$2:Q199),COUNTIF($Q$2:$Q$231,"<="&$Q$2:$Q$231),0)),0) -> Strathroy | U199: 199 | V199: Sturgeon Falls
A200: 199 | B200: CAN | C200: NB | D200: Saint Andrews | E200: 4680 | F200: Very-Cold | G200: -22 | H200: 25 | Q200: =_xlfn.IFNA(LOOKUP(2, 1/((COUNTIF($Q$1:Q199, $D$2:$D$1686)=0)*($N$3=$C$2:$C$1686)), $D$2:$D$1686),"") -> Chapleau | T200: =IFERROR(INDEX($Q$2:$Q$231,MATCH(ROWS($Q$2:Q200),COUNTIF($Q$2:$Q$231,"<="&$Q$2:$Q$231),0)),0) -> Sturgeon Falls | U200: 200 | V200: Sudbury
... 1486 more rows

Sheet Load %s (hidden)
A1: Heating Example | O1: Peak Load | P1: 1 | Q1: kW
A2: Climate Zone | D2: Subartic | E2: Very Cold | F2: Cold/Dry | G2: Cold/Humid | H2: Marine | I2: Mixed | J2: Hot/Humid | K2: Hot/Dry | O2: Subartic | P2: Very Cold | Q2: Cold/Dry | R2: Cold/Humid | S2: Marine | T2: Mixed | U2: Hot/Humid | V2: Hot/Dry
A3: Heating test set used: | D3: Standard | H3: Marine | I3: Standard
A4: TODH oF | D4: -40 | E4: -10 | F4: 4 | G4: -1 | H4: 30 | I4: 16 | J4: 33 | K4: 26
A5: N (Hours) | D5: 7758 | E5: 6340 | F5: 5017 | G5: 4808 | H5: 4630 | I5: 3299 | J5: 1199 | K5: 2162
A6: Indoor DB(ref) | D6: 70
A7: j | B7: Tj oF | C7: range | D7: Fractional bin hours, nj/N | O7: Column1 | P7: Column1 | Q7: Column1 | R7: Column1 | S7: Column1 | T7: Column1 | U7: Column1 | V7: Column1
A8: 1 | B8: =IF('Intro & Unit Options'!$B$12="Metric",(A28-32)*(5/9),A28) -> -23 | C8: <-20.5 | D8: 0.043 | E8: 0.004 | F8: - | G8: - | H8: - | I8: - | J8: - | K8: - | N8: =B8 -> -23 | O8: 1 | P8: 1 | Q8: 1 | R8: 1 | S8: 1 | T8: 1 | U8: 1 | V8: 1
A9: 2 | B9: =IF('Intro & Unit Options'!$B$12="Metric",(A29-32)*(5/9),A29) -> -18 | C9: -20.5 - -15.5 | D9: 0.024 | E9: 0.006 | F9: 0.001 | G9: 0.002 | H9: - | I9: - | J9: - | K9: - | N9: =B9 -> -18 | O9: 0.9038005391 | P9: 0.9885741818 | Q9: 1 | R9: 1 | S9: 1 | T9: 1 | U9: 1 | V9: 1
A10: 3 | B10: =IF('Intro & Unit Options'!$B$12="Metric",(A30-32)*(5/9),A30) -> -13 | C10: -15.5 - -10.5 | D10: 0.028 | E10: 0.009 | F10: 0.002 | G10: 0.003 | H10: - | I10: - | J10: - | K10: - | N10: -13 | O10: 0.8533423181 | P10: 0.9724679079 | Q10: 0.9968595241 | R10: 0.9942460903 | S10: 1 | T10: 1 | U10: 1 | V10: 1
A11: 4 | B11: =IF('Intro & Unit Options'!$B$12="Metric",(A31-32)*(5/9),A31) -> -8 | C11: -10.5 - -5.5 | D11: 0.036 | E11: 0.015 | F11: 0.004 | G11: 0.007 | H11: - | I11: - | J11: - | K11: - | N11: -8 | O11: 0.7982479784 | P11: 0.9498571773 | Q11: 0.9909811974 | R11: 0.9861684863 | S11: 1 | T11: 1 | U11: 1 | V11: 1
A12: 5 | B12: =IF('Intro & Unit Options'!$B$12="Metric",(A32-32)*(5/9),A32) -> -3 | C12: -5.5 - -0.5 | D12: 0.038 | E12: 0.019 | F12: 0.005 | G12: 0.01 | H12: - | I12: 0.001 | J12: - | K12: - | N12: -3 | O12: 0.7322641509 | P12: 0.9147537599 | Q12: 0.9800297943 | R12: 0.9686116849 | S12: 1 | T12: 1 | U12: 1 | V12: 1
A13: 6 | B13: =IF('Intro & Unit Options'!$B$12="Metric",(A33-32)*(5/9),A33) -> 2 | C13: -0.5 - 4.5 | D13: 0.05 | E13: 0.028 | F13: 0.01 | G13: 0.02 | H13: - | I13: 0.003 | J13: - | K13: 0.001 | N13: 2 | O13: 0.6677358491 | P13: 0.8735588671 | Q13: 0.9673471031 | R13: 0.9453747418 | S13: 1 | T13: 0.9970344568 | U13: 1 | V13: 1
A14: 7 | B14: =IF('Intro & Unit Options'!$B$12="Metric",(A34-32)*(5/9),A34) -> 7 | C14: 4.5 - 9.5 | D14: 0.05 | E14: 0.035 | F14: 0.014 | G14: 0.029 | H14: - | I14: 0.007 | J14: - | K14: 0.002 | N14: 7 | O14: 0.5895687332 | P14: 0.8176687201 | Q14: 0.9439948464 | R14: 0.9025892594 | S14: 1 | T14: 0.9888439089 | U14: 1 | V14: 0.9965599051
A15: 8 | B15: =IF('Intro & Unit Options'!$B$12="Metric",(A35-32)*(5/9),A35) -> 12 | C15: 9.5 - 14.5 | D15: 0.051 | E15: 0.045 | F15: 0.025 | G15: 0.041 | H15: - | I15: 0.015 | J15: 0.001 | K15: 0.004 | N15: 12 | O15: 0.5181401617 | P15: 0.7538286816 | Q15: 0.9141200628 | R15: 0.8458984951 | S15: 1 | T15: 0.9713801544 | U15: 1 | V15: 0.9902728351
A16: 9 | B16: =IF('Intro & Unit Options'!$B$12="Metric",(A36-32)*(5/9),A36) -> 17 | C16: 14.5 - 19.5 | D16: 0.062 | E16: 0.061 | F16: 0.047 | G16: 0.062 | H16: 0.002 | I16: 0.033 | J16: 0.005 | K16: 0.011 | N16: 17 | O16: 0.4521563342 | P16: 0.6794920329 | Q16: 0.8658050489 | R16: 0.7733107111 | S16: 1 | T16: 0.937488232 | U16: 0.9971096526 | V16: 0.9788849348
A17: 10 | B17: =IF('Intro & Unit Options'!$B$12="Metric",(A37-32)*(5/9),A37) -> 22 | C17: 19.5 - 24.5 | D17: 0.057 | E17: 0.067 | F17: 0.064 | G17: 0.071 | H17: 0.005 | I17: 0.046 | J17: 0.015 | K17: 0.022 | N17: 22 | O17: 0.380296496 | P17: 0.5892211859 | Q17: 0.784434513 | R17: 0.6749778696 | S17: 0.9943110406 | T17: 0.8706929015 | U17: 0.9841633046 | V17: 0.9508303677
A18: 11 | B18: =IF('Intro & Unit Options'!$B$12="Metric",(A38-32)*(5/9),A38) -> 27 | C18: 24.5 - 29.5 | D18: 0.089 | E18: 0.102 | F18: 0.12 | G18: 0.116 | H18: 0.019 | I18: 0.094 | J18: 0.049 | K18: 0.054 | N18: 27 | O18: 0.3219137466 | P18: 0.5016003029 | Q18: 0.6865160849 | R18: 0.5754647389 | S18: 0.9817424092 | T18: 0.7884108454 | U18: 0.9498404287 | V18: 0.9012455516
A19: 12 | B19: =IF('Intro & Unit Options'!$B$12="Metric",(A39-32)*(5/9),A39) -> 32 | C19: 29.5 - 34.5 | D19: 0.123 | E19: 0.136 | F19: 0.162 | G19: 0.15 | H19: 0.061 | I19: 0.137 | J19: 0.098 | K19: 0.093 | N19: 32 | O19: 0.2427493261 | P19: 0.3857590254 | Q19: 0.527076539 | R19: 0.4342726468 | S19: 0.9402659258 | T19: 0.6423931463 | U19: 0.8524718492 | V19: 0.7955516014
A20: 13 | B20: =IF('Intro & Unit Options'!$B$12="Metric",(A40-32)*(5/9),A40) -> 37 | C20: 34.5 - 39.5 | D20: 0.114 | E20: 0.145 | F20: 0.171 | G20: 0.151 | H20: 0.147 | I20: 0.171 | J20: 0.165 | K20: 0.145 | N20: 37 | O20: 0.1499191375 | P20: 0.254706267 | Q20: 0.3444457865 | R20: 0.2793596931 | S20: 0.8272805451 | T20: 0.4618245152 | U20: 0.6872403203 | V20: 0.6411032028
A21: 14 | B21: =IF('Intro & Unit Options'!$B$12="Metric",(A41-32)*(5/9),A41) -> 42 | C21: 39.5 - 44.5 | D21: 0.076 | E21: 0.108 | F21: 0.125 | G21: 0.104 | H21: 0.199 | I21: 0.147 | J21: 0.173 | K21: 0.161 | N21: 42 | O21: 0.07924528302 | P21: 0.1399318581 | Q21: 0.1860933285 | R21: 0.1512614341 | S21: 0.6036250579 | T21: 0.2766898889 | U21: 0.4587222256 | V21: 0.4432977461
A22: 15 | B22: =IF('Intro & Unit Options'!$B$12="Metric",(A42-32)*(5/9),A42) -> 47 | C22: 44.5 - 49.5 | D22: 0.082 | E22: 0.108 | F22: 0.123 | G22: 0.114 | H22: 0.282 | I22: 0.161 | J22: 0.217 | K22: 0.218 | N22: 47 | O22: 0.04237196765 | P22: 0.07302887428 | Q22: 0.09550267746 | R22: 0.08221451756 | S22: 0.3666732817 | T22: 0.152137074 | U22: 0.2712109351 | V22: 0.2714116251
A23: 16 | B23: =IF('Intro & Unit Options'!$B$12="Metric",(A43-32)*(5/9),A43) -> 52 | C23: 49.5 - 54.5 | D23: 0.055 | E23: 0.077 | F23: 0.079 | G23: 0.078 | H23: 0.205 | I23: 0.118 | J23: 0.171 | K23: 0.175 | N23: 52 | O23: 0.01363881402 | P23: 0.02471005266 | Q23: 0.03112292145 | R23: 0.02755237533 | S23: 0.1241648475 | T23: 0.05361513839 | U23: 0.1013428072 | V23: 0.1033214709
A24: 17 | B24: =IF('Intro & Unit Options'!$B$12="Metric",(A44-32)*(5/9),A44) -> 57 | C24: >54.5 | D24: 0.022 | E24: 0.034 | F24: 0.047 | G24: 0.041 | H24: 0.079 | I24: 0.065 | J24: 0.105 | K24: 0.114 | N24: 57 | O24: 0.001778975741 | P24: 0.003510341742 | Q24: 0.005677014132 | R24: 0.0045367365 | S24: 0.01567771383 | T24: 0.009179062323 | U24: 0.0189679051 | V24: 0.02028469751
A28: -23
A29: -18 | G29: ="HP#1 t-BPT= "&ROUND(G30,0)&'Step 3 Design Loads'!C13 -> HP#1 t-BPT= 0F | I29: =IFERROR(IF(IFERROR(ROUND(G30,0)=ROUND(I30,0),FALSE),NA(),IF(NOT('Step 5 Identify & Select ASHPs'!B9=1),"HP#2 t-BPT="&ROUND(I30,0)&'Step 3 Design Loads'!C13,"")),"") ->  | K29: =IF(OR(IFERROR(ROUND(K30,0)=ROUND(G30,0),FALSE),IFERROR(ROUND(I30,0)=ROUND(K30,0),FALSE)),NA(),IF(AND(NOT('Step 5 Identify & Select ASHPs'!B9=1),NOT('Step 5 Identify & Select ASHPs'!B9=2)),"HP#3 t-BPT= "&ROUND(K30,0)&'Step 3 Design Loads'!C13,"")) ->  | M29: =IF(OR(IFERROR(ROUND(M30,0)=ROUND(G30,0),FALSE),IFERROR(ROUND(I30,0)=ROUND(M30,0),FALSE),IFERROR(ROUND(M30,0)=ROUND(K30,0),FALSE)),NA(),IF(AND(NOT('Step 5 Identify & Select ASHPs'!B9=1),NOT('Step 5 Identify & Select ASHPs'!B9=2),NOT('Step 5 Identify & Select ASHPs'!B9=3)),"HP#4 t-BPT= "&ROUND(M30,0)&'Step 3 Design Loads'!C13,"")) -> 
A30: -13 | G30: ='HP1 Calcs'!AV6 -> 0 | H30: =IF('Step 5 Identify & Select ASHPs'!B24="User Input Curve",'HP1'!L8,'HP1 Calcs'!Z4) -> 0 | I30: ='HP1 Calcs'!AV10 -> 0 | K30: ='HP1 Calcs'!AV14 -> 0 | L30: 0 | M30: ='HP1 Calcs'!AV18 -> 0 | N30: 0
A31: -8 | G31: =G30 -> 0 | H31: 0 | I31: =I30 -> 0 | J31: 0 | K31: =K30 -> 0 | L31: 0 | M31: =M30 -> 0 | N31: 0
A32: -3
A33: 2
A34: 7
A35: 12
A36: 17
A37: 22
A38: 27
A39: 32
A40: 37
A41: 42
A42: 47
A43: 52
A44: 57

Sheet Design Load Calcs (hidden)
G1: Load Line | O1: line at 17F
A2: User input | O2: =IF('Step 4 Sizing Approach'!B6='Step 4 Sizing Approach'!T4,G15,NA()) -> 17 | P2: =IF('Step 4 Sizing Approach'!B6='Step 4 Sizing Approach'!T4,H15,NA()) -> 35833.33333
A3: Heating Load | B3: =IF(OR('Step 3 Design Loads'!$B$11='Step 3 Design Loads'!$T$5,'Step 3 Design Loads'!$B$11='Step 3 Design Loads'!$T$7),'Step 3 Design Loads'!B12,IF('Step 3 Design Loads'!$B$11='Step 3 Design Loads'!$T$6,('Step 3 Design Loads'!B12)/((100-'Step 3 Design Loads'!B16)/100),IF('Step 3 Design Loads'!$B$11='Step 3 Design Loads'!$T$8,'Step 3 Design Loads'!B12,"-"))) -> 50000 | G3: =IF('Intro & Unit Options'!$B$12="Imperial","Outdoor Temperature (°F)","Outdoor Temperature (°C)") -> Outdoor Temperature (°F) | H3: =IF('Intro & Unit Options'!$B$12="Imperial","Heating Load (BTU/h)","Heating Load (kW)") -> Heating Load (BTU/h) | O3: =O2 -> 17 | P3: 0
A4: Heating temperature | B4: =IF(OR('Step 3 Design Loads'!$B$11='Step 3 Design Loads'!$T$5,'Step 3 Design Loads'!$B$11='Step 3 Design Loads'!$T$7),'Step 3 Design Loads'!B13,IF('Step 3 Design Loads'!$B$11='Step 3 Design Loads'!$T$6,'Step 3 Design Loads'!B13,IF('Step 3 Design Loads'!$B$11='Step 3 Design Loads'!$T$8,'Step 3 Design Loads'!B13,"-"))) -> 0 | G4: =B4 -> 0 | H4: =B23 -> 50000 | I4: =IF(C23="","Heating Load Line","Heating Load (140% Oversize)") -> Heating Load Line | K4: Heating Design Temp and Load | O4: Design heat load
A5: Cooling Load | B5: =IF(OR('Step 3 Design Loads'!$B$11='Step 3 Design Loads'!$T$5,'Step 3 Design Loads'!$B$11='Step 3 Design Loads'!$T$7,'Step 3 Design Loads'!$B$11='Step 3 Design Loads'!$T$6),'Step 3 Design Loads'!B14,IF('Step 3 Design Loads'!$B$11='Step 3 Design Loads'!$T$8,'Step 3 Design Loads'!B14,"-")) -> 30000 | G5: =IF('Intro & Unit Options'!B12="Metric",(60-32)*(5/9),60) -> 60 | H5: 0 | O5: =G4 -> 0 | P5: =H4 -> 50000
A6: Cooling temperature | B6: =IF(OR('Step 3 Design Loads'!$B$11='Step 3 Design Loads'!$T$5,'Step 3 Design Loads'!$B$11='Step 3 Design Loads'!$T$7),'Step 3 Design Loads'!B15,IF('Step 3 Design Loads'!$B$11='Step 3 Design Loads'!$T$6,'Step 3 Design Loads'!B15,IF('Step 3 Design Loads'!$B$11='Step 3 Design Loads'!$T$8,'Step 3 Design Loads'!B15,"-"))) -> 88 | O6: =IFERROR(IF(O5=FLOOR(O5,10),O5-10,FLOOR(O5,10)),0) -> -10 | P6: =H4 -> 50000
G7: =IF(C23="",NA(),B24) ->  | H7: =IF(C23="",NA(),C23) ->  | I7: =IF(C23="","","Heating Load (125% Oversize)") ->  | O7: Heating design temperature
G8: =IF(C23="",NA(),IF('Intro & Unit Options'!B12="Metric",(60-32)*(5/9),60)) ->  | H8: =IF(C23="",NA(),0) ->  | O8: =G4 -> 0 | P8: =H4 -> 50000
H9: =IF('Intro & Unit Options'!$B$12="Imperial","Cooling Load (BTU/h)","Cooling Load (kW)") -> Cooling Load (BTU/h) | O9: =O8 -> 0 | P9: 0
G10: =B6 -> 88 | H10: =B25 -> 30000 | I10: =IF(C23="","Design Cooling Load","Design Cooling Load LOW") -> Design Cooling Load | K10: Cooling Design T and Load | O10: Design Cool Load
G11: =IF(C23="",NA(),B26) ->  | H11: =IF(C23="",NA(),C25) ->  | I11: =IF(C23="","","Design Cooling Load HIGH") ->  | O11: =B6 -> 88 | P11: =H10 -> 30000
A12: Option D range: | O12: =IFERROR(CEILING(O11,10)+10,0)+IF('Intro & Unit Options'!B12="Metric",0,10) -> 110 | P12: =P11 -> 30000
A13: Heating | B13: Low | C13: =B3/1.4 -> 35714.28571 | D13: 140% oversize | O13: Design Cool Temperature
B14: High | C14: =B3/1.25 -> 40000 | D14: 125% oversize | G14: ASHP Target Heat Capacity (If Option C or D) | O14: =B6 -> 88 | P14: =H10 -> 30000
A15: Cooling | B15: Low | C15: =B5/1.4 -> 21428.57143 | D15: 140% oversize | G15: =IF('Step 4 Sizing Approach'!B6='Step 4 Sizing Approach'!T4,IF('Intro & Unit Options'!B12="Metric",(17-32)*(5/9),17),IF('Step 4 Sizing Approach'!B6='Step 4 Sizing Approach'!T5,IF('Intro & Unit Options'!B12="Metric",('Step 3 Design Loads'!$B$13-32)*(5/9),'Step 3 Design Loads'!$B$13),NA())) -> 17 | H15: =G25 -> 35833.33333 | O15: =O14 -> 88 | P15: 0
B16: High | C16: =B5/1.25 -> 24000 | D16: 125% oversize
G17: Target Capacity Range (Option A,B)
G18: =IF(OR('Step 4 Sizing Approach'!B6='Step 4 Sizing Approach'!T2,'Step 4 Sizing Approach'!B6='Step 4 Sizing Approach'!T3),B6,NA()) ->  | H18: =IF(OR('Step 4 Sizing Approach'!B6='Step 4 Sizing Approach'!T2,'Step 4 Sizing Approach'!B6='Step 4 Sizing Approach'!T3),IF(OR('Step 4 Sizing Approach'!B6='Step 4 Sizing Approach'!T5,'Step 4 Sizing Approach'!B6='Step 4 Sizing Approach'!T4),C20*0.8,'Step 4 Sizing Approach'!B15),NA()) -> 
G19: =G18 ->  | H19: =IF(OR('Step 4 Sizing Approach'!B6='Step 4 Sizing Approach'!T2,'Step 4 Sizing Approach'!B6='Step 4 Sizing Approach'!T3),IF(OR('Step 4 Sizing Approach'!B6='Step 4 Sizing Approach'!T5,'Step 4 Sizing Approach'!B6='Step 4 Sizing Approach'!T4),C20*1.25,'Step 4 Sizing Approach'!D15),NA()) -> 
A20: Cooling Load | C20: =IF('Step 3 Design Loads'!B11='Step 3 Design Loads'!T8,IF('Step 3 Design Loads'!B18=140,C15, C16),B5) -> 30000
F21: Slope line (low or nornal) | J21: Slope line (high)
A22: Oversize | B22: =IF('Step 3 Design Loads'!B18=140,1.4,1.25) -> 1.4 | C22: 1.25 | G22: a | H22: b | J22: a | K22: b | O22: ='Step 3 Design Loads'!#REF! -> 
A23: Heating Load | B23: =IF('Step 3 Design Loads'!B11='Step 3 Design Loads'!T8,IF('Step 3 Design Loads'!B18=140,'Design Load Calcs'!C13,'Design Load Calcs'!C14),B3) -> 50000 | C23: =IF('Step 3 Design Loads'!B11='Step 3 Design Loads'!T8,"","") ->  | G23: =(H5-H4)/(G5-G4) -> -833.3333333 | H23: =H5-(G23*G5) -> 50000 | J23: =(H8-H7)/(G5-G4) ->  | K23: =H7-(J23*G7) -> 
A24: Heating temperature | B24: =B4 -> 0
A25: Cooling Load | B25: =IF('Step 3 Design Loads'!B11='Step 3 Design Loads'!T8,IF('Step 3 Design Loads'!B18=140,C15, C16),B5) -> 30000 | C25: =IF('Step 3 Design Loads'!B11='Step 3 Design Loads'!T8,"","") ->  | G25: =G23*G15+H23 -> 35833.33333 | J25: =J23*G15+K23 -> 
A26: Cooling temperature | B26: =B6 -> 88
G27: Target Capacity Range (Option A,B)
G28: =B6 -> 88 | H28: =IF(C23="",NA(),C20*0.8) -> 
G29: =G28 -> 88 | H29: =IF(C25="",NA(),C20*1.25) -> 
A30: Target AF | B30: =IF('Intro & Unit Options'!B12="Metric",(400*(B25*3412))/12000,(400*(B25))/12000) -> 1000
A31: Max AF+200 | B31: ='Step 4 Sizing Approach'!B10+200 -> 1675
G32: =B26 -> 88 | H32: =C20*0.8 -> 24000
G33: =G32 -> 88 | H33: =B25*1.25 -> 37500

Sheet Ductless Single Per Table (hidden)
A1: Ductless, Single Split, Regular | C1: MUZ-HM12NA2
A2: MAX, Heat | E2: ='Step 3 Design Loads'!B13 -> 0 | F2: ='Step 3 Design Loads'!B15 -> 88 | J2: Min, Heat
A3: Temperature | B3: Normalized Capacity | C3: Normalized Power | J3: Temperature | K3: Normalized Capacity | L3: Normalized Power
A4: -4 | B4: 0.487704918 | C4: 0.7070707071 | J4: -4 | K4: 0.1393442623 | L4: 0.202020202
A5: 0 | B5: 0.5516393443 | C5: 0.7676767677 | J5: 0 | K5: 0.1581967213 | L5: 0.2222222222
A6: 5 | B6: 0.6147540984 | C6: 0.8282828283 | J6: 5 | K6: 0.1762295082 | L6: 0.2323232323
A7: 10 | B7: 0.6967213115 | C7: 0.8787878788 | J7: 10 | K7: 0.1983606557 | L7: 0.2525252525
A8: 15 | B8: 0.7786885246 | C8: 0.9292929293 | J8: 15 | K8: 0.2221311475 | L8: 0.2525252525
A9: 20 | B9: 0.8524590164 | C9: 0.9797979798 | J9: 20 | K9: 0.2442622951 | L9: 0.2828282828
A10: 25 | B10: 0.9262295082 | C10: 1.03030303 | J10: 25 | K10: 0.2647540984 | L10: 0.2929292929
A11: 30 | B11: 0.9959016393 | C11: 1.080808081 | J11: 30 | K11: 0.2844262295 | L11: 0.3131313131
A12: 35 | B12: 1.06557377 | C12: 1.131313131 | J12: 35 | K12: 0.3049180328 | L12: 0.3131313131
A13: 40 | B13: 1.12704918 | C13: 1.181818182 | J13: 40 | K13: 0.3213114754 | L13: 0.3333333333
A14: 43 | B14: 1.18852459 | C14: 1.232323232 | J14: 43 | K14: 0.3393442623 | L14: 0.3535353535
A15: 45 | B15: 1.204918033 | C15: 1.242424242 | J15: 45 | K15: 0.3442622951 | L15: 0.3535353535
A16: 50 | B16: 1.274590164 | C16: 1.292929293 | J16: 50 | K16: 0.3639344262 | L16: 0.3737373737
A17: 55 | B17: 1.344262295 | C17: 1.343434343 | J17: 55 | K17: 0.3836065574 | L17: 0.3838383838
A18: 60 | B18: 1.413934426 | C18: 1.393939394 | J18: 60 | K18: 0.4040983607 | L18: 0.3939393939
A21: Temperature
A22: Column1 | B22: Column2 | C22: Column3 | J22: Column1 | K22: Column2 | L22: Column3 | R22: =IF(AND(K23<>"-",K21="-",ISNUMBER(K24)),K23,"-") -> - | S22: =IF(AND(L23<>"-",L21="-",ISNUMBER(L24)),L23,"-") -> -
A23: -23 | B23: - | C23: - | J23: -23 | K23: - | L23: - | R23: =IF(AND(K24<>"-",K23="-",ISNUMBER(K25)),K24,"-") -> - | S23: =IF(AND(L24<>"-",L23="-",ISNUMBER(L25)),L24,"-") -> -
A24: -18 | B24: - | C24: - | J24: -18 | K24: - | L24: - | R24: - | S24: -
A25: -13 | B25: - | C25: - | J25: -13 | K25: - | L25: - | R25: - | S25: -
A26: -8 | B26: - | C26: - | J26: -8 | K26: - | L26: - | R26: 0.144057377 | S26: 0.2070707071
A27: -3 | B27: =((A27-A4)*(B5-B4))/(A5-A4)+B4 -> 0.5036885246 | C27: 0.7222222222 | J27: -3 | K27: =((J27-J4)*(K5-K4))/(J5-J4)+K4 -> 0.144057377 | L27: 0.2070707071 | P27: =INDEX(J23:J39,MATCH(MIN(R22:R38),R22:R38)) -> -3 | Q27: =INDEX(J23:J39,MATCH(MIN(S22:S38),S22:S38)) -> -3 | R27: - | S27: -
A28: 2 | B28: 0.5768852459 | C28: 0.7919191919 | J28: 2 | K28: 0.1654098361 | L28: 0.2262626263 | P28: =INDEX(J23:J39,MATCH(MIN(R22:R38),R22:R38)+1) -> 2 | Q28: =INDEX(J23:J39,MATCH(MIN(S22:S38),S22:S38)+1) -> 2 | R28: - | S28: -
A29: 7 | B29: 0.6475409836 | C29: 0.8484848485 | J29: 7 | K29: 0.1850819672 | L29: 0.2404040404 | R29: - | S29: -
A30: 12 | B30: 0.7295081967 | C30: 0.898989899 | J30: 12 | K30: 0.2078688525 | L30: 0.2525252525 | P30: =((INDEX(K23:K39,MATCH(MIN(R22:R38),R22:R38)+1))-INDEX(K23:K39,MATCH(MIN(R22:R38),R22:R38)))/(P28-P27) -> 0.004270491803 | Q30: =((INDEX(L23:L39,MATCH(MIN(S22:S38),S22:S38)+1))-INDEX(L23:L39,MATCH(MIN(S22:S38),S22:S38)))/(Q28-Q27) -> 0.003838383838 | R30: - | S30: -
A31: 17 | B31: 0.8081967213 | C31: 0.9494949495 | J31: 17 | K31: 0.2309836066 | L31: 0.2646464646 | P31: =INDEX(K23:K39,MATCH(MIN(R22:R38),R22:R38))-P30*P27 -> 0.1568688525 | Q31: =INDEX(L23:L39,MATCH(MIN(S22:S38),S22:S38))-Q30*Q27 -> 0.2185858586 | R31: - | S31: -
A32: 22 | B32: 0.8819672131 | C32: 1 | J32: 22 | K32: 0.2524590164 | L32: 0.2868686869 | R32: - | S32: -
A33: 27 | B33: 0.9540983607 | C33: 1.050505051 | J33: 27 | K33: 0.2726229508 | L33: 0.301010101 | R33: - | S33: -
A34: 32 | B34: 1.023770492 | C34: 1.101010101 | J34: 32 | K34: 0.2926229508 | L34: 0.3131313131 | R34: - | S34: -
A35: 37 | B35: 1.090163934 | C35: 1.151515152 | J35: 37 | K35: 0.3114754098 | L35: 0.3212121212 | R35: - | S35: -
A36: 42 | B36: 1.168032787 | C36: 1.215488215 | J36: 42 | K36: 0.3333333333 | L36: 0.3468013468 | R36: - | S36: -
A37: 47 | B37: =((A37-A15)*(B16-B15))/(A16-A15)+B15 -> 1.232786885 | C37: 1.262626263 | J37: 47 | K37: =((J37-J15)*(K16-K15))/(J16-J15)+K15 -> 0.3521311475 | L37: 0.3616161616 | R37: - | S37: -
A38: 52 | B38: 1.302459016 | C38: 1.313131313 | J38: 52 | K38: 0.3718032787 | L38: 0.3777777778 | R38: =IF(AND(K39<>"-",K38="-",ISNUMBER(#REF!)),K39,"-") -> - | S38: =IF(AND(L39<>"-",L38="-",ISNUMBER(#REF!)),L39,"-") -> -
A39: 57 | B39: 1.372131148 | C39: 1.363636364 | J39: 57 | K39: 0.3918032787 | L39: 0.3878787879
A43: Max, Cool | J43: Min, Heat
A44: Temperature | B44: Normalized Capacity | C44: Normalized Power | J44: Temperature | K44: Normalized Capacity | L44: Normalized Power
A45: 70 | B45: 1.311666667 | C45: 0.9173553719 | J45: 70 | K45: 0.3883333333 | L45: 0.2809917355
A46: 75 | B46: 1.245833333 | C46: 0.958677686 | J46: 75 | K46: 0.3758333333 | L46: 0.2892561983
A47: 80 | B47: 1.2 | C47: 1.008264463 | J47: 80 | K47: 0.3633333333 | L47: 0.305785124
A48: 85 | B48: 1.160833333 | C48: 1.05785124 | J48: 85 | K48: 0.35 | L48: 0.3140495868
A49: 90 | B49: 1.1175 | C49: 1.099173554 | J49: 90 | K49: 0.3366666667 | L49: 0.3305785124
A50: 95 | B50: 1.074166667 | C50: 1.140495868 | J50: 95 | K50: 0.325 | L50: 0.3388429752
A51: 100 | B51: 1.0375 | C51: 1.181818182 | J51: 100 | K51: 0.3125 | L51: 0.3553719008
A52: 105 | B52: 0.9991666667 | C52: 1.214876033 | J52: 105 | K52: 0.3008333333 | L52: 0.3719008264
A53: 110 | B53: 0.9591666667 | C53: 1.239669421 | J53: 110 | K53: 0.2891666667 | L53: 0.3719008264
A54: 115 | B54: 0.9183333333 | C54: 1.26446281 | J54: 115 | K54: 0.2766666667 | L54: 0.3801652893
A57: Temperature | J57: Temperature
A58: Column1 | B58: Column2 | C58: Column3 | J58: Column1 | K58: Column2 | L58: Column3
A59: 72 | B59: =((A59-A45)*(B46-B45))/(A46-A45)+B45 -> 1.285333333 | C59: 0.9338842975 | J59: 72 | K59: =((J59-J45)*(K46-K45))/(J46-J45)+K45 -> 0.3833333333 | L59: 0.2842975207
A60: 77 | B60: 1.2275 | C60: 0.9785123967 | J60: 77 | K60: 0.3708333333 | L60: 0.2958677686
A61: 82 | B61: 1.184333333 | C61: 1.028099174 | J61: 82 | K61: 0.358 | L61: 0.3090909091
A62: 87 | B62: 1.1435 | C62: 1.074380165 | J62: 87 | K62: 0.3446666667 | L62: 0.320661157
A63: 92 | B63: 1.100166667 | C63: 1.115702479 | J63: 92 | K63: 0.332 | L63: 0.3338842975
A64: 97 | B64: 1.0595 | C64: 1.157024793 | J64: 97 | K64: 0.32 | L64: 0.3454545455
A65: 102 | B65: 1.022166667 | C65: 1.195041322 | J65: 102 | K65: 0.3078333333 | L65: 0.3619834711
A66: 107 | B66: 0.9831666667 | C66: 1.224793388 | J66: 107 | K66: 0.2961666667 | L66: 0.3719008264
A67: 112 | B67: 0.9428333333 | C67: 1.249586777 | J67: 112 | K67: 0.2841666667 | L67: 0.3752066116
A69: Ductless, Single Split, Cold Climate | D69: MUZ-FH12HN
A70: MAX, Heat | J70: Min, Heat
A71: Temperature | B71: Normalized Capacity | C71: Normalized Power | J71: Temperature | K71: Normalized Capacity | L71: Normalized Power
A72: -13 | B72: 0.7573529412 | C72: 1.684210526 | J72: -13 | K72: 0.1286764706 | L72: 0.2842105263
A73: -10 | B73: 0.8161764706 | C73: 1.747368421 | J73: -10 | K73: 0.1389705882 | L73: 0.2947368421
A74: -4 | B74: 0.875 | C74: 1.8 | J74: -4 | K74: 0.1485294118 | L74: 0.3052631579
A75: 0 | B75: 0.9558823529 | C75: 1.884210526 | J75: 0 | K75: 0.1625 | L75: 0.3157894737
A76: 5 | B76: 1.029411765 | C76: 1.957894737 | J76: 5 | K76: 0.175 | L76: 0.3263157895
A77: 10 | B77: 1.102941176 | C77: 2.042105263 | J77: 10 | K77: 0.1875 | L77: 0.3473684211
A78: 15 | B78: 1.176470588 | C78: 2.115789474 | J78: 15 | K78: 0.2007352941 | L78: 0.3684210526
A79: 20 | B79: 1.253676471 | C79: 2.189473684 | J79: 20 | K79: 0.2139705882 | L79: 0.3684210526
A80: 25 | B80: 1.330882353 | C80: 2.263157895 | J80: 25 | K80: 0.2264705882 | L80: 0.3894736842
A81: 30 | B81: 1.400735294 | C81: 2.336842105 | J81: 30 | K81: 0.2389705882 | L81: 0.4
A82: 35 | B82: 1.470588235 | C82: 2.410526316 | J82: 35 | K82: 0.2507352941 | L82: 0.4105263158
A83: 40 | B83: 1.507352941 | C83: 2.421052632 | J83: 40 | K83: 0.2566176471 | L83: 0.4105263158
A84: 43 | B84: 1.544117647 | C84: 2.421052632 | J84: 43 | K84: 0.2632352941 | L84: 0.4105263158
A85: 45 | B85: 1.573529412 | C85: 2.473684211 | J85: 45 | K85: 0.2676470588 | L85: 0.4210526316
A86: 50 | B86: 1.617647059 | C86: 2.473684211 | J86: 50 | K86: 0.275 | L86: 0.4210526316
A87: 55 | B87: 1.661764706 | C87: 2.473684211 | J87: 55 | K87: 0.2830882353 | L87: 0.4210526316
A88: 60 | B88: 1.702205882 | C88: 2.473684211 | J88: 60 | K88: 0.2897058824 | L88: 0.4210526316
A90: Temperature | J90: Temperature
A91: Column1 | B91: Column2 | C91: Column3 | J91: Column1 | K91: Column2 | L91: Column3 | R91: =IF(AND(K92<>"-",K90="-",ISNUMBER(K93)),K92,"-") -> - | S91: =IF(AND(L92<>"-",L90="-",ISNUMBER(L93)),L92,"-") -> -
A92: -23 | B92: - | C92: - | J92: -23 | K92: - | L92: - | R92: =IF(AND(K93<>"-",K92="-",ISNUMBER(K94)),K93,"-") -> - | S92: =IF(AND(L93<>"-",L92="-",ISNUMBER(L94)),L93,"-") -> -
A93: -18 | B93: - | C93: - | J93: -18 | K93: - | L93: - | R93: 0.1286764706 | S93: 0.2842105263
A94: -13 | B94: =B72 -> 0.7573529412 | C94: =C72 -> 1.684210526 | J94: -13 | K94: =K72 -> 0.1286764706 | L94: =L72 -> 0.2842105263 | R94: - | S94: -
A95: -8 | B95: =((A95-A73)*(B74-B73))/(A74-A73)+B73 -> 0.8357843137 | C95: 1.764912281 | J95: -8 | K95: =((J95-J73)*(K74-K73))/(J74-J73)+K73 -> 0.1421568627 | L95: 0.298245614 | R95: - | S95: -
A96: -3 | B96: 0.8952205882 | C96: 1.821052632 | J96: -3 | K96: 0.1520220588 | L96: 0.3078947368 | P96: =INDEX(J92:J108,MATCH(MIN(R91:R107),R91:R107)) -> -13 | Q96: =INDEX(J92:J108,MATCH(MIN(S91:S107),S91:S107)) -> -13 | R96: - | S96: -
A97: 2 | B97: 0.9852941176 | C97: 1.913684211 | J97: 2 | K97: 0.1675 | L97: 0.32 | P97: =INDEX(J92:J108,MATCH(MIN(R91:R107),R91:R107)+1) -> -8 | Q97: =INDEX(J92:J108,MATCH(MIN(S91:S107),S91:S107)+1) -> -8 | R97: - | S97: -
A98: 7 | B98: 1.058823529 | C98: 1.991578947 | J98: 7 | K98: 0.18 | L98: 0.3347368421 | R98: - | S98: -
A99: 12 | B99: 1.132352941 | C99: 2.071578947 | J99: 12 | K99: 0.1927941176 | L99: 0.3557894737 | P99: =((INDEX(K92:K108,MATCH(MIN(R91:R107),R91:R107)+1))-INDEX(K92:K108,MATCH(MIN(R91:R107),R91:R107)))/(P97-P96) -> 0.002696078431 | Q99: =((INDEX(L92:L108,MATCH(MIN(S91:S107),S91:S107)+1))-INDEX(L92:L108,MATCH(MIN(S91:S107),S91:S107)))/(Q97-Q96) -> 0.002807017544 | R99: - | S99: -
A100: 17 | B100: 1.207352941 | C100: 2.145263158 | J100: 17 | K100: 0.2060294118 | L100: 0.3684210526 | P100: =INDEX(K92:K108,MATCH(MIN(R91:R107),R91:R107))-P99*P96 -> 0.1637254902 | Q100: =INDEX(L92:L108,MATCH(MIN(S91:S107),S91:S107))-Q99*Q96 -> 0.3207017544 | R100: - | S100: -
A101: 22 | B101: 1.284558824 | C101: 2.218947368 | J101: 22 | K101: 0.2189705882 | L101: 0.3768421053 | R101: - | S101: -
A102: 27 | B102: 1.358823529 | C102: 2.292631579 | J102: 27 | K102: 0.2314705882 | L102: 0.3936842105 | R102: - | S102: -
A103: 32 | B103: 1.428676471 | C103: 2.366315789 | J103: 32 | K103: 0.2436764706 | L103: 0.4042105263 | R103: - | S103: -
A104: 37 | B104: 1.485294118 | C104: 2.414736842 | J104: 37 | K104: 0.2530882353 | L104: 0.4105263158 | R104: - | S104: -
A105: 42 | B105: 1.531862745 | C105: 2.421052632 | J105: 42 | K105: 0.2610294118 | L105: 0.4105263158 | R105: - | S105: -
A106: 47 | B106: =((A106-A85)*(B86-B85))/(A86-A85)+B85 -> 1.591176471 | C106: 2.473684211 | J106: 47 | K106: =((J106-J85)*(K86-K85))/(J86-J85)+K85 -> 0.2705882353 | L106: 0.4210526316 | R106: - | S106: -
A107: 52 | B107: 1.635294118 | C107: 2.473684211 | J107: 52 | K107: 0.2782352941 | L107: 0.4210526316 | R107: =IF(AND(K108<>"-",K107="-",ISNUMBER(#REF!)),K108,"-") -> - | S107: =IF(AND(L108<>"-",L107="-",ISNUMBER(#REF!)),L108,"-") -> -
A108: 57 | B108: 1.677941176 | C108: 2.473684211 | J108: 57 | K108: 0.2857352941 | L108: 0.4210526316
A110: Max, Cool | J110: Min, Heat
A111: Temperature | B111: Normalized Capacity | C111: Normalized Power | J111: Temperature | K111: Normalized Capacity | L111: Normalized Power
A112: 70 | B112: 1.435833333 | C112: 1.732142857 | J112: 70 | K112: 0.2466666667 | L112: 0.2857142857
A113: 75 | B113: 1.388333333 | C113: 1.821428571 | J113: 75 | K113: 0.2391666667 | L113: 0.3035714286
A114: 80 | B114: 1.340833333 | C114: 1.910714286 | J114: 80 | K114: 0.23 | L114: 0.3214285714
A115: 85 | B115: 1.2925 | C115: 1.982142857 | J115: 85 | K115: 0.2225 | L115: 0.3214285714
A116: 90 | B116: 1.245 | C116: 2.089285714 | J116: 90 | K116: 0.2141666667 | L116: 0.3392857143
A117: 95 | B117: 1.196666667 | C117: 2.160714286 | J117: 95 | K117: 0.2058333333 | L117: 0.3392857143
A118: 100 | B118: 1.155 | C118: 2.232142857 | J118: 100 | K118: 0.1983333333 | L118: 0.375
A119: 105 | B119: 1.113333333 | C119: 2.285714286 | J119: 105 | K119: 0.1916666667 | L119: 0.375
A120: 110 | B120: 1.068333333 | C120: 2.339285714 | J120: 110 | K120: 0.1841666667 | L120: 0.375
A121: 115 | B121: 1.023333333 | C121: 2.410714286 | J121: 115 | K121: 0.1766666667 | L121: 0.3928571429
A124: Temperature | J124: Temperature
A125: Column1 | B125: Column2 | C125: Column3 | J125: Column1 | K125: Column2 | L125: Column3
A126: 72 | B126: =((A126-A112)*(B113-B112))/(A113-A112)+B112 -> 1.416833333 | C126: 1.767857143 | J126: 72 | K126: =((J126-J112)*(K113-K112))/(J113-J112)+K112 -> 0.2436666667 | L126: 0.2928571429
A127: 77 | B127: 1.369333333 | C127: 1.857142857 | J127: 77 | K127: 0.2355 | L127: 0.3107142857
A128: 82 | B128: 1.3215 | C128: 1.939285714 | J128: 82 | K128: 0.227 | L128: 0.3214285714
A129: 87 | B129: 1.2735 | C129: 2.025 | J129: 87 | K129: 0.2191666667 | L129: 0.3285714286
A130: 92 | B130: 1.225666667 | C130: 2.117857143 | J130: 92 | K130: 0.2108333333 | L130: 0.3392857143
A131: 97 | B131: 1.18 | C131: 2.189285714 | J131: 97 | K131: 0.2028333333 | L131: 0.3535714286
A132: 102 | B132: 1.138333333 | C132: 2.253571429 | J132: 102 | K132: 0.1956666667 | L132: 0.375
A133: 107 | B133: 1.095333333 | C133: 2.307142857 | J133: 107 | K133: 0.1886666667 | L133: 0.375
A134: 112 | B134: 1.050333333 | C134: 2.367857143 | J134: 112 | K134: 0.1811666667 | L134: 0.3821428571
A139: NOTES
A140: * PLEASE ENSURE WE ARE MULTIPLIYING BY THE DROPER HP FOR CAP, POWER, AND COP
A141: * LINKS IN THIS SPREADSHEET ARE PURELY TO ILLUSTRATE

Sheet Ducted Performance Tables (hidden)
A1: Ducted, Single Stage | B1: 25HNB524A* Outdoor Section With FX4DNF025 Indoor Section @ 800 CFM
A2: Heat | E2: ='Step 3 Design Loads'!B13 -> 0 | F2: ='Step 3 Design Loads'!B15 -> 88
A3: Temperature (F) | B3: Normalized Capacity | C3: Normalized Power
A4: -23 | B4: - | C4: -
A5: -18 | B5: - | C5: -
A6: -13 | B6: - | C6: -
A7: -8 | B7: - | C7: -
A8: -3 | B8: 0.31125 | C8: 0.8079096045
A9: 2 | B9: 0.3635416667 | C9: 0.8305084746
A10: 7 | B10: 0.4158333333 | C10: 0.8531073446
A11: 12 | B11: 0.4766666667 | C11: 0.8728813559
A12: 17 | B12: 0.5375 | C12: 0.8926553672
A13: 22 | B13: 0.5839583333 | C13: 0.906779661
A14: 27 | B14: 0.6304166667 | C14: 0.9209039548
A15: 32 | B15: 0.7 | C15: 0.9350282486
A16: 37 | B16: 0.7695833333 | C16: 0.9491525424
A17: 42 | B17: 0.8847916667 | C17: 0.9745762712
A18: 47 | B18: 1 | C18: 1
A19: 52 | B19: 1.087708333 | C19: 1.036723164
A20: 57 | B20: 1.175416667 | C20: 1.073446328
A22: Cool
A23: Temperature (F) | B23: Normalized Capacity | C23: Normalized Power
A24: 72 | B24: - | C24: -
A25: 77 | B25: 1.012 | C25: 0.8010416667
A26: 82 | B26: 0.9886414141 | C26: 0.8510206229
A27: 87 | B27: 0.9649404762 | C27: 0.9027777778
A28: 92 | B28: 0.9407589286 | C28: 0.95703125
A29: 97 | B29: 0.9157506614 | C29: 1.014384921
A30: 102 | B30: 0.8895023148 | C30: 1.076388889
A31: 107 | B31: 0.8621818182 | C31: 1.141856061
A32: 112 | B32: 0.8331414141 | C32: 1.212878788
A40: Ducted, Two Stage | B40: 25HNB924A @ 800 CFM
A41: HIGH Stage, Heat | I41: LOW Stage, Heat
A42: Temperature (F) | B42: Normalized Capacity | C42: Normalized Power | I42: Temperature (F) | J42: Normalized Capacity | K42: Normalized Power
A43: -23 | B43: - | C43: - | I43: -23 | J43: - | K43: - | L43: ='Step 5 Identify & Select ASHPs'!$B$30*'Ducted Performance Tables'!J43 ->  | M43: ='Step 5 Identify & Select ASHPs'!$B$31*'Ducted Performance Tables'!K43 ->  | N43: =(L43/3412)/K43 ->  | R43: =IF(AND(J43<>"-",J42="-",ISNUMBER(J44)),J43,"-") -> - | S43: =IF(AND(K43<>"-",K42="-",ISNUMBER(K44)),K43,"-") -> -
A44: -18 | B44: - | C44: - | I44: -18 | J44: - | K44: - | L44: ='Step 5 Identify & Select ASHPs'!$B$30*'Ducted Performance Tables'!J44 ->  | M44: ='Step 5 Identify & Select ASHPs'!$B$31*'Ducted Performance Tables'!K44 ->  | N44: =(L44/3412)/K44 ->  | R44: =IF(AND(J44<>"-",J43="-",ISNUMBER(J45)),J44,"-") -> - | S44: -
A45: -13 | B45: - | C45: - | E45: =(($E$2-INDEX('HP1 Calcs'!$A$4:$A$20,MATCH($E$2,'HP1 Calcs'!$A$4:$A$20,1)))*(INDEX(J43:J59,MATCH($E$2,'HP1 Calcs'!$A$4:$A$20,1)+1)-INDEX(J43:J59,MATCH($E$2,'HP1 Calcs'!$A$4:$A$20,1))))/(INDEX('HP1 Calcs'!$A$4:$A$20,MATCH($E$2,'HP1 Calcs'!$A$4:$A$20,1)+1)-INDEX('HP1 Calcs'!$A$4:$A$20,MATCH($E$2,'HP1 Calcs'!$A$4:$A$20,1)))+INDEX(J43:J59,MATCH($E$2,'HP1 Calcs'!$A$4:$A$20,1)) ->  | F45: =(($E$2-INDEX('HP1 Calcs'!$A$4:$A$20,MATCH($E$2,'HP1 Calcs'!$A$4:$A$20,1)))*(INDEX(K43:K59,MATCH($E$2,'HP1 Calcs'!$A$4:$A$20,1)+1)-INDEX(K43:K59,MATCH($E$2,'HP1 Calcs'!$A$4:$A$20,1))))/(INDEX('HP1 Calcs'!$A$4:$A$20,MATCH($E$2,'HP1 Calcs'!$A$4:$A$20,1)+1)-INDEX('HP1 Calcs'!$A$4:$A$20,MATCH($E$2,'HP1 Calcs'!$A$4:$A$20,1)))+INDEX(K43:K59,MATCH($E$2,'HP1 Calcs'!$A$4:$A$20,1)) ->  | I45: -13 | J45: - | K45: - | L45: ='Step 5 Identify & Select ASHPs'!$B$30*'Ducted Performance Tables'!J45 ->  | M45: ='Step 5 Identify & Select ASHPs'!$B$31*'Ducted Performance Tables'!K45 ->  | R45: - | S45: -
A46: -8 | B46: - | C46: - | I46: -8 | J46: - | K46: - | L46: ='Step 5 Identify & Select ASHPs'!$B$30*'Ducted Performance Tables'!J46 ->  | M46: ='Step 5 Identify & Select ASHPs'!$B$31*'Ducted Performance Tables'!K46 ->  | R46: - | S46: -
A47: -3 | B47: 0.3312 | C47: 0.8181818182 | D47: HP1 | E47: =IF(OR('Step 5 Identify & Select ASHPs'!$B$37="No",'Step 5 Identify & Select ASHPs'!$B$37="Not Sure"),0,IF(P51<0,INDEX(J43:J59,MATCH(MIN(R43:R59),J43:J59)),'HP1 Calcs'!$A$4*'Ducted Performance Tables'!P51+'Ducted Performance Tables'!P52)) -> 0.19484 | F47: =IF(OR('Step 5 Identify & Select ASHPs'!$B$37="No",'Step 5 Identify & Select ASHPs'!$B$37="Not Sure"),0,IF(Q51<0,INDEX(K43:K59,MATCH(MIN(S43:S59),K43:K59)),'HP1 Calcs'!$A$4*'Ducted Performance Tables'!Q51+'Ducted Performance Tables'!Q52)) -> 0.6505681818 | I47: -3 | J47: 0.158 | K47: 0.6420454545 | L47: ='Step 5 Identify & Select ASHPs'!$B$30*'Ducted Performance Tables'!J47 -> 0 | M47: ='Step 5 Identify & Select ASHPs'!$B$31*'Ducted Performance Tables'!K47 -> 0 | N47: 0 | R47: =IF(AND(J47<>"-",J46="-",ISNUMBER(J48)),J47,"-") -> 0.158 | S47: =IF(AND(K47<>"-",K46="-",ISNUMBER(K48)),K47,"-") -> 0.6420454545
A48: 2 | B48: 0.3862 | C48: 0.8323863636 | D48: HP2 | E48: =IF(OR('Step 5 Identify & Select ASHPs'!$G$37="No",'Step 5 Identify & Select ASHPs'!$G$37="Not Sure"),0,IF(P51<0,INDEX(J43:J59,MATCH(MIN(R43:R59),J43:J59)),'HP1 Calcs'!$A$26*'Ducted Performance Tables'!P51+'Ducted Performance Tables'!P52)) -> 0.465 | F48: =IF(OR('Step 5 Identify & Select ASHPs'!$G$37="No",'Step 5 Identify & Select ASHPs'!$G$37="Not Sure"),0,IF(Q51<0,INDEX(K43:K59,MATCH(MIN(S43:S59),K43:K59)),'HP1 Calcs'!$A$26*'Ducted Performance Tables'!Q51+'Ducted Performance Tables'!Q52)) -> 0.7130681818 | I48: 2 | J48: 0.2194 | K48: 0.65625 | L48: ='Step 5 Identify & Select ASHPs'!$B$30*'Ducted Performance Tables'!J48 -> 0 | M48: ='Step 5 Identify & Select ASHPs'!$B$31*'Ducted Performance Tables'!K48 -> 0 | N48: 0 | P48: =INDEX(I43:I59,MATCH(MIN(R43:R59),R43:R59)) -> -3 | Q48: =INDEX(I43:I59,MATCH(MIN(S43:S59),S43:S59)) -> -3 | R48: - | S48: =IF(AND(K48<>"-",K47="-",ISNUMBER(K49)),K48,"-") -> -
A49: 7 | B49: 0.4412 | C49: 0.8465909091 | D49: HP3 | E49: =IF(OR('Step 5 Identify & Select ASHPs'!$L$37="No",'Step 5 Identify & Select ASHPs'!$L$37="Not Sure"),0,IF(P51<0,INDEX(J43:J59,MATCH(MIN(R43:R59),J43:J59)),'HP1 Calcs'!$A$48*'Ducted Performance Tables'!P51+'Ducted Performance Tables'!P52)) -> 0.19484 | F49: =IF(OR('Step 5 Identify & Select ASHPs'!$L$37="No",'Step 5 Identify & Select ASHPs'!$L$37="Not Sure"),0,IF(Q51<0,INDEX(K43:K59,MATCH(MIN(S43:S59),K43:K59)),'HP1 Calcs'!$A$48*'Ducted Performance Tables'!Q51+'Ducted Performance Tables'!Q52)) -> 0.6505681818 | I49: 7 | J49: 0.2808 | K49: 0.6704545455 | L49: ='Step 5 Identify & Select ASHPs'!$B$30*'Ducted Performance Tables'!J49 -> 0 | M49: ='Step 5 Identify & Select ASHPs'!$B$31*'Ducted Performance Tables'!K49 -> 0 | N49: 0 | P49: =INDEX(I43:I59,MATCH(MIN(R43:R59),R43:R59)+1) -> 2 | Q49: =INDEX(I43:I59,MATCH(MIN(S43:S59),S43:S59)+1) -> 2 | R49: - | S49: -
A50: 12 | B50: 0.5032 | C50: 0.8636363636 | D50: HP4 | E50: =IF(OR('Step 5 Identify & Select ASHPs'!$Q$37="No",'Step 5 Identify & Select ASHPs'!$Q$37="Not Sure"),0,IF(P51<0,INDEX(J43:J59,MATCH(MIN(R43:R59),J43:J59)),'HP1 Calcs'!$A$70*'Ducted Performance Tables'!P51+'Ducted Performance Tables'!P52)) -> 0.19484 | F50: =IF(OR('Step 5 Identify & Select ASHPs'!$Q$37="No",'Step 5 Identify & Select ASHPs'!$Q$37="Not Sure"),0,IF(Q51<0,INDEX(K43:K59,MATCH(MIN(S43:S59),K43:K59)),'HP1 Calcs'!$A$70*'Ducted Performance Tables'!Q51+'Ducted Performance Tables'!Q52)) -> 0.6505681818 | I50: 12 | J50: 0.336 | K50: 0.6761363636 | L50: ='Step 5 Identify & Select ASHPs'!$B$30*'Ducted Performance Tables'!J50 -> 0 | M50: ='Step 5 Identify & Select ASHPs'!$B$31*'Ducted Performance Tables'!K50 -> 0 | N50: 0 | R50: - | S50: -
A51: 17 | B51: 0.5652 | C51: 0.8806818182 | I51: 17 | J51: 0.3912 | K51: 0.6818181818 | L51: ='Step 5 Identify & Select ASHPs'!$B$30*'Ducted Performance Tables'!J51 -> 0 | M51: ='Step 5 Identify & Select ASHPs'!$B$31*'Ducted Performance Tables'!K51 -> 0 | N51: 0 | P51: =((INDEX(J43:J59,MATCH(MIN(R43:R59),R43:R59)+1))-INDEX(J43:J59,MATCH(MIN(R43:R59),R43:R59)))/(P49-P48) -> 0.01228 | Q51: =((INDEX(K43:K59,MATCH(MIN(S43:S59),S43:S59)+1))-INDEX(K43:K59,MATCH(MIN(S43:S59),S43:S59)))/(Q49-Q48) -> 0.002840909091 | R51: - | S51: -
A52: 22 | B52: 0.6106 | C52: 0.8948863636 | I52: 22 | J52: 0.4378 | K52: 0.6875 | L52: ='Step 5 Identify & Select ASHPs'!$B$30*'Ducted Performance Tables'!J52 -> 0 | M52: ='Step 5 Identify & Select ASHPs'!$B$31*'Ducted Performance Tables'!K52 -> 0 | N52: 0 | P52: =INDEX(J43:J59,MATCH(MIN(R43:R59),R43:R59))-P51*P48 -> 0.19484 | Q52: =INDEX(K43:K59,MATCH(MIN(S43:S59),S43:S59))-Q51*Q48 -> 0.6505681818 | R52: - | S52: -
A53: 27 | B53: 0.656 | C53: 0.9090909091 | I53: 27 | J53: 0.4844 | K53: 0.6931818182 | L53: ='Step 5 Identify & Select ASHPs'!$B$30*'Ducted Performance Tables'!J53 -> 0 | M53: ='Step 5 Identify & Select ASHPs'!$B$31*'Ducted Performance Tables'!K53 -> 0 | N53: 0 | R53: - | S53: -
A54: 32 | B54: 0.7218 | C54: 0.9318181818 | I54: 32 | J54: 0.5422 | K54: 0.6960227273 | L54: ='Step 5 Identify & Select ASHPs'!$B$30*'Ducted Performance Tables'!J54 -> 0 | M54: ='Step 5 Identify & Select ASHPs'!$B$31*'Ducted Performance Tables'!K54 -> 0 | N54: 0 | R54: - | S54: -
A55: 37 | B55: 0.7876 | C55: 0.9545454545 | I55: 37 | J55: 0.6 | K55: 0.6988636364 | L55: ='Step 5 Identify & Select ASHPs'!$B$30*'Ducted Performance Tables'!J55 -> 0 | M55: ='Step 5 Identify & Select ASHPs'!$B$31*'Ducted Performance Tables'!K55 -> 0 | N55: 0 | R55: - | S55: -
A56: 42 | B56: 0.8938 | C56: 0.9772727273 | I56: 42 | J56: 0.6742 | K56: 0.6988636364 | L56: ='Step 5 Identify & Select ASHPs'!$B$30*'Ducted Performance Tables'!J56 -> 0 | M56: ='Step 5 Identify & Select ASHPs'!$B$31*'Ducted Performance Tables'!K56 -> 0 | N56: 0 | R56: - | S56: -
A57: 47 | B57: 1 | C57: 1 | I57: 47 | J57: 0.7484 | K57: 0.6988636364 | L57: ='Step 5 Identify & Select ASHPs'!$B$30*'Ducted Performance Tables'!J57 -> 0 | M57: ='Step 5 Identify & Select ASHPs'!$B$31*'Ducted Performance Tables'!K57 -> 0 | N57: 0 | R57: - | S57: -
A58: 52 | B58: 1.0714 | C58: 1.03125 | I58: 52 | J58: 0.7914 | K58: 0.6988636364 | L58: ='Step 5 Identify & Select ASHPs'!$B$30*'Ducted Performance Tables'!J58 -> 0 | M58: ='Step 5 Identify & Select ASHPs'!$B$31*'Ducted Performance Tables'!K58 -> 0 | N58: 0 | R58: - | S58: -
A59: 57 | B59: 1.1428 | C59: 1.0625 | I59: 57 | J59: 0.8344 | K59: 0.6988636364 | L59: ='Step 5 Identify & Select ASHPs'!$B$30*'Ducted Performance Tables'!J59 -> 0 | M59: ='Step 5 Identify & Select ASHPs'!$B$31*'Ducted Performance Tables'!K59 -> 0 | N59: 0 | R59: - | S59: -
A61: HIGH Stage, Cool | I61: LoW Stage, Cool
A62: Temperature (F) | B62: Normalized Capacity | C62: Normalized Power | I62: Temperature (F) | J62: Normalized Capacity | K62: Normalized Power
A63: 72 | I63: 72
A64: 77 | B64: 1.065241935 | C64: 0.7967391304 | E64: =(($F$2-INDEX('HP1 Calcs'!$H$5:$H$13,MATCH($F$2,'HP1 Calcs'!$H$5:$H$13,1)))*(INDEX(J63:J71,MATCH($F$2,'HP1 Calcs'!$H$5:$H$13,1)+1)-INDEX(J63:J71,MATCH($F$2,'HP1 Calcs'!$H$5:$H$13,1))))/(INDEX('HP1 Calcs'!$H$5:$H$13,MATCH($F$2,'HP1 Calcs'!$H$5:$H$13,1)+1)-INDEX('HP1 Calcs'!$H$5:$H$13,MATCH($F$2,'HP1 Calcs'!$H$5:$H$13,1)))+INDEX(J63:J71,MATCH($F$2,'HP1 Calcs'!$H$5:$H$13,1)) ->  | F64: =(($F$2-INDEX('HP1 Calcs'!$H$5:$H$13,MATCH($F$2,'HP1 Calcs'!$H$5:$H$13,1)))*(INDEX(K63:K71,MATCH($F$2,'HP1 Calcs'!$H$5:$H$13,1)+1)-INDEX(K63:K71,MATCH($F$2,'HP1 Calcs'!$H$5:$H$13,1))))/(INDEX('HP1 Calcs'!$H$5:$H$13,MATCH($F$2,'HP1 Calcs'!$H$5:$H$13,1)+1)-INDEX('HP1 Calcs'!$H$5:$H$13,MATCH($F$2,'HP1 Calcs'!$H$5:$H$13,1)))+INDEX(K63:K71,MATCH($F$2,'HP1 Calcs'!$H$5:$H$13,1)) ->  | I64: 77 | J64: 0.8161290323 | K64: 0.5576086957
A65: 82 | B65: 1.025326654 | C65: 0.8461462451 | I65: 82 | J65: 0.7865998697 | K65: 0.6070158103
A66: 87 | B66: 0.9855414747 | C66: 0.8996721877 | I66: 87 | J66: 0.7567908346 | K66: 0.6594202899
A67: 92 | B67: 0.9459389401 | C67: 0.9589803313 | E67: 95 | F67: =((95-A67)*(B68-B67))/(A68-A67)+B67 -> 0.9221294163 | G67: =((95-A67)*(C68-C67))/(A68-A67)+C67 -> 0.9965062112 | I67: 92 | J67: 0.7265889017 | K67: 0.7160326087 | M67: 95 | N67: =((95-I67)*(J68-J67))/(I68-I67)+J67 -> 0.7083237327 | O67: =((95-I67)*(K68-K67))/(I68-I67)+K67 -> 0.7519409938
A68: 97 | B68: 0.9062564004 | C68: 1.021523464 | I68: 97 | J68: 0.6961469534 | K68: 0.7758799172
A69: 102 | B69: 0.866453853 | C69: 1.088919082 | I69: 102 | J69: 0.6653449821 | K69: 0.8405797101
A70: 107 | B70: 0.8263734115 | C70: 1.161001318 | I70: 107 | J70: 0.6344843597 | K70: 0.9110013175
A71: 112 | B71: 0.7858471815 | C71: 1.240601669 | I71: 112 | J71: 0.6035296514 | K71: 0.9906016689
A73: Ducted Variable | C73: (From Daikin DZ20VC 36 Unit)
A74: MAX, Heat | I74: MIN, Heat
A75: Temperature (F) | B75: Normalized Capacity | C75: Normalized Power | I75: Temperature (F) | J75: Normalized Capacity | K75: Normalized Power
A76: -10 | B76: 0.3828571429 | C76: 1.286290323 | I76: -10 | J76: 0.2457142857 | K76: 0.6693548387 | L76: ='Step 5 Identify & Select ASHPs'!$B$30*'Ducted Performance Tables'!J76 -> 0 | M76: ='Step 5 Identify & Select ASHPs'!$B$31*'Ducted Performance Tables'!K76 -> 0 | N76: =(L76/3412)/K76 -> 0
A77: -5 | B77: 0.4685714286 | C77: 1.326612903 | I77: -5 | J77: 0.3 | K77: 0.685483871 | L77: ='Step 5 Identify & Select ASHPs'!$B$30*'Ducted Performance Tables'!J77 -> 0 | M77: ='Step 5 Identify & Select ASHPs'!$B$31*'Ducted Performance Tables'!K77 -> 0 | N77: =(L77/3412)/K77 -> 0
A78: 0 | B78: 0.5485714286 | C78: 1.366935484 | I78: 0 | J78: 0.3514285714 | K78: 0.7056451613 | L78: ='Step 5 Identify & Select ASHPs'!$B$30*'Ducted Performance Tables'!J78 -> 0 | M78: ='Step 5 Identify & Select ASHPs'!$B$31*'Ducted Performance Tables'!K78 -> 0 | N78: 0 | R78: AHRI Rated Capacity | S78: If at 47F. Identical to entry
A79: 5 | B79: 0.6314285714 | C79: 1.403225806 | I79: 5 | J79: 0.4028571429 | K79: 0.7217741935 | L79: ='Step 5 Identify & Select ASHPs'!$B$30*'Ducted Performance Tables'!J79 -> 0 | M79: ='Step 5 Identify & Select ASHPs'!$B$31*'Ducted Performance Tables'!K79 -> 0 | N79: 0 | S79: If at 17F, use correction formula in slides and example
A80: 10 | B80: 0.7114285714 | C80: 1.443548387 | I80: 10 | J80: 0.4542857143 | K80: 0.7419354839 | L80: ='Step 5 Identify & Select ASHPs'!$B$30*'Ducted Performance Tables'!J80 -> 0 | M80: ='Step 5 Identify & Select ASHPs'!$B$31*'Ducted Performance Tables'!K80 -> 0 | N80: 0
A81: 15 | B81: 0.7914285714 | C81: 1.483870968 | I81: 15 | J81: 0.5057142857 | K81: 0.7580645161 | L81: ='Step 5 Identify & Select ASHPs'!$B$30*'Ducted Performance Tables'!J81 -> 0 | M81: ='Step 5 Identify & Select ASHPs'!$B$31*'Ducted Performance Tables'!K81 -> 0 | N81: 0
A82: 17 | B82: 0.8228571429 | C82: 1.5 | I82: 17 | J82: 0.5257142857 | K82: 0.7661290323 | L82: ='Step 5 Identify & Select ASHPs'!$B$30*'Ducted Performance Tables'!J82 -> 0 | M82: ='Step 5 Identify & Select ASHPs'!$B$31*'Ducted Performance Tables'!K82 -> 0 | N82: 0
A83: 20 | B83: 0.8714285714 | C83: 1.52016129 | I83: 20 | J83: 0.5571428571 | K83: 0.7741935484 | L83: ='Step 5 Identify & Select ASHPs'!$B$30*'Ducted Performance Tables'!J83 -> 0 | M83: ='Step 5 Identify & Select ASHPs'!$B$31*'Ducted Performance Tables'!K83 -> 0 | N83: 0
A84: 25 | B84: 0.9457142857 | C84: 1.560483871 | I84: 25 | J84: 0.6028571429 | K84: 0.7943548387 | L84: ='Step 5 Identify & Select ASHPs'!$B$30*'Ducted Performance Tables'!J84 -> 0 | M84: ='Step 5 Identify & Select ASHPs'!$B$31*'Ducted Performance Tables'!K84 -> 0 | N84: 0
A85: 30 | B85: 1.025714286 | C85: 1.600806452 | I85: 30 | J85: 0.6542857143 | K85: 0.810483871 | L85: ='Step 5 Identify & Select ASHPs'!$B$30*'Ducted Performance Tables'!J85 -> 0 | M85: ='Step 5 Identify & Select ASHPs'!$B$31*'Ducted Performance Tables'!K85 -> 0 | N85: 0
A86: 35 | B86: 0.8314285714 | C86: 0.9516129032 | I86: 35 | J86: 0.6 | K86: 0.5524193548 | L86: ='Step 5 Identify & Select ASHPs'!$B$30*'Ducted Performance Tables'!J86 -> 0 | M86: ='Step 5 Identify & Select ASHPs'!$B$31*'Ducted Performance Tables'!K86 -> 0 | N86: 0
A87: 40 | B87: 0.9 | C87: 0.9717741935 | I87: 40 | J87: 0.6485714286 | K87: 0.564516129 | L87: ='Step 5 Identify & Select ASHPs'!$B$30*'Ducted Performance Tables'!J87 -> 0 | M87: ='Step 5 Identify & Select ASHPs'!$B$31*'Ducted Performance Tables'!K87 -> 0 | N87: 0
A88: 45 | B88: 0.9685714286 | C88: 0.9919354839 | I88: 45 | J88: 0.7 | K88: 0.5725806452 | L88: ='Step 5 Identify & Select ASHPs'!$B$30*'Ducted Performance Tables'!J88 -> 0 | M88: ='Step 5 Identify & Select ASHPs'!$B$31*'Ducted Performance Tables'!K88 -> 0 | N88: 0
A89: 47 | B89: 1 | C89: 1 | I89: 47 | J89: 0.72 | K89: 0.5766129032 | L89: ='Step 5 Identify & Select ASHPs'!$B$30*'Ducted Performance Tables'!J89 -> 0 | M89: ='Step 5 Identify & Select ASHPs'!$B$31*'Ducted Performance Tables'!K89 -> 0 | N89: 0
A90: 50 | B90: 1.045714286 | C90: 1.012096774 | I90: 50 | J90: 0.7542857143 | K90: 0.5846774194 | L90: ='Step 5 Identify & Select ASHPs'!$B$30*'Ducted Performance Tables'!J90 -> 0 | M90: ='Step 5 Identify & Select ASHPs'!$B$31*'Ducted Performance Tables'!K90 -> 0 | N90: 0
A91: 55 | B91: 1.12 | C91: 1.032258065 | I91: 55 | J91: 0.8085714286 | K91: 0.5927419355 | L91: ='Step 5 Identify & Select ASHPs'!$B$30*'Ducted Performance Tables'!J91 -> 0 | M91: ='Step 5 Identify & Select ASHPs'!$B$31*'Ducted Performance Tables'!K91 -> 0 | N91: 0
A92: 60 | B92: 1.191428571 | C92: 1.052419355 | I92: 60 | J92: 0.8571428571 | K92: 0.6048387097 | L92: ='Step 5 Identify & Select ASHPs'!$B$30*'Ducted Performance Tables'!J92 -> 0 | M92: ='Step 5 Identify & Select ASHPs'!$B$31*'Ducted Performance Tables'!K92 -> 0 | N92: 0
A93: 65 | B93: 1.257142857 | C93: 1.072580645 | I93: 65 | J93: 0.9057142857 | K93: 0.6169354839 | L93: ='Step 5 Identify & Select ASHPs'!$B$30*'Ducted Performance Tables'!J93 -> 0 | M93: ='Step 5 Identify & Select ASHPs'!$B$31*'Ducted Performance Tables'!K93 -> 0 | N93: 0
A95: Temperature (F) | I95: Temperature (F)
A96: Column1 | B96: Column2 | C96: Column3 | I96: Column1 | J96: Column2 | K96: Column3 | L96: ='Step 5 Identify & Select ASHPs'!$B$30*'Ducted Performance Tables'!J97 ->  | M96: ='Step 5 Identify & Select ASHPs'!$B$31*'Ducted Performance Tables'!K97 ->  | N96: =(L96/3412)/K97 ->  | R96: =IF(AND(J97<>"-",J95="-",ISNUMBER(J98)),J97,"-") -> - | S96: =IF(AND(K97<>"-",K95="-",ISNUMBER(K98)),K97,"-") -> -
A97: -23 | B97: - | C97: - | I97: -23 | J97: - | K97: - | L97: ='Step 5 Identify & Select ASHPs'!$B$30*'Ducted Performance Tables'!J98 ->  | M97: ='Step 5 Identify & Select ASHPs'!$B$31*'Ducted Performance Tables'!K98 ->  | R97: =IF(AND(J98<>"-",J97="-",ISNUMBER(J99)),J98,"-") -> - | S97: -
A98: -18 | B98: - | C98: - | E98: =(($E$2-INDEX('HP1 Calcs'!$A$4:$A$20,MATCH($E$2,'HP1 Calcs'!$A$4:$A$20,1)))*(INDEX(J97:J113,MATCH($E$2,'HP1 Calcs'!$A$4:$A$20,1)+1)-INDEX(J97:J113,MATCH($E$2,'HP1 Calcs'!$A$4:$A$20,1))))/(INDEX('HP1 Calcs'!$A$4:$A$20,MATCH($E$2,'HP1 Calcs'!$A$4:$A$20,1)+1)-INDEX('HP1 Calcs'!$A$4:$A$20,MATCH($E$2,'HP1 Calcs'!$A$4:$A$20,1)))+INDEX(J97:J113,MATCH($E$2,'HP1 Calcs'!$A$4:$A$20,1)) ->  | F98: =(($E$2-INDEX('HP1 Calcs'!$A$4:$A$20,MATCH($E$2,'HP1 Calcs'!$A$4:$A$20,1)))*(INDEX(K97:K113,MATCH($E$2,'HP1 Calcs'!$A$4:$A$20,1)+1)-INDEX(K97:K113,MATCH($E$2,'HP1 Calcs'!$A$4:$A$20,1))))/(INDEX('HP1 Calcs'!$A$4:$A$20,MATCH($E$2,'HP1 Calcs'!$A$4:$A$20,1)+1)-INDEX('HP1 Calcs'!$A$4:$A$20,MATCH($E$2,'HP1 Calcs'!$A$4:$A$20,1)))+INDEX(K97:K113,MATCH($E$2,'HP1 Calcs'!$A$4:$A$20,1)) ->  | I98: -18 | J98: - | K98: - | L98: ='Step 5 Identify & Select ASHPs'!$B$30*'Ducted Performance Tables'!J99 ->  | M98: ='Step 5 Identify & Select ASHPs'!$B$31*'Ducted Performance Tables'!K99 ->  | R98: - | S98: -
A99: -13 | B99: - | C99: - | I99: -13 | J99: - | K99: - | L99: ='Step 5 Identify & Select ASHPs'!$B$30*'Ducted Performance Tables'!J100 -> 0 | M99: ='Step 5 Identify & Select ASHPs'!$B$31*'Ducted Performance Tables'!K100 -> 0 | N99: 0 | R99: 0.2674285714 | S99: 0.6758064516
A100: -8 | B100: =((A100-A76)*(B77-B76))/(A77-A76)+B76 -> 0.4171428571 | C100: 1.302419355 | D100: HP1 | E100: =IF(OR('Step 5 Identify & Select ASHPs'!$B$37="No",'Step 5 Identify & Select ASHPs'!$B$37="Not Sure"),0,IF(P104<0,INDEX(J97:J113,MATCH(MIN(R96:R112),J97:J113)),'HP1 Calcs'!$A$4*'Ducted Performance Tables'!P104+'Ducted Performance Tables'!P105)) -> 0.3524571429 | F100: =IF(OR('Step 5 Identify & Select ASHPs'!$B$37="No",'Step 5 Identify & Select ASHPs'!$B$37="Not Sure"),0,IF(Q104<0,INDEX(K97:K113,MATCH(MIN(S96:S112),K97:K113)),'HP1 Calcs'!$A$4*'Ducted Performance Tables'!Q104+'Ducted Performance Tables'!Q105)) -> 0.7041935484 | I100: -8 | J100: =((I100-I76)*(J77-J76))/(I77-I76)+J76 -> 0.2674285714 | K100: 0.6758064516 | L100: ='Step 5 Identify & Select ASHPs'!$B$30*'Ducted Performance Tables'!J101 -> 0 | M100: ='Step 5 Identify & Select ASHPs'!$B$31*'Ducted Performance Tables'!K101 -> 0 | N100: 0 | R100: - | S100: -
A101: -3 | B101: 0.5005714286 | C101: 1.342741935 | D101: HP2 | E101: =IF(OR('Step 5 Identify & Select ASHPs'!$G$37="No",'Step 5 Identify & Select ASHPs'!$G$37="Not Sure"),0,IF(P104<0,INDEX(J97:J113,MATCH(MIN(R96:R112),J97:J113)),'HP1 Calcs'!$A$26*'Ducted Performance Tables'!P104+'Ducted Performance Tables'!P105)) -> 0.5862857143 | F101: =IF(OR('Step 5 Identify & Select ASHPs'!$G$37="No",'Step 5 Identify & Select ASHPs'!$G$37="Not Sure"),0,IF(Q104<0,INDEX(K97:K113,MATCH(MIN(S96:S112),K97:K113)),'HP1 Calcs'!$A$26*'Ducted Performance Tables'!Q104+'Ducted Performance Tables'!Q105)) -> 0.7822580645 | I101: -3 | J101: 0.3205714286 | K101: 0.6935483871 | L101: ='Step 5 Identify & Select ASHPs'!$B$30*'Ducted Performance Tables'!J102 -> 0 | M101: ='Step 5 Identify & Select ASHPs'!$B$31*'Ducted Performance Tables'!K102 -> 0 | N101: 0 | P101: =INDEX(I97:I113,MATCH(MIN(R96:R112),R96:R112)) -> -8 | Q101: =INDEX(I97:I113,MATCH(MIN(S96:S112),S96:S112)) -> -8 | R101: - | S101: -
A102: 2 | B102: 0.5817142857 | C102: 1.381451613 | D102: HP3 | E102: =IF(OR('Step 5 Identify & Select ASHPs'!$L$37="No",'Step 5 Identify & Select ASHPs'!$L$37="Not Sure"),0,IF(P104<0,INDEX(J97:J113,MATCH(MIN(R96:R112),J97:J113)),'HP1 Calcs'!$A$48*'Ducted Performance Tables'!P104+'Ducted Performance Tables'!P105)) -> 0.3524571429 | F102: =IF(OR('Step 5 Identify & Select ASHPs'!$L$37="No",'Step 5 Identify & Select ASHPs'!$L$37="Not Sure"),0,IF(Q104<0,INDEX(K97:K113,MATCH(MIN(S96:S112),K97:K113)),'HP1 Calcs'!$A$48*'Ducted Performance Tables'!Q104+'Ducted Performance Tables'!Q105)) -> 0.7041935484 | I102: 2 | J102: 0.372 | K102: 0.7120967742 | L102: ='Step 5 Identify & Select ASHPs'!$B$30*'Ducted Performance Tables'!J103 -> 0 | M102: ='Step 5 Identify & Select ASHPs'!$B$31*'Ducted Performance Tables'!K103 -> 0 | N102: 0 | P102: =INDEX(I97:I113,MATCH(MIN(R96:R112),R96:R112)+1) -> -3 | Q102: =INDEX(I97:I113,MATCH(MIN(S96:S112),S96:S112)+1) -> -3 | R102: - | S102: -
A103: 7 | B103: 0.6634285714 | C103: 1.419354839 | D103: HP4 | E103: =IF(OR('Step 5 Identify & Select ASHPs'!$Q$37="No",'Step 5 Identify & Select ASHPs'!$Q$37="Not Sure"),0,IF(P104<0,INDEX(J97:J113,MATCH(MIN(R96:R112),J97:J113)),'HP1 Calcs'!$A$70*'Ducted Performance Tables'!P104+'Ducted Performance Tables'!P105)) -> 0.3524571429 | F103: =IF(OR('Step 5 Identify & Select ASHPs'!$Q$37="No",'Step 5 Identify & Select ASHPs'!$Q$37="Not Sure"),0,IF(Q104<0,INDEX(K97:K113,MATCH(MIN(S96:S112),K97:K113)),'HP1 Calcs'!$A$70*'Ducted Performance Tables'!Q104+'Ducted Performance Tables'!Q105)) -> 0.7041935484 | I103: 7 | J103: 0.4234285714 | K103: 0.7298387097 | L103: ='Step 5 Identify & Select ASHPs'!$B$30*'Ducted Performance Tables'!J104 -> 0 | M103: ='Step 5 Identify & Select ASHPs'!$B$31*'Ducted Performance Tables'!K104 -> 0 | N103: 0 | R103: - | S103: -
A104: 12 | B104: 0.7434285714 | C104: 1.459677419 | I104: 12 | J104: 0.4748571429 | K104: 0.7483870968 | L104: ='Step 5 Identify & Select ASHPs'!$B$30*'Ducted Performance Tables'!J105 -> 0 | M104: ='Step 5 Identify & Select ASHPs'!$B$31*'Ducted Performance Tables'!K105 -> 0 | N104: 0 | P104: =((INDEX(J97:J113,MATCH(MIN(R96:R112),R96:R112)+1))-INDEX(J97:J113,MATCH(MIN(R96:R112),R96:R112)))/(P102-P101) -> 0.01062857143 | Q104: =((INDEX(K97:K113,MATCH(MIN(S96:S112),S96:S112)+1))-INDEX(K97:K113,MATCH(MIN(S96:S112),S96:S112)))/(Q102-Q101) -> 0.003548387097 | R104: - | S104: -
A105: 17 | B105: =B82 -> 0.8228571429 | C105: =C82 -> 1.5 | I105: 17 | J105: =J82 -> 0.5257142857 | K105: =K82 -> 0.7661290323 | L105: ='Step 5 Identify & Select ASHPs'!$B$30*'Ducted Performance Tables'!J106 -> 0 | M105: ='Step 5 Identify & Select ASHPs'!$B$31*'Ducted Performance Tables'!K106 -> 0 | N105: 0 | P105: =INDEX(J97:J113,MATCH(MIN(R96:R112),R96:R112))-P104*P101 -> 0.3524571429 | Q105: =INDEX(K97:K113,MATCH(MIN(S96:S112),S96:S112))-Q104*Q101 -> 0.7041935484 | R105: - | S105: -
A106: 22 | B106: =((A106-A83)*(B84-B83))/(A84-A83)+B83 -> 0.9011428571 | C106: 1.536290323 | I106: 22 | J106: =((I106-I83)*(J84-J83))/(I84-I83)+J83 -> 0.5754285714 | K106: 0.7822580645 | L106: ='Step 5 Identify & Select ASHPs'!$B$30*'Ducted Performance Tables'!J107 -> 0 | M106: ='Step 5 Identify & Select ASHPs'!$B$31*'Ducted Performance Tables'!K107 -> 0 | N106: 0 | R106: - | S106: -
A107: 27 | B107: 0.9777142857 | C107: 1.576612903 | I107: 27 | J107: 0.6234285714 | K107: 0.8008064516 | L107: ='Step 5 Identify & Select ASHPs'!$B$30*'Ducted Performance Tables'!J108 -> 0 | M107: ='Step 5 Identify & Select ASHPs'!$B$31*'Ducted Performance Tables'!K108 -> 0 | N107: 0 | R107: - | S107: -
A108: 32 | B108: 0.948 | C108: 1.341129032 | I108: 32 | J108: 0.6325714286 | K108: 0.7072580645 | L108: ='Step 5 Identify & Select ASHPs'!$B$30*'Ducted Performance Tables'!J109 -> 0 | M108: ='Step 5 Identify & Select ASHPs'!$B$31*'Ducted Performance Tables'!K109 -> 0 | N108: 0 | R108: - | S108: -
A109: 37 | B109: 0.8588571429 | C109: 0.9596774194 | I109: 37 | J109: 0.6194285714 | K109: 0.5572580645 | L109: ='Step 5 Identify & Select ASHPs'!$B$30*'Ducted Performance Tables'!J110 -> 0 | M109: ='Step 5 Identify & Select ASHPs'!$B$31*'Ducted Performance Tables'!K110 -> 0 | N109: 0 | R109: - | S109: -
A110: 42 | B110: 0.9274285714 | C110: 0.9798387097 | I110: 42 | J110: 0.6691428571 | K110: 0.5677419355 | L110: ='Step 5 Identify & Select ASHPs'!$B$30*'Ducted Performance Tables'!J111 -> 0 | M110: ='Step 5 Identify & Select ASHPs'!$B$31*'Ducted Performance Tables'!K111 -> 0 | N110: 0 | R110: - | S110: -
A111: 47 | B111: =B89 -> 1 | C111: =C89 -> 1 | I111: 47 | J111: =J89 -> 0.72 | K111: =K89 -> 0.5766129032 | L111: ='Step 5 Identify & Select ASHPs'!$B$30*'Ducted Performance Tables'!J112 -> 0 | M111: ='Step 5 Identify & Select ASHPs'!$B$31*'Ducted Performance Tables'!K112 -> 0 | N111: 0 | R111: - | S111: -
A112: 52 | B112: =((A112-A90)*(B91-B90))/(A91-A90)+B90 -> 1.075428571 | C112: =((B112-B90)*(C91-C90))/(B91-B90)+C90 -> 1.02016129 | I112: 52 | J112: =((I112-I90)*(J91-J90))/(I91-I90)+J90 -> 0.776 | K112: =((J112-J90)*(K91-K90))/(J91-J90)+K90 -> 0.5879032258 | L112: ='Step 5 Identify & Select ASHPs'!$B$30*'Ducted Performance Tables'!J113 -> 0 | M112: ='Step 5 Identify & Select ASHPs'!$B$31*'Ducted Performance Tables'!K113 -> 0 | N112: 0 | R112: =IF(AND(J113<>"-",J112="-",ISNUMBER(#REF!)),J113,"-") -> - | S112: =IF(AND(K113<>"-",K112="-",ISNUMBER(#REF!)),K113,"-") -> -
A113: 57 | B113: =((A113-A91)*(B92-B91))/(A92-A91)+B91 -> 1.148571429 | C113: =((B113-B91)*(C92-C91))/(B92-B91)+C91 -> 1.040322581 | I113: 57 | J113: =((I113-I91)*(J92-J91))/(I92-I91)+J91 -> 0.828 | K113: =((J113-J91)*(K92-K91))/(J92-J91)+K91 -> 0.5975806452
A117: MAX, Cool | I117: MIN, Cool
A118: Temperature (F) | B118: Normalized Capacity | C118: Normalized Power | I118: Temperature (F) | J118: Normalized Capacity | K118: Normalized Power
A119: 65 | B119: 1.002824859 | C119: 0.7865612648 | I119: 65 | J119: 0.709039548 | K119: 0.5375494071
A120: 75 | B120: 0.9717514124 | C120: 0.8537549407 | I120: 75 | J120: 0.6920903955 | K120: 0.5770750988
A121: 85 | B121: 0.9491525424 | C121: 0.9090909091 | I121: 85 | J121: 0.6751412429 | K121: 0.6086956522
A122: 95 | B122: 0.9265536723 | C122: 0.9565217391 | I122: 95 | J122: 0.6610169492 | K122: 0.6403162055
A123: 105 | B123: 0.8813559322 | C123: 1 | I123: 105 | J123: 0.6271186441 | K123: 0.6679841897
A124: 115 | B124: 0.8163841808 | C124: 1.035573123 | I124: 115 | J124: 0.5790960452 | K124: 0.6877470356
A127: Temperature (F) | I127: Temperature (F)
A128: Column1 | B128: Column2 | C128: Column3 | I128: Column1 | J128: Column2 | K128: Column3
A129: 72 | B129: =((A129-A119)*(B120-B119))/(A120-A119)+B119 -> 0.9810734463 | C129: =((B129-B119)*(C120-C119))/(B120-B119)+C119 -> 0.8335968379 | E129: =(($F$2-INDEX('HP1 Calcs'!$H$5:$H$13,MATCH($F$2,'HP1 Calcs'!$H$5:$H$13,1)))*(INDEX(J129:J137,MATCH($F$2,'HP1 Calcs'!$H$5:$H$13,1)+1)-INDEX(J129:J137,MATCH($F$2,'HP1 Calcs'!$H$5:$H$13,1))))/(INDEX('HP1 Calcs'!$H$5:$H$13,MATCH($F$2,'HP1 Calcs'!$H$5:$H$13,1)+1)-INDEX('HP1 Calcs'!$H$5:$H$13,MATCH($F$2,'HP1 Calcs'!$H$5:$H$13,1)))+INDEX(J129:J137,MATCH($F$2,'HP1 Calcs'!$H$5:$H$13,1)) ->  | F129: =(($F$2-INDEX('HP1 Calcs'!$H$5:$H$13,MATCH($F$2,'HP1 Calcs'!$H$5:$H$13,1)))*(INDEX(K129:K137,MATCH($F$2,'HP1 Calcs'!$H$5:$H$13,1)+1)-INDEX(K129:K137,MATCH($F$2,'HP1 Calcs'!$H$5:$H$13,1))))/(INDEX('HP1 Calcs'!$H$5:$H$13,MATCH($F$2,'HP1 Calcs'!$H$5:$H$13,1)+1)-INDEX('HP1 Calcs'!$H$5:$H$13,MATCH($F$2,'HP1 Calcs'!$H$5:$H$13,1)))+INDEX(K129:K137,MATCH($F$2,'HP1 Calcs'!$H$5:$H$13,1)) ->  | I129: 72 | J129: =((I129-I119)*(J120-J119))/(I120-I119)+J119 -> 0.6971751412 | K129: =((J129-J119)*(K120-K119))/(J120-J119)+K119 -> 0.5652173913
A130: 77 | B130: =((A130-A120)*(B121-B120))/(A121-A120)+B120 -> 0.9672316384 | C130: =((B130-B120)*(C121-C120))/(B121-B120)+C120 -> 0.8648221344 | I130: 77 | J130: =((I130-I120)*(J121-J120))/(I121-I120)+J120 -> 0.688700565 | K130: =((J130-J120)*(K121-K120))/(J121-J120)+K120 -> 0.5833992095
A131: 82 | B131: =((A131-A120)*(B121-B120))/(A121-A120)+B120 -> 0.9559322034 | C131: =((B131-B120)*(C121-C120))/(B121-B120)+C120 -> 0.8924901186 | I131: 82 | J131: =((I131-I120)*(J121-J120))/(I121-I120)+J120 -> 0.6802259887 | K131: =((J131-J120)*(K121-K120))/(J121-J120)+K120 -> 0.5992094862
A132: 87 | B132: =((A132-A121)*(B122-B121))/(A122-A121)+B121 -> 0.9446327684 | C132: =((B132-B121)*(C122-C121))/(B122-B121)+C121 -> 0.9185770751 | I132: 87 | J132: =((I132-I121)*(J122-J121))/(I122-I121)+J121 -> 0.6723163842 | K132: =((J132-J121)*(K122-K121))/(J122-J121)+K121 -> 0.6150197628
A133: 92 | B133: =((A133-A121)*(B122-B121))/(A122-A121)+B121 -> 0.9333333333 | C133: =((B133-B121)*(C122-C121))/(B122-B121)+C121 -> 0.9422924901 | I133: 92 | J133: =((I133-I121)*(J122-J121))/(I122-I121)+J121 -> 0.6652542373 | K133: =((J133-J121)*(K122-K121))/(J122-J121)+K121 -> 0.6308300395
A134: 97 | B134: =((A134-A122)*(B123-B122))/(A123-A122)+B122 -> 0.9175141243 | C134: =((B134-B122)*(C123-C122))/(B123-B122)+C122 -> 0.9652173913 | I134: 97 | J134: =((I134-I122)*(J123-J122))/(I123-I122)+J122 -> 0.6542372881 | K134: =((J134-J122)*(K123-K122))/(J123-J122)+K122 -> 0.6458498024
A135: 102 | B135: =((A135-A122)*(B123-B122))/(A123-A122)+B122 -> 0.8949152542 | C135: =((B135-B122)*(C123-C122))/(B123-B122)+C122 -> 0.9869565217 | I135: 102 | J135: =((I135-I122)*(J123-J122))/(I123-I122)+J122 -> 0.6372881356 | K135: =((J135-J122)*(K123-K122))/(J123-J122)+K122 -> 0.6596837945
A136: 107 | B136: =((A136-A123)*(B124-B123))/(A124-A123)+B123 -> 0.8683615819 | C136: =((B136-B123)*(C124-C123))/(B124-B123)+C123 -> 1.007114625 | I136: 107 | J136: =((I136-I123)*(J124-J123))/(I124-I123)+J123 -> 0.6175141243 | K136: =((J136-J123)*(K124-K123))/(J124-J123)+K123 -> 0.6719367589
A137: 112 | B137: =((A137-A123)*(B124-B123))/(A124-A123)+B123 -> 0.8358757062 | C137: =((B137-B123)*(C124-C123))/(B124-B123)+C123 -> 1.024901186 | I137: 112 | J137: =((I137-I123)*(J124-J123))/(I124-I123)+J123 -> 0.5935028249 | K137: =((J137-J123)*(K124-K123))/(J124-J123)+K123 -> 0.6818181818

Sheet Ductless Multi-split (hidden)
A1: Ductless, Multi Split,regular | D1: ^Checked, MXC-3C30NA, June 4 2020
A2: Cooling, Max | E2: ='Step 3 Design Loads'!B13 -> 0 | F2: ='Step 3 Design Loads'!B15 -> 88 | J2: Cooling, Min
A3: Temperature | B3: Norm Cap | C3: Norm Power | J3: Temperature | K3: Norm Cap | L3: Norm Power
A4: 70 | B4: 1.1 | C4: 1.029850746 | J4: 70 | K4: 0.3487676056 | L4: 0.1630597015
A5: 74 | B5: 1.1 | C5: 1.029850746 | J5: 74 | K5: 0.3427464789 | L5: 0.1753731343
A6: 78 | B6: 1.1 | C6: 1.029850746 | J6: 78 | K6: 0.336443662 | L6: 0.1888059701
A7: 82 | B7: 1.1 | C7: 1.029850746 | J7: 82 | K7: 0.3304225352 | L7: 0.201119403
A8: 86 | B8: 1.1 | C8: 1.029850746 | J8: 86 | K8: 0.3244366197 | L8: 0.2138059701
A9: 90 | B9: 1.1 | C9: 1.029850746 | J9: 90 | K9: 0.318415493 | L9: 0.2264925373
A10: 94 | B10: 1.1 | C10: 1.029850746 | J10: 94 | K10: 0.3123943662 | L10: 0.2391791045
A11: 102 | B11: 1.06 | C11: 1.089925373 | J11: 102 | K11: 0.3012323944 | L11: 0.2641791045
A12: 110 | B12: 1.02 | C12: 1.15 | J12: 110 | K12: 0.2903169014 | L12: 0.2891791045
A13: 115 | B13: 0.79 | C13: 0.9201492537 | J13: 115 | K13: 0.2615140845 | L13: 0.276119403
A15: =IF('Intro & Unit Options'!$B$12="Imperial","Outdoor Temperature (°F)","Outdoor Temperature (°C)") -> Outdoor Temperature (°F)
A16: Column1 | B16: Column2 | C16: Column3 | J16: Column1 | K16: Column2 | L16: Column3
A17: 72 | B17: =((A17-A4)*(B5-B4))/(A5-A4)+B4 -> 1.1 | C17: =IFERROR(((B17-B4)*(C5-C4))/(B5-B4)+C4,C4) -> 1.029850746 | J17: 72 | K17: =((J17-J4)*(K5-K4))/(J5-J4)+K4 -> 0.3457570423 | L17: =IFERROR(((K17-K4)*(L5-L4))/(K5-K4)+L4,L4) -> 0.1692164179
A18: 77 | B18: =((A18-A5)*(B6-B5))/(A6-A5)+B5 -> 1.1 | C18: =IFERROR(((B18-B5)*(C6-C5))/(B6-B5)+C5,C5) -> 1.029850746 | J18: 77 | K18: =((J18-J5)*(K6-K5))/(J6-J5)+K5 -> 0.3380193662 | L18: =IFERROR(((K18-K5)*(L6-L5))/(K6-K5)+L5,L5) -> 0.1854477612
A19: 82 | B19: =B7 -> 1.1 | C19: =C7 -> 1.029850746 | J19: 82 | K19: =K7 -> 0.3304225352 | L19: =L7 -> 0.201119403
A20: 87 | B20: =((A20-A8)*(B9-B8))/(A9-A8)+B8 -> 1.1 | C20: =IFERROR(((B20-B8)*(C9-C8))/(B9-B8)+C8,C8) -> 1.029850746 | E20: 95 | F20: =((95-A21)*(B22-B21))/(A22-A21)+B21 -> 1.091 | G20: =((F20-B21)*(C22-C21))/(B22-B21)+C21 -> 1.043367537 | J20: 87 | K20: =((J20-J8)*(K9-K8))/(J9-J8)+K8 -> 0.322931338 | L20: =IFERROR(((K20-K8)*(L9-L8))/(K9-K8)+L8,L8) -> 0.2169776119 | N20: 95 | O20: =((95-J21)*(K22-K21))/(J22-J21)+K21 -> 0.3110871479 | P20: =((O20-K21)*(L22-L21))/(K22-K21)+L21 -> 0.242266791
A21: 92 | B21: =((A21-A9)*(B10-B9))/(A10-A9)+B9 -> 1.1 | C21: =IFERROR(((B21-B9)*(C10-C9))/(B10-B9)+C9,C9) -> 1.029850746 | J21: 92 | K21: =((J21-J9)*(K10-K9))/(J10-J9)+K9 -> 0.3154049296 | L21: =IFERROR(((K21-K9)*(L10-L9))/(K10-K9)+L9,L9) -> 0.2328358209
A22: 97 | B22: =((A22-A10)*(B11-B10))/(A11-A10)+B10 -> 1.085 | C22: =((B22-B10)*(C11-C10))/(B11-B10)+C10 -> 1.052378731 | J22: 97 | K22: =((J22-J10)*(K11-K10))/(J11-J10)+K10 -> 0.3082086268 | L22: =((K22-K10)*(L11-L10))/(K11-K10)+L10 -> 0.2485541045
A23: 102 | B23: =B11 -> 1.06 | C23: =C11 -> 1.089925373 | J23: 102 | K23: =K11 -> 0.3012323944 | L23: =L11 -> 0.2641791045
A24: 107 | B24: =((A24-A11)*(B12-B11))/(A12-A11)+B11 -> 1.035 | C24: =((B24-B11)*(C12-C11))/(B12-B11)+C11 -> 1.127472015 | J24: 107 | K24: =((J24-J11)*(K12-K11))/(J12-J11)+K11 -> 0.2944102113 | L24: =((K24-K11)*(L12-L11))/(K12-K11)+L11 -> 0.2798041045
A25: 112 | B25: =((A25-A12)*(B13-B12))/(A13-A12)+B12 -> 0.928 | C25: =((B25-B12)*(C13-C12))/(B13-B12)+C12 -> 1.058059701 | J25: 112 | K25: =((J25-J12)*(K13-K12))/(J13-J12)+K12 -> 0.2787957746 | L25: =((K25-K12)*(L13-L12))/(K13-K12)+L12 -> 0.2839552239
A28: Heating, Max | J28: Heating, Min
A29: Temperature | B29: Norm Cap | C29: Norm Power | J29: Temperature | K29: Norm Cap | L29: Norm Power
A30: 5 | B30: 0.9312937063 | C30: 1.297674419 | J30: 5 | K30: 0.5275874126 | L30: 0.9990697674
A31: 10 | B31: 0.9116083916 | C31: 1.302325581 | J31: 10 | K31: 0.5404195804 | L31: 0.9911627907
A32: 15 | B32: 0.9045454545 | C32: 1.353488372 | J32: 15 | K32: 0.4186713287 | L32: 0.6590697674
A33: 20 | B33: 0.9106643357 | C33: 1.402790698 | J33: 20 | K33: 0.443006993 | L33: 0.6720930233
A34: 25 | B34: 0.9306293706 | C34: 1.426511628 | J34: 25 | K34: 0.467972028 | L34: 0.6725581395
A35: 30 | B35: 0.965 | C35: 1.476744186 | J35: 30 | K35: 0.4927622378 | L35: 0.6855813953
A36: 35 | B36: 0.9606643357 | C36: 1.512093023 | J36: 35 | K36: 0.3586713287 | L36: 0.4125581395
A37: 40 | B37: 1.018846154 | C37: 1.56 | J37: 40 | K37: 0.3988461538 | L37: 0.4260465116
A38: 45 | B38: 1.213636364 | C38: 1.59627907 | J38: 45 | K38: 0.4404895105 | L38: 0.4395348837
A39: 50 | B39: 1.215874126 | C39: 1.59627907 | J39: 50 | K39: 0.4822027972 | L39: 0.4530232558
A40: 55 | B40: 1.217832168 | C40: 1.580930233 | J40: 55 | K40: 0.523951049 | L40: 0.4618604651
A41: 60 | B41: 1.21958042 | C41: 1.580930233 | J41: 60 | K41: 0.5657342657 | L41: 0.4753488372
A42: 65 | B42: 1.221153846 | C42: 1.565581395 | J42: 65 | K42: 0.6060839161 | L42: 0.4837209302
A45: Column1 | B45: Column2 | C45: Column3 | J45: Column1 | K45: Column2 | L45: Column3 | R45: =IF(AND(K46<>"-",K44="-",ISNUMBER(K47)),K46,"-") -> - | S45: =IF(AND(L46<>"-",L44="-",ISNUMBER(L47)),L46,"-") -> -
A46: -23 | B46: - | C46: - | J46: -23 | K46: - | L46: - | R46: =IF(AND(K47<>"-",K46="-",ISNUMBER(K48)),K47,"-") -> - | S46: =IF(AND(L47<>"-",L46="-",ISNUMBER(L48)),L47,"-") -> -
A47: -18 | B47: - | C47: - | J47: -18 | K47: - | L47: - | R47: - | S47: -
A48: -13 | B48: - | C48: - | J48: -13 | K48: - | L48: - | R48: - | S48: -
A49: -8 | B49: - | C49: - | J49: -8 | K49: - | L49: - | R49: - | S49: -
A50: -3 | B50: - | C50: - | J50: -3 | K50: - | L50: - | P50: =INDEX(J46:J62,MATCH(MIN(R45:R61),R45:R61)) -> 7 | Q50: =INDEX(J46:J62,MATCH(MIN(S45:S61),S45:S61)) -> 7 | R50: - | S50: -
A51: 2 | B51: - | C51: - | J51: 2 | K51: - | L51: - | P51: =INDEX(J46:J62,MATCH(MIN(R45:R61),R45:R61)+1) -> 12 | Q51: =INDEX(J46:J62,MATCH(MIN(S45:S61),S45:S61)+1) -> 12 | R51: 0.5327202797 | S51: 0.9959069767
A52: 7 | B52: =((A52-A30)*(B31-B30))/(A31-A30)+B30 -> 0.9234195804 | C52: 1.299534884 | J52: 7 | K52: =((J52-J30)*(K31-K30))/(J31-J30)+K30 -> 0.5327202797 | L52: 0.9959069767 | R52: - | S52: -
A53: 12 | B53: 0.9087832168 | C53: 1.322790698 | J53: 12 | K53: 0.4917202797 | L53: 0.8583255814 | P53: =((INDEX(K46:K62,MATCH(MIN(R45:R62),R45:R62)+1))-INDEX(K46:K62,MATCH(MIN(R45:R62),R45:R62)))/(P51-P50) -> -0.0082 | Q53: =((INDEX(L46:L62,MATCH(MIN(S45:S61),S45:S61)+1))-INDEX(L46:L62,MATCH(MIN(S45:S61),S45:S61)))/(Q51-Q50) -> -0.02751627907 | R53: - | S53: -
A54: 17 | B54: 0.906993007 | C54: 1.373209302 | J54: 17 | K54: 0.4284055944 | L54: 0.6642790698 | P54: =INDEX(K46:K62,MATCH(MIN(R45:R61),R45:R61))-P53*P50 -> 0.5901202797 | Q54: =INDEX(L46:L62,MATCH(MIN(S45:S61),S45:S61))-Q53*Q50 -> 1.18852093 | R54: - | S54: -
A55: 22 | B55: 0.9186503497 | C55: 1.41227907 | J55: 22 | K55: 0.452993007 | L55: 0.6722790698 | R55: - | S55: -
A56: 27 | B56: 0.9443776224 | C56: 1.446604651 | J56: 27 | K56: 0.4778881119 | L56: 0.6777674419 | R56: - | S56: -
A57: 32 | B57: 0.9632657343 | C57: 1.490883721 | J57: 32 | K57: 0.4391258741 | L57: 0.576372093 | R57: - | S57: -
A58: 37 | B58: 0.9839370629 | C58: 1.531255814 | J58: 37 | K58: 0.3747412587 | L58: 0.4179534884 | R58: - | S58: -
A59: 42 | B59: 1.096762238 | C59: 1.574511628 | J59: 42 | K59: 0.4155034965 | L59: 0.4314418605 | R59: - | S59: -
A60: 47 | B60: 1.214531469 | C60: 1.59627907 | J60: 47 | K60: 0.4571748252 | L60: 0.4449302326 | R60: - | S60: -
A61: 52 | B61: 1.216657343 | C61: 1.590139535 | J61: 52 | K61: 0.4989020979 | L61: 0.4565581395 | R61: =IF(AND(K62<>"-",K61="-",ISNUMBER(#REF!)),K62,"-") -> - | S61: =IF(AND(L62<>"-",L61="-",ISNUMBER(#REF!)),L62,"-") -> -
A62: 57 | B62: 1.218531469 | C62: 1.580930233 | J62: 57 | K62: 0.5406643357 | L62: 0.467255814
A66: Ductless, Multi Split, Cold Climate
A67: ^Checked, MXZ-3C30NAHZ2, June 2020
A70: Cooling, Max | J70: Cooling, Min
A71: Temperature | B71: Norm Cap | C71: Norm Power | J71: Temperature | K71: Norm Cap | L71: Norm Power
A72: 70 | B72: 1.1 | C72: 1.040052817 | J72: 70 | K72: 0.4858098592 | L72: 0.3591549296
A73: 74 | B73: 1.1 | C73: 1.040052817 | J73: 74 | K73: 0.4782746479 | L73: 0.3829225352
A74: 78 | B74: 1.1 | C74: 1.040052817 | J74: 78 | K74: 0.4703873239 | L74: 0.4075704225
A75: 82 | B75: 1.1 | C75: 1.040052817 | J75: 82 | K75: 0.4628521127 | L75: 0.4313380282
A76: 86 | B76: 1.1 | C76: 1.040052817 | J76: 86 | K76: 0.4553521127 | L76: 0.4551056338
A77: 90 | B77: 1.1 | C77: 1.040052817 | J77: 90 | K77: 0.4478169014 | L77: 0.4788732394
A78: 94 | B78: 1.1 | C78: 1.040052817 | J78: 94 | K78: 0.4402816901 | L78: 0.5026408451
A79: 102 | B79: 1.057852113 | C79: 1.86971831 | J79: 102 | K79: 0.4264788732 | L79: 0.5492957746
A80: 110 | B80: 0.9669014085 | C80: 1.802816901 | J80: 110 | K80: 0.3973591549 | L80: 0.5470950704
A81: 115 | B81: 0.9076760563 | C81: 1.772887324 | J81: 115 | K81: 0.3779929577 | L81: 0.548415493
A84: =IF('Intro & Unit Options'!$B$12="Imperial","Outdoor Temperature (°F)","Outdoor Temperature (°C)") -> Outdoor Temperature (°F)
A85: Column1 | B85: Column2 | C85: Column3 | J85: Column1 | K85: Column2 | L85: Column3
A86: 72 | B86: =((A86-A72)*(B73-B72))/(A73-A72)+B72 -> 1.1 | C86: =IFERROR(((B86-B72)*(C73-C72))/(B73-B72)+C72,C72) -> 1.040052817 | J86: 72 | K86: =IFERROR(((J86-J72)*(K73-K72))/(J73-J72)+K72,K72) -> 0.4820422535 | L86: =IFERROR(((K86-K72)*(L73-L72))/(K73-K72)+L72,L72) -> 0.3710387324
A87: 77 | B87: =((A87-A73)*(B74-B73))/(A74-A73)+B73 -> 1.1 | C87: =IFERROR(((B87-B73)*(C74-C73))/(B74-B73)+C73,C73) -> 1.040052817 | J87: 77 | K87: =IFERROR(((J87-J73)*(K74-K73))/(J74-J73)+K73,K73) -> 0.4723591549 | L87: =IFERROR(((K87-K73)*(L74-L73))/(K74-K73)+L73,L73) -> 0.4014084507
A88: 82 | B88: =B75 -> 1.1 | C88: =C75 -> 1.040052817 | J88: 82 | K88: =K75 -> 0.4628521127 | L88: =L75 -> 0.4313380282
A89: 87 | B89: =((A89-A76)*(B77-B76))/(A77-A76)+B76 -> 1.1 | C89: =IFERROR(((B89-B76)*(C77-C76))/(B77-B76)+C76,C76) -> 1.040052817 | E89: 95 | F89: =((95-A90)*(B91-B90))/(A91-A90)+B90 -> 1.090516725 | G89: =((F89-B90)*(C91-C90))/(B91-B90)+C90 -> 1.226727553 | J89: 87 | K89: =IFERROR(((J89-J76)*(K77-K76))/(J77-J76)+K76,K76) -> 0.4534683099 | L89: =IFERROR(((K89-K76)*(L77-L76))/(K77-K76)+L76,L76) -> 0.4610475352 | N89: 95 | O89: =((95-J90)*(K91-K90))/(J91-J90)+K90 -> 0.4386830986 | P89: =((O89-K90)*(L91-L90))/(K91-K90)+L90 -> 0.5083846831
A90: 92 | B90: =((A90-A77)*(B78-B77))/(A78-A77)+B77 -> 1.1 | C90: =IFERROR(((B90-B77)*(C78-C77))/(B78-B77)+C77,C77) -> 1.040052817 | J90: 92 | K90: =IFERROR(((J90-J77)*(K78-K77))/(J78-J77)+K77,K77) -> 0.4440492958 | L90: =IFERROR(((K90-K77)*(L78-L77))/(K78-K77)+L77,L77) -> 0.4907570423
A91: 97 | B91: =((A91-A78)*(B79-B78))/(A79-A78)+B78 -> 1.084194542 | C91: =((B91-B78)*(C79-C78))/(B79-B78)+C78 -> 1.351177377 | J91: 97 | K91: =((J91-J78)*(K79-K78))/(J79-J78)+K78 -> 0.4351056338 | L91: =((K91-K78)*(L79-L78))/(K79-K78)+L78 -> 0.5201364437
A92: 102 | B92: =B79 -> 1.057852113 | C92: =C79 -> 1.86971831 | J92: 102 | K92: =K79 -> 0.4264788732 | L92: =L79 -> 0.5492957746
A93: 107 | B93: =((A93-A79)*(B80-B79))/(A80-A79)+B79 -> 1.001007923 | C93: =((B93-B79)*(C80-C79))/(B80-B79)+C79 -> 1.82790493 | J93: 107 | K93: =((J93-J79)*(K80-K79))/(J80-J79)+K79 -> 0.4082790493 | L93: =((K93-K79)*(L80-L79))/(K80-K79)+L79 -> 0.5479203345
A94: 112 | B94: =((A94-A80)*(B81-B80))/(A81-A80)+B80 -> 0.9432112676 | C94: =((B94-B80)*(C81-C80))/(B81-B80)+C80 -> 1.79084507 | J94: 112 | K94: =((J94-J80)*(K81-K80))/(J81-J80)+K80 -> 0.3896126761 | L94: =((K94-K80)*(L81-L80))/(K81-K80)+L80 -> 0.5476232394
A98: Heating, Max | J98: Heating, Min
A99: Temperature | B99: Norm Cap | C99: Norm Power | J99: Temperature | K99: Norm Cap | L99: Norm Power
A100: -8 | B100: 1.225174825 | C100: 2.23759542 | J100: -8 | K100: 0.696013986 | L100: 1.267652672
A101: -3 | B101: 1.220699301 | C101: 2.273854962 | J101: -3 | K101: 0.7028321678 | L101: 1.34398855
A102: 2 | B102: 1.21493007 | C102: 2.660782443 | J102: 2 | K102: 0.7199300699 | L102: 1.531965649
A103: 5 | B103: 1.219125874 | C103: 2.51240458 | J103: 5 | K103: 0.6097552448 | L103: 1.11879771
A104: 12 | B104: 1.247482517 | C104: 2.65601145 | J104: 12 | K104: 0.6352797203 | L104: 1.170324427
A105: 17 | B105: 1.033601399 | C105: 2.044847328 | J105: 17 | K105: 0.5063286713 | L105: 0.858778626
A106: 22 | B106: 1.082762238 | C106: 2.066316794 | J106: 22 | K106: 0.5363986014 | L106: 0.8654580153
A107: 27 | B107: 1.143286713 | C107: 2.158874046 | J107: 27 | K107: 0.5720629371 | L107: 0.9021946565
A108: 32 | B108: 1.212797203 | C108: 2.263358779 | J108: 32 | K108: 0.611993007 | L108: 0.9437022901
A109: 35 | B109: 1.222482517 | C109: 2.380248092 | J109: 35 | K109: 0.4158741259 | L109: 0.5663167939
A110: 42 | B110: 1.027622378 | C110: 1.609255725 | J110: 42 | K110: 0.4472377622 | L110: 0.5834923664
A111: 47 | B111: 1.21951049 | C111: 1.682729008 | J111: 47 | K111: 0.4803496503 | L111: 0.6025763359
A112: 50 | B112: 1.313916084 | C112: 1.776240458 | J112: 50 | K112: 0.5204895105 | L112: 0.6264312977
A113: 55 | B113: 1.408846154 | C113: 1.852099237 | J113: 55 | K113: 0.5605944056 | L113: 0.6440839695
A114: 60 | B114: 1.508811189 | C114: 1.951812977 | J114: 60 | K114: 0.6028671329 | L114: 0.669370229
A115: 65 | B115: 1.60972028 | C115: 2.052003817 | J115: 65 | K115: 0.6454195804 | L115: 0.6946564885
A118: Column1 | B118: Column2 | C118: Column3 | J118: Column1 | K118: Column2 | L118: Column3 | R118: =IF(AND(K119<>"-",K117="-",ISNUMBER(K120)),K119,"-") -> - | S118: =IF(AND(L119<>"-",L117="-",ISNUMBER(L120)),L119,"-") -> -
A119: -23 | B119: - | C119: - | J119: -23 | K119: - | L119: - | R119: =IF(AND(K120<>"-",K119="-",ISNUMBER(K121)),K120,"-") -> - | S119: =IF(AND(L120<>"-",L119="-",ISNUMBER(L121)),L120,"-") -> -
A120: -18 | B120: - | C120: - | J120: -18 | K120: - | L120: - | R120: - | S120: -
A121: -13 | B121: - | C121: - | J121: -13 | K121: - | L121: - | R121: 0.696013986 | S121: 1.267652672
A122: -8 | B122: =B100 -> 1.225174825 | C122: 2.23759542 | J122: -8 | K122: =K100 -> 0.696013986 | L122: 1.267652672 | R122: - | S122: -
A123: -3 | B123: 1.220699301 | C123: 2.273854962 | J123: -3 | K123: 0.7028321678 | L123: 1.34398855 | P123: =INDEX(J119:J135,MATCH(MIN(R118:R134),R118:R134)) -> -8 | Q123: =INDEX(J119:J135,MATCH(MIN(S118:S134),S118:S134)) -> -8 | R123: - | S123: -
A124: 2 | B124: 1.21493007 | C124: 2.660782443 | J124: 2 | K124: 0.7199300699 | L124: 1.531965649 | P124: =INDEX(J119:J135,MATCH(MIN(R118:R134),R118:R134)+1) -> -3 | Q124: =INDEX(J119:J135,MATCH(MIN(S118:S134),S118:S134)+1) -> -3 | R124: - | S124: -
A125: 7 | B125: =((A125-A103)*(B104-B103))/(A104-A103)+B103 -> 1.227227772 | C125: =((B125-B103)*(C104-C103))/(B104-B103)+C103 -> 2.553435115 | J125: 7 | K125: =((J125-J103)*(K104-K103))/(J104-J103)+K103 -> 0.617047952 | L125: =((K125-K103)*(L104-L103))/(K104-K103)+L103 -> 1.133519629 | R125: - | S125: -
A126: 12 | B126: =B104 -> 1.247482517 | C126: 2.65601145 | J126: 12 | K126: =K104 -> 0.6352797203 | L126: 1.170324427 | P126: =((INDEX(K119:K135,MATCH(MIN(R118:R135),R118:R135)+1))-INDEX(K119:K135,MATCH(MIN(R118:R135),R118:R135)))/(P124-P123) -> 0.001363636364 | Q126: =((INDEX(L119:L135,MATCH(MIN(S118:S135),S118:S135)+1))-INDEX(L119:L135,MATCH(MIN(S118:S135),S118:S135)))/(Q124-Q123) -> 0.01526717557 | R126: - | S126: -
A127: 17 | B127: 1.033601399 | C127: 2.044847328 | J127: 17 | K127: 0.5063286713 | L127: 0.858778626 | P127: =INDEX(K119:K135,MATCH(MIN(R118:R134),R118:R134))-P126*P123 -> 0.7069230769 | Q127: =INDEX(L119:L135,MATCH(MIN(S118:S134),S118:S134))-Q126*Q123 -> 1.389790076 | R127: - | S127: -
A128: 22 | B128: 1.082762238 | C128: 2.066316794 | J128: 22 | K128: 0.5363986014 | L128: 0.8654580153 | R128: - | S128: -
A129: 27 | B129: 1.143286713 | C129: 2.158874046 | J129: 27 | K129: 0.5720629371 | L129: 0.9021946565 | R129: - | S129: -
A130: 32 | B130: 1.212797203 | C130: 2.263358779 | J130: 32 | K130: 0.611993007 | L130: 0.9437022901 | R130: - | S130: -
A131: 37 | B131: =((A131-A109)*(B110-B109))/(A110-A109)+B109 -> 1.166808192 | C131: =((B131-B109)*(C110-C109))/(B110-B109)+C109 -> 2.159964558 | J131: 37 | K131: =((J131-J109)*(K110-K109))/(J110-J109)+K109 -> 0.4248351648 | L131: =((K131-K109)*(L110-L109))/(K110-K109)+L109 -> 0.5712241003 | R131: - | S131: -
A132: 42 | B132: =B110 -> 1.027622378 | C132: =C110 -> 1.609255725 | J132: 42 | K132: =K110 -> 0.4472377622 | L132: =L110 -> 0.5834923664 | R132: - | S132: -
A133: 47 | B133: =B111 -> 1.21951049 | C133: =C111 -> 1.682729008 | J133: 47 | K133: =K111 -> 0.4803496503 | L133: =L111 -> 0.6025763359 | R133: - | S133: -
A134: 52 | B134: =((A134-A112)*(B113-B112))/(A113-A112)+B112 -> 1.351888112 | C134: =((B134-B112)*(C113-C112))/(B113-B112)+C112 -> 1.806583969 | J134: 52 | K134: =((J134-J112)*(K113-K112))/(J113-J112)+K112 -> 0.5365314685 | L134: =((K134-K112)*(L113-L112))/(K113-K112)+L112 -> 0.6334923664 | R134: =IF(AND(K135<>"-",K134="-",ISNUMBER(#REF!)),K135,"-") -> - | S134: =IF(AND(L135<>"-",L134="-",ISNUMBER(#REF!)),L135,"-") -> -
A135: 57 | B135: =((A135-A113)*(B114-B113))/(A114-A113)+B113 -> 1.448832168 | C135: =((B135-B113)*(C114-C113))/(B114-B113)+C113 -> 1.891984733 | J135: 57 | K135: =((J135-J113)*(K114-K113))/(J114-J113)+K113 -> 0.5775034965 | L135: =((K135-K113)*(L114-L113))/(K114-K113)+L113 -> 0.6541984733

Sheet HP1 (hidden)
B1: Actual Curves - HP #1
B3: Heating - High Stage | M3: Heating - Low Stage
B5: Design Temp. (heat) | C5: ='Design Load Calcs'!$B$24 -> 0 | M5: Design Temp. (heat) | N5: ='Design Load Calcs'!$B$24 -> 0
B7: Performance Data and Heating Load Line | I7: Outputs: | T7: Outputs:
B8: Outdoor Temp. | C8: Actual Capacity | D8: Actual Power | E8: Actual COP | F8: Heating Load Line | G8: Intersect. Cap/Htg Load Line | I8: =CONCATENATE("HP cap @ Design Temp.",IF('Intro & Unit Options'!$B$12=Dropdown_Menus!F1," [kW]"," [BTU/h]")) -> HP cap @ Design Temp. [BTU/h] | J8: =IF(OR(G34="-",G34=C5),F34,SLOPE(F34:F35,G34:G35)*C5+INTERCEPT(F34:F35,G34:G35)) -> 0 | M8: Outdoor Temp. | N8: Actual Capacity | O8: Actual Power | P8: Actual COP | Q8: Heating Load Line | R8: Intersect. Cap/Htg Load Line | T8: =CONCATENATE("HP cap @ Design Temp.",IF('Intro & Unit Options'!$B$12=Dropdown_Menus!Q1," [kW]"," [BTU/h]")) -> HP cap @ Design Temp. [BTU/h] | U8: =IF(OR(R34="-",R34=N5),Q34,SLOPE(Q34:Q35,R34:R35)*N5+INTERCEPT(Q34:Q35,R34:R35)) -> 0
B9: =IF('Intro & Unit Options'!$B$12=Dropdown_Menus!$F$1,"[°C]","[°F]") -> [°F] | C9: =IF('Intro & Unit Options'!$B$12=Dropdown_Menus!$F$1,"[kW]","[BTU/h]") -> [BTU/h] | D9: [kW] | E9: [-] | F9: =IF('Intro & Unit Options'!$B$12=Dropdown_Menus!$F$1,"[kW]","[BTU/h]") -> [BTU/h] | I9: =CONCATENATE("BPT",IF('Intro & Unit Options'!$B$12=Dropdown_Menus!F1," [°C]"," [°F]")) -> BPT [°F] | J9: =IF((C10-F10)<0,"None",IF((INDEX(C10:C29,MATCH(C40,B10:B29,0))-INDEX(F10:F29,MATCH(C40,B10:B29,0)))>0,E41,C41)) -> None | M9: =IF('Intro & Unit Options'!$B$12=Dropdown_Menus!$F$1,"[°C]","[°F]") -> [°F] | N9: =IF('Intro & Unit Options'!$B$12=Dropdown_Menus!$F$1,"[kW]","[BTU/h]") -> [BTU/h] | O9: [kW] | P9: [-] | Q9: =IF('Intro & Unit Options'!$B$12=Dropdown_Menus!$F$1,"[kW]","[BTU/h]") -> [BTU/h] | T9: =CONCATENATE("BPT",IF('Intro & Unit Options'!$B$12=Dropdown_Menus!Q1," [°C]"," [°F]")) -> BPT [°F] | U9: =IF((N10-Q10)<0,"None",IF((INDEX(N10:N29,MATCH(N40,M10:M29,0))-INDEX(Q10:Q29,MATCH(N40,M10:M29,0)))>0,P41,N41)) -> None
B10: =IF(OR('Step 5 Identify & Select ASHPs'!$I$24,'Step 5 Identify & Select ASHPs'!$I$25,'Step 5 Identify & Select ASHPs'!$I$26),'Step 5 Identify & Select ASHPs'!$N$22,NA()) -> 47 | C10: =IF(OR(B10="#N/A",B10=""),"",IFERROR(HLOOKUP('HP1'!B10,'Step 5 Identify & Select ASHPs'!$N$22:$AH$25,2,FALSE),"")) -> 0 | D10: =IF(OR(B10="#N/A",B10=""),"",IFERROR(HLOOKUP('HP1'!B10,'Step 5 Identify & Select ASHPs'!$N$22:$AD$25,IF('Step 5 Identify & Select ASHPs'!$I$35="COP",4,3),FALSE),"")) -> 0 | E10: =IF(OR(B10="#N/A",B10=""),"",IFERROR(HLOOKUP('HP1'!B10,'Step 5 Identify & Select ASHPs'!$N$22:$AD$25,IF('Step 5 Identify & Select ASHPs'!$I$35="COP",3,4),FALSE),"")) ->  | F10: =(B10*'Design Load Calcs'!$G$23+'Design Load Calcs'!$H$23) -> 10833.33333 | G10: =IF(B10="","",ABS(C10-F10)) -> 10833.33333 | I10: Fraction of heating above BPT | J10: =IF(ISNUMBER(MATCH(J9,'Load %s'!N8:N24,0)),F39,SLOPE(F39:F40,G39:G40)*J9+INTERCEPT(F39:F40,G39:G40)) ->  | M10: =IF('Step 5 Identify & Select ASHPs'!$E$33=Dropdown_Menus!$A$2,"",'HP1'!B10) -> 47 | N10: =IF(OR(M10="#N/A",M10=""),"",IFERROR(HLOOKUP('HP1'!M10,'Step 5 Identify & Select ASHPs'!$N$31:$AH$34,2,FALSE),"")) -> 0 | O10: =IF(OR(M10="#N/A",M10=""),"",IFERROR(HLOOKUP('HP1'!M10,'Step 5 Identify & Select ASHPs'!$N$31:$AH$34,IF('Step 5 Identify & Select ASHPs'!$I$35="COP",4,3),FALSE),"")) -> 0 | P10: =IF(OR(B10="#N/A",B10=""),"",IFERROR(HLOOKUP('HP1'!B10,'Step 5 Identify & Select ASHPs'!$N$31:$AH$34,IF('Step 5 Identify & Select ASHPs'!$I$35="COP",3,4),FALSE),"")) ->  | Q10: =(M10*'Design Load Calcs'!$G$23+'Design Load Calcs'!$H$23) -> 10833.33333 | R10: =IF(M10="","",ABS(N10-Q10)) -> 10833.33333 | T10: Fraction of heating above BPT | U10: =SLOPE(Q39:Q40,R39:R40)*U9+INTERCEPT(Q39:Q40,R39:R40) -> 
B11: =IF(OR('Step 5 Identify & Select ASHPs'!$I$24,'Step 5 Identify & Select ASHPs'!$I$25,'Step 5 Identify & Select ASHPs'!$I$26),'Step 5 Identify & Select ASHPs'!$O$22,NA()) -> 17 | C11: =IF(OR(B11="#N/A",B11=""),"",IFERROR(HLOOKUP('HP1'!B11,'Step 5 Identify & Select ASHPs'!$N$22:$AH$25,2,FALSE),"")) -> 0 | D11: =IF(OR(B11="#N/A",B11=""),"",IFERROR(HLOOKUP('HP1'!B11,'Step 5 Identify & Select ASHPs'!$N$22:$AH$25,IF('Step 5 Identify & Select ASHPs'!$I$35="COP",4,3),FALSE),"")) -> 0 | E11: =IF(OR(B11="#N/A",B11=""),"",IFERROR(HLOOKUP('HP1'!B11,'Step 5 Identify & Select ASHPs'!$N$22:$AH$25,IF('Step 5 Identify & Select ASHPs'!$I$35="COP",3,4),FALSE),"")) ->  | F11: =(B11*'Design Load Calcs'!$G$23+'Design Load Calcs'!$H$23) -> 35833.33333 | G11: =IF(B11="","",ABS(C11-F11)) -> 35833.33333 | I11: =CONCATENATE("HP cap @ BPT",IF('Intro & Unit Options'!$B$12=Dropdown_Menus!F1," [kW]"," [BTU/h]")) -> HP cap @ BPT [BTU/h] | J11: =IF((C10-F10)<0,"None",IF((INDEX(C10:C29,MATCH(C40,B10:B29,0))-INDEX(F10:F29,MATCH(C40,B10:B29,0)))>0,SLOPE(D39:D40,E39:E40)*J9+INTERCEPT(D39:D40,E39:E40),SLOPE(B39:B40,C39:C40)*J9+INTERCEPT(B39:B40,C39:C40))) -> None | M11: =IF('Step 5 Identify & Select ASHPs'!$E$33=Dropdown_Menus!$A$2,"",'HP1'!B11) -> 17 | N11: =IF(OR(M11="#N/A",M11=""),"",IFERROR(HLOOKUP('HP1'!M11,'Step 5 Identify & Select ASHPs'!$N$31:$AH$34,2,FALSE),"")) -> 0 | O11: =IF(OR(M11="#N/A",M11=""),"",IFERROR(HLOOKUP('HP1'!M11,'Step 5 Identify & Select ASHPs'!$N$31:$AH$34,IF('Step 5 Identify & Select ASHPs'!$I$35="COP",4,3),FALSE),"")) -> 0 | P11: =IF(OR(B11="#N/A",B11=""),"",IFERROR(HLOOKUP('HP1'!B11,'Step 5 Identify & Select ASHPs'!$N$31:$AH$34,IF('Step 5 Identify & Select ASHPs'!$I$35="COP",3,4),FALSE),"")) ->  | Q11: =(M11*'Design Load Calcs'!$G$23+'Design Load Calcs'!$H$23) -> 35833.33333 | R11: =IF(M11="","",ABS(N11-Q11)) -> 35833.33333 | T11: =CONCATENATE("HP cap @ BPT",IF('Intro & Unit Options'!$B$12=Dropdown_Menus!Q1," [kW]"," [BTU/h]")) -> HP cap @ BPT [BTU/h] | U11: =IF((N10-Q10)<0,"None",IF((INDEX(N10:N29,MATCH(N40,M10:M29,0))-INDEX(Q10:Q29,MATCH(N40,M10:M29,0)))>0,SLOPE(O39:O40,P39:P40)*U9+INTERCEPT(O39:O40,P39:P40),SLOPE(M39:M40,N39:N40)*U9+INTERCEPT(M39:M40,N39:N40))) -> None
B12: =IF('Step 5 Identify & Select ASHPs'!$I$24,"",IF(OR('Step 5 Identify & Select ASHPs'!$I$25,'Step 5 Identify & Select ASHPs'!$I$26),'Step 5 Identify & Select ASHPs'!$P$22,NA())) ->  | C12: =IF(OR(B12="#N/A",B12=""),"",IFERROR(HLOOKUP('HP1'!B12,'Step 5 Identify & Select ASHPs'!$N$22:$AH$25,2,FALSE),"")) ->  | D12: =IF(OR(B12="#N/A",B12=""),"",IFERROR(HLOOKUP('HP1'!B12,'Step 5 Identify & Select ASHPs'!$N$22:$AH$25,IF('Step 5 Identify & Select ASHPs'!$I$35="COP",4,3),FALSE),"")) ->  | E12: =IF(OR(B12="#N/A",B12=""),"",IFERROR(HLOOKUP('HP1'!B12,'Step 5 Identify & Select ASHPs'!$N$22:$AH$25,IF('Step 5 Identify & Select ASHPs'!$I$35="COP",3,4),FALSE),"")) ->  | F12: =(B12*'Design Load Calcs'!$G$23+'Design Load Calcs'!$H$23) ->  | I12: =CONCATENATE("HP cap @",IF('Intro & Unit Options'!B12=Dropdown_Menus!F1,CONVERT(47,"F","C"),47),IF('Intro & Unit Options'!$B$12=Dropdown_Menus!F1," C"," F"),IF('Intro & Unit Options'!$B$12=Dropdown_Menus!F1," [kW]"," [BTU/h]")) -> HP cap @47 F [BTU/h] | J12: =IF(OR('Step 5 Identify & Select ASHPs'!$I$24,'Step 5 Identify & Select ASHPs'!$I$25,'Step 5 Identify & Select ASHPs'!$I$27),'HP1'!C10,IFERROR(INDEX('HP1'!C10:C29,MATCH(IF('Intro & Unit Options'!B12=Dropdown_Menus!F1,CONVERT(47,"F","C"),47),'HP1'!B10:B29,0)),SLOPE(I35:I36,J35:J36)*IF('Intro & Unit Options'!B12=Dropdown_Menus!F1,CONVERT(47,"F","C"),47)+INTERCEPT(I35:I36,J35:J36))) -> 0 | M12: =IF('Step 5 Identify & Select ASHPs'!$E$33=Dropdown_Menus!$A$2,"",'HP1'!B12) ->  | N12: =IF(OR(M12="#N/A",M12=""),"",IFERROR(HLOOKUP('HP1'!M12,'Step 5 Identify & Select ASHPs'!$N$31:$AH$34,2,FALSE),"")) ->  | O12: =IF(OR(M12="#N/A",M12=""),"",IFERROR(HLOOKUP('HP1'!M12,'Step 5 Identify & Select ASHPs'!$N$31:$AH$34,IF('Step 5 Identify & Select ASHPs'!$I$35="COP",4,3),FALSE),"")) ->  | P12: =IF(OR(B12="#N/A",B12=""),"",IFERROR(HLOOKUP('HP1'!B12,'Step 5 Identify & Select ASHPs'!$N$31:$AH$34,IF('Step 5 Identify & Select ASHPs'!$I$35="COP",3,4),FALSE),"")) ->  | Q12: =(M12*'Design Load Calcs'!$G$23+'Design Load Calcs'!$H$23) -> 
B13: =IF(OR('Step 5 Identify & Select ASHPs'!$I$24,'Step 5 Identify & Select ASHPs'!$I$25),"",IF('Step 5 Identify & Select ASHPs'!$I$26,IF(MATCH(B12,$B$10:$B$29,0)>='Step 5 Identify & Select ASHPs'!$I$32,"",'Step 5 Identify & Select ASHPs'!$Q$22),NA())) ->  | C13: =IF(OR(B13="#N/A",B13=""),"",IFERROR(HLOOKUP('HP1'!B13,'Step 5 Identify & Select ASHPs'!$N$22:$AH$25,2,FALSE),"")) ->  | D13: =IF(OR(B13="#N/A",B13=""),"",IFERROR(HLOOKUP('HP1'!B13,'Step 5 Identify & Select ASHPs'!$N$22:$AH$25,IF('Step 5 Identify & Select ASHPs'!$I$35="COP",4,3),FALSE),"")) ->  | E13: =IF(OR(B13="#N/A",B13=""),"",IFERROR(HLOOKUP('HP1'!B13,'Step 5 Identify & Select ASHPs'!$N$22:$AH$25,IF('Step 5 Identify & Select ASHPs'!$I$35="COP",3,4),FALSE),"")) ->  | F13: =(B13*'Design Load Calcs'!$G$23+'Design Load Calcs'!$H$23) ->  | I13: =CONCATENATE("HP cap @",IF('Intro & Unit Options'!B12=Dropdown_Menus!F1,CONVERT(17,"F","C"),17),IF('Intro & Unit Options'!$B$12=Dropdown_Menus!F1," C"," F"),IF('Intro & Unit Options'!$B$12=Dropdown_Menus!F1," [kW]"," [BTU/h]")) -> HP cap @17 F [BTU/h] | J13: =IF(OR('Step 5 Identify & Select ASHPs'!$I$24,'Step 5 Identify & Select ASHPs'!$I$25,'Step 5 Identify & Select ASHPs'!$I$27),'HP1'!C11,IFERROR(INDEX('HP1'!C10:C29,MATCH(IF('Intro & Unit Options'!B12=Dropdown_Menus!F1,CONVERT(17,"F","C"),17),'HP1'!B10:B29,0)),SLOPE(I39:I40,J39:J40)*IF('Intro & Unit Options'!B12=Dropdown_Menus!F1,CONVERT(17,"F","C"),17)+INTERCEPT(I39:I40,J39:J40))) -> 0 | M13: =IF('Step 5 Identify & Select ASHPs'!$E$33=Dropdown_Menus!$A$2,"",'HP1'!B13) ->  | N13: =IF(OR(M13="#N/A",M13=""),"",IFERROR(HLOOKUP('HP1'!M13,'Step 5 Identify & Select ASHPs'!$N$31:$AH$34,2,FALSE),"")) ->  | O13: =IF(OR(M13="#N/A",M13=""),"",IFERROR(HLOOKUP('HP1'!M13,'Step 5 Identify & Select ASHPs'!$N$31:$AH$34,IF('Step 5 Identify & Select ASHPs'!$I$35="COP",4,3),FALSE),"")) ->  | P13: =IF(OR(B13="#N/A",B13=""),"",IFERROR(HLOOKUP('HP1'!B13,'Step 5 Identify & Select ASHPs'!$N$31:$AH$34,IF('Step 5 Identify & Select ASHPs'!$I$35="COP",3,4),FALSE),"")) ->  | Q13: =(M13*'Design Load Calcs'!$G$23+'Design Load Calcs'!$H$23) -> 
B14: =IF(OR('Step 5 Identify & Select ASHPs'!$I$24,'Step 5 Identify & Select ASHPs'!$I$25),"",IF('Step 5 Identify & Select ASHPs'!$I$26,IF(MATCH(B13,$B$10:$B$29,0)>='Step 5 Identify & Select ASHPs'!$I$32,"",'Step 5 Identify & Select ASHPs'!$R$22),NA())) ->  | C14: =IF(OR(B14="#N/A",B14=""),"",IFERROR(HLOOKUP('HP1'!B14,'Step 5 Identify & Select ASHPs'!$N$22:$AH$25,2,FALSE),"")) ->  | D14: =IF(OR(B14="#N/A",B14=""),"",IFERROR(HLOOKUP('HP1'!B14,'Step 5 Identify & Select ASHPs'!$N$22:$AH$25,IF('Step 5 Identify & Select ASHPs'!$I$35="COP",4,3),FALSE),"")) ->  | E14: =IF(OR(B14="#N/A",B14=""),"",IFERROR(HLOOKUP('HP1'!B14,'Step 5 Identify & Select ASHPs'!$N$22:$AH$25,IF('Step 5 Identify & Select ASHPs'!$I$35="COP",3,4),FALSE),"")) ->  | F14: =(B14*'Design Load Calcs'!$G$23+'Design Load Calcs'!$H$23) ->  | G14: =IF(B14="","",ABS(C14-F14)) ->  | I14: Max Cap | J14: =IFERROR(MAX(C10:C30),0) -> 0 | M14: =IF('Step 5 Identify & Select ASHPs'!$E$33=Dropdown_Menus!$A$2,"",'HP1'!B14) ->  | N14: =IF(OR(M14="#N/A",M14=""),"",IFERROR(HLOOKUP('HP1'!M14,'Step 5 Identify & Select ASHPs'!$N$31:$AH$34,2,FALSE),"")) ->  | O14: =IF(OR(M14="#N/A",M14=""),"",IFERROR(HLOOKUP('HP1'!M14,'Step 5 Identify & Select ASHPs'!$N$31:$AH$34,IF('Step 5 Identify & Select ASHPs'!$I$35="COP",4,3),FALSE),"")) ->  | P14: =IF(OR(B14="#N/A",B14=""),"",IFERROR(HLOOKUP('HP1'!B14,'Step 5 Identify & Select ASHPs'!$N$31:$AH$34,IF('Step 5 Identify & Select ASHPs'!$I$35="COP",3,4),FALSE),"")) ->  | Q14: =(M14*'Design Load Calcs'!$G$23+'Design Load Calcs'!$H$23) -> 
B15: =IF(OR('Step 5 Identify & Select ASHPs'!$I$24,'Step 5 Identify & Select ASHPs'!$I$25),"",IF('Step 5 Identify & Select ASHPs'!$I$26,IF(MATCH(B14,$B$10:$B$29,0)>='Step 5 Identify & Select ASHPs'!$I$32,"",'Step 5 Identify & Select ASHPs'!$S$22),NA())) ->  | C15: =IF(OR(B15="#N/A",B15=""),"",IFERROR(HLOOKUP('HP1'!B15,'Step 5 Identify & Select ASHPs'!$N$22:$AH$25,2,FALSE),"")) ->  | D15: =IF(OR(B15="#N/A",B15=""),"",IFERROR(HLOOKUP('HP1'!B15,'Step 5 Identify & Select ASHPs'!$N$22:$AH$25,IF('Step 5 Identify & Select ASHPs'!$I$35="COP",4,3),FALSE),"")) ->  | E15: =IF(OR(B15="#N/A",B15=""),"",IFERROR(HLOOKUP('HP1'!B15,'Step 5 Identify & Select ASHPs'!$N$22:$AH$25,IF('Step 5 Identify & Select ASHPs'!$I$35="COP",3,4),FALSE),"")) ->  | F15: =(B15*'Design Load Calcs'!$G$23+'Design Load Calcs'!$H$23) ->  | I15: =CONCATENATE("HP pwr @",IF('Intro & Unit Options'!B12=Dropdown_Menus!F1,CONVERT(47,"F","C"),47),IF('Intro & Unit Options'!$B$12=Dropdown_Menus!F1," C"," F"),IF('Intro & Unit Options'!$B$12=Dropdown_Menus!F1," [kW]"," [BTU/h]")) -> HP pwr @47 F [BTU/h] | J15: =IF(OR('Step 5 Identify & Select ASHPs'!$I$24,'Step 5 Identify & Select ASHPs'!$I$25,'Step 5 Identify & Select ASHPs'!$I$27),'HP1'!D10,IFERROR(INDEX('HP1'!D10:D29,MATCH(IF('Intro & Unit Options'!B15=Dropdown_Menus!F4,CONVERT(47,"F","C"),47),'HP1'!B10:B29,0)),SLOPE(I27:I28,J27:J28)*IF('Intro & Unit Options'!B15=Dropdown_Menus!F4,CONVERT(47,"F","C"),47)+INTERCEPT(I27:I28,J27:J28))) -> 0 | M15: =IF('Step 5 Identify & Select ASHPs'!$E$33=Dropdown_Menus!$A$2,"",'HP1'!B15) ->  | N15: =IF(OR(M15="#N/A",M15=""),"",IFERROR(HLOOKUP('HP1'!M15,'Step 5 Identify & Select ASHPs'!$N$31:$AH$34,2,FALSE),"")) ->  | O15: =IF(OR(M15="#N/A",M15=""),"",IFERROR(HLOOKUP('HP1'!M15,'Step 5 Identify & Select ASHPs'!$N$31:$AH$34,IF('Step 5 Identify & Select ASHPs'!$I$35="COP",4,3),FALSE),"")) ->  | P15: =IF(OR(B15="#N/A",B15=""),"",IFERROR(HLOOKUP('HP1'!B15,'Step 5 Identify & Select ASHPs'!$N$31:$AH$34,IF('Step 5 Identify & Select ASHPs'!$I$35="COP",3,4),FALSE),"")) ->  | Q15: =(M15*'Design Load Calcs'!$G$23+'Design Load Calcs'!$H$23) -> 
B16: =IF(OR('Step 5 Identify & Select ASHPs'!$I$24,'Step 5 Identify & Select ASHPs'!$I$25),"",IF('Step 5 Identify & Select ASHPs'!$I$26,IF(MATCH(B15,$B$10:$B$29,0)>='Step 5 Identify & Select ASHPs'!$I$32,"",'Step 5 Identify & Select ASHPs'!$T$22),NA())) ->  | C16: =IF(OR(B16="#N/A",B16=""),"",IFERROR(HLOOKUP('HP1'!B16,'Step 5 Identify & Select ASHPs'!$N$22:$AH$25,2,FALSE),"")) ->  | D16: =IF(OR(B16="#N/A",B16=""),"",IFERROR(HLOOKUP('HP1'!B16,'Step 5 Identify & Select ASHPs'!$N$22:$AH$25,IF('Step 5 Identify & Select ASHPs'!$I$35="COP",4,3),FALSE),"")) ->  | E16: =IF(OR(B16="#N/A",B16=""),"",IFERROR(HLOOKUP('HP1'!B16,'Step 5 Identify & Select ASHPs'!$N$22:$AH$25,IF('Step 5 Identify & Select ASHPs'!$I$35="COP",3,4),FALSE),"")) ->  | F16: =(B16*'Design Load Calcs'!$G$23+'Design Load Calcs'!$H$23) ->  | I16: =CONCATENATE("HP pwr @",IF('Intro & Unit Options'!B12=Dropdown_Menus!F1,CONVERT(17,"F","C"),17),IF('Intro & Unit Options'!$B$12=Dropdown_Menus!F1," C"," F"),IF('Intro & Unit Options'!$B$12=Dropdown_Menus!F1," [kW]"," [BTU/h]")) -> HP pwr @17 F [BTU/h] | J16: =IF(OR('Step 5 Identify & Select ASHPs'!$I$24,'Step 5 Identify & Select ASHPs'!$I$25,'Step 5 Identify & Select ASHPs'!$I$27),'HP1'!D11,IFERROR(INDEX('HP1'!D10:D29,MATCH(IF('Intro & Unit Options'!B15=Dropdown_Menus!F4,CONVERT(17,"F","C"),17),'HP1'!B10:B29,0)),SLOPE(I31:I32,J31:J32)*IF('Intro & Unit Options'!B15=Dropdown_Menus!F4,CONVERT(17,"F","C"),17)+INTERCEPT(I31:I32,J31:J32))) -> 0 | M16: =IF('Step 5 Identify & Select ASHPs'!$E$33=Dropdown_Menus!$A$2,"",'HP1'!B16) ->  | N16: =IF(OR(M16="#N/A",M16=""),"",IFERROR(HLOOKUP('HP1'!M16,'Step 5 Identify & Select ASHPs'!$N$31:$AH$34,2,FALSE),"")) ->  | O16: =IF(OR(M16="#N/A",M16=""),"",IFERROR(HLOOKUP('HP1'!M16,'Step 5 Identify & Select ASHPs'!$N$31:$AH$34,IF('Step 5 Identify & Select ASHPs'!$I$35="COP",4,3),FALSE),"")) ->  | P16: =IF(OR(B16="#N/A",B16=""),"",IFERROR(HLOOKUP('HP1'!B16,'Step 5 Identify & Select ASHPs'!$N$31:$AH$34,IF('Step 5 Identify & Select ASHPs'!$I$35="COP",3,4),FALSE),"")) ->  | Q16: =(M16*'Design Load Calcs'!$G$23+'Design Load Calcs'!$H$23) ->  | T16: Slope @ t-BPT: | U16: =IF((N10-Q10)<0,"None",IF((INDEX(N10:N29,MATCH(N40,M10:M29,0))-INDEX(Q10:Q29,MATCH(N40,M10:M29,0)))>0,SLOPE(O39:O40,P39:P40),SLOPE(M39:M40,N39:N40))) -> None
B17: =IF(OR('Step 5 Identify & Select ASHPs'!$I$24,'Step 5 Identify & Select ASHPs'!$I$25),"",IF('Step 5 Identify & Select ASHPs'!$I$26,IF(MATCH(B16,$B$10:$B$29,0)>='Step 5 Identify & Select ASHPs'!$I$32,"",'Step 5 Identify & Select ASHPs'!$U$22),NA())) ->  | C17: =IF(OR(B17="#N/A",B17=""),"",IFERROR(HLOOKUP('HP1'!B17,'Step 5 Identify & Select ASHPs'!$N$22:$AH$25,2,FALSE),"")) ->  | D17: =IF(OR(B17="#N/A",B17=""),"",IFERROR(HLOOKUP('HP1'!B17,'Step 5 Identify & Select ASHPs'!$N$22:$AH$25,IF('Step 5 Identify & Select ASHPs'!$I$35="COP",4,3),FALSE),"")) ->  | E17: =IF(OR(B17="#N/A",B17=""),"",IFERROR(HLOOKUP('HP1'!B17,'Step 5 Identify & Select ASHPs'!$N$22:$AH$25,IF('Step 5 Identify & Select ASHPs'!$I$35="COP",3,4),FALSE),"")) ->  | F17: =(B17*'Design Load Calcs'!$G$23+'Design Load Calcs'!$H$23) ->  | I17: Slope @ t-BPT: | J17: =IF((C10-F10)<0,"None",IF((INDEX(C10:C29,MATCH(C40,B10:B29,0))-INDEX(F10:F29,MATCH(C40,B10:B29,0)))>0,SLOPE(D39:D40,E39:E40),SLOPE(B39:B40,C39:C40))) -> None | M17: =IF('Step 5 Identify & Select ASHPs'!$E$33=Dropdown_Menus!$A$2,"",'HP1'!B17) ->  | N17: =IF(OR(M17="#N/A",M17=""),"",IFERROR(HLOOKUP('HP1'!M17,'Step 5 Identify & Select ASHPs'!$N$31:$AH$34,2,FALSE),"")) ->  | O17: =IF(OR(M17="#N/A",M17=""),"",IFERROR(HLOOKUP('HP1'!M17,'Step 5 Identify & Select ASHPs'!$N$31:$AH$34,IF('Step 5 Identify & Select ASHPs'!$I$35="COP",4,3),FALSE),"")) ->  | P17: =IF(OR(B17="#N/A",B17=""),"",IFERROR(HLOOKUP('HP1'!B17,'Step 5 Identify & Select ASHPs'!$N$31:$AH$34,IF('Step 5 Identify & Select ASHPs'!$I$35="COP",3,4),FALSE),"")) ->  | Q17: =(M17*'Design Load Calcs'!$G$23+'Design Load Calcs'!$H$23) ->  | T17: Intercept @ t-BPT | U17: =IF((N10-Q10)<0,"None",IF((INDEX(N10:N29,MATCH(N40,M10:M29,0))-INDEX(Q10:Q29,MATCH(N40,M10:M29,0)))>0,INTERCEPT(O39:O40,P39:P40),INTERCEPT(M39:M40,N39:N40))) -> None
B18: =IF(OR('Step 5 Identify & Select ASHPs'!$I$24,'Step 5 Identify & Select ASHPs'!$I$25),"",IF('Step 5 Identify & Select ASHPs'!$I$26,IF(MATCH(B17,$B$10:$B$29,0)>='Step 5 Identify & Select ASHPs'!$I$32,"",'Step 5 Identify & Select ASHPs'!$V$22),NA())) ->  | C18: =IF(OR(B18="#N/A",B18=""),"",IFERROR(HLOOKUP('HP1'!B18,'Step 5 Identify & Select ASHPs'!$N$22:$AH$25,2,FALSE),"")) ->  | D18: =IF(OR(B18="#N/A",B18=""),"",IFERROR(HLOOKUP('HP1'!B18,'Step 5 Identify & Select ASHPs'!$N$22:$AH$25,IF('Step 5 Identify & Select ASHPs'!$I$35="COP",4,3),FALSE),"")) ->  | E18: =IF(OR(B18="#N/A",B18=""),"",IFERROR(HLOOKUP('HP1'!B18,'Step 5 Identify & Select ASHPs'!$N$22:$AH$25,IF('Step 5 Identify & Select ASHPs'!$I$35="COP",3,4),FALSE),"")) ->  | F18: =(B18*'Design Load Calcs'!$G$23+'Design Load Calcs'!$H$23) ->  | I18: Intercept @ t-BPT | J18: =IF((C10-F10)<0,"None",IF((INDEX(C10:C29,MATCH(C40,B10:B29,0))-INDEX(F10:F29,MATCH(C40,B10:B29,0)))>0,INTERCEPT(D39:D40,E39:E40),INTERCEPT(B39:B40,C39:C40))) -> None | M18: =IF('Step 5 Identify & Select ASHPs'!$E$33=Dropdown_Menus!$A$2,"",'HP1'!B18) ->  | N18: =IF(OR(M18="#N/A",M18=""),"",IFERROR(HLOOKUP('HP1'!M18,'Step 5 Identify & Select ASHPs'!$N$31:$AH$34,2,FALSE),"")) ->  | O18: =IF(OR(M18="#N/A",M18=""),"",IFERROR(HLOOKUP('HP1'!M18,'Step 5 Identify & Select ASHPs'!$N$31:$AH$34,IF('Step 5 Identify & Select ASHPs'!$I$35="COP",4,3),FALSE),"")) ->  | P18: =IF(OR(B18="#N/A",B18=""),"",IFERROR(HLOOKUP('HP1'!B18,'Step 5 Identify & Select ASHPs'!$N$31:$AH$34,IF('Step 5 Identify & Select ASHPs'!$I$35="COP",3,4),FALSE),"")) ->  | Q18: =(M18*'Design Load Calcs'!$G$23+'Design Load Calcs'!$H$23) -> 
B19: =IF(OR('Step 5 Identify & Select ASHPs'!$I$24,'Step 5 Identify & Select ASHPs'!$I$25),"",IF('Step 5 Identify & Select ASHPs'!$I$26,IF(MATCH(B18,$B$10:$B$29,0)>='Step 5 Identify & Select ASHPs'!$I$32,"",'Step 5 Identify & Select ASHPs'!$W$22),NA())) ->  | C19: =IF(OR(B19="#N/A",B19=""),"",IFERROR(HLOOKUP('HP1'!B19,'Step 5 Identify & Select ASHPs'!$N$22:$AH$25,2,FALSE),"")) ->  | D19: =IF(OR(B19="#N/A",B19=""),"",IFERROR(HLOOKUP('HP1'!B19,'Step 5 Identify & Select ASHPs'!$N$22:$AH$25,IF('Step 5 Identify & Select ASHPs'!$I$35="COP",4,3),FALSE),"")) ->  | E19: =IF(OR(B19="#N/A",B19=""),"",IFERROR(HLOOKUP('HP1'!B19,'Step 5 Identify & Select ASHPs'!$N$22:$AH$25,IF('Step 5 Identify & Select ASHPs'!$I$35="COP",3,4),FALSE),"")) ->  | F19: =(B19*'Design Load Calcs'!$G$23+'Design Load Calcs'!$H$23) ->  | I19: Cap @ cut-off T° | J19: =IFERROR(IF(B30=MIN(B10:B29),1,0),0) -> 0 | M19: =IF('Step 5 Identify & Select ASHPs'!$E$33=Dropdown_Menus!$A$2,"",'HP1'!B19) ->  | N19: =IF(OR(M19="#N/A",M19=""),"",IFERROR(HLOOKUP('HP1'!M19,'Step 5 Identify & Select ASHPs'!$N$31:$AH$34,2,FALSE),"")) ->  | O19: =IF(OR(M19="#N/A",M19=""),"",IFERROR(HLOOKUP('HP1'!M19,'Step 5 Identify & Select ASHPs'!$N$31:$AH$34,IF('Step 5 Identify & Select ASHPs'!$I$35="COP",4,3),FALSE),"")) ->  | P19: =IF(OR(B19="#N/A",B19=""),"",IFERROR(HLOOKUP('HP1'!B19,'Step 5 Identify & Select ASHPs'!$N$31:$AH$34,IF('Step 5 Identify & Select ASHPs'!$I$35="COP",3,4),FALSE),"")) ->  | Q19: =(M19*'Design Load Calcs'!$G$23+'Design Load Calcs'!$H$23) -> 
B20: =IF(OR('Step 5 Identify & Select ASHPs'!$I$24,'Step 5 Identify & Select ASHPs'!$I$25),"",IF('Step 5 Identify & Select ASHPs'!$I$26,IF(MATCH(B19,$B$10:$B$29,0)>='Step 5 Identify & Select ASHPs'!$I$32,"",'Step 5 Identify & Select ASHPs'!$X$22),NA())) ->  | C20: =IF(OR(B20="#N/A",B20=""),"",IFERROR(HLOOKUP('HP1'!B20,'Step 5 Identify & Select ASHPs'!$N$22:$AH$25,2,FALSE),"")) ->  | D20: =IF(OR(B20="#N/A",B20=""),"",IFERROR(HLOOKUP('HP1'!B20,'Step 5 Identify & Select ASHPs'!$N$22:$AH$25,IF('Step 5 Identify & Select ASHPs'!$I$35="COP",4,3),FALSE),"")) ->  | E20: =IF(OR(B20="#N/A",B20=""),"",IFERROR(HLOOKUP('HP1'!B20,'Step 5 Identify & Select ASHPs'!$N$22:$AH$25,IF('Step 5 Identify & Select ASHPs'!$I$35="COP",3,4),FALSE),"")) ->  | F20: =(B20*'Design Load Calcs'!$G$23+'Design Load Calcs'!$H$23) ->  | M20: =IF('Step 5 Identify & Select ASHPs'!$E$33=Dropdown_Menus!$A$2,"",'HP1'!B20) ->  | N20: =IF(OR(M20="#N/A",M20=""),"",IFERROR(HLOOKUP('HP1'!M20,'Step 5 Identify & Select ASHPs'!$N$31:$AH$34,2,FALSE),"")) ->  | O20: =IF(OR(M20="#N/A",M20=""),"",IFERROR(HLOOKUP('HP1'!M20,'Step 5 Identify & Select ASHPs'!$N$31:$AH$34,IF('Step 5 Identify & Select ASHPs'!$I$35="COP",4,3),FALSE),"")) ->  | P20: =IF(OR(B20="#N/A",B20=""),"",IFERROR(HLOOKUP('HP1'!B20,'Step 5 Identify & Select ASHPs'!$N$31:$AH$34,IF('Step 5 Identify & Select ASHPs'!$I$35="COP",3,4),FALSE),"")) ->  | Q20: =(M20*'Design Load Calcs'!$G$23+'Design Load Calcs'!$H$23) -> 
B21: =IF(OR('Step 5 Identify & Select ASHPs'!$I$24,'Step 5 Identify & Select ASHPs'!$I$25),"",IF('Step 5 Identify & Select ASHPs'!$I$26,IF(MATCH(B20,$B$10:$B$29,0)>='Step 5 Identify & Select ASHPs'!$I$32,"",'Step 5 Identify & Select ASHPs'!$Y$22),NA())) ->  | C21: =IF(OR(B21="#N/A",B21=""),"",IFERROR(HLOOKUP('HP1'!B21,'Step 5 Identify & Select ASHPs'!$N$22:$AH$25,2,FALSE),"")) ->  | D21: =IF(OR(B21="#N/A",B21=""),"",IFERROR(HLOOKUP('HP1'!B21,'Step 5 Identify & Select ASHPs'!$N$22:$AH$25,IF('Step 5 Identify & Select ASHPs'!$I$35="COP",4,3),FALSE),"")) ->  | E21: =IF(OR(B21="#N/A",B21=""),"",IFERROR(HLOOKUP('HP1'!B21,'Step 5 Identify & Select ASHPs'!$N$22:$AH$25,IF('Step 5 Identify & Select ASHPs'!$I$35="COP",3,4),FALSE),"")) ->  | F21: =(B21*'Design Load Calcs'!$G$23+'Design Load Calcs'!$H$23) ->  | M21: =IF('Step 5 Identify & Select ASHPs'!$E$33=Dropdown_Menus!$A$2,"",'HP1'!B21) ->  | N21: =IF(OR(M21="#N/A",M21=""),"",IFERROR(HLOOKUP('HP1'!M21,'Step 5 Identify & Select ASHPs'!$N$31:$AH$34,2,FALSE),"")) ->  | O21: =IF(OR(M21="#N/A",M21=""),"",IFERROR(HLOOKUP('HP1'!M21,'Step 5 Identify & Select ASHPs'!$N$31:$AH$34,IF('Step 5 Identify & Select ASHPs'!$I$35="COP",4,3),FALSE),"")) ->  | P21: =IF(OR(B21="#N/A",B21=""),"",IFERROR(HLOOKUP('HP1'!B21,'Step 5 Identify & Select ASHPs'!$N$31:$AH$34,IF('Step 5 Identify & Select ASHPs'!$I$35="COP",3,4),FALSE),"")) ->  | Q21: =(M21*'Design Load Calcs'!$G$23+'Design Load Calcs'!$H$23) -> 
B22: =IF(OR('Step 5 Identify & Select ASHPs'!$I$24,'Step 5 Identify & Select ASHPs'!$I$25),"",IF('Step 5 Identify & Select ASHPs'!$I$26,IF(MATCH(B21,$B$10:$B$29,0)>='Step 5 Identify & Select ASHPs'!$I$32,"",'Step 5 Identify & Select ASHPs'!$Z$22),NA())) ->  | C22: =IF(OR(B22="#N/A",B22=""),"",IFERROR(HLOOKUP('HP1'!B22,'Step 5 Identify & Select ASHPs'!$N$22:$AH$25,2,FALSE),"")) ->  | D22: =IF(OR(B22="#N/A",B22=""),"",IFERROR(HLOOKUP('HP1'!B22,'Step 5 Identify & Select ASHPs'!$N$22:$AH$25,IF('Step 5 Identify & Select ASHPs'!$I$35="COP",4,3),FALSE),"")) ->  | E22: =IF(OR(B22="#N/A",B22=""),"",IFERROR(HLOOKUP('HP1'!B22,'Step 5 Identify & Select ASHPs'!$N$22:$AH$25,IF('Step 5 Identify & Select ASHPs'!$I$35="COP",3,4),FALSE),"")) ->  | F22: =(B22*'Design Load Calcs'!$G$23+'Design Load Calcs'!$H$23) ->  | M22: =IF('Step 5 Identify & Select ASHPs'!$E$33=Dropdown_Menus!$A$2,"",'HP1'!B22) ->  | N22: =IF(OR(M22="#N/A",M22=""),"",IFERROR(HLOOKUP('HP1'!M22,'Step 5 Identify & Select ASHPs'!$N$31:$AH$34,2,FALSE),"")) ->  | O22: =IF(OR(M22="#N/A",M22=""),"",IFERROR(HLOOKUP('HP1'!M22,'Step 5 Identify & Select ASHPs'!$N$31:$AH$34,IF('Step 5 Identify & Select ASHPs'!$I$35="COP",4,3),FALSE),"")) ->  | P22: =IF(OR(B22="#N/A",B22=""),"",IFERROR(HLOOKUP('HP1'!B22,'Step 5 Identify & Select ASHPs'!$N$31:$AH$34,IF('Step 5 Identify & Select ASHPs'!$I$35="COP",3,4),FALSE),"")) ->  | Q22: =(M22*'Design Load Calcs'!$G$23+'Design Load Calcs'!$H$23) -> 
B23: =IF(OR('Step 5 Identify & Select ASHPs'!$I$24,'Step 5 Identify & Select ASHPs'!$I$25),"",IF('Step 5 Identify & Select ASHPs'!$I$26,IF(MATCH(B22,$B$10:$B$29,0)>='Step 5 Identify & Select ASHPs'!$I$32,"",'Step 5 Identify & Select ASHPs'!$AA$22),NA())) ->  | C23: =IF(OR(B23="#N/A",B23=""),"",IFERROR(HLOOKUP('HP1'!B23,'Step 5 Identify & Select ASHPs'!$N$22:$AH$25,2,FALSE),"")) ->  | D23: =IF(OR(B23="#N/A",B23=""),"",IFERROR(HLOOKUP('HP1'!B23,'Step 5 Identify & Select ASHPs'!$N$22:$AH$25,IF('Step 5 Identify & Select ASHPs'!$I$35="COP",4,3),FALSE),"")) ->  | E23: =IF(OR(B23="#N/A",B23=""),"",IFERROR(HLOOKUP('HP1'!B23,'Step 5 Identify & Select ASHPs'!$N$22:$AH$25,IF('Step 5 Identify & Select ASHPs'!$I$35="COP",3,4),FALSE),"")) ->  | F23: =(B23*'Design Load Calcs'!$G$23+'Design Load Calcs'!$H$23) ->  | M23: =IF('Step 5 Identify & Select ASHPs'!$E$33=Dropdown_Menus!$A$2,"",'HP1'!B23) ->  | N23: =IF(OR(M23="#N/A",M23=""),"",IFERROR(HLOOKUP('HP1'!M23,'Step 5 Identify & Select ASHPs'!$N$31:$AH$34,2,FALSE),"")) ->  | O23: =IF(OR(M23="#N/A",M23=""),"",IFERROR(HLOOKUP('HP1'!M23,'Step 5 Identify & Select ASHPs'!$N$31:$AH$34,IF('Step 5 Identify & Select ASHPs'!$I$35="COP",4,3),FALSE),"")) ->  | P23: =IF(OR(B23="#N/A",B23=""),"",IFERROR(HLOOKUP('HP1'!B23,'Step 5 Identify & Select ASHPs'!$N$31:$AH$34,IF('Step 5 Identify & Select ASHPs'!$I$35="COP",3,4),FALSE),"")) ->  | Q23: =(M23*'Design Load Calcs'!$G$23+'Design Load Calcs'!$H$23) -> 
B24: =IF(OR('Step 5 Identify & Select ASHPs'!$I$24,'Step 5 Identify & Select ASHPs'!$I$25),"",IF('Step 5 Identify & Select ASHPs'!$I$26,IF(MATCH(B23,$B$10:$B$29,0)>='Step 5 Identify & Select ASHPs'!$I$32,"",'Step 5 Identify & Select ASHPs'!$AB$22),NA())) ->  | C24: =IF(OR(B24="#N/A",B24=""),"",IFERROR(HLOOKUP('HP1'!B24,'Step 5 Identify & Select ASHPs'!$N$22:$AH$25,2,FALSE),"")) ->  | D24: =IF(OR(B24="#N/A",B24=""),"",IFERROR(HLOOKUP('HP1'!B24,'Step 5 Identify & Select ASHPs'!$N$22:$AH$25,IF('Step 5 Identify & Select ASHPs'!$I$35="COP",4,3),FALSE),"")) ->  | E24: =IF(OR(B24="#N/A",B24=""),"",IFERROR(HLOOKUP('HP1'!B24,'Step 5 Identify & Select ASHPs'!$N$22:$AH$25,IF('Step 5 Identify & Select ASHPs'!$I$35="COP",3,4),FALSE),"")) ->  | F24: =(B24*'Design Load Calcs'!$G$23+'Design Load Calcs'!$H$23) ->  | G24: =IF(B24="","",ABS(C24-F24)) ->  | M24: =IF('Step 5 Identify & Select ASHPs'!$E$33=Dropdown_Menus!$A$2,"",'HP1'!B24) ->  | N24: =IF(OR(M24="#N/A",M24=""),"",IFERROR(HLOOKUP('HP1'!M24,'Step 5 Identify & Select ASHPs'!$N$31:$AH$34,2,FALSE),"")) ->  | O24: =IF(OR(M24="#N/A",M24=""),"",IFERROR(HLOOKUP('HP1'!M24,'Step 5 Identify & Select ASHPs'!$N$31:$AH$34,IF('Step 5 Identify & Select ASHPs'!$I$35="COP",4,3),FALSE),"")) ->  | P24: =IF(OR(B24="#N/A",B24=""),"",IFERROR(HLOOKUP('HP1'!B24,'Step 5 Identify & Select ASHPs'!$N$31:$AH$34,IF('Step 5 Identify & Select ASHPs'!$I$35="COP",3,4),FALSE),"")) ->  | Q24: =(M24*'Design Load Calcs'!$G$23+'Design Load Calcs'!$H$23) -> 
B25: =IF(OR('Step 5 Identify & Select ASHPs'!$I$24,'Step 5 Identify & Select ASHPs'!$I$25),"",IF('Step 5 Identify & Select ASHPs'!$I$26,IF(MATCH(B24,$B$10:$B$29,0)>='Step 5 Identify & Select ASHPs'!$I$32,"",'Step 5 Identify & Select ASHPs'!$AC$22),NA())) ->  | C25: =IF(OR(B25="#N/A",B25=""),"",IFERROR(HLOOKUP('HP1'!B25,'Step 5 Identify & Select ASHPs'!$N$22:$AH$25,2,FALSE),"")) ->  | D25: =IF(OR(B25="#N/A",B25=""),"",IFERROR(HLOOKUP('HP1'!B25,'Step 5 Identify & Select ASHPs'!$N$22:$AH$25,IF('Step 5 Identify & Select ASHPs'!$I$35="COP",4,3),FALSE),"")) ->  | E25: =IF(OR(B25="#N/A",B25=""),"",IFERROR(HLOOKUP('HP1'!B25,'Step 5 Identify & Select ASHPs'!$N$22:$AH$25,IF('Step 5 Identify & Select ASHPs'!$I$35="COP",3,4),FALSE),"")) ->  | F25: =(B25*'Design Load Calcs'!$G$23+'Design Load Calcs'!$H$23) ->  | G25: =IF(B25="","",ABS(C25-F25)) ->  | I25: Slope and Intercept at 47°F (HP Pwr) | M25: =IF('Step 5 Identify & Select ASHPs'!$E$33=Dropdown_Menus!$A$2,"",'HP1'!B25) ->  | N25: =IF(OR(M25="#N/A",M25=""),"",IFERROR(HLOOKUP('HP1'!M25,'Step 5 Identify & Select ASHPs'!$N$31:$AH$34,2,FALSE),"")) ->  | O25: =IF(OR(M25="#N/A",M25=""),"",IFERROR(HLOOKUP('HP1'!M25,'Step 5 Identify & Select ASHPs'!$N$31:$AH$34,IF('Step 5 Identify & Select ASHPs'!$I$35="COP",4,3),FALSE),"")) ->  | P25: =IF(OR(B25="#N/A",B25=""),"",IFERROR(HLOOKUP('HP1'!B25,'Step 5 Identify & Select ASHPs'!$N$31:$AH$34,IF('Step 5 Identify & Select ASHPs'!$I$35="COP",3,4),FALSE),"")) ->  | Q25: =(M25*'Design Load Calcs'!$G$23+'Design Load Calcs'!$H$23) -> 
B26: =IF(OR('Step 5 Identify & Select ASHPs'!$I$24,'Step 5 Identify & Select ASHPs'!$I$25),"",IF('Step 5 Identify & Select ASHPs'!$I$26,IF(MATCH(B25,$B$10:$B$29,0)>='Step 5 Identify & Select ASHPs'!$I$32,"",'Step 5 Identify & Select ASHPs'!$AD$22),NA())) ->  | C26: =IF(OR(B26="#N/A",B26=""),"",IFERROR(HLOOKUP('HP1'!B26,'Step 5 Identify & Select ASHPs'!$N$22:$AH$25,2,FALSE),"")) ->  | D26: =IF(OR(B26="#N/A",B26=""),"",IFERROR(HLOOKUP('HP1'!B26,'Step 5 Identify & Select ASHPs'!$N$22:$AH$25,IF('Step 5 Identify & Select ASHPs'!$I$35="COP",4,3),FALSE),"")) ->  | E26: =IF(OR(B26="#N/A",B26=""),"",IFERROR(HLOOKUP('HP1'!B26,'Step 5 Identify & Select ASHPs'!$N$22:$AH$25,IF('Step 5 Identify & Select ASHPs'!$I$35="COP",3,4),FALSE),"")) ->  | F26: =(B26*'Design Load Calcs'!$G$23+'Design Load Calcs'!$H$23) ->  | I26: know ys (pwr): | J26: know xs (temp) | M26: =IF('Step 5 Identify & Select ASHPs'!$E$33=Dropdown_Menus!$A$2,"",'HP1'!B26) ->  | N26: =IF(OR(M26="#N/A",M26=""),"",IFERROR(HLOOKUP('HP1'!M26,'Step 5 Identify & Select ASHPs'!$N$31:$AH$34,2,FALSE),"")) ->  | O26: =IF(OR(M26="#N/A",M26=""),"",IFERROR(HLOOKUP('HP1'!M26,'Step 5 Identify & Select ASHPs'!$N$31:$AH$34,IF('Step 5 Identify & Select ASHPs'!$I$35="COP",4,3),FALSE),"")) ->  | P26: =IF(OR(B26="#N/A",B26=""),"",IFERROR(HLOOKUP('HP1'!B26,'Step 5 Identify & Select ASHPs'!$N$31:$AH$34,IF('Step 5 Identify & Select ASHPs'!$I$35="COP",3,4),FALSE),"")) ->  | Q26: =(M26*'Design Load Calcs'!$G$23+'Design Load Calcs'!$H$23) -> 
B27: =IF(OR('Step 5 Identify & Select ASHPs'!$I$24,'Step 5 Identify & Select ASHPs'!$I$25),"",IF('Step 5 Identify & Select ASHPs'!$I$26,IF(MATCH(B26,$B$10:$B$29,0)>='Step 5 Identify & Select ASHPs'!$I$32,"",'Step 5 Identify & Select ASHPs'!$AE$22),NA())) ->  | C27: =IF(OR(B27="#N/A",B27=""),"",IFERROR(HLOOKUP('HP1'!B27,'Step 5 Identify & Select ASHPs'!$N$22:$AH$25,2,FALSE),"")) ->  | D27: =IF(OR(B27="#N/A",B27=""),"",IFERROR(HLOOKUP('HP1'!B27,'Step 5 Identify & Select ASHPs'!$N$22:$AH$25,IF('Step 5 Identify & Select ASHPs'!$I$35="COP",4,3),FALSE),"")) ->  | E27: =IF(OR(B27="#N/A",B27=""),"",IFERROR(HLOOKUP('HP1'!B27,'Step 5 Identify & Select ASHPs'!$N$22:$AH$25,IF('Step 5 Identify & Select ASHPs'!$I$35="COP",3,4),FALSE),"")) ->  | F27: =(B27*'Design Load Calcs'!$G$23+'Design Load Calcs'!$H$23) ->  | I27: =INDEX(D10:D29,MATCH(J27,B10:B29,0)) -> 0 | J27: =IF(MAX(B10:B29)<IF('Intro & Unit Options'!B12=Dropdown_Menus!F1,CONVERT(47,"F","C"),47),MAX(B10:B29),INDEX(B10:B29,MATCH(IF('Intro & Unit Options'!B12=Dropdown_Menus!F1,CONVERT(47,"F","C"),47),B10:B29,-1))) -> 47 | M27: =IF('Step 5 Identify & Select ASHPs'!$E$33=Dropdown_Menus!$A$2,"",'HP1'!B27) ->  | N27: =IF(OR(M27="#N/A",M27=""),"",IFERROR(HLOOKUP('HP1'!M27,'Step 5 Identify & Select ASHPs'!$N$31:$AH$34,2,FALSE),"")) ->  | O27: =IF(OR(M27="#N/A",M27=""),"",IFERROR(HLOOKUP('HP1'!M27,'Step 5 Identify & Select ASHPs'!$N$31:$AH$34,IF('Step 5 Identify & Select ASHPs'!$I$35="COP",4,3),FALSE),"")) ->  | P27: =IF(OR(B27="#N/A",B27=""),"",IFERROR(HLOOKUP('HP1'!B27,'Step 5 Identify & Select ASHPs'!$N$31:$AH$34,IF('Step 5 Identify & Select ASHPs'!$I$35="COP",3,4),FALSE),"")) ->  | Q27: =(M27*'Design Load Calcs'!$G$23+'Design Load Calcs'!$H$23) -> 
B28: =IF(OR('Step 5 Identify & Select ASHPs'!$I$24,'Step 5 Identify & Select ASHPs'!$I$25),"",IF('Step 5 Identify & Select ASHPs'!$I$26,IF(MATCH(B27,$B$10:$B$29,0)>='Step 5 Identify & Select ASHPs'!$I$32,"",'Step 5 Identify & Select ASHPs'!$AF$22),NA())) ->  | C28: =IF(OR(B28="#N/A",B28=""),"",IFERROR(HLOOKUP('HP1'!B28,'Step 5 Identify & Select ASHPs'!$N$22:$AH$25,2,FALSE),"")) ->  | D28: =IF(OR(B28="#N/A",B28=""),"",IFERROR(HLOOKUP('HP1'!B28,'Step 5 Identify & Select ASHPs'!$N$22:$AH$25,IF('Step 5 Identify & Select ASHPs'!$I$35="COP",4,3),FALSE),"")) ->  | E28: =IF(OR(B28="#N/A",B28=""),"",IFERROR(HLOOKUP('HP1'!B28,'Step 5 Identify & Select ASHPs'!$N$22:$AH$25,IF('Step 5 Identify & Select ASHPs'!$I$35="COP",3,4),FALSE),"")) ->  | F28: =(B28*'Design Load Calcs'!$G$23+'Design Load Calcs'!$H$23) ->  | I28: =INDEX(D10:D29,MATCH(J28,B10:B29,0)) -> 0 | J28: =IF(J27=MIN(B10:B29),INDEX(B10:B29,MATCH(J27,B10:B29,0)-1),INDEX(B10:B29,MATCH(J27,B10:B29,0)+1)) -> 17 | M28: =IF('Step 5 Identify & Select ASHPs'!$E$33=Dropdown_Menus!$A$2,"",'HP1'!B28) ->  | N28: =IF(OR(M28="#N/A",M28=""),"",IFERROR(HLOOKUP('HP1'!M28,'Step 5 Identify & Select ASHPs'!$N$31:$AH$34,2,FALSE),"")) ->  | O28: =IF(OR(M28="#N/A",M28=""),"",IFERROR(HLOOKUP('HP1'!M28,'Step 5 Identify & Select ASHPs'!$N$31:$AH$34,IF('Step 5 Identify & Select ASHPs'!$I$35="COP",4,3),FALSE),"")) ->  | P28: =IF(OR(B28="#N/A",B28=""),"",IFERROR(HLOOKUP('HP1'!B28,'Step 5 Identify & Select ASHPs'!$N$31:$AH$34,IF('Step 5 Identify & Select ASHPs'!$I$35="COP",3,4),FALSE),"")) ->  | Q28: =(M28*'Design Load Calcs'!$G$23+'Design Load Calcs'!$H$23) -> 
B29: =IF(OR('Step 5 Identify & Select ASHPs'!$I$24,'Step 5 Identify & Select ASHPs'!$I$25),"",IF('Step 5 Identify & Select ASHPs'!$I$26,IF(MATCH(B28,$B$10:$B$29,0)>='Step 5 Identify & Select ASHPs'!$I$32,"",'Step 5 Identify & Select ASHPs'!$AG$22),NA())) ->  | C29: =IF(OR(B29="#N/A",B29=""),"",IFERROR(HLOOKUP('HP1'!B29,'Step 5 Identify & Select ASHPs'!$N$22:$AH$25,2,FALSE),"")) ->  | D29: =IF(OR(B29="#N/A",B29=""),"",IFERROR(HLOOKUP('HP1'!B29,'Step 5 Identify & Select ASHPs'!$N$22:$AH$25,IF('Step 5 Identify & Select ASHPs'!$I$35="COP",4,3),FALSE),"")) ->  | E29: =IF(OR(B29="#N/A",B29=""),"",IFERROR(HLOOKUP('HP1'!B29,'Step 5 Identify & Select ASHPs'!$N$22:$AH$25,IF('Step 5 Identify & Select ASHPs'!$I$35="COP",3,4),FALSE),"")) ->  | F29: =(B29*'Design Load Calcs'!$G$23+'Design Load Calcs'!$H$23) ->  | I29: Slope and Intercept at 17°F (HP Cap) | M29: =IF('Step 5 Identify & Select ASHPs'!$E$33=Dropdown_Menus!$A$2,"",'HP1'!B29) ->  | N29: =IF(OR(M29="#N/A",M29=""),"",IFERROR(HLOOKUP('HP1'!M29,'Step 5 Identify & Select ASHPs'!$N$31:$AH$34,2,FALSE),"")) ->  | O29: =IF(OR(M29="#N/A",M29=""),"",IFERROR(HLOOKUP('HP1'!M29,'Step 5 Identify & Select ASHPs'!$N$31:$AH$34,IF('Step 5 Identify & Select ASHPs'!$I$35="COP",4,3),FALSE),"")) ->  | P29: =IF(OR(B29="#N/A",B29=""),"",IFERROR(HLOOKUP('HP1'!B29,'Step 5 Identify & Select ASHPs'!$N$31:$AH$34,IF('Step 5 Identify & Select ASHPs'!$I$35="COP",3,4),FALSE),"")) ->  | Q29: =(M29*'Design Load Calcs'!$G$23+'Design Load Calcs'!$H$23) -> 
B30: ='Step 5 Identify & Select ASHPs'!$E$31 -> 0 | C30: =IF(D34=B30,B34,SLOPE(B34:B35,D34:D35)*B30+INTERCEPT(B34:B35,D34:D35)) -> 0 | D30: =IF(D34=B30,C34,SLOPE(C34:C35,D34:D35)*B30+INTERCEPT(C34:C35,D34:D35)) -> 0 | E30: =(C30/IF('Intro & Unit Options'!$B$12=Dropdown_Menus!$F$1,1,3412))/D30 ->  | F30: =IF(B30<C5,'Design Load Calcs'!$B$3,B30*'Design Load Calcs'!$G$23+'Design Load Calcs'!$H$23) -> 50000 | G30: =IF(B30="","",ABS(C30-F30)) -> 50000 | I30: know ys (pwr): | J30: know xs (temp) | M30: ='Step 5 Identify & Select ASHPs'!$E$31 -> 0 | N30: =IF(O34=M30,M34,SLOPE(M34:M35,O34:O35)*M30+INTERCEPT(M34:M35,O34:O35)) -> 0 | O30: =IF(O34=M30,N34,SLOPE(N34:N35,O34:O35)*M30+INTERCEPT(N34:N35,O34:O35)) -> 0 | P30: =(N30/IF('Intro & Unit Options'!$B$12=Dropdown_Menus!$F$1,1,3412))/O30 ->  | Q30: =IF(M30<N5,'Design Load Calcs'!$B$3,M30*'Design Load Calcs'!$G$23+'Design Load Calcs'!$H$23) -> 50000 | R30: =IF(M30="","",ABS(N30-Q30)) -> 50000
I31: =INDEX(D10:D29,MATCH(J31,B10:B29,0)) -> 0 | J31: =IF(MAX(B10:B29)<IF('Intro & Unit Options'!B12=Dropdown_Menus!F1,CONVERT(17,"F","C"),17),MAX(B10:B29),INDEX(B10:B29,MATCH(IF('Intro & Unit Options'!B12=Dropdown_Menus!F1,CONVERT(17,"F","C"),17),B10:B29,-1))) -> 17
B32: Slope and Intercept at the cut-off temp. (HP Norm. Cap and pwr) | F32: Slope and Intercept at the Design Temp. (HP Cap) | I32: =INDEX(D10:D29,MATCH(J32,B10:B29,0)) -> 0 | J32: =IF(J31=MIN(B10:B29),INDEX(B10:B29,MATCH(J31,B10:B29,0)-1),INDEX(B10:B29,MATCH(J31,B10:B29,0)+1)) -> 47 | M32: Slope and Intercept at the cut-off temp. (HP Norm. Cap and pwr) | Q32: Slope and Intercept at the Design Temp. (HP Cap)
B33: know ys (capacity): | C33: know ys (power): | D33: know xs (temp) | F33: know ys (capacity): | G33: know xs (temp) | I33: Slope and Intercept at 47°F (HP Cap) | M33: know ys (capacity): | N33: know ys (power): | O33: know xs (temp) | Q33: know ys (capacity): | R33: know xs
B34: =INDEX(C10:C29,MATCH(D34,B10:B29,0)) -> 0 | C34: =INDEX(D10:D29,MATCH(B34,C10:C29,0)) -> 0 | D34: =IF(B30=MIN(B10:B29),B30,INDEX(B10:B29,MATCH(B30,B10:B29,-1))) -> 17 | F34: =IF(G34="-",0,INDEX(C10:C29,MATCH(G34,B10:B29,0))) -> 0 | G34: =IF(C5<B30,"-",IFERROR(INDEX(B10:B29,MATCH(C5,B10:B29,0)),IF(C5<MIN(B10:B29),INDEX(B10:B29,MATCH(MIN(B10:B29),B10:B29,-1)),INDEX(B10:B29,MATCH(C5,B10:B29,-1))))) -> 17 | I34: know ys (capacity): | J34: know xs (temp) | M34: =INDEX(N10:N29,MATCH(O34,M10:M29,0)) -> 0 | N34: =INDEX(O10:O29,MATCH(M34,N10:N29,0)) -> 0 | O34: =IF(M30=MIN(M10:M29),M30,INDEX(M10:M29,MATCH(M30,M10:M29,-1))) -> 17 | Q34: =IF(R34="-",0,INDEX(N10:N29,MATCH(R34,M10:M29,0))) -> 0 | R34: =IF(N5<M30,"-",IFERROR(INDEX(M10:M29,MATCH(N5,M10:M29,0)),IF(N5<MIN(M10:M29),INDEX(M10:M29,MATCH(MIN(M10:M29),M10:M29,-1)),INDEX(M10:M29,MATCH(N5,M10:M29,-1))))) -> 17
B35: =IF(D35="-","-",INDEX(C10:C29,MATCH(D35,B10:B29,0))) -> 0 | C35: =IF(D35="-","-",INDEX($D$10:$D$29, MATCH(D35,$B$10:$B$29,0))) -> 0 | D35: =IF(B30=MIN(B10:B29),"-",INDEX(B10:B29,MATCH(B30,B10:B29,-1)+IF(D34=MIN(B10:B29),-1,1))) -> 47 | F35: =IF(G35="-",0,INDEX(C10:C29,MATCH(G35,B10:B29,0))) -> 0 | G35: =IF(C5<B30,"-",IF(G34=C5,"-",INDEX(B10:B29,MATCH(G34,B10:B29,0)+IF(G34=MIN(B10:B29),-1,1)))) -> 47 | I35: =INDEX(C10:C29,MATCH(J35,B10:B29,0)) -> 0 | J35: =IF(MAX(B10:B29)<IF('Intro & Unit Options'!B13=Dropdown_Menus!F2,CONVERT(47,"F","C"),47),MAX(B10:B29),INDEX(B10:B29,MATCH(IF('Intro & Unit Options'!B13=Dropdown_Menus!F2,CONVERT(47,"F","C"),47),B10:B29,-1))) -> 47 | M35: =IF(O35="-","-",INDEX(N10:N29,MATCH(O35,M10:M29,0))) -> 0 | N35: =IF(O35="-","-",INDEX($O$10:$O$29, MATCH(O35,$M$10:$M$29,0))) -> 0 | O35: =IF(M30=MIN(M10:M29),"-",INDEX(M10:M29,MATCH(M30,M10:M29,-1)+IF(O34=MIN(M10:M29),-1,1))) -> 47 | Q35: =IF(R35="-",0,INDEX(N10:N29,MATCH(R35,M10:M29,0))) -> 0 | R35: =IF(N5<M30,"-",IF(R34=N5,"-",INDEX(M10:M29,MATCH(R34,M10:M29,0)+IF(R34=MIN(M10:M29),-1,1)))) -> 47
I36: =INDEX(C10:C29,MATCH(J36,B10:B29,0)) -> 0 | J36: =IF(J35=MIN(B10:B29),INDEX(B10:B29,MATCH(J35,B10:B29,0)-1),INDEX(B10:B29,MATCH(J35,B10:B29,0)+1)) -> 17
B37: Slope and Intercept at the BPT (HP Cap) | F37: Slope and Intercept at the BPT (Load%) | I37: Slope and Intercept at 17°F (HP Cap) | M37: Slope and Intercept at the BPT (HP Cap) | Q37: Slope and Intercept at the BPT (Load%)
B38: know ys (eq. 1): | C38: know xs (eq. 1): | D38: know ys (eq. 2): | E38: know xs (eq. 2): | F38: know ys (eq. 1): | G38: know ys (eq. 2): | I38: know ys (capacity): | J38: know xs (temp) | M38: know ys (eq. 1): | N38: know xs (eq. 1): | O38: know ys (eq. 2): | P38: know xs (eq. 2): | Q38: know ys (eq. 1): | R38: know ys (eq. 2):
B39: =INDEX(C10:C29,MATCH(MIN(G10:G29),G10:G29,0)-1) ->  | C39: =INDEX(B10:B29,MATCH(MIN(G10:G29),G10:G29,0)-1) ->  | D39: =INDEX(C10:C29,MATCH(MIN(G10:G29),G10:G29,0)) -> 0 | E39: =INDEX(B10:B29,MATCH(MIN(G10:G29),G10:G29,0)) -> 47 | F39: =INDEX(INDIRECT(CONCATENATE(IFERROR(SUBSTITUTE('Step 3 Design Loads'!B8,"-",""),'Step 3 Design Loads'!B8),"_Load")),MATCH(G39,'Load %s'!N8:N24)) ->  | G39: =IF(ISNUMBER(MATCH(J9,'Load %s'!N8:N24,0)),'HP1'!J9,INDEX('Load %s'!N8:N24,MATCH('HP1'!J9,'Load %s'!N8:N24,1))) ->  | I39: =INDEX(C10:C29,MATCH(J39,B10:B29,0)) -> 0 | J39: =IF(MAX(B10:B29)<IF('Intro & Unit Options'!B12=Dropdown_Menus!F1,CONVERT(17,"F","C"),17),MAX(B10:B29),INDEX(B10:B29,MATCH(IF('Intro & Unit Options'!B12=Dropdown_Menus!F1,CONVERT(17,"F","C"),17),B10:B29,-1))) -> 17 | M39: =INDEX(N10:N29,MATCH(MIN(R10:R29),R10:R29,0)-1) ->  | N39: =INDEX(M10:M29,MATCH(MIN(R10:R29),R10:R29,0)-1) ->  | O39: =INDEX(N10:N29,MATCH(MIN(R10:R29),R10:R29,0)) -> 0 | P39: =INDEX(M10:M29,MATCH(MIN(R10:R29),R10:R29,0)) -> 47 | Q39: =INDEX(INDIRECT(CONCATENATE(IFERROR(SUBSTITUTE('Step 3 Design Loads'!B8,"-",""),'Step 3 Design Loads'!B8),"_Load")),MATCH(R39,'Load %s'!N8:N24)) ->  | R39: =IF(ISNUMBER(MATCH(U9,'Load %s'!N8:N24,0)),'HP1'!U9,INDEX('Load %s'!N8:N24,MATCH('HP1'!U9,'Load %s'!N8:N24,1))) -> 
B40: =INDEX(C10:C29,MATCH(MIN(G10:G29),G10:G29,0)) -> 0 | C40: =INDEX(B10:B29,MATCH(MIN(G10:G29),G10:G29,0)) -> 47 | D40: =IF(OR(SUMIF(B10:B29,"<>""")=0,INDEX(C10:C29,MATCH(MIN(G10:G29),G10:G29,0)+1)=""),C30,INDEX(C10:C29,MATCH(MIN(G10:G29),G10:G29,0)+1)) -> 0 | E40: =IF(OR(AND(SUMIF(B12:B29,"<>""")=0,B30<E39),INDEX(B10:B29,MATCH(MIN(G10:G29),G10:G29,0)+1)=""),B30,INDEX(B10:B29,MATCH(MIN(G10:G29),G10:G29,0)+1)) -> 0 | F40: =INDEX(INDIRECT(CONCATENATE(IFERROR(SUBSTITUTE('Step 3 Design Loads'!B8,"-",""),'Step 3 Design Loads'!B8),"_Load")),MATCH(G40,'Load %s'!N8:N24)) ->  | G40: =IF(ISNUMBER(MATCH(E41,'Load %s'!N8:N24,0)),"",INDEX('Load %s'!N8:N24,MATCH(G39,'Load %s'!N8:N24,0)+1)) ->  | I40: =INDEX(C10:C29,MATCH(J40,B10:B29,0)) -> 0 | J40: =IF(J39=MIN(B10:B29),INDEX(B10:B29,MATCH(J39,B10:B29,0)-1),INDEX(B10:B29,MATCH(J39,B10:B29,0)+1)) -> 47 | M40: =INDEX(N10:N29,MATCH(MIN(R10:R29),R10:R29,0)) -> 0 | N40: =INDEX(M10:M29,MATCH(MIN(R10:R29),R10:R29,0)) -> 47 | O40: =IF(OR(SUMIF(M12:M29,"<>""")=0,INDEX(N10:N29,MATCH(MIN(R10:R29),R10:R29,0)+1)=""),N30,INDEX(N10:N29,MATCH(MIN(R10:R29),R10:R29,0)+1)) -> 0 | P40: =IF(OR(AND(SUMIF(M12:M29,"<>""")=0,M30<P39),INDEX(M10:M29,MATCH(MIN(R10:R29),R10:R29,0)+1)=""),M30,INDEX(M10:M29,MATCH(MIN(R10:R29),R10:R29,0)+1)) -> 0 | Q40: =INDEX(INDIRECT(CONCATENATE(IFERROR(SUBSTITUTE('Step 3 Design Loads'!B8,"-",""),'Step 3 Design Loads'!B8),"_Load")),MATCH(R40,'Load %s'!N8:N24)) ->  | R40: =IF(ISNUMBER(MATCH(P41,'Load %s'!N8:N24,0)),"",INDEX('Load %s'!N8:N24,MATCH(R39,'Load %s'!N8:N24,0)+1)) -> 
B41: BPT (eq. 1): | C41: =IF(IF(('Design Load Calcs'!$H$23-INTERCEPT(B39:B40,C39:C40))/(SLOPE(B39:B40,C39:C40)-'Design Load Calcs'!$G$23)<'Step 3 Design Loads'!B13,NA(),('Design Load Calcs'!$H$23-INTERCEPT(B39:B40,C39:C40))/(SLOPE(B39:B40,C39:C40)-'Design Load Calcs'!$G$23))>MAX(B10:B29),NA(),IF(('Design Load Calcs'!$H$23-INTERCEPT(B39:B40,C39:C40))/(SLOPE(B39:B40,C39:C40)-'Design Load Calcs'!$G$23)<'Step 3 Design Loads'!B13,NA(),('Design Load Calcs'!$H$23-INTERCEPT(B39:B40,C39:C40))/(SLOPE(B39:B40,C39:C40)-'Design Load Calcs'!$G$23))) ->  | D41: BPT (eq. 2): | E41: =IF(IF(('Design Load Calcs'!$H$23-INTERCEPT(D39:D40,E39:E40))/(SLOPE(D39:D40,E39:E40)-'Design Load Calcs'!$G$23)<'Step 3 Design Loads'!B13,NA(),('Design Load Calcs'!$H$23-INTERCEPT(D39:D40,E39:E40))/(SLOPE(D39:D40,E39:E40)-'Design Load Calcs'!$G$23))>MAX(B10:B29),NA(),IF(('Design Load Calcs'!$H$23-INTERCEPT(D39:D40,E39:E40))/(SLOPE(D39:D40,E39:E40)-'Design Load Calcs'!$G$23)<'Step 3 Design Loads'!B13,NA(),('Design Load Calcs'!$H$23-INTERCEPT(D39:D40,E39:E40))/(SLOPE(D39:D40,E39:E40)-'Design Load Calcs'!$G$23))) ->  | M41: BPT (eq. 1): | N41: =IF(IF(('Design Load Calcs'!$H$23-INTERCEPT(M39:M40,N39:N40))/(SLOPE(M39:M40,N39:N40)-'Design Load Calcs'!$G$23)<'Step 3 Design Loads'!B13,NA(),('Design Load Calcs'!$H$23-INTERCEPT(M39:M40,N39:N40))/(SLOPE(M39:M40,N39:N40)-'Design Load Calcs'!$G$23))>MAX(M10:M29),NA(),IF(('Design Load Calcs'!$H$23-INTERCEPT(M39:M40,N39:N40))/(SLOPE(M39:M40,N39:N40)-'Design Load Calcs'!$G$23)<'Step 3 Design Loads'!B13,NA(),('Design Load Calcs'!$H$23-INTERCEPT(M39:M40,N39:N40))/(SLOPE(M39:M40,N39:N40)-'Design Load Calcs'!$G$23))) ->  | O41: BPT (eq. 2): | P41: =IF(IF(('Design Load Calcs'!$H$23-INTERCEPT(O39:O40,P39:P40))/(SLOPE(O39:O40,P39:P40)-'Design Load Calcs'!$G$23)<'Step 3 Design Loads'!B13,NA(),('Design Load Calcs'!$H$23-INTERCEPT(O39:O40,P39:P40))/(SLOPE(O39:O40,P39:P40)-'Design Load Calcs'!$G$23))>MAX(M10:M29),NA(),IF(('Design Load Calcs'!$H$23-INTERCEPT(O39:O40,P39:P40))/(SLOPE(O39:O40,P39:P40)-'Design Load Calcs'!$G$23)<'Step 3 Design Loads'!B13,NA(),('Design Load Calcs'!$H$23-INTERCEPT(O39:O40,P39:P40))/(SLOPE(O39:O40,P39:P40)-'Design Load Calcs'!$G$23))) -> 
B42: HP Cap (eq. 1): | C42: =SLOPE(B39:B40,C39:C40)*C41+INTERCEPT(B39:B40,C39:C40) ->  | D42: HP Cap (eq. 2): | E42: =SLOPE(D39:D40,E39:E40)*E41+INTERCEPT(D39:D40,E39:E40) ->  | M42: HP Cap (eq. 1): | N42: =SLOPE(M39:M40,N39:N40)*N41+INTERCEPT(M39:M40,N39:N40) ->  | O42: HP Cap (eq. 2): | P42: =SLOPE(O39:O40,P39:P40)*P41+INTERCEPT(O39:O40,P39:P40) -> 
B45: Cooling - High Stage | M45: Cooling - Low Stage
B47: Design Temp. (cool) | C47: ='Design Load Calcs'!B26 -> 88 | M47: Design Temp. (cool) | N47: ='Design Load Calcs'!B26 -> 88
B49: Performance Data and Heating Load Line | I49: Outputs: | M49: Performance Data and Heating Load Line | T49: Outputs:
B50: Outdoor Temp. | C50: Actual Capacity | D50: Actual Power | E50: Actual COP | I50: =CONCATENATE("HP cap @ Design Temp.",IF('Intro & Unit Options'!$B$12=Dropdown_Menus!F1," [kW]"," [BTU/h]")) -> HP cap @ Design Temp. [BTU/h] | J50: =IF(SUM(B53:B63)=0,I62,IF(OR(57=C47,J63=J62),I62,SLOPE(I62:I63,J62:J63)*C47+INTERCEPT(I62:I63,J62:J63))) -> 0 | M50: Outdoor Temp. | N50: Actual Capacity | O50: Actual Power | P50: Actual COP | T50: =CONCATENATE("HP cap @ Design Temp.",IF('Intro & Unit Options'!$B$12=Dropdown_Menus!F1," [kW]"," [BTU/h]")) -> HP cap @ Design Temp. [BTU/h] | U50: =IF(SUM(M53:M63)=0,T62,IF(OR(57=N47,U63=U62),T62,SLOPE(T62:T63,U62:U63)*N47+INTERCEPT(T62:T63,U62:U63))) -> 0
B51: =IF('Intro & Unit Options'!$B$12=Dropdown_Menus!$F$1,"[°C]","[°F]") -> [°F] | C51: =IF('Intro & Unit Options'!$B$12=Dropdown_Menus!$F$1,"[kW]","[BTU/h]") -> [BTU/h] | D51: [kW] | E51: [-] | I51: % of Design Load | J51: =J50/'Design Load Calcs'!$B$25 -> 0 | M51: =IF('Intro & Unit Options'!$B$12=Dropdown_Menus!$F$1,"[°C]","[°F]") -> [°F] | N51: =IF('Intro & Unit Options'!$B$12=Dropdown_Menus!$F$1,"[kW]","[BTU/h]") -> [BTU/h] | O51: [kW] | P51: [-] | T51: % of Design Load | U51: =U50/'Design Load Calcs'!$B$25 -> 0
B52: =IF(OR('Step 5 Identify & Select ASHPs'!$I$24,'Step 5 Identify & Select ASHPs'!$I$25,'Step 5 Identify & Select ASHPs'!$I$26),'Step 5 Identify & Select ASHPs'!$N$26,NA()) -> 95 | C52: =IF(OR(B52="#N/A",B52=""),"",IFERROR(HLOOKUP('HP1'!B52,'Step 5 Identify & Select ASHPs'!$N$26:$Z$29,2,FALSE),"")) -> 0 | D52: =IF(OR(B52="#N/A",B52=""),"",IFERROR(HLOOKUP(B52,'Step 5 Identify & Select ASHPs'!$N$26:$Z$29,IF('Step 5 Identify & Select ASHPs'!$I$36="EER",4,3),FALSE),"")) -> 0 | E52: =IF(OR(B52="#N/A",B52=""),"",IFERROR(HLOOKUP(B52,'Step 5 Identify & Select ASHPs'!$N$26:$Z$29,IF('Step 5 Identify & Select ASHPs'!$I$36="EER",3,4),FALSE),"")) ->  | I52: =CONCATENATE("HP cap @",IF('Intro & Unit Options'!B12=Dropdown_Menus!F1,CONVERT(95,"F","C"),95),IF('Intro & Unit Options'!$B$12=Dropdown_Menus!F1," C"," F"),IF('Intro & Unit Options'!$B$12=Dropdown_Menus!F1," [kW]"," [BTU/h]")) -> HP cap @95 F [BTU/h] | J52: =IF(OR('Step 5 Identify & Select ASHPs'!$I$24,'Step 5 Identify & Select ASHPs'!$I$25,'Step 5 Identify & Select ASHPs'!$I$27),'HP1'!C52,IFERROR(INDEX('HP1'!C52:C63,MATCH(IF('Intro & Unit Options'!B12=Dropdown_Menus!F1,CONVERT(95,"F","C"),95),'HP1'!B52:B63,0)),SLOPE(I57:I58,J57:J58)*IF('Intro & Unit Options'!B12=Dropdown_Menus!F1,CONVERT(95,"F","C"),95)+INTERCEPT(I57:I58,J57:J58))) -> 0 | M52: =IF('Step 5 Identify & Select ASHPs'!$E$33=Dropdown_Menus!$A$2,"",'HP1'!B52) -> 95 | N52: =IF(OR(M52="#N/A",M52=""),"",IFERROR(HLOOKUP('HP1'!M52,'Step 5 Identify & Select ASHPs'!$N$35:$AH$38,2,FALSE),"")) -> 0 | O52: =IF(OR(M52="#N/A",M52=""),"",IFERROR(HLOOKUP(M52,'Step 5 Identify & Select ASHPs'!$N$35:$AH$38,IF('Step 5 Identify & Select ASHPs'!$I$36="EER",4,3),FALSE),"")) -> 0 | P52: =IF(OR(M52="#N/A",M52=""),"",IFERROR(HLOOKUP(M52,'Step 5 Identify & Select ASHPs'!$N$35:$AH$38,IF('Step 5 Identify & Select ASHPs'!$I$36="EER",3,4),FALSE),"")) ->  | T52: =CONCATENATE("HP cap @",IF('Intro & Unit Options'!B12=Dropdown_Menus!F1,CONVERT(95,"F","C"),95),IF('Intro & Unit Options'!$B$12=Dropdown_Menus!F1," C"," F"),IF('Intro & Unit Options'!$B$12=Dropdown_Menus!F1," [kW]"," [BTU/h]")) -> HP cap @95 F [BTU/h] | U52: =IF('Step 5 Identify & Select ASHPs'!E33="Single Speed",NA(),IF(OR('Step 5 Identify & Select ASHPs'!$I$24,'Step 5 Identify & Select ASHPs'!$I$25,'Step 5 Identify & Select ASHPs'!$I$27),'HP1'!N52,IFERROR(INDEX('HP1'!N52:N63,MATCH(IF('Intro & Unit Options'!B12=Dropdown_Menus!F1,CONVERT(95,"F","C"),95),'HP1'!M52:M63,0)),SLOPE(T57:T58,U57:U58)*IF('Intro & Unit Options'!B12=Dropdown_Menus!F1,CONVERT(95,"F","C"),95)+INTERCEPT(T57:T58,U57:U58)))) -> 0
B53: =IF(OR('Step 5 Identify & Select ASHPs'!$I$24,'Step 5 Identify & Select ASHPs'!$I$25),"",IF('Step 5 Identify & Select ASHPs'!$I$26,IF(MATCH(B52,$B$52:$B$63,0)>='Step 5 Identify & Select ASHPs'!$I$33,"",'Step 5 Identify & Select ASHPs'!$O$26),NA())) ->  | C53: =IF(OR(B53="#N/A",B53=""),"",IFERROR(HLOOKUP('HP1'!B53,'Step 5 Identify & Select ASHPs'!$O$26:$Z$29,2,FALSE),"")) ->  | D53: =IF(OR(B53="#N/A",B53=""),"",IFERROR(HLOOKUP(B53,'Step 5 Identify & Select ASHPs'!$O$26:$Z$29,IF('Step 5 Identify & Select ASHPs'!$I$36="EER",4,3),FALSE),"")) ->  | E53: =IF(OR(B53="#N/A",B53=""),"",IFERROR(HLOOKUP(B53,'Step 5 Identify & Select ASHPs'!$O$26:$Z$29,IF('Step 5 Identify & Select ASHPs'!$I$36="EER",3,4),FALSE),"")) ->  | I53: =CONCATENATE("HP COP @",IF('Intro & Unit Options'!B13=Dropdown_Menus!F2,CONVERT(95,"F","C"),95),IF('Intro & Unit Options'!$B$12=Dropdown_Menus!F2," C"," F"),IF('Intro & Unit Options'!$B$12=Dropdown_Menus!F2," [kW]"," [BTU/h]")) -> HP COP @95 F [BTU/h] | J53: =IF(OR('Step 5 Identify & Select ASHPs'!$I$24,'Step 5 Identify & Select ASHPs'!$I$25,'Step 5 Identify & Select ASHPs'!$I$27),'HP1'!E52,IFERROR(INDEX('HP1'!E52:E63,MATCH(IF('Intro & Unit Options'!B12=Dropdown_Menus!F1,CONVERT(95,"F","C"),95),'HP1'!B52:B63,0)),SLOPE(G57:G58,J57:J58)*IF('Intro & Unit Options'!B12=Dropdown_Menus!F1,CONVERT(95,"F","C"),95)+INTERCEPT(G57:G58,J57:J58))) ->  | M53: =IF('Step 5 Identify & Select ASHPs'!$E$33=Dropdown_Menus!$A$2,"",'HP1'!B53) ->  | N53: =IF(OR(M53="#N/A",M53=""),"",IFERROR(HLOOKUP('HP1'!M53,'Step 5 Identify & Select ASHPs'!$N$35:$AH$38,2,FALSE),"")) ->  | O53: =IF(OR(M53="#N/A",M53=""),"",IFERROR(HLOOKUP(M53,'Step 5 Identify & Select ASHPs'!$N$35:$AH$38,IF('Step 5 Identify & Select ASHPs'!$I$36="EER",4,3),FALSE),"")) ->  | P53: =IF(OR(M53="#N/A",M53=""),"",IFERROR(HLOOKUP(M53,'Step 5 Identify & Select ASHPs'!$N$35:$AH$38,IF('Step 5 Identify & Select ASHPs'!$I$36="EER",3,4),FALSE),"")) -> 
B54: =IF(OR('Step 5 Identify & Select ASHPs'!$I$24,'Step 5 Identify & Select ASHPs'!$I$25),"",IF('Step 5 Identify & Select ASHPs'!$I$26,IF(MATCH(B53,$B$52:$B$63,0)>='Step 5 Identify & Select ASHPs'!$I$33,"",'Step 5 Identify & Select ASHPs'!$P$26),NA())) ->  | C54: =IF(OR(B54="#N/A",B54=""),"",IFERROR(HLOOKUP('HP1'!B54,'Step 5 Identify & Select ASHPs'!$O$26:$Z$29,2,FALSE),"")) ->  | D54: =IF(OR(B54="#N/A",B54=""),"",IFERROR(HLOOKUP(B54,'Step 5 Identify & Select ASHPs'!$O$26:$Z$29,IF('Step 5 Identify & Select ASHPs'!$I$36="EER",4,3),FALSE),"")) ->  | E54: =IF(OR(B54="#N/A",B54=""),"",IFERROR(HLOOKUP(B54,'Step 5 Identify & Select ASHPs'!$O$26:$Z$29,IF('Step 5 Identify & Select ASHPs'!$I$36="EER",3,4),FALSE),"")) ->  | M54: =IF('Step 5 Identify & Select ASHPs'!$E$33=Dropdown_Menus!$A$2,"",'HP1'!B54) ->  | N54: =IF(OR(M54="#N/A",M54=""),"",IFERROR(HLOOKUP('HP1'!M54,'Step 5 Identify & Select ASHPs'!$N$35:$AH$38,2,FALSE),"")) ->  | O54: =IF(OR(M54="#N/A",M54=""),"",IFERROR(HLOOKUP(M54,'Step 5 Identify & Select ASHPs'!$N$35:$AH$38,IF('Step 5 Identify & Select ASHPs'!$I$36="EER",4,3),FALSE),"")) ->  | P54: =IF(OR(M54="#N/A",M54=""),"",IFERROR(HLOOKUP(M54,'Step 5 Identify & Select ASHPs'!$N$35:$AH$38,IF('Step 5 Identify & Select ASHPs'!$I$36="EER",3,4),FALSE),"")) -> 
B55: =IF(OR('Step 5 Identify & Select ASHPs'!$I$24,'Step 5 Identify & Select ASHPs'!$I$25),"",IF('Step 5 Identify & Select ASHPs'!$I$26,IF(MATCH(B54,$B$52:$B$63,0)>='Step 5 Identify & Select ASHPs'!$I$33,"",'Step 5 Identify & Select ASHPs'!$Q$26),NA())) ->  | C55: =IF(OR(B55="#N/A",B55=""),"",IFERROR(HLOOKUP('HP1'!B55,'Step 5 Identify & Select ASHPs'!$O$26:$Z$29,2,FALSE),"")) ->  | D55: =IF(OR(B55="#N/A",B55=""),"",IFERROR(HLOOKUP(B55,'Step 5 Identify & Select ASHPs'!$O$26:$Z$29,IF('Step 5 Identify & Select ASHPs'!$I$36="EER",4,3),FALSE),"")) ->  | E55: =IF(OR(B55="#N/A",B55=""),"",IFERROR(HLOOKUP(B55,'Step 5 Identify & Select ASHPs'!$O$26:$Z$29,IF('Step 5 Identify & Select ASHPs'!$I$36="EER",3,4),FALSE),"")) ->  | G55: Slope and Intercept at Rated Conditions (HP Cap) | M55: =IF('Step 5 Identify & Select ASHPs'!$E$33=Dropdown_Menus!$A$2,"",'HP1'!B55) ->  | N55: =IF(OR(M55="#N/A",M55=""),"",IFERROR(HLOOKUP('HP1'!M55,'Step 5 Identify & Select ASHPs'!$N$35:$AH$38,2,FALSE),"")) ->  | O55: =IF(OR(M55="#N/A",M55=""),"",IFERROR(HLOOKUP(M55,'Step 5 Identify & Select ASHPs'!$N$35:$AH$38,IF('Step 5 Identify & Select ASHPs'!$I$36="EER",4,3),FALSE),"")) ->  | P55: =IF(OR(M55="#N/A",M55=""),"",IFERROR(HLOOKUP(M55,'Step 5 Identify & Select ASHPs'!$N$35:$AH$38,IF('Step 5 Identify & Select ASHPs'!$I$36="EER",3,4),FALSE),"")) ->  | T55: Slope and Intercept at Rated Conditions (HP Cap)
B56: =IF(OR('Step 5 Identify & Select ASHPs'!$I$24,'Step 5 Identify & Select ASHPs'!$I$25),"",IF('Step 5 Identify & Select ASHPs'!$I$26,IF(MATCH(B55,$B$52:$B$63,0)>='Step 5 Identify & Select ASHPs'!$I$33,"",'Step 5 Identify & Select ASHPs'!$R$26),NA())) ->  | C56: =IF(OR(B56="#N/A",B56=""),"",IFERROR(HLOOKUP('HP1'!B56,'Step 5 Identify & Select ASHPs'!$O$26:$Z$29,2,FALSE),"")) ->  | D56: =IF(OR(B56="#N/A",B56=""),"",IFERROR(HLOOKUP(B56,'Step 5 Identify & Select ASHPs'!$O$26:$Z$29,IF('Step 5 Identify & Select ASHPs'!$I$36="EER",4,3),FALSE),"")) ->  | E56: =IF(OR(B56="#N/A",B56=""),"",IFERROR(HLOOKUP(B56,'Step 5 Identify & Select ASHPs'!$O$26:$Z$29,IF('Step 5 Identify & Select ASHPs'!$I$36="EER",3,4),FALSE),"")) ->  | G56: know ys (COP): | I56: know ys (capacity): | J56: know xs | M56: =IF('Step 5 Identify & Select ASHPs'!$E$33=Dropdown_Menus!$A$2,"",'HP1'!B56) ->  | N56: =IF(OR(M56="#N/A",M56=""),"",IFERROR(HLOOKUP('HP1'!M56,'Step 5 Identify & Select ASHPs'!$N$35:$AH$38,2,FALSE),"")) ->  | O56: =IF(OR(M56="#N/A",M56=""),"",IFERROR(HLOOKUP(M56,'Step 5 Identify & Select ASHPs'!$N$35:$AH$38,IF('Step 5 Identify & Select ASHPs'!$I$36="EER",4,3),FALSE),"")) ->  | P56: =IF(OR(M56="#N/A",M56=""),"",IFERROR(HLOOKUP(M56,'Step 5 Identify & Select ASHPs'!$N$35:$AH$38,IF('Step 5 Identify & Select ASHPs'!$I$36="EER",3,4),FALSE),"")) ->  | T56: know ys (capacity): | U56: know xs
B57: =IF(OR('Step 5 Identify & Select ASHPs'!$I$24,'Step 5 Identify & Select ASHPs'!$I$25),"",IF('Step 5 Identify & Select ASHPs'!$I$26,IF(MATCH(B56,$B$52:$B$63,0)>='Step 5 Identify & Select ASHPs'!$I$33,"",'Step 5 Identify & Select ASHPs'!$S$26),NA())) ->  | C57: =IF(OR(B57="#N/A",B57=""),"",IFERROR(HLOOKUP('HP1'!B57,'Step 5 Identify & Select ASHPs'!$O$26:$Z$29,2,FALSE),"")) ->  | D57: =IF(OR(B57="#N/A",B57=""),"",IFERROR(HLOOKUP(B57,'Step 5 Identify & Select ASHPs'!$O$26:$Z$29,IF('Step 5 Identify & Select ASHPs'!$I$36="EER",4,3),FALSE),"")) ->  | E57: =IF(OR(B57="#N/A",B57=""),"",IFERROR(HLOOKUP(B57,'Step 5 Identify & Select ASHPs'!$O$26:$Z$29,IF('Step 5 Identify & Select ASHPs'!$I$36="EER",3,4),FALSE),"")) ->  | G57: =INDEX(E52:E63,MATCH(J57,B52:B63,0)) ->  | I57: =INDEX(C52:C63,MATCH(J57,B52:B63,0)) -> 0 | J57: =IF(MAX(B52:B63)<IF('Intro & Unit Options'!B12=Dropdown_Menus!F1,CONVERT(95,"F","C"),95),MAX(B52:B63),INDEX(B52:B63,MATCH(IF('Intro & Unit Options'!B12=Dropdown_Menus!F1,CONVERT(95,"F","C"),95),B52:B63,-1))) -> 95 | M57: =IF('Step 5 Identify & Select ASHPs'!$E$33=Dropdown_Menus!$A$2,"",'HP1'!B57) ->  | N57: =IF(OR(M57="#N/A",M57=""),"",IFERROR(HLOOKUP('HP1'!M57,'Step 5 Identify & Select ASHPs'!$N$35:$AH$38,2,FALSE),"")) ->  | O57: =IF(OR(M57="#N/A",M57=""),"",IFERROR(HLOOKUP(M57,'Step 5 Identify & Select ASHPs'!$N$35:$AH$38,IF('Step 5 Identify & Select ASHPs'!$I$36="EER",4,3),FALSE),"")) ->  | P57: =IF(OR(M57="#N/A",M57=""),"",IFERROR(HLOOKUP(M57,'Step 5 Identify & Select ASHPs'!$N$35:$AH$38,IF('Step 5 Identify & Select ASHPs'!$I$36="EER",3,4),FALSE),"")) ->  | T57: =INDEX(N52:N63,MATCH(U57,M52:M63,0)) -> 0 | U57: =IF(MAX(M52:M63)<IF('Intro & Unit Options'!M12=Dropdown_Menus!Q1,CONVERT(95,"F","C"),95),MAX(M52:M63),INDEX(M52:M63,MATCH(IF('Intro & Unit Options'!M12=Dropdown_Menus!Q1,CONVERT(95,"F","C"),95),M52:M63,-1))) -> 95
